Workbook

Sheet PNB BDD
C2: A sélectionner dans menu déroulant | W2: Légende
B3: Direction commerciale | W3: Réalisations > objectif proraté
B4: Secteur | W4: Réalisations < 50% de objectif proraté
B5: Agence | W5: Taux / durée lié a une convention
B7: =IF(C3="","CEGEE",IF(AND(C5="",C4=""),C3,IF(AND(C5="",C4<>""),C4,IF(C5="","""Sélectionneragence",C5)))) -> CEGEE | E7: PNB sur Activité Nouvelle 2019
B9: Données arrêtées au : | C9: ='Indicateurs Cumulés'!$E$4 -> 2019-02-28
B10: Taux de réalisation attendu : | C10: =MONTH(C9)/12 -> 17% | E10: Réalisations Mensuelles | J10: Réalisations Annuelles | P10: OBJECTIFS | V10: TAUX Réal. Objectif
E11: Volume | F11: Taux | G11: Durée | H11: PNB | J11: Volume | K11: Taux | L11: Durée | M11: PNB | N11: PNB / ETP perf. | P11: Volume | Q11: Taux | R11: Durée | S11: PNB | T11: PNB / ETP Cible | V11: Volume | W11: PNB annuel | X11: Ecart /obj. PNB/ETP
B12: Montants en k€
B14: COLLECTE (yc DAV) - Excédents | E14: =E15+E16+E17+E32 -> 10,421 | H14: =H15+H16+H32 -> 3,143 | J14: =J15+J16+J17+J32 -> 95,026 | M14: =M15+M16+M32 -> 6,684 | N14: =IF(ISERROR(M14/VLOOKUP($B$7,'Indicateurs Cumulés'!$D$3:$MX$450,223,FALSE)),"nc",M14/VLOOKUP($B$7,'Indicateurs Cumulés'!$D$3:$MX$450,223,FALSE)) -> 4.7 | P14: =P15+P16+P32 -> 180,000 | S14: =S15+S16+S32 -> 24,756 | T14: =IF(ISERROR(S14/VLOOKUP($B$7,objectifs!$D$4:$IA$432,232,FALSE)),"nc",S14/VLOOKUP($B$7,objectifs!$D$4:$IA$432,232,FALSE)) -> 16.3 | V14: =IF(ISERROR(J14/P14),0,J14/P14) -> 53% | W14: =IF(ISERROR(M14/S14),0,M14/S14) -> 27% | X14: =IF(ISERROR(N14-(T14/12*MONTH($C$9))),"nc",N14-(T14/12*MONTH($C$9))) -> 2.0 | Y14: ok
B15: DAV Créditeurs - Variation d'EMJ mensuel | E15: =VLOOKUP($B$7,'Indicateurs mensuels'!$D$3:$ZZ$450,211,FALSE)/12 -> 56 | F15: =VLOOKUP($B$7,'Indicateurs mensuels'!$D$3:$KI$450,178,FALSE) -> 1.00% | G15: =VLOOKUP($B$7,'Indicateurs mensuels'!$D$3:$KI$450,179,FALSE) -> 5.37 | H15: =E15*F15*G15 -> 3 | J15: =VLOOKUP($B$7,'Indicateurs Cumulés'!$D$3:$MX$450,220,FALSE)*MONTH($C$9)/12 -> -2,969 | K15: =VLOOKUP($B$7,'Indicateurs Cumulés'!$D$3:$MX$450,186,FALSE) -> 1.00% | L15: =VLOOKUP($B$7,'Indicateurs Cumulés'!$D$3:$MX$450,187,FALSE) -> 5.37 | M15: =J15*K15*L15 -> -159 | N15: =IF(ISERROR(M15/VLOOKUP($B$7,'Indicateurs Cumulés'!$D$3:$MX$450,223,FALSE)),"nc",M15/VLOOKUP($B$7,'Indicateurs Cumulés'!$D$3:$MX$450,223,FALSE)) -> -0.1 | P15: =VLOOKUP($B$7,objectifs!$D$3:$ZZ$450,157,FALSE) -> 130,000 | Q15: =VLOOKUP($B$7,objectifs!$D$3:$ZZ$450,158,FALSE) -> 1.00% | R15: =VLOOKUP($B$7,objectifs!$D$3:$ZZ$450,159,FALSE) -> 5.37 | S15: =P15*Q15*R15 -> 6,981 | T15: =IF(ISERROR(S15/VLOOKUP($B$7,objectifs!$D$4:$IA$432,232,FALSE)),"nc",S15/VLOOKUP($B$7,objectifs!$D$4:$IA$432,232,FALSE)) -> 4.6 | V15: =IF(ISERROR(J15/P15),0,J15/P15) -> -2% | W15: =IF(ISERROR(M15/S15),0,M15/S15) -> -2% | X15: =IF(ISERROR(N15-(T15/12*MONTH($C$9))),"nc",N15-(T15/12*MONTH($C$9))) -> -0.9
B16: Epargne Bilan | E16: =VLOOKUP($B$7,'Indicateurs mensuels'!$D$3:$KI$450,173,FALSE) -> -32,941 | H16: =VLOOKUP($B$7,'Indicateurs mensuels'!$D$3:$KI$450,174,FALSE) -> 958 | J16: =VLOOKUP($B$7,'Indicateurs Cumulés'!$D$3:$MX$450,181,FALSE) -> 31,456 | M16: =VLOOKUP($B$7,'Indicateurs Cumulés'!$D$3:$MX$450,182,FALSE) -> 3,497 | N16: =IF(ISERROR(M16/VLOOKUP($B$7,'Indicateurs Cumulés'!$D$3:$MX$450,223,FALSE)),"nc",M16/VLOOKUP($B$7,'Indicateurs Cumulés'!$D$3:$MX$450,223,FALSE)) -> 2.5 | P16: =VLOOKUP($B$7,objectifs!$D$3:$ZZ$450,153,FALSE)+VLOOKUP($B$7,objectifs!$D$3:$ZZ$450,81,FALSE) -> -120,000 | S16: =VLOOKUP($B$7,objectifs!$D$3:$ZZ$450,154,FALSE)+S17 -> 2,792 | T16: =IF(ISERROR(S16/VLOOKUP($B$7,objectifs!$D$4:$IA$432,232,FALSE)),"nc",S16/VLOOKUP($B$7,objectifs!$D$4:$IA$432,232,FALSE)) -> 1.8 | V16: =IF(ISERROR(J16/P16),0,J16/P16) -> -26% | W16: =IF(ISERROR(M16/S16),0,M16/S16) -> 125% | X16: =IF(ISERROR(N16-(T16/12*MONTH($C$9))),"nc",N16-(T16/12*MONTH($C$9))) -> 2.2
B17: Livret A | E17: =VLOOKUP($B$7,'Indicateurs mensuels'!$D$3:$KI$450,101,FALSE) -> 7,941 | F17: =VLOOKUP($B$7,'Indicateurs mensuels'!$D$3:$KI$450,102,FALSE) -> 0.70% | G17: =VLOOKUP($B$7,'Indicateurs mensuels'!$D$3:$KI$450,103,FALSE) -> 5.33 | H17: =E17*F17*G17 -> 296 | J17: =VLOOKUP($B$7,'Indicateurs Cumulés'!$D$3:$MX$450,109,FALSE) -> 17,640 | K17: =VLOOKUP($B$7,'Indicateurs Cumulés'!$D$3:$MX$450,110,FALSE) -> 0.70% | L17: =VLOOKUP($B$7,'Indicateurs Cumulés'!$D$3:$MX$450,111,FALSE) -> 5.33 | M17: =J17*K17*L17 -> 658 | N17: =IF(ISERROR(M17/VLOOKUP($B$7,'Indicateurs Cumulés'!$D$3:$MX$450,223,FALSE)),"nc",M17/VLOOKUP($B$7,'Indicateurs Cumulés'!$D$3:$MX$450,223,FALSE)) -> 0.5 | P17: =VLOOKUP($B$7,objectifs!$D$3:$ZZ$450,81,FALSE) -> 30,000 | Q17: =VLOOKUP($B$7,objectifs!$D$3:$ZZ$450,82,FALSE) -> 0.70% | R17: =VLOOKUP($B$7,objectifs!$D$3:$ZZ$450,83,FALSE) -> 5.37 | S17: =P17*Q17*R17 -> 1,128 | T17: =IF(ISERROR(S17/VLOOKUP($B$7,objectifs!$D$4:$IA$432,232,FALSE)),"nc",S17/VLOOKUP($B$7,objectifs!$D$4:$IA$432,232,FALSE)) -> 0.7 | V17: =IF(ISERROR(J17/P17),0,J17/P17) -> 59% | W17: =IF(ISERROR(M17/S17),0,M17/S17) -> 58% | X17: 0.3
B18: LDDS | E18: =VLOOKUP($B$7,'Indicateurs mensuels'!$D$3:$KI$450,121,FALSE) -> 2,649 | F18: =VLOOKUP($B$7,'Indicateurs mensuels'!$D$3:$KI$450,122,FALSE) -> 0.20% | G18: =VLOOKUP($B$7,'Indicateurs mensuels'!$D$3:$KI$450,123,FALSE) -> 5.37 | H18: 28 | J18: =VLOOKUP($B$7,'Indicateurs Cumulés'!$D$3:$MX$450,129,FALSE) -> 5,083 | K18: =VLOOKUP($B$7,'Indicateurs Cumulés'!$D$3:$MX$450,130,FALSE) -> 0.20% | L18: =VLOOKUP($B$7,'Indicateurs Cumulés'!$D$3:$MX$450,131,FALSE) -> 5.37 | M18: =VLOOKUP($B$7,'Indicateurs Cumulés'!$D$3:$MX$450,132,FALSE) -> 55 | N18: =IF(ISERROR(M18/VLOOKUP($B$7,'Indicateurs Cumulés'!$D$3:$MX$450,223,FALSE)),"nc",M18/VLOOKUP($B$7,'Indicateurs Cumulés'!$D$3:$MX$450,223,FALSE)) -> 0.0 | P18: =VLOOKUP($B$7,objectifs!$D$3:$ZZ$450,101,FALSE) -> 10,000 | Q18: =VLOOKUP($B$7,objectifs!$D$3:$ZZ$450,102,FALSE) -> 0.20% | R18: =VLOOKUP($B$7,objectifs!$D$3:$ZZ$450,103,FALSE) -> 5.37 | S18: =P18*Q18*R18 -> 107 | T18: =IF(ISERROR(S18/VLOOKUP($B$7,objectifs!$D$4:$IA$432,232,FALSE)),"nc",S18/VLOOKUP($B$7,objectifs!$D$4:$IA$432,232,FALSE)) -> 0.1 | V18: =IF(ISERROR(J18/P18),0,J18/P18) -> 51% | W18: =IF(ISERROR(M18/S18),0,M18/S18) -> 51% | X18: 0.0
B19: LEP | E19: =VLOOKUP($B$7,'Indicateurs mensuels'!$D$3:$KI$450,117,FALSE) -> -5,063 | F19: =VLOOKUP($B$7,'Indicateurs mensuels'!$D$3:$KI$450,118,FALSE) -> 0.20% | G19: =VLOOKUP($B$7,'Indicateurs mensuels'!$D$3:$KI$450,119,FALSE) -> 5.37 | H19: -54 | J19: =VLOOKUP($B$7,'Indicateurs Cumulés'!$D$3:$MX$450,125,FALSE) -> -8,803 | K19: =VLOOKUP($B$7,'Indicateurs Cumulés'!$D$3:$MX$450,126,FALSE) -> 0.20% | L19: =VLOOKUP($B$7,'Indicateurs Cumulés'!$D$3:$MX$450,127,FALSE) -> 5.37 | M19: =VLOOKUP($B$7,'Indicateurs Cumulés'!$D$3:$MX$450,128,FALSE) -> -95 | N19: =IF(ISERROR(M19/VLOOKUP($B$7,'Indicateurs Cumulés'!$D$3:$MX$450,223,FALSE)),"nc",M19/VLOOKUP($B$7,'Indicateurs Cumulés'!$D$3:$MX$450,223,FALSE)) -> -0.1 | P19: =VLOOKUP($B$7,objectifs!$D$3:$ZZ$450,97,FALSE) -> -40,000 | Q19: =VLOOKUP($B$7,objectifs!$D$3:$ZZ$450,98,FALSE) -> 0.20% | R19: =VLOOKUP($B$7,objectifs!$D$3:$ZZ$450,99,FALSE) -> 5.37 | S19: -430 | T19: =IF(ISERROR(S19/VLOOKUP($B$7,objectifs!$D$4:$IA$432,232,FALSE)),"nc",S19/VLOOKUP($B$7,objectifs!$D$4:$IA$432,232,FALSE)) -> -0.3 | V19: 22% | W19: 22% | X19: -0.0
B20: Livret B | E20: =VLOOKUP($B$7,'Indicateurs mensuels'!$D$3:$KI$450,105,FALSE) -> 643 | F20: =VLOOKUP($B$7,'Indicateurs mensuels'!$D$3:$KI$450,106,FALSE) -> 0.73% | G20: =VLOOKUP($B$7,'Indicateurs mensuels'!$D$3:$KI$450,107,FALSE) -> 5.33 | H20: 25 | J20: =VLOOKUP($B$7,'Indicateurs Cumulés'!$D$3:$MX$450,113,FALSE) -> -6,267 | K20: =VLOOKUP($B$7,'Indicateurs Cumulés'!$D$3:$MX$450,114,FALSE) -> 0.73% | L20: =VLOOKUP($B$7,'Indicateurs Cumulés'!$D$3:$MX$450,115,FALSE) -> 5.33 | M20: =VLOOKUP($B$7,'Indicateurs Cumulés'!$D$3:$MX$450,116,FALSE) -> -245 | N20: =IF(ISERROR(M20/VLOOKUP($B$7,'Indicateurs Cumulés'!$D$3:$MX$450,223,FALSE)),"nc",M20/VLOOKUP($B$7,'Indicateurs Cumulés'!$D$3:$MX$450,223,FALSE)) -> -0.2 | P20: =VLOOKUP($B$7,objectifs!$D$3:$ZZ$450,85,FALSE) -> 40,000 | Q20: =VLOOKUP($B$7,objectifs!$D$3:$ZZ$450,86,FALSE) -> 0.70% | R20: =VLOOKUP($B$7,objectifs!$D$3:$ZZ$450,87,FALSE) -> 5.37 | S20: 1,504 | T20: =IF(ISERROR(S20/VLOOKUP($B$7,objectifs!$D$4:$IA$432,232,FALSE)),"nc",S20/VLOOKUP($B$7,objectifs!$D$4:$IA$432,232,FALSE)) -> 1.0 | V20: -16% | W20: -16% | X20: -0.3
B21: Livret Jeune / Livret 10-12 | E21: =VLOOKUP($B$7,'Indicateurs mensuels'!$D$3:$KI$450,125,FALSE) -> -280 | F21: =VLOOKUP($B$7,'Indicateurs mensuels'!$D$3:$KI$450,126,FALSE) -> 0.20% | G21: =VLOOKUP($B$7,'Indicateurs mensuels'!$D$3:$KI$450,127,FALSE) -> 5.37 | H21: -3 | J21: =VLOOKUP($B$7,'Indicateurs Cumulés'!$D$3:$MX$450,133,FALSE) -> -4,463 | K21: =VLOOKUP($B$7,'Indicateurs Cumulés'!$D$3:$MX$450,134,FALSE) -> 0.20% | L21: =VLOOKUP($B$7,'Indicateurs Cumulés'!$D$3:$MX$450,135,FALSE) -> 5.37 | M21: =VLOOKUP($B$7,'Indicateurs Cumulés'!$D$3:$MX$450,136,FALSE) -> -48 | N21: =IF(ISERROR(M21/VLOOKUP($B$7,'Indicateurs Cumulés'!$D$3:$MX$450,223,FALSE)),"nc",M21/VLOOKUP($B$7,'Indicateurs Cumulés'!$D$3:$MX$450,223,FALSE)) -> -0.0 | P21: =VLOOKUP($B$7,objectifs!$D$3:$ZZ$450,105,FALSE) -> 1,000 | Q21: =VLOOKUP($B$7,objectifs!$D$3:$ZZ$450,106,FALSE) -> 0.20% | R21: =VLOOKUP($B$7,objectifs!$D$3:$ZZ$450,107,FALSE) -> 5.37 | S21: 11 | T21: =IF(ISERROR(S21/VLOOKUP($B$7,objectifs!$D$4:$IA$432,232,FALSE)),"nc",S21/VLOOKUP($B$7,objectifs!$D$4:$IA$432,232,FALSE)) -> 0.0 | V21: -446% | W21: -446% | X21: -0.0
B22: Livret Grand prix | E22: =VLOOKUP($B$7,'Indicateurs mensuels'!$D$3:$KI$450,113,FALSE) -> 39,528 | F22: =VLOOKUP($B$7,'Indicateurs mensuels'!$D$3:$KI$450,114,FALSE) -> 0.63% | G22: =VLOOKUP($B$7,'Indicateurs mensuels'!$D$3:$KI$450,115,FALSE) -> 5.33 | H22: 1,322 | J22: =VLOOKUP($B$7,'Indicateurs Cumulés'!$D$3:$MX$450,121,FALSE) -> 97,877 | K22: =VLOOKUP($B$7,'Indicateurs Cumulés'!$D$3:$MX$450,122,FALSE) -> 0.63% | L22: =VLOOKUP($B$7,'Indicateurs Cumulés'!$D$3:$MX$450,123,FALSE) -> 5.33 | M22: =VLOOKUP($B$7,'Indicateurs Cumulés'!$D$3:$MX$450,124,FALSE) -> 3273 | N22: =IF(ISERROR(M22/VLOOKUP($B$7,'Indicateurs Cumulés'!$D$3:$MX$450,223,FALSE)),"nc",M22/VLOOKUP($B$7,'Indicateurs Cumulés'!$D$3:$MX$450,223,FALSE)) -> 2.3 | P22: =VLOOKUP($B$7,objectifs!$D$3:$ZZ$450,93,FALSE) -> 0 | Q22: =VLOOKUP($B$7,objectifs!$D$3:$ZZ$450,94,FALSE) -> 0.70% | R22: =VLOOKUP($B$7,objectifs!$D$3:$ZZ$450,95,FALSE) -> 5.37 | S22: 0 | T22: =IF(ISERROR(S22/VLOOKUP($B$7,objectifs!$D$4:$IA$432,232,FALSE)),"nc",S22/VLOOKUP($B$7,objectifs!$D$4:$IA$432,232,FALSE)) -> 0.0
B23: Livret Grand Format | E23: =VLOOKUP($B$7,'Indicateurs mensuels'!$D$3:$KI$450,109,FALSE) -> -1,841 | F23: =VLOOKUP($B$7,'Indicateurs mensuels'!$D$3:$KI$450,110,FALSE) -> 0.84% | G23: =VLOOKUP($B$7,'Indicateurs mensuels'!$D$3:$KI$450,111,FALSE) -> 5.33 | H23: -82 | J23: =VLOOKUP($B$7,'Indicateurs Cumulés'!$D$3:$MX$450,117,FALSE) -> -4,213 | K23: =VLOOKUP($B$7,'Indicateurs Cumulés'!$D$3:$MX$450,118,FALSE) -> 0.84% | L23: =VLOOKUP($B$7,'Indicateurs Cumulés'!$D$3:$MX$450,119,FALSE) -> 5.33 | M23: =VLOOKUP($B$7,'Indicateurs Cumulés'!$D$3:$MX$450,120,FALSE) -> -189 | N23: =IF(ISERROR(M23/VLOOKUP($B$7,'Indicateurs Cumulés'!$D$3:$MX$450,223,FALSE)),"nc",M23/VLOOKUP($B$7,'Indicateurs Cumulés'!$D$3:$MX$450,223,FALSE)) -> -0.1 | P23: 0 | Q23: 0.00% | R23: 0.00 | S23: 0 | T23: =IF(ISERROR(S23/VLOOKUP($B$7,objectifs!$D$4:$IA$432,232,FALSE)),"nc",S23/VLOOKUP($B$7,objectifs!$D$4:$IA$432,232,FALSE)) -> 0.0
B24: Compte Excédent Pro | E24: =VLOOKUP($B$7,'Indicateurs mensuels'!$D$3:$KI$450,222,FALSE) -> 4,336 | F24: =VLOOKUP($B$7,'Indicateurs mensuels'!$D$3:$KI$450,110,FALSE) -> 0.84% | G24: =VLOOKUP($B$7,'Indicateurs mensuels'!$D$3:$KI$450,111,FALSE) -> 5.33 | H24: 194 | J24: =VLOOKUP($B$7,'Indicateurs Cumulés'!$D$3:$MX$450,273,FALSE) -> 7,806 | K24: =VLOOKUP($B$7,'Indicateurs Cumulés'!$D$3:$MX$450,122,FALSE) -> 0.63% | L24: =VLOOKUP($B$7,'Indicateurs Cumulés'!$D$3:$MX$450,123,FALSE) -> 5.33 | M24: =VLOOKUP($B$7,'Indicateurs Cumulés'!$D$3:$MX$450,280,FALSE) -> 307 | N24: =IF(ISERROR(M24/VLOOKUP($B$7,'Indicateurs Cumulés'!$D$3:$MX$450,223,FALSE)),"nc",M24/VLOOKUP($B$7,'Indicateurs Cumulés'!$D$3:$MX$450,223,FALSE)) -> 0.2 | P24: =VLOOKUP($B$7,objectifs!$D$3:$ZZ$450,89,FALSE) -> 19,000 | Q24: =VLOOKUP($B$7,objectifs!$D$3:$ZZ$450,90,FALSE) -> 0.60% | R24: =VLOOKUP($B$7,objectifs!$D$3:$ZZ$450,91,FALSE) -> 5.37 | S24: 612 | T24: =IF(ISERROR(S24/VLOOKUP($B$7,objectifs!$D$4:$IA$432,232,FALSE)),"nc",S24/VLOOKUP($B$7,objectifs!$D$4:$IA$432,232,FALSE)) -> 0.4 | V24: 41% | W24: 50% | X24: 0.2
B25: PEL | E25: =VLOOKUP($B$7,'Indicateurs mensuels'!$D$3:$KI$450,141,FALSE) -> 251 | F25: =VLOOKUP($B$7,'Indicateurs mensuels'!$D$3:$KI$450,142,FALSE) -> 0.00% | G25: =VLOOKUP($B$7,'Indicateurs mensuels'!$D$3:$KI$450,143,FALSE) -> 5.10 | H25: 0 | J25: =VLOOKUP($B$7,'Indicateurs Cumulés'!$D$3:$MX$450,149,FALSE) -> 634 | K25: =VLOOKUP($B$7,'Indicateurs Cumulés'!$D$3:$MX$450,150,FALSE) -> 0.00% | L25: =VLOOKUP($B$7,'Indicateurs Cumulés'!$D$3:$MX$450,151,FALSE) -> 8.52 | M25: =VLOOKUP($B$7,'Indicateurs Cumulés'!$D$3:$MX$450,152,FALSE) -> 0 | N25: =IF(ISERROR(M25/VLOOKUP($B$7,'Indicateurs Cumulés'!$D$3:$MX$450,223,FALSE)),"nc",M25/VLOOKUP($B$7,'Indicateurs Cumulés'!$D$3:$MX$450,223,FALSE)) -> 0.0 | P25: =VLOOKUP($B$7,objectifs!$D$3:$ZZ$450,121,FALSE) -> -20,000 | Q25: =VLOOKUP($B$7,objectifs!$D$3:$ZZ$450,122,FALSE) -> 0.00% | R25: =VLOOKUP($B$7,objectifs!$D$3:$ZZ$450,123,FALSE) -> 8.50 | S25: 0 | T25: =IF(ISERROR(S25/VLOOKUP($B$7,objectifs!$D$4:$IA$432,232,FALSE)),"nc",S25/VLOOKUP($B$7,objectifs!$D$4:$IA$432,232,FALSE)) -> 0.0 | V25: -3% | W25: 0% | X25: 0
B26: CEL | E26: =VLOOKUP($B$7,'Indicateurs mensuels'!$D$3:$KI$450,129,FALSE) -> -1,256 | F26: =VLOOKUP($B$7,'Indicateurs mensuels'!$D$3:$KI$450,130,FALSE) -> 0.44% | G26: =VLOOKUP($B$7,'Indicateurs mensuels'!$D$3:$KI$450,131,FALSE) -> 5.33 | H26: -29 | J26: =VLOOKUP($B$7,'Indicateurs Cumulés'!$D$3:$MX$450,137,FALSE) -> -1,961 | K26: =VLOOKUP($B$7,'Indicateurs Cumulés'!$D$3:$MX$450,138,FALSE) -> 0.44% | L26: =VLOOKUP($B$7,'Indicateurs Cumulés'!$D$3:$MX$450,139,FALSE) -> 5.33 | M26: =VLOOKUP($B$7,'Indicateurs Cumulés'!$D$3:$MX$450,140,FALSE) -> -46 | N26: =IF(ISERROR(M26/VLOOKUP($B$7,'Indicateurs Cumulés'!$D$3:$MX$450,223,FALSE)),"nc",M26/VLOOKUP($B$7,'Indicateurs Cumulés'!$D$3:$MX$450,223,FALSE)) -> -0.0 | P26: =VLOOKUP($B$7,objectifs!$D$3:$ZZ$450,109,FALSE) -> 0 | Q26: =VLOOKUP($B$7,objectifs!$D$3:$ZZ$450,110,FALSE) -> 0.30% | R26: =VLOOKUP($B$7,objectifs!$D$3:$ZZ$450,111,FALSE) -> 5.37 | S26: 0 | T26: =IF(ISERROR(S26/VLOOKUP($B$7,objectifs!$D$4:$IA$432,232,FALSE)),"nc",S26/VLOOKUP($B$7,objectifs!$D$4:$IA$432,232,FALSE)) -> 0.0
B27: PEP | E27: =VLOOKUP($B$7,'Indicateurs mensuels'!$D$3:$KI$450,145,FALSE) -> -94 | F27: =VLOOKUP($B$7,'Indicateurs mensuels'!$D$3:$KI$450,146,FALSE) -> -0.37% | G27: =VLOOKUP($B$7,'Indicateurs mensuels'!$D$3:$KI$450,147,FALSE) -> 0.08 | H27: 0 | J27: =VLOOKUP($B$7,'Indicateurs Cumulés'!$D$3:$MX$450,153,FALSE) -> -301 | K27: =VLOOKUP($B$7,'Indicateurs Cumulés'!$D$3:$MX$450,154,FALSE) -> -0.37% | L27: =VLOOKUP($B$7,'Indicateurs Cumulés'!$D$3:$MX$450,155,FALSE) -> 0.08 | M27: =VLOOKUP($B$7,'Indicateurs Cumulés'!$D$3:$MX$450,156,FALSE) -> 0 | N27: =IF(ISERROR(M27/VLOOKUP($B$7,'Indicateurs Cumulés'!$D$3:$MX$450,223,FALSE)),"nc",M27/VLOOKUP($B$7,'Indicateurs Cumulés'!$D$3:$MX$450,223,FALSE)) -> 0.0 | P27: 0 | Q27: 0.00% | R27: 0.00 | S27: 0 | T27: =IF(ISERROR(S27/VLOOKUP($B$7,objectifs!$D$4:$IA$432,232,FALSE)),"nc",S27/VLOOKUP($B$7,objectifs!$D$4:$IA$432,232,FALSE)) -> 0.0
B28: SLR | E28: =VLOOKUP($B$7,'Indicateurs mensuels'!$D$3:$KI$450,133,FALSE) -> -428 | F28: =VLOOKUP($B$7,'Indicateurs mensuels'!$D$3:$KI$450,134,FALSE) -> 0.10% | G28: =VLOOKUP($B$7,'Indicateurs mensuels'!$D$3:$KI$450,135,FALSE) -> 0.00 | H28: 0 | J28: =VLOOKUP($B$7,'Indicateurs Cumulés'!$D$3:$MX$450,141,FALSE) -> -1,032 | K28: =VLOOKUP($B$7,'Indicateurs Cumulés'!$D$3:$MX$450,142,FALSE) -> 0.10% | L28: =VLOOKUP($B$7,'Indicateurs Cumulés'!$D$3:$MX$450,143,FALSE) -> 6.92 | M28: =VLOOKUP($B$7,'Indicateurs Cumulés'!$D$3:$MX$450,144,FALSE) -> -7 | N28: =IF(ISERROR(M28/VLOOKUP($B$7,'Indicateurs Cumulés'!$D$3:$MX$450,223,FALSE)),"nc",M28/VLOOKUP($B$7,'Indicateurs Cumulés'!$D$3:$MX$450,223,FALSE)) -> -0.0 | P28: =VLOOKUP($B$7,objectifs!$D$3:$ZZ$450,117,FALSE) -> 0 | Q28: =VLOOKUP($B$7,objectifs!$D$3:$ZZ$450,118,FALSE) -> 0.10% | R28: =VLOOKUP($B$7,objectifs!$D$3:$ZZ$450,119,FALSE) -> 7.00 | S28: 0 | T28: =IF(ISERROR(S28/VLOOKUP($B$7,objectifs!$D$4:$IA$432,232,FALSE)),"nc",S28/VLOOKUP($B$7,objectifs!$D$4:$IA$432,232,FALSE)) -> 0.0
B29: DAT (Bons, CDN, CAT, TCN, …) | E29: =VLOOKUP($B$7,'Indicateurs mensuels'!$D$3:$KI$450,137,FALSE) -> -2,235 | F29: =VLOOKUP($B$7,'Indicateurs mensuels'!$D$3:$KI$450,138,FALSE) -> 0.20% | G29: =VLOOKUP($B$7,'Indicateurs mensuels'!$D$3:$KI$450,139,FALSE) -> 9.00 | H29: -40 | J29: =VLOOKUP($B$7,'Indicateurs Cumulés'!$D$3:$MX$450,145,FALSE) -> -4,763 | K29: =VLOOKUP($B$7,'Indicateurs Cumulés'!$D$3:$MX$450,146,FALSE) -> 0.20% | L29: =VLOOKUP($B$7,'Indicateurs Cumulés'!$D$3:$MX$450,147,FALSE) -> 9.00 | M29: =VLOOKUP($B$7,'Indicateurs Cumulés'!$D$3:$MX$450,148,FALSE) -> -86 | N29: =IF(ISERROR(M29/VLOOKUP($B$7,'Indicateurs Cumulés'!$D$3:$MX$450,223,FALSE)),"nc",M29/VLOOKUP($B$7,'Indicateurs Cumulés'!$D$3:$MX$450,223,FALSE)) -> -0.1 | P29: =VLOOKUP($B$7,objectifs!$D$3:$ZZ$450,113,FALSE) -> 20,000 | Q29: =VLOOKUP($B$7,objectifs!$D$3:$ZZ$450,114,FALSE) -> 0.20% | R29: =VLOOKUP($B$7,objectifs!$D$3:$ZZ$450,115,FALSE) -> 9.00 | S29: 360 | T29: =IF(ISERROR(S29/VLOOKUP($B$7,objectifs!$D$4:$IA$432,232,FALSE)),"nc",S29/VLOOKUP($B$7,objectifs!$D$4:$IA$432,232,FALSE)) -> 0.2 | V29: -24% | W29: -24% | X29: -0.1
B30: Emprunt CTO | E30: =VLOOKUP($B$7,'Indicateurs mensuels'!$D$3:$KI$450,165,FALSE) -> -93,511 | F30: =VLOOKUP($B$7,'Indicateurs mensuels'!$D$3:$KI$450,166,FALSE) -> 0.20% | G30: =VLOOKUP($B$7,'Indicateurs mensuels'!$D$3:$KI$450,167,FALSE) -> 8.00 | H30: -1,496 | J30: =VLOOKUP($B$7,'Indicateurs Cumulés'!$D$3:$MX$450,173,FALSE) -> -94,353 | K30: =VLOOKUP($B$7,'Indicateurs Cumulés'!$D$3:$MX$450,174,FALSE) -> 0.20% | L30: =VLOOKUP($B$7,'Indicateurs Cumulés'!$D$3:$MX$450,175,FALSE) -> 8.00 | M30: =VLOOKUP($B$7,'Indicateurs Cumulés'!$D$3:$MX$450,176,FALSE) -> -1510 | N30: =IF(ISERROR(M30/VLOOKUP($B$7,'Indicateurs Cumulés'!$D$3:$MX$450,223,FALSE)),"nc",M30/VLOOKUP($B$7,'Indicateurs Cumulés'!$D$3:$MX$450,223,FALSE)) -> -1.1 | P30: =VLOOKUP($B$7,objectifs!$D$3:$ZZ$450,145,FALSE) -> -250,000 | Q30: =VLOOKUP($B$7,objectifs!$D$3:$ZZ$450,146,FALSE) -> 0.20% | R30: =VLOOKUP($B$7,objectifs!$D$3:$ZZ$450,147,FALSE) -> 8.00 | S30: -4,000 | T30: =IF(ISERROR(S30/VLOOKUP($B$7,objectifs!$D$4:$IA$432,232,FALSE)),"nc",S30/VLOOKUP($B$7,objectifs!$D$4:$IA$432,232,FALSE)) -> -2.6 | V30: 38% | W30: 38% | X30: -0.6
B31: Parts sociales | E31: =VLOOKUP($B$7,'Indicateurs mensuels'!$D$3:$KI$450,169,FALSE) -> 16,418 | F31: =VLOOKUP($B$7,'Indicateurs mensuels'!$D$3:$KI$450,170,FALSE) -> 1.00% | G31: =VLOOKUP($B$7,'Indicateurs mensuels'!$D$3:$KI$450,171,FALSE) -> 5.00 | H31: 821 | J31: =VLOOKUP($B$7,'Indicateurs Cumulés'!$D$3:$MX$450,177,FALSE) -> 28,571 | K31: =VLOOKUP($B$7,'Indicateurs Cumulés'!$D$3:$MX$450,178,FALSE) -> 1.00% | L31: =VLOOKUP($B$7,'Indicateurs Cumulés'!$D$3:$MX$450,179,FALSE) -> 5.00 | M31: =VLOOKUP($B$7,'Indicateurs Cumulés'!$D$3:$MX$450,180,FALSE) -> 1429 | N31: =IF(ISERROR(M31/VLOOKUP($B$7,'Indicateurs Cumulés'!$D$3:$MX$450,223,FALSE)),"nc",M31/VLOOKUP($B$7,'Indicateurs Cumulés'!$D$3:$MX$450,223,FALSE)) -> 1.0 | P31: =VLOOKUP($B$7,objectifs!$D$3:$ZZ$450,149,FALSE) -> 70,000 | Q31: =VLOOKUP($B$7,objectifs!$D$3:$ZZ$450,150,FALSE) -> 1.00% | R31: =VLOOKUP($B$7,objectifs!$D$3:$ZZ$450,151,FALSE) -> 5.00 | S31: 3,500 | T31: =IF(ISERROR(S31/VLOOKUP($B$7,objectifs!$D$4:$IA$432,232,FALSE)),"nc",S31/VLOOKUP($B$7,objectifs!$D$4:$IA$432,232,FALSE)) -> 2.3 | V31: 41% | W31: 41% | X31: 0.6
B32: Epargne Financière (Ass. vie - OPCVM - Autres val. mob.) | E32: =VLOOKUP($B$7,'Indicateurs mensuels'!$D$3:$KI$450,175,FALSE) -> 35,364 | H32: =VLOOKUP($B$7,'Indicateurs mensuels'!$D$3:$KI$450,176,FALSE) -> 2,183 | J32: =VLOOKUP($B$7,'Indicateurs Cumulés'!$D$3:$MX$450,183,FALSE) -> 48,899 | M32: =VLOOKUP($B$7,'Indicateurs Cumulés'!$D$3:$MX$450,184,FALSE) -> 3,346 | N32: =IF(ISERROR(M32/VLOOKUP($B$7,'Indicateurs Cumulés'!$D$3:$MX$450,223,FALSE)),"nc",M32/VLOOKUP($B$7,'Indicateurs Cumulés'!$D$3:$MX$450,223,FALSE)) -> 2.4 | P32: =VLOOKUP($B$7,objectifs!$D$3:$ZZ$450,155,FALSE) -> 170,000 | S32: =VLOOKUP($B$7,objectifs!$D$3:$ZZ$450,156,FALSE) -> 14,983 | T32: =IF(ISERROR(S32/VLOOKUP($B$7,objectifs!$D$4:$IA$432,232,FALSE)),"nc",S32/VLOOKUP($B$7,objectifs!$D$4:$IA$432,232,FALSE)) -> 9.9 | V32: 29% | W32: 22% | X32: 0.7
B33: Ass. Vie sur flux (versements) | E33: =VLOOKUP($B$7,'Indicateurs mensuels'!$D$3:$KI$450,153,FALSE)+VLOOKUP($B$7,'Indicateurs mensuels'!$D$3:$ZZ$450,193,FALSE) -> 92,652 | F33: =H33/E33 -> 0.37% | G33: =VLOOKUP($B$7,'Indicateurs mensuels'!$D$3:$KI$450,155,FALSE) -> 1.00 | H33: =(VLOOKUP($B$7,'Indicateurs mensuels'!$D$3:$KI$450,156,FALSE)+VLOOKUP($B$7,'Indicateurs mensuels'!$D$3:$ZZ$450,196,FALSE)) -> 342 | J33: =VLOOKUP($B$7,'Indicateurs Cumulés'!$D$3:$MX$450,161,FALSE)+VLOOKUP($B$7,'Indicateurs Cumulés'!$D$3:$MX$450,201,FALSE) -> 171,202 | K33: =M33/J33 -> 0.39% | L33: =VLOOKUP($B$7,'Indicateurs Cumulés'!$D$3:$MX$450,163,FALSE) -> 1.00 | M33: =(VLOOKUP($B$7,'Indicateurs Cumulés'!$D$3:$MX$450,164,FALSE)+VLOOKUP($B$7,'Indicateurs Cumulés'!$D$3:$MX$450,204,FALSE)) -> 668 | N33: =IF(ISERROR(M33/VLOOKUP($B$7,'Indicateurs Cumulés'!$D$3:$MX$450,223,FALSE)),"nc",M33/VLOOKUP($B$7,'Indicateurs Cumulés'!$D$3:$MX$450,223,FALSE)) -> 0.5 | P33: =VLOOKUP($B$7,objectifs!$D$3:$ZZ$450,133,FALSE) -> 1,000,000 | Q33: =VLOOKUP($B$7,objectifs!$D$3:$ZZ$450,134,FALSE) -> 0.40% | R33: =VLOOKUP($B$7,objectifs!$D$3:$ZZ$450,135,FALSE) -> 1.00 | S33: =P33*Q33*R33 -> 4,000 | T33: =IF(ISERROR(S33/VLOOKUP($B$7,objectifs!$D$4:$IA$432,232,FALSE)),"nc",S33/VLOOKUP($B$7,objectifs!$D$4:$IA$432,232,FALSE)) -> 2.6 | V33: 17% | W33: 17% | X33: 0.0
B34: Ass. Vie sur encours (excédents) | E34: =VLOOKUP($B$7,'Indicateurs mensuels'!$D$3:$KI$450,149,FALSE)+VLOOKUP($B$7,'Indicateurs mensuels'!$D$3:$ZZ$450,189,FALSE) -> 40,566 | F34: =VLOOKUP($B$7,'Indicateurs mensuels'!$D$3:$KI$450,150,FALSE) -> 0.45% | G34: =VLOOKUP($B$7,'Indicateurs mensuels'!$D$3:$KI$450,151,FALSE) -> 8.00 | H34: =E34*F34*G34 -> 1,460 | J34: =VLOOKUP($B$7,'Indicateurs Cumulés'!$D$3:$MX$450,157,FALSE)+VLOOKUP($B$7,'Indicateurs Cumulés'!$D$3:$MX$450,197,FALSE) -> 56,698 | K34: =VLOOKUP($B$7,'Indicateurs Cumulés'!$D$3:$MX$450,158,FALSE) -> 0.45% | L34: =VLOOKUP($B$7,'Indicateurs Cumulés'!$D$3:$MX$450,159,FALSE) -> 8.00 | M34: =J34*K34*L34 -> 2,041 | N34: =IF(ISERROR(M34/VLOOKUP($B$7,'Indicateurs Cumulés'!$D$3:$MX$450,223,FALSE)),"nc",M34/VLOOKUP($B$7,'Indicateurs Cumulés'!$D$3:$MX$450,223,FALSE)) -> 1.4 | P34: =VLOOKUP($B$7,objectifs!$D$3:$ZZ$450,129,FALSE) -> 165,000 | Q34: =VLOOKUP($B$7,objectifs!$D$3:$ZZ$450,130,FALSE) -> 0.45% | R34: =VLOOKUP($B$7,objectifs!$D$3:$ZZ$450,131,FALSE) -> 8.00 | S34: =P34*Q34*R34 -> 5,940 | T34: =IF(ISERROR(S34/VLOOKUP($B$7,objectifs!$D$4:$IA$432,232,FALSE)),"nc",S34/VLOOKUP($B$7,objectifs!$D$4:$IA$432,232,FALSE)) -> 3.9 | V34: 34% | W34: 34% | X34: 0.8
B35: Arbitrage (fonds € vers UC) | E35: =VLOOKUP($B$7,'Indicateurs mensuels'!$D$3:$KI$450,64,FALSE) -> 7,290 | F35: =K35 -> 0.25% | G35: =L35 -> 8.00 | H35: =E35*F35*G35 -> 146 | J35: =VLOOKUP($B$7,'Indicateurs Cumulés'!$D$3:$MX$450,64,FALSE) -> 10,310 | K35: =VLOOKUP($B$7,objectifs!$D$3:$ZZ$450,126,FALSE) -> 0.25% | L35: =VLOOKUP($B$7,objectifs!$D$3:$ZZ$450,127,FALSE) -> 8.00 | M35: =J35*K35*L35 -> 206 | N35: =IF(ISERROR(M35/VLOOKUP($B$7,'Indicateurs Cumulés'!$D$3:$MX$450,223,FALSE)),"nc",M35/VLOOKUP($B$7,'Indicateurs Cumulés'!$D$3:$MX$450,223,FALSE)) -> 0.1 | P35: =VLOOKUP($B$7,objectifs!$D$3:$ZZ$450,125,FALSE) -> 135,000 | Q35: =VLOOKUP($B$7,objectifs!$D$3:$ZZ$450,126,FALSE) -> 0.25% | R35: =VLOOKUP($B$7,objectifs!$D$3:$ZZ$450,127,FALSE) -> 8.00 | S35: =P35*Q35*R35 -> 2,700 | T35: =IF(ISERROR(S35/VLOOKUP($B$7,objectifs!$D$4:$IA$432,232,FALSE)),"nc",S35/VLOOKUP($B$7,objectifs!$D$4:$IA$432,232,FALSE)) -> 1.8 | V35: 8% | W35: 8% | X35: -0.2
B36: OPCVM sur flux (versements) | E36: =VLOOKUP($B$7,'Indicateurs mensuels'!$D$3:$KI$450,161,FALSE)+VLOOKUP($B$7,'Indicateurs mensuels'!$D$3:$KI$450,201,FALSE) -> 733 | F36: =VLOOKUP($B$7,'Indicateurs mensuels'!$D$3:$KI$450,162,FALSE) -> 0.40% | G36: =VLOOKUP($B$7,'Indicateurs mensuels'!$D$3:$KI$450,163,FALSE) -> 1.00 | H36: =E36*F36*G36 -> 3 | J36: =VLOOKUP($B$7,'Indicateurs Cumulés'!$D$3:$MX$450,169,FALSE)+VLOOKUP($B$7,'Indicateurs Cumulés'!$D$3:$MX$450,209,FALSE) -> 2,581 | K36: =VLOOKUP($B$7,'Indicateurs Cumulés'!$D$3:$MX$450,170,FALSE) -> 0.40% | L36: =VLOOKUP($B$7,'Indicateurs Cumulés'!$D$3:$MX$450,171,FALSE) -> 1.00 | M36: =VLOOKUP($B$7,'Indicateurs Cumulés'!$D$3:$MX$450,172,FALSE)+VLOOKUP($B$7,'Indicateurs Cumulés'!$D$3:$MX$450,212,FALSE) -> 10 | N36: =IF(ISERROR(M36/VLOOKUP($B$7,'Indicateurs Cumulés'!$D$3:$MX$450,223,FALSE)),"nc",M36/VLOOKUP($B$7,'Indicateurs Cumulés'!$D$3:$MX$450,223,FALSE)) -> 0.0 | P36: =VLOOKUP($B$7,objectifs!$D$3:$ZZ$450,141,FALSE) -> 20,000 | Q36: =VLOOKUP($B$7,objectifs!$D$3:$ZZ$450,142,FALSE) -> 0.40% | R36: =VLOOKUP($B$7,objectifs!$D$3:$ZZ$450,143,FALSE) -> 1.00 | S36: =P36*Q36*R36 -> 80 | T36: =IF(ISERROR(S36/VLOOKUP($B$7,objectifs!$D$4:$IA$432,232,FALSE)),"nc",S36/VLOOKUP($B$7,objectifs!$D$4:$IA$432,232,FALSE)) -> 0.1 | V36: 13% | W36: 13% | X36: -0.0
B37: OPCVM sur encours (excédents) | E37: =VLOOKUP($B$7,'Indicateurs mensuels'!$D$3:$KI$450,157,FALSE)+VLOOKUP($B$7,'Indicateurs mensuels'!$D$3:$KI$450,197,FALSE) -> -2,830 | F37: =H37/E37/G37 -> 0.65% | G37: =VLOOKUP($B$7,'Indicateurs mensuels'!$D$3:$KI$450,159,FALSE) -> 5.00 | H37: =VLOOKUP($B$7,'Indicateurs mensuels'!$D$3:$KI$450,160,FALSE)+VLOOKUP($B$7,'Indicateurs mensuels'!$D$3:$KI$450,200,FALSE) -> -92 | J37: =VLOOKUP($B$7,'Indicateurs Cumulés'!$D$3:$MX$450,165,FALSE)+VLOOKUP($B$7,'Indicateurs Cumulés'!$D$3:$MX$450,205,FALSE) -> -5,396 | K37: =M37/J37/L37 -> 0.65% | L37: =VLOOKUP($B$7,'Indicateurs Cumulés'!$D$3:$MX$450,167,FALSE) -> 5.00 | M37: =VLOOKUP($B$7,'Indicateurs Cumulés'!$D$3:$MX$450,168,FALSE)+VLOOKUP($B$7,'Indicateurs Cumulés'!$D$3:$MX$450,208,FALSE) -> -175 | N37: =IF(ISERROR(M37/VLOOKUP($B$7,'Indicateurs Cumulés'!$D$3:$MX$450,223,FALSE)),"nc",M37/VLOOKUP($B$7,'Indicateurs Cumulés'!$D$3:$MX$450,223,FALSE)) -> -0.1 | P37: =VLOOKUP($B$7,objectifs!$D$3:$ZZ$450,137,FALSE) -> 5,000 | Q37: =VLOOKUP($B$7,objectifs!$D$3:$ZZ$450,138,FALSE) -> 0.65% | R37: =VLOOKUP($B$7,objectifs!$D$3:$ZZ$450,139,FALSE) -> 5.00 | S37: 163 | T37: =IF(ISERROR(S37/VLOOKUP($B$7,objectifs!$D$4:$IA$432,232,FALSE)),"nc",S37/VLOOKUP($B$7,objectifs!$D$4:$IA$432,232,FALSE)) -> 0.1 | V37: -108% | W37: -108% | X37: -0.1
B38: FCP structurés (versements) | E38: =VLOOKUP($B$7,'Indicateurs mensuels'!$D$3:$ZZ$450,66,FALSE) -> 15,769 | F38: =K38 -> 2.80% | G38: =L38 -> 1.00 | H38: =E38*F38*G38 -> 442 | J38: =VLOOKUP($B$7,'Indicateurs Cumulés'!$D$3:$MX$450,66,FALSE) -> 25,591 | K38: =VLOOKUP($B$7,objectifs!$D$3:$ZZ$450,68,FALSE) -> 2.80% | L38: =VLOOKUP($B$7,'Indicateurs Cumulés'!$D$3:$MX$450,163,FALSE) -> 1.00 | M38: =J38*K38*L38 -> 717 | N38: =IF(ISERROR(M38/VLOOKUP($B$7,'Indicateurs Cumulés'!$D$3:$MX$450,223,FALSE)),"nc",M38/VLOOKUP($B$7,'Indicateurs Cumulés'!$D$3:$MX$450,223,FALSE)) -> 0.5 | P38: =VLOOKUP($B$7,objectifs!$D$3:$ZZ$450,67,FALSE) -> 75,000 | Q38: =VLOOKUP($B$7,objectifs!$D$3:$ZZ$450,68,FALSE) -> 2.80% | R38: =VLOOKUP($B$7,objectifs!$D$3:$ZZ$450,69,FALSE) -> 1.00 | S38: =P38*Q38*R38 -> 2,100 | T38: =IF(ISERROR(S38/VLOOKUP($B$7,objectifs!$D$4:$IA$432,232,FALSE)),"nc",S38/VLOOKUP($B$7,objectifs!$D$4:$IA$432,232,FALSE)) -> 1.4 | V38: 34% | W38: 34% | X38: 0.3
B39: Autres Valeurs mobilières (excédents) | E39: =VLOOKUP($B$7,'Indicateurs mensuels'!$D$3:$ZZ$450,205,FALSE) -> -2,371 | F39: =VLOOKUP($B$7,'Indicateurs mensuels'!$D$3:$KI$450,206,FALSE) -> 1.00% | G39: =VLOOKUP($B$7,'Indicateurs mensuels'!$D$3:$KI$450,207,FALSE) -> 5.00 | H39: =E39*F39*G39 -> -119 | J39: =VLOOKUP($B$7,'Indicateurs Cumulés'!$D$3:$MX$450,213,FALSE) -> -2,403 | K39: =VLOOKUP($B$7,'Indicateurs Cumulés'!$D$3:$MX$450,214,FALSE) -> 1.00% | L39: =VLOOKUP($B$7,'Indicateurs Cumulés'!$D$3:$MX$450,215,FALSE) -> 5.00 | M39: =J39*K39*L39 -> -120 | N39: =IF(ISERROR(M39/VLOOKUP($B$7,'Indicateurs Cumulés'!$D$3:$MX$450,223,FALSE)),"nc",M39/VLOOKUP($B$7,'Indicateurs Cumulés'!$D$3:$MX$450,223,FALSE)) -> -0.1 | P39: =VLOOKUP($B$7,objectifs!$D$3:$ZZ$450,165,FALSE) -> 0 | Q39: =VLOOKUP($B$7,objectifs!$D$3:$ZZ$450,166,FALSE) -> 1.00% | R39: =VLOOKUP($B$7,objectifs!$D$3:$ZZ$450,167,FALSE) -> 5.00 | S39: =P39*Q39*R39 -> 0 | T39: =IF(ISERROR(S39/VLOOKUP($B$7,objectifs!$D$4:$IA$432,232,FALSE)),"nc",S39/VLOOKUP($B$7,objectifs!$D$4:$IA$432,232,FALSE)) -> 0.0
B41: CREDIT à la CONSOMMATION - Eng. Nets (yc accessoires) | E41: =E42+E43 -> 51,451 | F41: =IF(ISERROR(H41/(E41*G41)),0,H41/(E41*G41)) -> 4.22% | G41: =SUMPRODUCT(G42:G43,E42:E43)/(E42+E43) -> 2.36 | H41: =H42+H43+H44+H45 -> 5,118 | J41: =J42+J43 -> 119,695 | K41: =IF(ISERROR(M41/(J41*L41)),0,M41/(J41*L41)) -> 4.16% | L41: =SUMPRODUCT(L42:L43,J42:J43)/(J42+J43) -> 2.40 | M41: =M42+M43+M44+M45 -> 11,970 | N41: =IF(ISERROR(M41/VLOOKUP($B$7,'Indicateurs Cumulés'!$D$3:$MX$450,223,FALSE)),"nc",M41/VLOOKUP($B$7,'Indicateurs Cumulés'!$D$3:$MX$450,223,FALSE)) -> 8.5 | P41: =P42+P43 -> 710,000 | Q41: =IF(ISERROR(S41/(P41*R41)),0,S41/(P41*R41)) -> 4.32% | R41: =SUMPRODUCT(R42:R43,P42:P43)/(P42+P43) -> 2.42 | S41: =S42+S43+S44+S45 -> 74,348 | T41: =IF(ISERROR(S41/VLOOKUP($B$7,objectifs!$D$4:$IA$432,232,FALSE)),"nc",S41/VLOOKUP($B$7,objectifs!$D$4:$IA$432,232,FALSE)) -> 48.9 | V41: =IF(ISERROR(J41/P41),0,J41/P41) -> 17% | W41: =IF(ISERROR(M41/S41),0,M41/S41) -> 16% | X41: =IF(ISERROR(N41-(T41/12*MONTH($C$9))),"nc",N41-(T41/12*MONTH($C$9))) -> 0.3
B42: Crédit à la Consommation (marge hors accessoires) | E42: =VLOOKUP($B$7,'Indicateurs mensuels'!$D$3:$KI$450,7,FALSE) -> 47,644 | F42: =VLOOKUP($B$7,'Indicateurs mensuels'!$D$3:$KI$450,8,FALSE) -> 3.21% | G42: =VLOOKUP($B$7,'Indicateurs mensuels'!$D$3:$KI$450,9,FALSE) -> 2.42 | H42: =E42*F42*G42 -> 3,704 | J42: =VLOOKUP($B$7,'Indicateurs Cumulés'!$D$3:$MX$450,7,FALSE) -> 111,884 | K42: =VLOOKUP($B$7,'Indicateurs Cumulés'!$D$3:$MX$450,8,FALSE) -> 3.20% | L42: =VLOOKUP($B$7,'Indicateurs Cumulés'!$D$3:$MX$450,9,FALSE) -> 2.46 | M42: =J42*K42*L42 -> 8,812 | N42: =IF(ISERROR(M42/VLOOKUP($B$7,'Indicateurs Cumulés'!$D$3:$MX$450,223,FALSE)),"nc",M42/VLOOKUP($B$7,'Indicateurs Cumulés'!$D$3:$MX$450,223,FALSE)) -> 6.2 | P42: =VLOOKUP($B$7,objectifs!$D$3:$ZZ$450,7,FALSE) -> 650,000 | Q42: =VLOOKUP($B$7,objectifs!$D$3:$ZZ$450,8,FALSE) -> 3.05% | R42: =VLOOKUP($B$7,objectifs!$D$3:$ZZ$450,9,FALSE) -> 2.50 | S42: =P42*Q42*R42 -> 49,563 | T42: =IF(ISERROR(S42/VLOOKUP($B$7,objectifs!$D$4:$IA$432,232,FALSE)),"nc",S42/VLOOKUP($B$7,objectifs!$D$4:$IA$432,232,FALSE)) -> 32.6 | V42: 17% | W42: 18% | X42: 0.8
B43: Crédit Revolving | E43: =VLOOKUP($B$7,'Indicateurs mensuels'!$D$3:$KI$450,3,FALSE) -> 3,806 | F43: =VLOOKUP($B$7,'Indicateurs mensuels'!$D$3:$KI$450,4,FALSE) -> 4.32% | G43: =VLOOKUP($B$7,'Indicateurs mensuels'!$D$3:$KI$450,5,FALSE) -> 1.57 | H43: =E43*F43*G43 -> 258 | J43: =VLOOKUP($B$7,'Indicateurs Cumulés'!$D$3:$MX$450,3,FALSE) -> 7,812 | K43: =VLOOKUP($B$7,'Indicateurs Cumulés'!$D$3:$MX$450,4,FALSE) -> 4.32% | L43: =VLOOKUP($B$7,'Indicateurs Cumulés'!$D$3:$MX$450,5,FALSE) -> 1.57 | M43: =J43*K43*L43 -> 530 | N43: =IF(ISERROR(M43/VLOOKUP($B$7,'Indicateurs Cumulés'!$D$3:$MX$450,223,FALSE)),"nc",M43/VLOOKUP($B$7,'Indicateurs Cumulés'!$D$3:$MX$450,223,FALSE)) -> 0.4 | P43: =VLOOKUP($B$7,objectifs!$D$3:$ZZ$450,3,FALSE) -> 60,000 | Q43: =VLOOKUP($B$7,objectifs!$D$3:$ZZ$450,4,FALSE) -> 4.32% | R43: =VLOOKUP($B$7,objectifs!$D$3:$ZZ$450,5,FALSE) -> 1.60 | S43: =P43*Q43*R43 -> 4,147 | T43: =IF(ISERROR(S43/VLOOKUP($B$7,objectifs!$D$4:$IA$432,232,FALSE)),"nc",S43/VLOOKUP($B$7,objectifs!$D$4:$IA$432,232,FALSE)) -> 2.7 | V43: 13% | W43: 13% | X43: -0.1
B44: Frais de dossier | H44: =VLOOKUP($B$7,'Indicateurs mensuels'!$D$3:$KI$450,95,FALSE) -> 228 | M44: =VLOOKUP($B$7,'Indicateurs Cumulés'!$D$3:$MX$450,96,FALSE) -> 378 | N44: =IF(ISERROR(M44/VLOOKUP($B$7,'Indicateurs Cumulés'!$D$3:$MX$450,223,FALSE)),"nc",M44/VLOOKUP($B$7,'Indicateurs Cumulés'!$D$3:$MX$450,223,FALSE)) -> 0.3 | S44: =VLOOKUP($B$7,objectifs!$D$3:$ZZ$450,62,FALSE) -> 3,900 | T44: =IF(ISERROR(S44/VLOOKUP($B$7,objectifs!$D$4:$IA$432,232,FALSE)),"nc",S44/VLOOKUP($B$7,objectifs!$D$4:$IA$432,232,FALSE)) -> 2.6 | W44: 10% | X44: -0.2
B45: Commissions ADE | E45: =VLOOKUP($B$7,'Indicateurs mensuels'!$D$3:$KI$450,216,FALSE) -> 131.9% | F45: =VLOOKUP($B$7,'Indicateurs mensuels'!$D$3:$KI$450,215,FALSE) -> 92.3% | H45: =VLOOKUP($B$7,'Indicateurs mensuels'!$D$3:$ZZ$450,217,FALSE) -> 928 | J45: =VLOOKUP($B$7,'Indicateurs Cumulés'!$D$3:$MX$450,103,FALSE) -> 134.1% | K45: =VLOOKUP($B$7,'Indicateurs Cumulés'!$D$3:$MX$450,102,FALSE) -> 93.0% | M45: =VLOOKUP($B$7,'Indicateurs Cumulés'!$D$3:$MX$450,104,FALSE) -> 2,250 | N45: =IF(ISERROR(M45/VLOOKUP($B$7,'Indicateurs Cumulés'!$D$3:$MX$450,223,FALSE)),"nc",M45/VLOOKUP($B$7,'Indicateurs Cumulés'!$D$3:$MX$450,223,FALSE)) -> 1.6 | S45: =VLOOKUP($B$7,objectifs!$D$3:$ZZ$450,72,FALSE) -> 16,738 | T45: =IF(ISERROR(S45/VLOOKUP($B$7,objectifs!$D$4:$IA$432,232,FALSE)),"nc",S45/VLOOKUP($B$7,objectifs!$D$4:$IA$432,232,FALSE)) -> 11.0 | W45: 13% | X45: -0.2
B47: CREDIT IMMOBILIER - Eng. Nets (yc accessoires) | E47: =E48 -> 108,161 | F47: =IF(ISERROR(H47/(E47*G47)),0,H47/(E47*G47)) -> 0.20% | G47: =G48 -> 7.50 | H47: =SUM(H48:H53) -> 1,604 | J47: =J48 -> 230,168 | K47: =IF(ISERROR(M47/(J47*L47)),0,M47/(J47*L47)) -> 0.21% | L47: =L48 -> 7.46 | M47: =SUM(M48:M53) -> 3,632 | N47: =IF(ISERROR(M47/VLOOKUP($B$7,'Indicateurs Cumulés'!$D$3:$MX$450,223,FALSE)),"nc",M47/VLOOKUP($B$7,'Indicateurs Cumulés'!$D$3:$MX$450,223,FALSE)) -> 2.6 | P47: =P48 -> 1,664,000 | Q47: =IF(ISERROR(S47/(P47*R47)),0,S47/(P47*R47)) -> 0.49% | R47: =R48 -> 7.50 | S47: =SUM(S48:S53) -> 60,661 | T47: =IF(ISERROR(S47/VLOOKUP($B$7,objectifs!$D$4:$IA$432,232,FALSE)),"nc",S47/VLOOKUP($B$7,objectifs!$D$4:$IA$432,232,FALSE)) -> 39.9 | V47: =IF(ISERROR(J47/P47),0,J47/P47) -> 14% | W47: =IF(ISERROR(M47/S47),0,M47/S47) -> 6% | X47: =IF(ISERROR(N47-(T47/12*MONTH($C$9))),"nc",N47-(T47/12*MONTH($C$9))) -> -4.1
B48: Crédit Immobilier (marge hors accessoires) | E48: =VLOOKUP($B$7,'Indicateurs mensuels'!$D$3:$KI$450,11,FALSE) -> 108,161 | F48: =VLOOKUP($B$7,'Indicateurs mensuels'!$D$3:$KI$450,13,FALSE) -> -0.12% | G48: =VLOOKUP($B$7,'Indicateurs mensuels'!$D$3:$KI$450,14,FALSE) -> 7.50 | H48: =E48*F48*G48 -> -934 | J48: =VLOOKUP($B$7,'Indicateurs Cumulés'!$D$3:$MX$450,11,FALSE) -> 230,168 | K48: =VLOOKUP($B$7,'Indicateurs Cumulés'!$D$3:$MX$450,13,FALSE) -> -0.08% | L48: =VLOOKUP($B$7,'Indicateurs Cumulés'!$D$3:$MX$450,14,FALSE) -> 7.46 | M48: =J48*K48*L48 -> -1,456 | N48: =IF(ISERROR(M48/VLOOKUP($B$7,'Indicateurs Cumulés'!$D$3:$MX$450,223,FALSE)),"nc",M48/VLOOKUP($B$7,'Indicateurs Cumulés'!$D$3:$MX$450,223,FALSE)) -> -1.0 | P48: =VLOOKUP($B$7,objectifs!$D$3:$ZZ$450,10,FALSE) -> 1,664,000 | Q48: =VLOOKUP($B$7,objectifs!$D$3:$ZZ$450,12,FALSE) -> 0.20% | R48: =VLOOKUP($B$7,objectifs!$D$3:$ZZ$450,13,FALSE) -> 7.50 | S48: =P48*Q48*R48 -> 24,960 | T48: =IF(ISERROR(S48/VLOOKUP($B$7,objectifs!$D$4:$IA$432,232,FALSE)),"nc",S48/VLOOKUP($B$7,objectifs!$D$4:$IA$432,232,FALSE)) -> 16.4 | V48: 14% | W48: -6% | X48: -3.8
B49: Commissions ADE (coefficient multiplicateur de 1,3 X) | E49: =VLOOKUP($B$7,'Indicateurs mensuels'!$D$3:$KI$450,87,FALSE) -> 140.9% | F49: =VLOOKUP($B$7,'Indicateurs mensuels'!$D$3:$KI$450,86,FALSE) -> 71.1% | H49: =VLOOKUP($B$7,'Indicateurs mensuels'!$D$3:$KI$450,88,FALSE) -> 2,231 | J49: =VLOOKUP($B$7,'Indicateurs Cumulés'!$D$3:$MX$450,100,FALSE) -> 141.4% | K49: =VLOOKUP($B$7,'Indicateurs Cumulés'!$D$3:$MX$450,99,FALSE) -> 70.9% | M49: =VLOOKUP($B$7,'Indicateurs Cumulés'!$D$3:$MX$450,101,FALSE) -> 4,474 | N49: =IF(ISERROR(M49/VLOOKUP($B$7,'Indicateurs Cumulés'!$D$3:$MX$450,223,FALSE)),"nc",M49/VLOOKUP($B$7,'Indicateurs Cumulés'!$D$3:$MX$450,223,FALSE)) -> 3.2 | S49: =VLOOKUP($B$7,objectifs!$D$3:$ZZ$450,71,FALSE) -> 27,130 | T49: =IF(ISERROR(S49/VLOOKUP($B$7,objectifs!$D$4:$IA$432,232,FALSE)),"nc",S49/VLOOKUP($B$7,objectifs!$D$4:$IA$432,232,FALSE)) -> 17.9 | W49: 16% | X49: 0.2
B50: Frais de dossier | H50: =VLOOKUP($B$7,'Indicateurs mensuels'!$D$3:$KI$450,96,FALSE) -> 326 | M50: =VLOOKUP($B$7,'Indicateurs Cumulés'!$D$3:$MX$450,98,FALSE) -> 705 | N50: =IF(ISERROR(M50/VLOOKUP($B$7,'Indicateurs Cumulés'!$D$3:$MX$450,223,FALSE)),"nc",M50/VLOOKUP($B$7,'Indicateurs Cumulés'!$D$3:$MX$450,223,FALSE)) -> 0.5 | S50: =VLOOKUP($B$7,objectifs!$D$3:$ZZ$450,63,FALSE) -> 4,992 | T50: =IF(ISERROR(S50/VLOOKUP($B$7,objectifs!$D$4:$IA$432,232,FALSE)),"nc",S50/VLOOKUP($B$7,objectifs!$D$4:$IA$432,232,FALSE)) -> 3.3 | W50: 14% | X50: =IF(ISERROR(N50-(T50/12*MONTH($C$9))),"nc",N50-(T50/12*MONTH($C$9))) -> -0.0
B51: Commissions SACCEF | H51: =VLOOKUP($B$7,'Indicateurs mensuels'!$D$3:$KI$450,30,FALSE) -> 187 | M51: =VLOOKUP($B$7,'Indicateurs Cumulés'!$D$3:$MX$450,30,FALSE) -> 416 | N51: =IF(ISERROR(M51/VLOOKUP($B$7,'Indicateurs Cumulés'!$D$3:$MX$450,223,FALSE)),"nc",M51/VLOOKUP($B$7,'Indicateurs Cumulés'!$D$3:$MX$450,223,FALSE)) -> 0.3 | S51: =VLOOKUP($B$7,objectifs!$D$3:$ZZ$450,74,FALSE) -> 3,578
B52: Bonus clients devenus BPe / JBPe via le crédit immobilier | E52: =J52 -> 163 | F52: =K52 -> 1,000 € | G52: =L52 -> 1.00 | H52: =E52*F52*G52/1000 -> 163 | J52: =VLOOKUP($B$7,'Indicateurs Cumulés'!$D$3:$MX$450,84,FALSE) -> 163 | K52: =IF(ISERROR(M52/(J52*L52)*1000),0,M52/(J52*L52)*1000) -> 1,000 € | L52: 1.00 | M52: =VLOOKUP($B$7,'Indicateurs Cumulés'!$D$3:$MX$450,85,FALSE) -> 163 | N52: =IF(ISERROR(M52/VLOOKUP($B$7,'Indicateurs Cumulés'!$D$3:$MX$450,223,FALSE)),"nc",M52/VLOOKUP($B$7,'Indicateurs Cumulés'!$D$3:$MX$450,223,FALSE)) -> 0.1
B53: Commissions apporteurs d'affaires | H53: =VLOOKUP($B$7,'Indicateurs mensuels'!$D$3:$KI$450,70,FALSE) -> -368 | M53: =VLOOKUP($B$7,'Indicateurs Cumulés'!$D$3:$MX$450,70,FALSE) -> -669 | N53: =IF(ISERROR(M53/VLOOKUP($B$7,'Indicateurs Cumulés'!$D$3:$MX$450,223,FALSE)),"nc",M53/VLOOKUP($B$7,'Indicateurs Cumulés'!$D$3:$MX$450,223,FALSE)) -> -0.5
B55: CREDIT MLT PRO - Eng. Nets (yc accessoires) | E55: =E56+E57 -> 23,317 | F55: =IF(ISERROR(H55/(E55*G55)),0,H55/(E55*G55)) -> 0.52% | G55: =SUMPRODUCT(G56:G57,E56:E57)/(E56+E57) -> 4.44 | H55: =H56+H57+H58+H59 -> 540 | J55: =J56+J57 -> 51,340 | K55: =IF(ISERROR(M55/(J55*L55)),0,M55/(J55*L55)) -> 0.54% | L55: =SUMPRODUCT(L56:L57,J56:J57)/(J56+J57) -> 4.54 | M55: =M56+M57+M58+M59 -> 1,250 | N55: =IF(ISERROR(M55/VLOOKUP($B$7,'Indicateurs Cumulés'!$D$3:$MX$450,223,FALSE)),"nc",M55/VLOOKUP($B$7,'Indicateurs Cumulés'!$D$3:$MX$450,223,FALSE)) -> 0.9 | P55: =P56+P57 -> 250,000 | Q55: =IF(ISERROR(S55/(P55*R55)),0,S55/(P55*R55)) -> 0.70% | R55: =SUMPRODUCT(R56:R57,P56:P57)/(P56+P57) -> 4.39 | S55: =S56+S57+S58+S59 -> 7,646 | T55: =IF(ISERROR(S55/VLOOKUP($B$7,objectifs!$D$4:$IA$432,232,FALSE)),"nc",S55/VLOOKUP($B$7,objectifs!$D$4:$IA$432,232,FALSE)) -> 5.0 | V55: =IF(ISERROR(J55/P55),0,J55/P55) -> 21% | W55: =IF(ISERROR(M55/S55),0,M55/S55) -> 16% | X55: =IF(ISERROR(N55-(T55/12*MONTH($C$9))),"nc",N55-(T55/12*MONTH($C$9))) -> 0.0
B56: Crédit MLT (marge hors accessoires) | E56: =VLOOKUP($B$7,'Indicateurs mensuels'!$D$3:$KI$450,22,FALSE) -> 22,234 | F56: =VLOOKUP($B$7,'Indicateurs mensuels'!$D$3:$KI$450,23,FALSE) -> 0.37% | G56: =VLOOKUP($B$7,'Indicateurs mensuels'!$D$3:$KI$450,24,FALSE) -> 4.55 | H56: =E56*F56*G56 -> 374 | J56: =VLOOKUP($B$7,'Indicateurs Cumulés'!$D$3:$MX$450,22,FALSE) -> 49,378 | K56: =VLOOKUP($B$7,'Indicateurs Cumulés'!$D$3:$MX$450,23,FALSE) -> 0.39% | L56: =VLOOKUP($B$7,'Indicateurs Cumulés'!$D$3:$MX$450,24,FALSE) -> 4.63 | M56: =J56*K56*L56 -> 896 | N56: =IF(ISERROR(M56/VLOOKUP($B$7,'Indicateurs Cumulés'!$D$3:$MX$450,223,FALSE)),"nc",M56/VLOOKUP($B$7,'Indicateurs Cumulés'!$D$3:$MX$450,223,FALSE)) -> 0.6 | P56: =VLOOKUP($B$7,objectifs!$D$3:$ZZ$450,20,FALSE) -> 238,000 | Q56: =VLOOKUP($B$7,objectifs!$D$3:$ZZ$450,21,FALSE) -> 0.40% | R56: =VLOOKUP($B$7,objectifs!$D$3:$ZZ$450,22,FALSE) -> 4.50 | S56: =P56*Q56*R56 -> 4,284 | T56: =IF(ISERROR(S56/VLOOKUP($B$7,objectifs!$D$4:$IA$432,232,FALSE)),"nc",S56/VLOOKUP($B$7,objectifs!$D$4:$IA$432,232,FALSE)) -> 2.8 | V56: 21% | W56: 21% | X56: 0.2
B57: Crédit Bail Mobilier | E57: =VLOOKUP($B$7,'Indicateurs mensuels'!$D$3:$GI$450,185,FALSE) -> 1,083 | F57: =VLOOKUP($B$7,'Indicateurs mensuels'!$D$3:$GI$450,186,FALSE) -> 0.82% | G57: =VLOOKUP($B$7,'Indicateurs mensuels'!$D$3:$GI$450,187,FALSE) -> 2.24 | H57: =E57*F57*G57 -> 20 | J57: =VLOOKUP($B$7,'Indicateurs Cumulés'!$D$3:$MX$450,193,FALSE) -> 1,962 | K57: =VLOOKUP($B$7,'Indicateurs Cumulés'!$D$3:$MX$450,194,FALSE) -> 0.85% | L57: =VLOOKUP($B$7,'Indicateurs Cumulés'!$D$3:$MX$450,195,FALSE) -> 2.22 | M57: =J57*K57*L57 -> 37 | N57: =IF(ISERROR(M57/VLOOKUP($B$7,'Indicateurs Cumulés'!$D$3:$MX$450,223,FALSE)),"nc",M57/VLOOKUP($B$7,'Indicateurs Cumulés'!$D$3:$MX$450,223,FALSE)) -> 0.0 | P57: =VLOOKUP($B$7,objectifs!$D$3:$ZZ$450,14,FALSE) -> 12,000 | Q57: =VLOOKUP($B$7,objectifs!$D$3:$ZZ$450,15,FALSE) -> 0.40% | R57: =VLOOKUP($B$7,objectifs!$D$3:$ZZ$450,16,FALSE) -> 2.30 | S57: =P57*Q57*R57 -> 110 | T57: =IF(ISERROR(S57/VLOOKUP($B$7,objectifs!$D$4:$IA$432,232,FALSE)),"nc",S57/VLOOKUP($B$7,objectifs!$D$4:$IA$432,232,FALSE)) -> 0.1 | V57: 16% | W57: 33% | X57: 0.0
B58: Frais de dossier (yc CBM) | H58: =VLOOKUP($B$7,'Indicateurs mensuels'!$D$3:$KI$450,92,FALSE)+VLOOKUP($B$7,'Indicateurs mensuels'!$D$3:$KI$450,97,FALSE) -> 74 | M58: =VLOOKUP($B$7,'Indicateurs Cumulés'!$D$3:$MX$450,92,FALSE)+VLOOKUP($B$7,'Indicateurs Cumulés'!$D$3:$MX$450,94,FALSE) -> 143 | N58: =IF(ISERROR(M58/VLOOKUP($B$7,'Indicateurs Cumulés'!$D$3:$MX$450,223,FALSE)),"nc",M58/VLOOKUP($B$7,'Indicateurs Cumulés'!$D$3:$MX$450,223,FALSE)) -> 0.1 | S58: =VLOOKUP($B$7,objectifs!$D$3:$ZZ$450,66,FALSE) -> 750 | T58: =IF(ISERROR(S58/VLOOKUP($B$7,objectifs!$D$4:$IA$432,232,FALSE)),"nc",S58/VLOOKUP($B$7,objectifs!$D$4:$IA$432,232,FALSE)) -> 0.5 | W58: 19% | X58: 0.0
B59: Commissions ADE | E59: =VLOOKUP($B$7,'Indicateurs mensuels'!$D$3:$KI$450,219,FALSE) -> 105.9% | F59: =VLOOKUP($B$7,'Indicateurs mensuels'!$D$3:$KI$450,218,FALSE) -> 73.3% | H59: =VLOOKUP($B$7,'Indicateurs mensuels'!$D$3:$ZZ$450,220,FALSE) -> 73 | J59: =VLOOKUP($B$7,'Indicateurs Cumulés'!$D$3:$MX$450,107,FALSE) -> 107.6% | K59: =VLOOKUP($B$7,'Indicateurs Cumulés'!$D$3:$MX$450,106,FALSE) -> 64.6% | M59: =VLOOKUP($B$7,'Indicateurs Cumulés'!$D$3:$MX$450,108,FALSE) -> 174 | N59: =IF(ISERROR(M59/VLOOKUP($B$7,'Indicateurs Cumulés'!$D$3:$MX$450,223,FALSE)),"nc",M59/VLOOKUP($B$7,'Indicateurs Cumulés'!$D$3:$MX$450,223,FALSE)) -> 0.1 | S59: =VLOOKUP($B$7,objectifs!$D$3:$ZZ$450,75,FALSE) -> 2,501 | T59: =IF(ISERROR(S59/VLOOKUP($B$7,objectifs!$D$4:$IA$432,232,FALSE)),"nc",S59/VLOOKUP($B$7,objectifs!$D$4:$IA$432,232,FALSE)) -> 1.6 | W59: 7% | X59: -0.2
B61: BANCA - Ventes nettes | H61: =H62+H68+H75+H76+H77+H78+H82 -> 1,121 | M61: =M62+M68+M75+M76+M77+M78+M82 -> 2,959 | N61: =IF(ISERROR(M61/VLOOKUP($B$7,'Indicateurs Cumulés'!$D$3:$MX$450,223,FALSE)),"nc",M61/VLOOKUP($B$7,'Indicateurs Cumulés'!$D$3:$MX$450,223,FALSE)) -> 2.1 | P61: =P62+P68+P78+P77 -> 59,265 | Q61: =IF(ISERROR(S61/(P61*R61)*1000),0,S61/(P61*R61)*1000) -> 114 € | R61: ='[6]Objectifs PNB'!$F$127 -> 5.00 | S61: =S62+S68+S78+S77 -> 33,763 | T61: =IF(ISERROR(S61/VLOOKUP($B$7,objectifs!$D$4:$IA$432,232,FALSE)),"nc",S61/VLOOKUP($B$7,objectifs!$D$4:$IA$432,232,FALSE)) -> 22.2 | V61: =IF(ISERROR(J61/P61),0,J61/P61) -> 0% | W61: =IF(ISERROR(M61/S61),0,M61/S61) -> 9% | X61: =IF(ISERROR(N61-(T61/12*MONTH($C$9))),"nc",N61-(T61/12*MONTH($C$9))) -> -1.6
B62: Forfaits - Tarification | E62: =SUM(E63:E67) -> -150 | H62: =SUM(H63:H67) -> 112 | J62: =SUM(J63:J67) -> -59 | M62: =SUM(M63:M67) -> 508 | N62: =IF(ISERROR(M62/VLOOKUP($B$7,'Indicateurs Cumulés'!$D$3:$MX$450,223,FALSE)),"nc",M62/VLOOKUP($B$7,'Indicateurs Cumulés'!$D$3:$MX$450,223,FALSE)) -> 0.4 | P62: =VLOOKUP($B$7,objectifs!$D$3:$ZZ$450,181,FALSE)*95% -> 21,280 | Q62: =objectifs!$GB$3 -> 137 € | R62: =objectifs!$GC$3 -> 5.00 | S62: =P62*Q62*R62/1000 -> 14,602 | T62: =IF(ISERROR(S62/VLOOKUP($B$7,objectifs!$D$4:$IA$432,232,FALSE)),"nc",S62/VLOOKUP($B$7,objectifs!$D$4:$IA$432,232,FALSE)) -> 9.6 | V62: -0% | W62: 3% | X62: -1.2
B63: Bouquet liberté HDG | E63: =J63-VLOOKUP($B$7,'Indicateurs Cumulés M-1'!$D$3:$MX$450,308,FALSE) -> 1,425 | F63: =K63 -> 140 € | G63: =L63 -> 5.00 | H63: =E63*F63*G63/1000 -> 994 | J63: =VLOOKUP($B$7,'Indicateurs Cumulés'!$D$3:$MX$450,308,FALSE) -> 3,259 | K63: ='Indicateurs Cumulés'!$KY$3 -> 140 € | L63: ='Indicateurs Cumulés'!$KZ$3 -> 5.00 | M63: =J63*K63*L63/1000 -> 2,273 | N63: =IF(ISERROR(M63/VLOOKUP($B$7,'Indicateurs Cumulés'!$D$3:$MX$450,223,FALSE)),"nc",M63/VLOOKUP($B$7,'Indicateurs Cumulés'!$D$3:$MX$450,223,FALSE)) -> 1.6
B64: Bouquet liberté Autres | E64: =J64-VLOOKUP($B$7,'Indicateurs Cumulés M-1'!$D$3:$MX$450,235,FALSE) -> -800 | F64: =K64 -> 87 € | G64: 5.00 | H64: =E64*F64*G64/1000 -> -348 | J64: =VLOOKUP($B$7,'Indicateurs Cumulés'!$D$3:$MX$450,235,FALSE) -> -1,353 | K64: ='Indicateurs Cumulés'!$ID$3 -> 87 € | L64: ='Indicateurs Cumulés'!$IT$3 -> 5.00 | M64: =J64*K64*L64/1000 -> -589 | N64: =IF(ISERROR(M64/VLOOKUP($B$7,'Indicateurs Cumulés'!$D$3:$MX$450,223,FALSE)),"nc",M64/VLOOKUP($B$7,'Indicateurs Cumulés'!$D$3:$MX$450,223,FALSE)) -> -0.4
B65: Futéo / SOL 16-17 | E65: =J65-VLOOKUP($B$7,'Indicateurs Cumulés M-1'!$D$3:$MX$450,236,FALSE) -> 8 | F65: 12 € | G65: 5.00 | H65: 0 | J65: =VLOOKUP($B$7,'Indicateurs Cumulés'!$D$3:$MX$450,236,FALSE) -> -258 | K65: ='Indicateurs Cumulés'!$IE$3 -> 12 € | L65: ='Indicateurs Cumulés'!$IU$3 -> 5.00 | M65: -15 | N65: =IF(ISERROR(M65/VLOOKUP($B$7,'Indicateurs Cumulés'!$D$3:$MX$450,223,FALSE)),"nc",M65/VLOOKUP($B$7,'Indicateurs Cumulés'!$D$3:$MX$450,223,FALSE)) -> -0.0
B66: Satellis Essentiel / Essentiel + | E66: =J66-VLOOKUP($B$7,'Indicateurs Cumulés M-1'!$D$3:$MX$450,237,FALSE) -> -676 | F66: 125 € | G66: 5.00 | H66: -422 | J66: =VLOOKUP($B$7,'Indicateurs Cumulés'!$D$3:$MX$450,237,FALSE) -> -1,483 | K66: ='Indicateurs Cumulés'!$IF$3 -> 125 € | L66: ='Indicateurs Cumulés'!$IV$3 -> 5.00 | M66: -925 | N66: =IF(ISERROR(M66/VLOOKUP($B$7,'Indicateurs Cumulés'!$D$3:$MX$450,223,FALSE)),"nc",M66/VLOOKUP($B$7,'Indicateurs Cumulés'!$D$3:$MX$450,223,FALSE)) -> -0.7
B67: Satellis Intégral | E67: =J67-VLOOKUP($B$7,'Indicateurs Cumulés M-1'!$D$3:$MX$450,238,FALSE) -> -107 | F67: 210 € | G67: 5.00 | H67: -112 | J67: =VLOOKUP($B$7,'Indicateurs Cumulés'!$D$3:$MX$450,238,FALSE) -> -224 | K67: ='Indicateurs Cumulés'!$IG$3 -> 210 € | L67: ='Indicateurs Cumulés'!$IW$3 -> 5.00 | M67: -235 | N67: =IF(ISERROR(M67/VLOOKUP($B$7,'Indicateurs Cumulés'!$D$3:$MX$450,223,FALSE)),"nc",M67/VLOOKUP($B$7,'Indicateurs Cumulés'!$D$3:$MX$450,223,FALSE)) -> -0.2
B68: Cartes - Tarification | E68: =SUM(E69:E74) -> -776 | H68: =SUM(H69:H74) -> 481 | J68: =SUM(J69:J74) -> -1,739 | M68: =SUM(M69:M74) -> 1,119 | N68: =IF(ISERROR(M68/VLOOKUP($B$7,'Indicateurs Cumulés'!$D$3:$MX$450,223,FALSE)),"nc",M68/VLOOKUP($B$7,'Indicateurs Cumulés'!$D$3:$MX$450,223,FALSE)) -> 0.8 | P68: =VLOOKUP($B$7,objectifs!$D$3:$ZZ$450,183,FALSE)*95% -> 11,400 | Q68: =objectifs!$GD$3 -> 289 € | R68: =objectifs!$GE$3 -> 5.00 | S68: =P68*Q68*R68/1000 -> 16,484 | T68: =IF(ISERROR(S68/VLOOKUP($B$7,objectifs!$D$4:$IA$432,232,FALSE)),"nc",S68/VLOOKUP($B$7,objectifs!$D$4:$IA$432,232,FALSE)) -> 10.9 | V68: -15% | W68: 7% | X68: =IF(ISERROR(N68-(T68/12*MONTH($C$9))),"nc",N68-(T68/12*MONTH($C$9))) -> -1.0
B69: Carte Infinite | E69: =J69-VLOOKUP($B$7,'Indicateurs Cumulés M-1'!$D$3:$MX$450,239,FALSE) -> 9 | F69: =K69 -> 315 € | G69: =L69 -> 5.00 | H69: =E69*F69*G69/1000 -> 14 | J69: =VLOOKUP($B$7,'Indicateurs Cumulés'!$D$3:$MX$450,239,FALSE) -> 27 | K69: ='Indicateurs Cumulés'!$IH$3 -> 315 € | L69: ='Indicateurs Cumulés'!$IX$3 -> 5.00 | M69: =J69*K69*L69/1000 -> 43 | N69: =IF(ISERROR(M69/VLOOKUP($B$7,'Indicateurs Cumulés'!$D$3:$MX$450,223,FALSE)),"nc",M69/VLOOKUP($B$7,'Indicateurs Cumulés'!$D$3:$MX$450,223,FALSE)) -> 0.0
B70: Carte Platinum (yc izicarte) | E70: =J70-VLOOKUP($B$7,'Indicateurs Cumulés M-1'!$D$3:$MX$450,240,FALSE) -> 34 | F70: =K70 -> 200 € | G70: 5.00 | H70: =E70*F70*G70/1000 -> 34 | J70: =VLOOKUP($B$7,'Indicateurs Cumulés'!$D$3:$MX$450,240,FALSE) -> 83 | K70: ='Indicateurs Cumulés'!$II$3 -> 200 € | L70: ='Indicateurs Cumulés'!$IY$3 -> 5.00 | M70: =J70*K70*L70/1000 -> 83 | N70: =IF(ISERROR(M70/VLOOKUP($B$7,'Indicateurs Cumulés'!$D$3:$MX$450,223,FALSE)),"nc",M70/VLOOKUP($B$7,'Indicateurs Cumulés'!$D$3:$MX$450,223,FALSE)) -> 0.1
B71: Carte visa premier (yc izicarte) | E71: =J71-VLOOKUP($B$7,'Indicateurs Cumulés M-1'!$D$3:$MX$450,241,FALSE) -> 1,382 | F71: 130 € | G71: 5.00 | H71: 898 | J71: =VLOOKUP($B$7,'Indicateurs Cumulés'!$D$3:$MX$450,241,FALSE) -> 3,149 | K71: ='Indicateurs Cumulés'!$IJ$3 -> 130 € | L71: ='Indicateurs Cumulés'!$IZ$3 -> 5.00 | M71: 2,047 | N71: =IF(ISERROR(M71/VLOOKUP($B$7,'Indicateurs Cumulés'!$D$3:$MX$450,223,FALSE)),"nc",M71/VLOOKUP($B$7,'Indicateurs Cumulés'!$D$3:$MX$450,223,FALSE)) -> 1.4
B72: Carte visa classique (yc izicarte) | E72: =J72-VLOOKUP($B$7,'Indicateurs Cumulés M-1'!$D$3:$MX$450,242,FALSE) -> -1,932 | F72: 43 € | G72: 5.00 | H72: -415 | J72: =VLOOKUP($B$7,'Indicateurs Cumulés'!$D$3:$MX$450,242,FALSE) -> -4,346 | K72: ='Indicateurs Cumulés'!$IK$3 -> 43 € | L72: ='Indicateurs Cumulés'!$JA$3 -> 5.00 | M72: -934 | N72: =IF(ISERROR(M72/VLOOKUP($B$7,'Indicateurs Cumulés'!$D$3:$MX$450,223,FALSE)),"nc",M72/VLOOKUP($B$7,'Indicateurs Cumulés'!$D$3:$MX$450,223,FALSE)) -> -0.7
B73: Carte Sensea | E73: =J73-VLOOKUP($B$7,'Indicateurs Cumulés M-1'!$D$3:$MX$450,82,FALSE) -> -223 | F73: 43 € | G73: 5.00 | H73: -47 | J73: =VLOOKUP($B$7,'Indicateurs Cumulés'!$D$3:$MX$450,82,FALSE) -> -525 | K73: ='Indicateurs Cumulés'!$CG$3 -> 43 € | L73: ='Indicateurs Cumulés'!$CH$3 -> 5.00 | M73: -112 | N73: =IF(ISERROR(M73/VLOOKUP($B$7,'Indicateurs Cumulés'!$D$3:$MX$450,223,FALSE)),"nc",M73/VLOOKUP($B$7,'Indicateurs Cumulés'!$D$3:$MX$450,223,FALSE)) -> -0.1
B74: Autres Cartes | E74: =J74-VLOOKUP($B$7,'Indicateurs Cumulés M-1'!$D$3:$MX$450,243,FALSE) -> -46 | F74: 12 € | G74: 5.00 | H74: -3 | J74: =VLOOKUP($B$7,'Indicateurs Cumulés'!$D$3:$MX$450,243,FALSE) -> -127 | K74: ='Indicateurs Cumulés'!$IL$3 -> 12 € | L74: ='Indicateurs Cumulés'!$JB$3 -> 5.00 | M74: -8 | N74: =IF(ISERROR(M74/VLOOKUP($B$7,'Indicateurs Cumulés'!$D$3:$MX$450,223,FALSE)),"nc",M74/VLOOKUP($B$7,'Indicateurs Cumulés'!$D$3:$MX$450,223,FALSE)) -> -0.0
B75: Booster Cartes débit différé | E75: =J75-VLOOKUP($B$7,'Indicateurs Cumulés M-1'!$D$3:$MX$450,305,FALSE) -> 356 | F75: =K75 -> 40 € | G75: 5.00 | H75: =E75*F75*G75/1000 -> 71 | J75: =VLOOKUP($B$7,'Indicateurs Cumulés'!$D$3:$MX$450,305,FALSE) -> 845 | K75: =IF(ISERROR(M75/(J75*L75)*1000),0,M75/(J75*L75)*1000) -> 40 € | L75: =objectifs!$GE$3 -> 5.00 | M75: =VLOOKUP($B$7,'Indicateurs Cumulés'!$D$3:$MX$450,306,FALSE) -> 169 | N75: =IF(ISERROR(M75/VLOOKUP($B$7,'Indicateurs Cumulés'!$D$3:$MX$450,223,FALSE)),"nc",M75/VLOOKUP($B$7,'Indicateurs Cumulés'!$D$3:$MX$450,223,FALSE)) -> 0.1
B76: Bonus Mobilité bancaire | E76: =VLOOKUP($B$7,'Indicateurs mensuels'!$D$3:$GI$450,68,FALSE) -> 424 | F76: =K76 -> 200 € | G76: =L76 -> 1.00 | H76: =E76*F76*G76/1000 -> 85 | J76: =(VLOOKUP($B$7,'Indicateurs Cumulés'!$D$3:$MX$450,80,FALSE)) -> 995 | K76: =IF(ISERROR(M76/(J76*L76)*1000),0,M76/(J76*L76)*1000) -> 200 € | L76: 1.00 | M76: =VLOOKUP($B$7,'Indicateurs Cumulés'!$D$3:$JB$450,81,FALSE) -> 199 | N76: =IF(ISERROR(M76/VLOOKUP($B$7,'Indicateurs Cumulés'!$D$3:$MX$450,223,FALSE)),"nc",M76/VLOOKUP($B$7,'Indicateurs Cumulés'!$D$3:$MX$450,223,FALSE)) -> 0.1
B77: Options complémentaires sur Bouquet Liberté | E77: =J77-VLOOKUP($B$7,'Indicateurs Cumulés M-1'!$D$3:$MX$450,190,FALSE) -> 16 | F77: =K77 -> 15 € | G77: =L77 -> 5.00 | H77: =E77*F77*G77/1000 -> 1 | J77: =VLOOKUP($B$7,'Indicateurs Cumulés'!$D$3:$MX$450,190,FALSE) -> 110 | K77: =IF(ISERROR(M77/(J77*L77)*1000),0,M77/(J77*L77)*1000) -> 15 € | L77: ='Indicateurs Cumulés'!$IT$3 -> 5.00 | M77: =VLOOKUP($B$7,'Indicateurs Cumulés'!$D$3:$MX$450,191,FALSE) -> 8 | N77: =IF(ISERROR(M77/VLOOKUP($B$7,'Indicateurs Cumulés'!$D$3:$MX$450,223,FALSE)),"nc",M77/VLOOKUP($B$7,'Indicateurs Cumulés'!$D$3:$MX$450,223,FALSE)) -> 0.0 | P77: =VLOOKUP($B$7,objectifs!$D$3:$ZZ$450,163,FALSE) -> 1,600 | Q77: =objectifs!$FJ$3 -> 15 € | R77: =objectifs!$FK$3 -> 5.00 | S77: =P77*Q77*R77/1000 -> 120 | T77: =IF(ISERROR(S77/VLOOKUP($B$7,objectifs!$D$4:$IA$432,232,FALSE)),"nc",S77/VLOOKUP($B$7,objectifs!$D$4:$IA$432,232,FALSE)) -> 0.1 | V77: =IF(ISERROR(J77/P77),0,J77/P77) -> 7% | W77: =IF(ISERROR(M77/S77),0,M77/S77) -> 7% | X77: -0.0
B78: IARD & Prévoyance - Commissions | E78: =J78-(VLOOKUP($B$7,'Indicateurs Cumulés M-1'!$D$3:$MX$450,228,FALSE) +VLOOKUP($B$7,'Indicateurs Cumulés M-1'!$D$3:$MX$450,229,FALSE) +VLOOKUP($B$7,'Indicateurs Cumulés M-1'!$D$3:$MX$450,230,FALSE) +VLOOKUP($B$7,'Indicateurs Cumulés M-1'!$D$3:$MX$450,231,FALSE) +VLOOKUP($B$7,'Indicateurs Cumulés M-1'!$D$3:$MX$450,232,FALSE) +VLOOKUP($B$7,'Indicateurs Cumulés M-1'!$D$3:$MX$450,233,FALSE) +VLOOKUP($B$7,'Indicateurs Cumulés M-1'!$D$3:$MX$450,234,FALSE) +VLOOKUP($B$7,'Indicateurs Cumulés M-1'!$D$3:$MX$450,266,FALSE) +VLOOKUP($B$7,'Indicateurs Cumulés M-1'!$D$3:$MX$450,310,FALSE)) -> 2,487 | F78: =IF(ISERROR(H78/(E78*G78)*1000),0,H78/(E78*G78)*1000) -> 17 € | G78: 5.00 | H78: =M78- (VLOOKUP($B$7,'Indicateurs Cumulés M-1'!$D$3:$JB$450,244,FALSE)+VLOOKUP($B$7,'Indicateurs Cumulés M-1'!$D$3:$JB$450,245,FALSE)+VLOOKUP($B$7,'Indicateurs Cumulés M-1'!$D$3:$JB$450,246,FALSE)+VLOOKUP($B$7,'Indicateurs Cumulés M-1'!$D$3:$JB$450,247,FALSE)+VLOOKUP($B$7,'Indicateurs Cumulés M-1'!$D$3:$JB$450,248,FALSE)+VLOOKUP($B$7,'Indicateurs Cumulés M-1'!$D$3:$JB$450,249,FALSE)+VLOOKUP($B$7,'Indicateurs Cumulés M-1'!$D$3:$JB$450,250,FALSE)+VLOOKUP($B$7,'Indicateurs Cumulés M-1'!$D$3:$MX$450,267,FALSE)+VLOOKUP($B$7,'Indicateurs Cumulés M-1'!$D$3:$MX$450,311,FALSE)) -> 209 | J78: =(VLOOKUP($B$7,'Indicateurs Cumulés'!$D$3:$MX$450,228,FALSE) +VLOOKUP($B$7,'Indicateurs Cumulés'!$D$3:$MX$450,229,FALSE) +VLOOKUP($B$7,'Indicateurs Cumulés'!$D$3:$MX$450,230,FALSE) +VLOOKUP($B$7,'Indicateurs Cumulés'!$D$3:$MX$450,231,FALSE) +VLOOKUP($B$7,'Indicateurs Cumulés'!$D$3:$MX$450,232,FALSE) +VLOOKUP($B$7,'Indicateurs Cumulés'!$D$3:$MX$450,233,FALSE) +VLOOKUP($B$7,'Indicateurs Cumulés'!$D$3:$MX$450,234,FALSE) +VLOOKUP($B$7,'Indicateurs Cumulés'!$D$3:$MX$450,266,FALSE) +VLOOKUP($B$7,'Indicateurs Cumulés'!$D$3:$MX$450,310,FALSE)) -> 5,650 | K78: 18 € | L78: =objectifs!$GG$3 -> 5.00 | M78: =(VLOOKUP($B$7,'Indicateurs Cumulés'!$D$3:$JB$450,244,FALSE)+VLOOKUP($B$7,'Indicateurs Cumulés'!$D$3:$JB$450,245,FALSE)+VLOOKUP($B$7,'Indicateurs Cumulés'!$D$3:$JB$450,246,FALSE)+VLOOKUP($B$7,'Indicateurs Cumulés'!$D$3:$JB$450,247,FALSE)+VLOOKUP($B$7,'Indicateurs Cumulés'!$D$3:$JB$450,248,FALSE)+VLOOKUP($B$7,'Indicateurs Cumulés'!$D$3:$JB$450,249,FALSE)+VLOOKUP($B$7,'Indicateurs Cumulés'!$D$3:$JB$450,250,FALSE)+VLOOKUP($B$7,'Indicateurs Cumulés'!$D$3:$MX$450,267,FALSE)+VLOOKUP($B$7,'Indicateurs Cumulés'!$D$3:$MX$450,311,FALSE)) -> 522 | N78: =IF(ISERROR(M78/VLOOKUP($B$7,'Indicateurs Cumulés'!$D$3:$MX$450,223,FALSE)),"nc",M78/VLOOKUP($B$7,'Indicateurs Cumulés'!$D$3:$MX$450,223,FALSE)) -> 0.4 | P78: =VLOOKUP($B$7,objectifs!$D$3:$ZZ$450,185,FALSE)*95% -> 24,985 | Q78: =objectifs!$GF$3 -> 20 € | R78: =objectifs!$GG$3 -> 5.00 | S78: =P78*Q78*R78/1000 -> 2,558 | T78: =IF(ISERROR(S78/VLOOKUP($B$7,objectifs!$D$4:$IA$432,232,FALSE)),"nc",S78/VLOOKUP($B$7,objectifs!$D$4:$IA$432,232,FALSE)) -> 1.7 | V78: 23% | W78: 20% | X78: 0.1
B79: dont AUTO | E79: =J79-VLOOKUP($B$7,'Indicateurs Cumulés M-1'!$D$3:$MX$450,228,FALSE) -> 419 | F79: =K79 -> 43 € | G79: 2.75 | H79: =E79*F79*G79/1000 -> 49 | J79: =VLOOKUP($B$7,'Indicateurs Cumulés'!$D$3:$MX$450,228,FALSE) -> 1,175 | K79: 43 € | L79: =objectifs!$HR$3 -> 2.75 | M79: =VLOOKUP($B$7,'Indicateurs Cumulés'!$D$3:$JB$450,244,FALSE) -> 138 | N79: =IF(ISERROR(M79/VLOOKUP($B$7,'Indicateurs Cumulés'!$D$3:$MX$450,223,FALSE)),"nc",M79/VLOOKUP($B$7,'Indicateurs Cumulés'!$D$3:$MX$450,223,FALSE)) -> 0.1 | P79: =VLOOKUP($B$7,objectifs!$D$3:$ZZ$450,222,FALSE) -> 6,400 | Q79: =objectifs!$HQ$3 -> 43 € | R79: =objectifs!$HR$3 -> 2.75 | S79: =P79*Q79*R79/1000 -> 754 | T79: =IF(ISERROR(S79/VLOOKUP($B$7,objectifs!$D$4:$IA$432,232,FALSE)),"nc",S79/VLOOKUP($B$7,objectifs!$D$4:$IA$432,232,FALSE)) -> 0.5 | V79: 18% | W79: 18% | X79: 0.0
B80: dont MRH | E80: =J80-VLOOKUP($B$7,'Indicateurs Cumulés M-1'!$D$3:$MX$450,229,FALSE) -> 391 | F80: 25 € | G80: 3.96 | H80: =E80*F80*G80/1000 -> 39 | J80: =VLOOKUP($B$7,'Indicateurs Cumulés'!$D$3:$MX$450,229,FALSE) -> 996 | K80: 25 € | L80: =objectifs!$HT$3 -> 3.96 | M80: =VLOOKUP($B$7,'Indicateurs Cumulés'!$D$3:$JB$450,245,FALSE) -> 99 | N80: =IF(ISERROR(M80/VLOOKUP($B$7,'Indicateurs Cumulés'!$D$3:$MX$450,223,FALSE)),"nc",M80/VLOOKUP($B$7,'Indicateurs Cumulés'!$D$3:$MX$450,223,FALSE)) -> 0.1 | P80: =VLOOKUP($B$7,objectifs!$D$3:$ZZ$450,224,FALSE) -> 4,600 | Q80: =objectifs!$HS$3 -> 25 € | R80: =objectifs!$HT$3 -> 3.96 | S80: =P80*Q80*R80/1000 -> 456 | T80: =IF(ISERROR(S80/VLOOKUP($B$7,objectifs!$D$4:$IA$432,232,FALSE)),"nc",S80/VLOOKUP($B$7,objectifs!$D$4:$IA$432,232,FALSE)) -> 0.3 | V80: 22% | W80: 22% | X80: 0.0
B81: dont Sécur Famille | E81: =J81-VLOOKUP($B$7,'Indicateurs Cumulés M-1'!$D$3:$MX$450,234,FALSE) -> 660 | F81: 19 € | G81: 6.00 | H81: =M81-VLOOKUP($B$7,'Indicateurs Cumulés M-1'!$D$3:$JB$450,250,FALSE) -> 83 | J81: =VLOOKUP($B$7,'Indicateurs Cumulés'!$D$3:$MX$450,234,FALSE) -> 1,436 | K81: =+objectifs!$IB$3 -> 19 € | L81: =+objectifs!$IC$3 -> 6.00 | M81: =VLOOKUP($B$7,'Indicateurs Cumulés'!$D$3:$JB$450,250,FALSE) -> 165 | N81: =IF(ISERROR(M81/VLOOKUP($B$7,'Indicateurs Cumulés'!$D$3:$MX$450,223,FALSE)),"nc",M81/VLOOKUP($B$7,'Indicateurs Cumulés'!$D$3:$MX$450,223,FALSE)) -> 0.1 | P81: =VLOOKUP($B$7,objectifs!$D$3:$ZZ$450,233,FALSE) -> 10,000 | Q81: =+objectifs!$IB$3 -> 19 € | R81: =+objectifs!$IC$3 -> 6.00 | S81: =P81*Q81*R81/1000 -> 1,152 | T81: =IF(ISERROR(S81/VLOOKUP($B$7,objectifs!$D$4:$IA$432,232,FALSE)),"nc",S81/VLOOKUP($B$7,objectifs!$D$4:$IA$432,232,FALSE)) -> 0.8 | V81: 14% | W81: 14% | X81: -0.0
B82: Booster AUTO & MRH | E82: =E79+E80 -> 810 | F82: =K82 -> 40 € | G82: 5.00 | H82: =E82*F82*G82/1000 -> 162 | J82: =J79+J80 -> 2,171 | K82: 40 € | L82: =objectifs!$GE$3 -> 5.00 | M82: =VLOOKUP($B$7,'Indicateurs Cumulés'!$D$3:$MX$450,68,FALSE)+VLOOKUP($B$7,'Indicateurs Cumulés'!$D$3:$MX$450,69,FALSE) -> 434 | N82: =IF(ISERROR(M82/VLOOKUP($B$7,'Indicateurs Cumulés'!$D$3:$MX$450,223,FALSE)),"nc",M82/VLOOKUP($B$7,'Indicateurs Cumulés'!$D$3:$MX$450,223,FALSE)) -> 0.3
B84: BANCA PRO - Ventes nettes | E84: =SUM(E85:E91) -> 259 | H84: =SUM(H85:H91) -> 174 | J84: =SUM(J85:J91) -> 801 | M84: =SUM(M85:M91) -> 617 | N84: =IF(ISERROR(M84/VLOOKUP($B$7,'Indicateurs Cumulés'!$D$3:$MX$450,223,FALSE)),"nc",M84/VLOOKUP($B$7,'Indicateurs Cumulés'!$D$3:$MX$450,223,FALSE)) -> 0.4 | P84: =SUM(P85:P91) -> 4,570 | S84: =SUM(S85:S91) -> 4,913 | T84: =IF(ISERROR(S84/VLOOKUP($B$7,objectifs!$D$4:$IA$432,232,FALSE)),"nc",S84/VLOOKUP($B$7,objectifs!$D$4:$IA$432,232,FALSE)) -> 3.2 | V84: =IF(ISERROR(J84/P84),0,J84/P84) -> 18% | W84: =IF(ISERROR(M84/S84),0,M84/S84) -> 13% | X84: =IF(ISERROR(N84-(T84/12*MONTH($C$9))),"nc",N84-(T84/12*MONTH($C$9))) -> -0.1
B85: Forfaits PRO - Tarification | E85: =J85-(VLOOKUP($B$7,'Indicateurs Cumulés M-1'!$D$3:$MX$450,284,FALSE)+VLOOKUP($B$7,'Indicateurs Cumulés M-1'!$D$3:$MX$450,286,FALSE)) -> 113 | F85: =K85 -> 249 € | G85: =L85 -> 5.00 | H85: =E85*F85*G85/1000 -> 141 | J85: =VLOOKUP($B$7,'Indicateurs Cumulés'!$D$3:$MX$450,284,FALSE)+VLOOKUP($B$7,'Indicateurs Cumulés'!$D$3:$MX$450,286,FALSE) -> 398 | K85: =IF(ISERROR(M85/(J85*L85)*1000),0,M85/(J85*L85)*1000) -> 249 € | L85: =objectifs!$HD$3 -> 5.00 | M85: =(VLOOKUP($B$7,'Indicateurs Cumulés'!$D$3:$MX$450,290,FALSE)+VLOOKUP($B$7,'Indicateurs Cumulés'!$D$3:$MX$450,292,FALSE)) -> 495 | N85: =IF(ISERROR(M85/VLOOKUP($B$7,'Indicateurs Cumulés'!$D$3:$MX$450,223,FALSE)),"nc",M85/VLOOKUP($B$7,'Indicateurs Cumulés'!$D$3:$MX$450,223,FALSE)) -> 0.4 | P85: =VLOOKUP($B$7,objectifs!$D$3:$ZZ$450,203,FALSE)+VLOOKUP($B$7,objectifs!$D$3:$ZZ$450,205,FALSE) -> 1,500 | Q85: =IF(ISERROR(S85/(P85*R85)*1000),0,S85/(P85*R85)*1000) -> 204 € | R85: =objectifs!$HD$3 -> 5.00 | S85: =VLOOKUP($B$7,objectifs!$D$3:$ZZ$450,209,FALSE)+VLOOKUP($B$7,objectifs!$D$3:$ZZ$450,211,FALSE) -> 1,529 | T85: =IF(ISERROR(S85/VLOOKUP($B$7,objectifs!$D$4:$IA$432,232,FALSE)),"nc",S85/VLOOKUP($B$7,objectifs!$D$4:$IA$432,232,FALSE)) -> 1.0 | V85: 27% | W85: 32% | X85: 0.2
B86: Cartes PRO - Tarification | E86: =J86-(VLOOKUP($B$7,'Indicateurs Cumulés M-1'!$D$3:$MX$450,287,FALSE)+VLOOKUP($B$7,'Indicateurs Cumulés M-1'!$D$3:$MX$450,288,FALSE)+VLOOKUP($B$7,'Indicateurs Cumulés M-1'!$D$3:$MX$450,285,FALSE)) -> 66 | F86: 89 € | G86: 5.00 | H86: =E86*F86*G86/1000 -> 29 | J86: =VLOOKUP($B$7,'Indicateurs Cumulés'!$D$3:$MX$450,287,FALSE)+VLOOKUP($B$7,'Indicateurs Cumulés'!$D$3:$MX$450,288,FALSE)+VLOOKUP($B$7,'Indicateurs Cumulés'!$D$3:$MX$450,285,FALSE) -> 239 | K86: =IF(ISERROR(M86/(J86*L86)*1000),0,M86/(J86*L86)*1000) -> 89 € | L86: =objectifs!$HE$3 -> 5.00 | M86: =(VLOOKUP($B$7,'Indicateurs Cumulés'!$D$3:$MX$450,293,FALSE)+VLOOKUP($B$7,'Indicateurs Cumulés'!$D$3:$MX$450,291,FALSE)+VLOOKUP($B$7,'Indicateurs Cumulés'!$D$3:$MX$450,294,FALSE)) -> 106 | N86: =IF(ISERROR(M86/VLOOKUP($B$7,'Indicateurs Cumulés'!$D$3:$MX$450,223,FALSE)),"nc",M86/VLOOKUP($B$7,'Indicateurs Cumulés'!$D$3:$MX$450,223,FALSE)) -> 0.1 | P86: =VLOOKUP($B$7,objectifs!$D$3:$ZZ$450,204,FALSE)+VLOOKUP($B$7,objectifs!$D$3:$ZZ$450,206,FALSE)+VLOOKUP($B$7,objectifs!$D$3:$ZZ$450,207,FALSE) -> 1,000 | Q86: =IF(ISERROR(S86/(P86*R86)*1000),0,S86/(P86*R86)*1000) -> 150 € | R86: =objectifs!$HE$3 -> 5.00 | S86: =VLOOKUP($B$7,objectifs!$D$3:$ZZ$450,210,FALSE)+VLOOKUP($B$7,objectifs!$D$3:$ZZ$450,212,FALSE)+VLOOKUP($B$7,objectifs!$D$3:$ZZ$450,213,FALSE) -> 748 | T86: =IF(ISERROR(S86/VLOOKUP($B$7,objectifs!$D$4:$IA$432,232,FALSE)),"nc",S86/VLOOKUP($B$7,objectifs!$D$4:$IA$432,232,FALSE)) -> 0.5 | V86: 24% | W86: 14% | X86: -0.0
B87: AUTO PRO (ventes brutes) - Commissions | E87: =J87-VLOOKUP($B$7,'Indicateurs Cumulés M-1'!$D$3:$MX$450,74,FALSE) -> 16 | F87: 100 € | G87: 2.75 | H87: =E87*F87*G87/1000 -> 4 | J87: =VLOOKUP($B$7,'Indicateurs Cumulés'!$D$3:$MX$450,74,FALSE) -> 29 | K87: =IF(ISERROR(M87/(J87*L87)*1000),0,M87/(J87*L87)*1000) -> 100 € | L87: =objectifs!$HX$3 -> 2.75 | M87: =VLOOKUP($B$7,'Indicateurs Cumulés'!$D$3:$MX$450,75,FALSE) -> 8 | N87: =IF(ISERROR(M87/VLOOKUP($B$7,'Indicateurs Cumulés'!$D$3:$MX$450,223,FALSE)),"nc",M87/VLOOKUP($B$7,'Indicateurs Cumulés'!$D$3:$MX$450,223,FALSE)) -> 0.0 | P87: =VLOOKUP($B$7,objectifs!$D$3:$ZZ$450,226,FALSE) -> 340 | Q87: =IF(ISERROR(S87/(P87*R87)*1000),0,S87/(P87*R87)*1000) -> 100 € | R87: =objectifs!$HX$3 -> 2.75 | S87: =VLOOKUP($B$7,objectifs!$D$3:$ZZ$450,229,FALSE) -> 94 | T87: =IF(ISERROR(S87/VLOOKUP($B$7,objectifs!$D$4:$IA$432,232,FALSE)),"nc",S87/VLOOKUP($B$7,objectifs!$D$4:$IA$432,232,FALSE)) -> 0.1 | V87: 9% | W87: 9% | X87: -0.0
B88: Multirisque PRO (ventes brutes) - Commissions | E88: =J88-VLOOKUP($B$7,'Indicateurs Cumulés M-1'!$D$3:$MX$450,76,FALSE) -> 17 | F88: 30 € | G88: 3.96 | H88: 2 | J88: =VLOOKUP($B$7,'Indicateurs Cumulés'!$D$3:$MX$450,76,FALSE) -> 48 | K88: 30 € | L88: =objectifs!$HY$3 -> 3.96 | M88: =VLOOKUP($B$7,'Indicateurs Cumulés'!$D$3:$MX$450,77,FALSE) -> 6 | N88: =IF(ISERROR(M88/VLOOKUP($B$7,'Indicateurs Cumulés'!$D$3:$MX$450,223,FALSE)),"nc",M88/VLOOKUP($B$7,'Indicateurs Cumulés'!$D$3:$MX$450,223,FALSE)) -> 0.0 | P88: =VLOOKUP($B$7,objectifs!$D$3:$ZZ$450,227,FALSE) -> 510 | Q88: 30 € | R88: =objectifs!$HY$3 -> 3.96 | S88: =VLOOKUP($B$7,objectifs!$D$3:$ZZ$450,230,FALSE) -> 61 | T88: =IF(ISERROR(S88/VLOOKUP($B$7,objectifs!$D$4:$IA$432,232,FALSE)),"nc",S88/VLOOKUP($B$7,objectifs!$D$4:$IA$432,232,FALSE)) -> 0.0 | V88: 9% | W88: 9% | X88: -0.0
B89: PAP - Commissions | E89: =J89-VLOOKUP($B$7,'Indicateurs Cumulés M-1'!$D$3:$MX$450,289,FALSE) -> 33 | F89: 18 € | G89: 5.00 | H89: 3 | J89: =VLOOKUP($B$7,'Indicateurs Cumulés'!$D$3:$MX$450,289,FALSE) -> 73 | K89: 18 € | L89: =objectifs!$HI$3 -> 5.00 | M89: =VLOOKUP($B$7,'Indicateurs Cumulés'!$D$3:$MX$450,295,FALSE) -> 6 | N89: =IF(ISERROR(M89/VLOOKUP($B$7,'Indicateurs Cumulés'!$D$3:$MX$450,223,FALSE)),"nc",M89/VLOOKUP($B$7,'Indicateurs Cumulés'!$D$3:$MX$450,223,FALSE)) -> 0.0 | P89: =VLOOKUP($B$7,objectifs!$D$3:$ZZ$450,208,FALSE) -> 480 | Q89: 18 € | R89: =objectifs!$HI$3 -> 5.00 | S89: =VLOOKUP($B$7,objectifs!$D$3:$ZZ$450,214,FALSE) -> 42 | T89: =IF(ISERROR(S89/VLOOKUP($B$7,objectifs!$D$4:$IA$432,232,FALSE)),"nc",S89/VLOOKUP($B$7,objectifs!$D$4:$IA$432,232,FALSE)) -> 0.0 | V89: 15% | W89: 15% | X89: -0.0
B90: Contrats monétiques actifs - Commissions | E90: =J90 -> 14 | F90: 100 € | G90: 5.00 | H90: 7 | J90: =VLOOKUP($B$7,'Indicateurs Cumulés'!$D$3:$MX$450,78,FALSE) -> 14 | K90: =IF(ISERROR(M90/(J90*L90)*1000),0,M90/(J90*L90)*1000) -> 100 € | L90: =objectifs!$HZ$3 -> 5.00 | M90: =VLOOKUP($B$7,'Indicateurs Cumulés'!$D$3:$MX$450,79,FALSE) -> 7 | N90: =IF(ISERROR(M90/VLOOKUP($B$7,'Indicateurs Cumulés'!$D$3:$MX$450,223,FALSE)),"nc",M90/VLOOKUP($B$7,'Indicateurs Cumulés'!$D$3:$MX$450,223,FALSE)) -> 0.0 | P90: =VLOOKUP($B$7,objectifs!$D$3:$ZZ$450,228,FALSE) -> 740 | Q90: =IF(ISERROR(S90/(P90*R90)*1000),0,S90/(P90*R90)*1000) -> 100 € | R90: =objectifs!$HZ$3 -> 5.00 | S90: =VLOOKUP($B$7,objectifs!$D$3:$ZZ$450,231,FALSE) -> 370 | T90: =IF(ISERROR(S90/VLOOKUP($B$7,objectifs!$D$4:$IA$432,232,FALSE)),"nc",S90/VLOOKUP($B$7,objectifs!$D$4:$IA$432,232,FALSE)) -> 0.2 | V90: 2% | W90: 2% | X90: -0.0
B91: Commisions de mouvement | H91: =M91 -> -12 | M91: =VLOOKUP($B$7,'Indicateurs Cumulés'!$D$3:$MX$450,297,FALSE) -> -12 | N91: =IF(ISERROR(M91/VLOOKUP($B$7,'Indicateurs Cumulés'!$D$3:$MX$450,223,FALSE)),"nc",M91/VLOOKUP($B$7,'Indicateurs Cumulés'!$D$3:$MX$450,223,FALSE)) -> -0.0 | S91: =VLOOKUP($B$7,objectifs!$D$3:$ZZ$450,216,FALSE) -> 2,069 | T91: =IF(ISERROR(S91/VLOOKUP($B$7,objectifs!$D$4:$IA$432,232,FALSE)),"nc",S91/VLOOKUP($B$7,objectifs!$D$4:$IA$432,232,FALSE)) -> 1.4 | V91: 0% | W91: -1% | X91: -0.2
B93: BANCA PRO Relation privée - Ventes nettes | E93: =SUM(E94:E96) -> -29 | H93: =SUM(H94:H96) -> -62 | J93: =SUM(J94:J96) -> 6 | M93: =SUM(M94:M96) -> -133 | N93: =IF(ISERROR(M93/VLOOKUP($B$7,'Indicateurs Cumulés'!$D$3:$MX$450,223,FALSE)),"nc",M93/VLOOKUP($B$7,'Indicateurs Cumulés'!$D$3:$MX$450,223,FALSE)) -> -0.1 | P93: =SUM(P94:P96) -> 3,035 | Q93: =IF(ISERROR(S93/(P93*R93)*1000),0,S93/(P93*R93)*1000) -> 117 € | R93: =IF(ISERROR(SUMPRODUCT(R94:R96,P94:P96)/SUMPRODUCT(P94:P96)),0,SUMPRODUCT(R94:R96,P94:P96)/SUMPRODUCT(P94:P96)) -> 5.00 | S93: =SUM(S94:S96) -> 1,771 | T93: =IF(ISERROR(S93/VLOOKUP($B$7,objectifs!$D$4:$IA$432,232,FALSE)),"nc",S93/VLOOKUP($B$7,objectifs!$D$4:$IA$432,232,FALSE)) -> 1.2 | V93: =IF(ISERROR(J93/P93),0,J93/P93) -> 0% | W93: =IF(ISERROR(M93/S93),0,M93/S93) -> -8% | X93: =IF(ISERROR(N93-(T93/12*MONTH($C$9))),"nc",N93-(T93/12*MONTH($C$9))) -> -0.3
B94: Forfaits - Tarification | E94: =J94-VLOOKUP($B$7,'Indicateurs Cumulés M-1'!$D$3:$MX$450,314,FALSE) -> -4 | F94: =K94 -> 137 € | G94: 5.00 | H94: =E94*F94*G94/1000 -> -3 | J94: =VLOOKUP($B$7,'Indicateurs Cumulés'!$D$3:$MX$450,314,FALSE) -> -11 | K94: =objectifs!$GB$3 -> 137 € | L94: =objectifs!$GC$3 -> 5.00 | M94: =VLOOKUP($B$7,'Indicateurs Cumulés'!$D$3:$MX$450,315,FALSE) -> -8 | N94: =IF(ISERROR(M94/VLOOKUP($B$7,'Indicateurs Cumulés'!$D$3:$MX$450,223,FALSE)),"nc",M94/VLOOKUP($B$7,'Indicateurs Cumulés'!$D$3:$MX$450,223,FALSE)) -> -0.0 | P94: =VLOOKUP($B$7,objectifs!$D$3:$ZZ$450,181,FALSE)*5% -> 1,120 | Q94: =objectifs!$GB$3 -> 137 € | R94: =objectifs!$GC$3 -> 5.00 | S94: =P94*Q94*R94/1000 -> 769 | T94: =IF(ISERROR(S94/VLOOKUP($B$7,objectifs!$D$4:$IA$432,232,FALSE)),"nc",S94/VLOOKUP($B$7,objectifs!$D$4:$IA$432,232,FALSE)) -> 0.5 | V94: -1% | W94: -1% | X94: -0.1
B95: Cartes - Tarification | E95: =J95-VLOOKUP($B$7,'Indicateurs Cumulés M-1'!$D$3:$MX$450,316,FALSE) -> -42 | F95: 289 € | G95: 5.00 | H95: =E95*F95*G95/1000 -> -61 | J95: =VLOOKUP($B$7,'Indicateurs Cumulés'!$D$3:$MX$450,316,FALSE) -> -95 | K95: =objectifs!$GD$3 -> 289 € | L95: =objectifs!$GE$3 -> 5.00 | M95: =VLOOKUP($B$7,'Indicateurs Cumulés'!$D$3:$MX$450,317,FALSE) -> -137 | N95: =IF(ISERROR(M95/VLOOKUP($B$7,'Indicateurs Cumulés'!$D$3:$MX$450,223,FALSE)),"nc",M95/VLOOKUP($B$7,'Indicateurs Cumulés'!$D$3:$MX$450,223,FALSE)) -> -0.1 | P95: =VLOOKUP($B$7,objectifs!$D$3:$ZZ$450,183,FALSE)*5% -> 600 | Q95: =objectifs!$GD$3 -> 289 € | R95: =objectifs!$GE$3 -> 5.00 | S95: =P95*Q95*R95/1000 -> 868 | T95: =IF(ISERROR(S95/VLOOKUP($B$7,objectifs!$D$4:$IA$432,232,FALSE)),"nc",S95/VLOOKUP($B$7,objectifs!$D$4:$IA$432,232,FALSE)) -> 0.6 | V95: -16% | W95: -16% | X95: -0.2
B96: IARD & Prévoyance - Commissions | E96: =J96-VLOOKUP($B$7,'Indicateurs Cumulés M-1'!$D$3:$MX$450,318,FALSE) -> 17 | F96: 20 € | G96: 5.00 | H96: 2 | J96: =VLOOKUP($B$7,'Indicateurs Cumulés'!$D$3:$MX$450,318,FALSE) -> 112 | K96: =objectifs!$GF$3 -> 20 € | L96: =objectifs!$GG$3 -> 5.00 | M96: =VLOOKUP($B$7,'Indicateurs Cumulés'!$D$3:$MX$450,319,FALSE) -> 11 | N96: =IF(ISERROR(M96/VLOOKUP($B$7,'Indicateurs Cumulés'!$D$3:$MX$450,223,FALSE)),"nc",M96/VLOOKUP($B$7,'Indicateurs Cumulés'!$D$3:$MX$450,223,FALSE)) -> 0.0 | P96: =VLOOKUP($B$7,objectifs!$D$3:$ZZ$450,185,FALSE)*5% -> 1,315 | Q96: =objectifs!$GF$3 -> 20 € | R96: =objectifs!$GG$3 -> 5.00 | S96: =P96*Q96*R96/1000 -> 135 | T96: =IF(ISERROR(S96/VLOOKUP($B$7,objectifs!$D$4:$IA$432,232,FALSE)),"nc",S96/VLOOKUP($B$7,objectifs!$D$4:$IA$432,232,FALSE)) -> 0.1 | V96: 9% | W96: 9% | X96: -0.0
B98: AUTRES | H98: =H99+H103 -> -492 | M98: =M99+M103 -> -1,003 | N98: =IF(ISERROR(M98/VLOOKUP($B$7,'Indicateurs Cumulés'!$D$3:$MX$450,223,FALSE)),"nc",M98/VLOOKUP($B$7,'Indicateurs Cumulés'!$D$3:$MX$450,223,FALSE)) -> -0.7 | S98: =S99+S103 -> -3,348 | T98: =IF(ISERROR(S98/VLOOKUP($B$7,objectifs!$D$4:$IA$432,232,FALSE)),"nc",S98/VLOOKUP($B$7,objectifs!$D$4:$IA$432,232,FALSE)) -> -2.2 | W98: =IF(ISERROR(M98/S98),0,M98/S98) -> 30% | X98: =IF(ISERROR(N98-(T98/12*MONTH($C$9))),"nc",N98-(T98/12*MONTH($C$9))) -> -0.3
B99: Remises commerciales | H99: =M99-VLOOKUP($B$7,'Indicateurs Cumulés M-1'!$D$3:$MX$450,217,FALSE) -> -532 | M99: =VLOOKUP($B$7,'Indicateurs Cumulés'!$D$3:$MX$450,217,FALSE) -> -1,129 | N99: =IF(ISERROR(M99/VLOOKUP($B$7,'Indicateurs Cumulés'!$D$3:$MX$450,223,FALSE)),"nc",M99/VLOOKUP($B$7,'Indicateurs Cumulés'!$D$3:$MX$450,223,FALSE)) -> -0.8 | S99: =VLOOKUP($B$7,objectifs!$D$3:$ZZ$450,172,FALSE) -> -5,200 | T99: =IF(ISERROR(S99/VLOOKUP($B$7,objectifs!$D$4:$IA$432,232,FALSE)),"nc",S99/VLOOKUP($B$7,objectifs!$D$4:$IA$432,232,FALSE)) -> -3.4 | W99: 22% | X99: -0.2
B100: dont hors MAD | N100: =IF(ISERROR(M100/VLOOKUP($B$7,'Indicateurs Cumulés'!$D$3:$MX$450,223,FALSE)),"nc",M100/VLOOKUP($B$7,'Indicateurs Cumulés'!$D$3:$MX$450,223,FALSE)) -> 0.0 | S100: =VLOOKUP($B$7,objectifs!$D$3:$ZZ$450,172,FALSE)*'[6]Objectifs PNB'!$G$79/'[6]Objectifs PNB'!$G$78 -> -2,800 | T100: =IF(ISERROR(S100/VLOOKUP($B$7,objectifs!$D$4:$IA$432,232,FALSE)),"nc",S100/VLOOKUP($B$7,objectifs!$D$4:$IA$432,232,FALSE)) -> -1.8 | W100: 0% | X100: 0.3
B101: dont MAD | N101: =IF(ISERROR(M101/VLOOKUP($B$7,'Indicateurs Cumulés'!$D$3:$MX$450,223,FALSE)),"nc",M101/VLOOKUP($B$7,'Indicateurs Cumulés'!$D$3:$MX$450,223,FALSE)) -> 0.0 | S101: =VLOOKUP($B$7,objectifs!$D$3:$ZZ$450,172,FALSE)*'[6]Objectifs PNB'!$G$80/'[6]Objectifs PNB'!$G$78 -> -1,700 | T101: =IF(ISERROR(S101/VLOOKUP($B$7,objectifs!$D$4:$IA$432,232,FALSE)),"nc",S101/VLOOKUP($B$7,objectifs!$D$4:$IA$432,232,FALSE)) -> -1.1 | W101: 0% | X101: 0.2
B102: dont PRO | H102: =M102 -> 0 | M102: =VLOOKUP($B$7,'Indicateurs Cumulés'!$D$3:$MX$450,73,FALSE) -> 0 | N102: =IF(ISERROR(M102/VLOOKUP($B$7,'Indicateurs Cumulés'!$D$3:$MX$450,223,FALSE)),"nc",M102/VLOOKUP($B$7,'Indicateurs Cumulés'!$D$3:$MX$450,223,FALSE)) -> 0.0 | S102: =VLOOKUP($B$7,objectifs!$D$3:$ZZ$450,172,FALSE)*'[6]Objectifs PNB'!$G$81/'[6]Objectifs PNB'!$G$78 -> -700 | T102: =IF(ISERROR(S102/VLOOKUP($B$7,objectifs!$D$4:$IA$432,232,FALSE)),"nc",S102/VLOOKUP($B$7,objectifs!$D$4:$IA$432,232,FALSE)) -> -0.5 | W102: 0% | X102: 0.1
B103: Commissions immobilières | H103: =M103-(VLOOKUP($B$7,'Indicateurs Cumulés M-1'!$D$3:$MX$450,221,FALSE)*'Indicateurs Cumulés M-1'!$HP$3 +VLOOKUP($B$7,'Indicateurs Cumulés M-1'!$D$3:$MX$450,307,FALSE)*'Indicateurs Cumulés M-1'!$KX$3 +VLOOKUP($B$7,'Indicateurs Cumulés M-1'!$D$3:$MX$450,262,FALSE)*'Indicateurs Cumulés M-1'!$JE$3) -> 40 | M103: =VLOOKUP($B$7,'Indicateurs Cumulés'!$D$3:$MX$450,221,FALSE)*'Indicateurs Cumulés'!$HP$3 +VLOOKUP($B$7,'Indicateurs Cumulés'!$D$3:$MX$450,307,FALSE)*'Indicateurs Cumulés'!$KX$3 +VLOOKUP($B$7,'Indicateurs Cumulés'!$D$3:$MX$450,262,FALSE)*'Indicateurs Cumulés'!$JE$3 -> 127 | N103: =IF(ISERROR(M103/VLOOKUP($B$7,'Indicateurs Cumulés'!$D$3:$MX$450,223,FALSE)),"nc",M103/VLOOKUP($B$7,'Indicateurs Cumulés'!$D$3:$MX$450,223,FALSE)) -> 0.1 | S103: =VLOOKUP($B$7,objectifs!$D$3:$ZZ$450,176,FALSE) -> 1,852 | T103: =IF(ISERROR(S103/VLOOKUP($B$7,objectifs!$D$4:$IA$432,232,FALSE)),"nc",S103/VLOOKUP($B$7,objectifs!$D$4:$IA$432,232,FALSE)) -> 1.2 | W103: 7% | X103: -0.1
B105: PNB BDD sur Activité Nouvelle | H105: =H14+H41+H47+H61+H98+H55+H84+H93 -> 11,146 | M105: =M14+M41+M47+M61+M98+M55+M84+M93 -> 25,975 | N105: =IF(ISERROR(M105/VLOOKUP($B$7,'Indicateurs Cumulés'!$D$3:$MX$450,223,FALSE)),"nc",M105/VLOOKUP($B$7,'Indicateurs Cumulés'!$D$3:$MX$450,223,FALSE)) -> 18.4 | S105: =S14+S41+S47+S61+S98+S55+S84+S93 -> 204,509 | T105: =IF(ISERROR(S105/VLOOKUP($B$7,objectifs!$D$4:$IA$432,232,FALSE)),"nc",S105/VLOOKUP($B$7,objectifs!$D$4:$IA$432,232,FALSE)) -> 134.6 | W105: =IF(ISERROR(M105/S105),0,M105/S105) -> 12.7% | X105: =IF(ISERROR(N105-(T105/12*MONTH($C$9))),"nc",N105-(T105/12*MONTH($C$9))) -> -4.0
B107: BONUS DIGITAL | E107: Volume | F107: Montant | G107: Durée | H107: PNB | J107: Volume | K107: Montant | L107: Durée | M107: PNB | N107: PNB / ETP perf. | P107: Volume | Q107: Montant | R107: Durée | S107: PNB | T107: PNB / ETP Cible | V107: Volume | W107: PNB annuel | X107: Ecart /obj. PNB/ETP
B108: Evolution stock clients actifs BAD (1 connexion / mois sur 3 mois) | E108: =VLOOKUP($B$7,'Indicateurs mensuels'!$D$3:$KI$450,230,FALSE) -> 874 | F108: 15 € | G108: 5.00 | H108: =VLOOKUP($B$7,'Indicateurs mensuels'!$D$3:$KI$450,236,FALSE) -> 127 | J108: =VLOOKUP($B$7,'Indicateurs Cumulés'!$D$3:$MX$450,327,FALSE) -> 4,433 | K108: 15 € | L108: 5.00 | M108: =VLOOKUP($B$7,'Indicateurs Cumulés'!$D$3:$MX$450,333,FALSE) -> 400 | N108: =IF(ISERROR(M108/VLOOKUP($B$7,'Indicateurs Cumulés'!$D$3:$MX$450,223,FALSE)),"nc",M108/VLOOKUP($B$7,'Indicateurs Cumulés'!$D$3:$MX$450,223,FALSE)) -> 0.3
B109: Nombre de SED finalisées (en brut) | E109: =VLOOKUP($B$7,'Indicateurs mensuels'!$D$3:$KI$450,231,FALSE) -> 4,326 | F109: 10 € | G109: 1.00 | H109: =VLOOKUP($B$7,'Indicateurs mensuels'!$D$3:$KI$450,237,FALSE) -> 43 | J109: =VLOOKUP($B$7,'Indicateurs Cumulés'!$D$3:$MX$450,328,FALSE) -> 9,169 | K109: 10 € | L109: 1.00 | M109: =VLOOKUP($B$7,'Indicateurs Cumulés'!$D$3:$MX$450,334,FALSE) -> 92 | N109: =IF(ISERROR(M109/VLOOKUP($B$7,'Indicateurs Cumulés'!$D$3:$MX$450,223,FALSE)),"nc",M109/VLOOKUP($B$7,'Indicateurs Cumulés'!$D$3:$MX$450,223,FALSE)) -> 0.1
B110: Nombre de SAG finalisées (périmètre SAG hors OPC en brut) | E110: =VLOOKUP($B$7,'Indicateurs mensuels'!$D$3:$KI$450,232,FALSE) -> 36,868 | F110: 3 € | G110: 1.00 | H110: =VLOOKUP($B$7,'Indicateurs mensuels'!$D$3:$KI$450,238,FALSE) -> 111 | J110: =VLOOKUP($B$7,'Indicateurs Cumulés'!$D$3:$MX$450,329,FALSE) -> 74,580 | K110: 3 € | L110: 1.00 | M110: =VLOOKUP($B$7,'Indicateurs Cumulés'!$D$3:$MX$450,335,FALSE) -> 224 | N110: =IF(ISERROR(M110/VLOOKUP($B$7,'Indicateurs Cumulés'!$D$3:$MX$450,223,FALSE)),"nc",M110/VLOOKUP($B$7,'Indicateurs Cumulés'!$D$3:$MX$450,223,FALSE)) -> 0.2
B111: Evolution stock de clients équipés E-documents | E111: =VLOOKUP($B$7,'Indicateurs mensuels'!$D$3:$KI$450,233,FALSE) -> -1,192 | F111: 10 € | G111: 5.00 | H111: =VLOOKUP($B$7,'Indicateurs mensuels'!$D$3:$KI$450,239,FALSE) -> 16 | J111: =VLOOKUP($B$7,'Indicateurs Cumulés'!$D$3:$MX$450,330,FALSE) -> -1,958 | K111: 10 € | L111: 5.00 | M111: =VLOOKUP($B$7,'Indicateurs Cumulés'!$D$3:$MX$450,336,FALSE) -> 124 | N111: =IF(ISERROR(M111/VLOOKUP($B$7,'Indicateurs Cumulés'!$D$3:$MX$450,223,FALSE)),"nc",M111/VLOOKUP($B$7,'Indicateurs Cumulés'!$D$3:$MX$450,223,FALSE)) -> 0.1
B112: Evolution stock de clients avec Opt-in-mail et tél. | E112: =VLOOKUP($B$7,'Indicateurs mensuels'!$D$3:$KI$450,234,FALSE) -> 3,436 | F112: 5 € | G112: 3.00 | H112: =VLOOKUP($B$7,'Indicateurs mensuels'!$D$3:$KI$450,240,FALSE) -> 61 | J112: =VLOOKUP($B$7,'Indicateurs Cumulés'!$D$3:$MX$450,331,FALSE) -> 6,733 | K112: 5 € | L112: 3.00 | M112: =VLOOKUP($B$7,'Indicateurs Cumulés'!$D$3:$MX$450,337,FALSE) -> 137 | N112: =IF(ISERROR(M112/VLOOKUP($B$7,'Indicateurs Cumulés'!$D$3:$MX$450,223,FALSE)),"nc",M112/VLOOKUP($B$7,'Indicateurs Cumulés'!$D$3:$MX$450,223,FALSE)) -> 0.1
B113: Evolution stock de clients équipés Sécurpass | E113: =VLOOKUP($B$7,'Indicateurs mensuels'!$D$3:$KI$450,235,FALSE) -> 713 | F113: 1 € | G113: 5.00 | H113: =VLOOKUP($B$7,'Indicateurs mensuels'!$D$3:$KI$450,241,FALSE) -> 4 | J113: =VLOOKUP($B$7,'Indicateurs Cumulés'!$D$3:$MX$450,332,FALSE) -> 1,420 | K113: 1 € | L113: 5.00 | M113: =VLOOKUP($B$7,'Indicateurs Cumulés'!$D$3:$MX$450,338,FALSE) -> 8 | N113: =IF(ISERROR(M113/VLOOKUP($B$7,'Indicateurs Cumulés'!$D$3:$MX$450,223,FALSE)),"nc",M113/VLOOKUP($B$7,'Indicateurs Cumulés'!$D$3:$MX$450,223,FALSE)) -> 0.0
B115: PNB sur Bonus digital | H115: =SUM(H108:H114) -> 361 | M115: =SUM(M108:M114) -> 985 | N115: =IF(ISERROR(M115/VLOOKUP($B$7,'Indicateurs Cumulés'!$D$3:$MX$450,223,FALSE)),"nc",M115/VLOOKUP($B$7,'Indicateurs Cumulés'!$D$3:$MX$450,223,FALSE)) -> 0.7
B117: PNB Part variable | H117: =H115+H105 -> 11,508 | M117: =+M105+M115 -> 26,959 | N117: =IF(ISERROR(M117/VLOOKUP($B$7,'Indicateurs Cumulés'!$D$3:$MX$450,223,FALSE)),"nc",M117/VLOOKUP($B$7,'Indicateurs Cumulés'!$D$3:$MX$450,223,FALSE)) -> 19.1 | S117: =+S105+S115 -> 204,509 | T117: =IF(ISERROR(S117/VLOOKUP($B$7,objectifs!$D$4:$IA$432,232,FALSE)),"nc",S117/VLOOKUP($B$7,objectifs!$D$4:$IA$432,232,FALSE)) -> 134.6 | W117: =IF(ISERROR(M117/S117),0,M117/S117) -> 13.2% | X117: =IF(ISERROR(N117-(T117/12*MONTH($C$9))),"nc",N117-(T117/12*MONTH($C$9))) -> -3.3
B120: COLLECTE PRO (yc DAV) - Excédents | E120: =SUM(E121:E124) -> 1,161 | H120: =SUM(H121:H124) -> 104 | J120: =SUM(J121:J124) -> 7,611 | M120: =SUM(M121:M124) -> 366 | N120: =IF(ISERROR(M120/VLOOKUP($B$7,'Indicateurs Cumulés'!$D$3:$MX$450,223,FALSE)),"nc",M120/VLOOKUP($B$7,'Indicateurs Cumulés'!$D$3:$MX$450,223,FALSE)) -> 0.3 | P120: =SUM(P121:P124) -> 40,000 | S120: =SUM(S121:S124) -> 1,601 | T120: =IF(ISERROR(S120/VLOOKUP($B$7,objectifs!$D$4:$IA$432,232,FALSE)),"nc",S120/VLOOKUP($B$7,objectifs!$D$4:$IA$432,232,FALSE)) -> 1.1 | V120: =IF(ISERROR(J120/P120),0,J120/P120) -> 19% | W120: =IF(ISERROR(M120/S120),0,M120/S120) -> 23% | X120: =IF(ISERROR(N120-(T120/12*MONTH($C$9))),"nc",N120-(T120/12*MONTH($C$9))) -> 0.1
B121: DAV Créditeurs PRO - Variation d'EMJ mensuel | E121: =VLOOKUP($B$7,'Indicateurs mensuels'!$D$3:$KI$450,221,FALSE)/12 -> -82 | F121: =K121 -> 1.00% | G121: 5.37 | H121: =E121*F121*G121 -> -4 | J121: =VLOOKUP($B$7,'Indicateurs Cumulés'!$D$3:$MX$450,275,FALSE)*MONTH($C$9)/12 -> -257 | K121: =VLOOKUP($B$7,'Indicateurs Cumulés'!$D$3:$MX$450,186,FALSE) -> 1.00% | L121: =VLOOKUP($B$7,'Indicateurs Cumulés'!$D$3:$MX$450,187,FALSE) -> 5.37 | M121: =J121*K121*L121 -> -14 | N121: =IF(ISERROR(M121/VLOOKUP($B$7,'Indicateurs Cumulés'!$D$3:$MX$450,223,FALSE)),"nc",M121/VLOOKUP($B$7,'Indicateurs Cumulés'!$D$3:$MX$450,223,FALSE)) -> -0.0 | P121: =VLOOKUP($B$7,objectifs!$D$3:$ZZ$450,194,FALSE) -> 15,000 | Q121: =VLOOKUP($B$7,objectifs!$D$3:$ZZ$450,158,FALSE) -> 1.00% | R121: =VLOOKUP($B$7,objectifs!$D$3:$ZZ$450,159,FALSE) -> 5.37 | S121: =P121*Q121*R121 -> 806 | T121: =IF(ISERROR(S121/VLOOKUP($B$7,objectifs!$D$4:$IA$432,232,FALSE)),"nc",S121/VLOOKUP($B$7,objectifs!$D$4:$IA$432,232,FALSE)) -> 0.5 | V121: -2% | W121: -2% | X121: -0.1
B122: Compte Excédent Pro | E122: =VLOOKUP($B$7,'Indicateurs mensuels'!$D$3:$KI$450,222,FALSE) -> 4,336 | F122: 0.73% | G122: 5.37 | H122: =E122*F122*G122 -> 171 | J122: =VLOOKUP($B$7,'Indicateurs Cumulés'!$D$3:$MX$450,273,FALSE) -> 7,806 | K122: ='Indicateurs Cumulés'!$JP$3 -> 0.73% | L122: ='Indicateurs Cumulés'!$JW$3 -> 5.37 | M122: =J122*K122*L122 -> 307 | N122: =IF(ISERROR(M122/VLOOKUP($B$7,'Indicateurs Cumulés'!$D$3:$MX$450,223,FALSE)),"nc",M122/VLOOKUP($B$7,'Indicateurs Cumulés'!$D$3:$MX$450,223,FALSE)) -> 0.2 | P122: =VLOOKUP($B$7,objectifs!$D$3:$ZZ$450,192,FALSE) -> 25,000 | Q122: =VLOOKUP($B$7,objectifs!$D$3:$ZZ$450,90,FALSE) -> 0.60% | R122: =VLOOKUP($B$7,objectifs!$D$3:$ZZ$450,91,FALSE) -> 5.37 | S122: =P122*Q122*R122 -> 806 | T122: =IF(ISERROR(S122/VLOOKUP($B$7,objectifs!$D$4:$IA$432,232,FALSE)),"nc",S122/VLOOKUP($B$7,objectifs!$D$4:$IA$432,232,FALSE)) -> 0.5 | V122: 31% | W122: 38% | X122: 0.1
B123: Assurance Vie | E123: =VLOOKUP($B$7,'Indicateurs mensuels'!$D$3:$KI$450,71,FALSE) -> -1 | F123: 0.45% | G123: 5.37 | H123: =E123*F123*G123 -> -0 | J123: =VLOOKUP($B$7,'Indicateurs Cumulés'!$D$3:$MX$450,272,FALSE) -> 493 | K123: ='Indicateurs Cumulés'!$JO$3 -> 0.45% | L123: ='Indicateurs Cumulés'!$JV$3 -> 5.37 | M123: =J123*K123*L123 -> 12 | N123: =IF(ISERROR(M123/VLOOKUP($B$7,'Indicateurs Cumulés'!$D$3:$MX$450,223,FALSE)),"nc",M123/VLOOKUP($B$7,'Indicateurs Cumulés'!$D$3:$MX$450,223,FALSE)) -> 0.0 | P123: =VLOOKUP($B$7,objectifs!$D$3:$ZZ$450,191,FALSE) -> 6,000 | Q123: =VLOOKUP($B$7,objectifs!$D$3:$ZZ$450,130,FALSE) -> 0.45% | R123: =VLOOKUP($B$7,objectifs!$D$3:$ZZ$450,131,FALSE) -> 8.00 | S123: =P123*Q123*R123 -> 216 | T123: =IF(ISERROR(S123/VLOOKUP($B$7,objectifs!$D$4:$IA$432,232,FALSE)),"nc",S123/VLOOKUP($B$7,objectifs!$D$4:$IA$432,232,FALSE)) -> 0.1 | V123: 8% | W123: 6% | X123: -0.0
B124: Autres | E124: =VLOOKUP($B$7,'Indicateurs mensuels'!$D$3:$HW$450,224,FALSE)+VLOOKUP($B$7,'Indicateurs mensuels'!$D$3:$HW$450,225,FALSE) +VLOOKUP($B$7,'Indicateurs mensuels'!$D$3:$HW$450,226,FALSE)+VLOOKUP($B$7,'Indicateurs mensuels'!$D$3:$HW$450,227,FALSE) -> -3,092 | F124: =H124/E124/G124 -> 0.38% | G124: =L124 -> 5.37 | H124: =VLOOKUP($B$7,'Indicateurs mensuels'!$D$3:$HW$450,228,FALSE) -> -63 | J124: =VLOOKUP($B$7,'Indicateurs Cumulés'!$D$3:$MX$450,268,FALSE)+VLOOKUP($B$7,'Indicateurs Cumulés'!$D$3:$MX$450,270,FALSE) +VLOOKUP($B$7,'Indicateurs Cumulés'!$D$3:$MX$450,274,FALSE)+VLOOKUP($B$7,'Indicateurs Cumulés'!$D$3:$MX$450,303,FALSE) -> -430 | L124: ='Indicateurs Cumulés'!$JS$3 -> 5.37 | M124: =VLOOKUP($B$7,'Indicateurs Cumulés'!$D$3:$MX$450,276,FALSE)+VLOOKUP($B$7,'Indicateurs Cumulés'!$D$3:$MX$450,277,FALSE) +VLOOKUP($B$7,'Indicateurs Cumulés'!$D$3:$MX$450,281,FALSE)+VLOOKUP($B$7,'Indicateurs Cumulés'!$D$3:$MX$450,304,FALSE) -> 61 | N124: =IF(ISERROR(M124/VLOOKUP($B$7,'Indicateurs Cumulés'!$D$3:$MX$450,223,FALSE)),"nc",M124/VLOOKUP($B$7,'Indicateurs Cumulés'!$D$3:$MX$450,223,FALSE)) -> 0.0 | P124: =VLOOKUP($B$7,objectifs!$D$3:$ZZ$450,193,FALSE) -> -6,000 | Q124: =VLOOKUP($B$7,objectifs!$D$3:$ZZ$450,86,FALSE) -> 0.70% | R124: =VLOOKUP($B$7,objectifs!$D$3:$ZZ$450,87,FALSE) -> 5.37 | S124: =P124*Q124*R124 -> -226 | T124: =IF(ISERROR(S124/VLOOKUP($B$7,objectifs!$D$4:$IA$432,232,FALSE)),"nc",S124/VLOOKUP($B$7,objectifs!$D$4:$IA$432,232,FALSE)) -> -0.1 | V124: 7% | W124: -27% | X124: 0.1
B126: CREDIT à la CONSOMMATION PRO - Eng. Nets (yc accessoires) | E126: =E127 -> 2,116 | F126: =IF(ISERROR(H126/(E126*G126)),0,H126/(E126*G126)) -> 4.32% | G126: =G127 -> 2.42 | H126: =H127+H128+H129 -> 221 | J126: =J127 -> 7,279 | K126: =IF(ISERROR(M126/(J126*L126)),0,M126/(J126*L126)) -> 3.77% | L126: =L127 -> 2.70 | M126: =M127+M128+M129 -> 740 | N126: =IF(ISERROR(M126/VLOOKUP($B$7,'Indicateurs Cumulés'!$D$3:$MX$450,223,FALSE)),"nc",M126/VLOOKUP($B$7,'Indicateurs Cumulés'!$D$3:$MX$450,223,FALSE)) -> 0.5 | P126: =P127 -> 45,000 | Q126: =IF(ISERROR(S126/(P126*R126)),0,S126/(P126*R126)) -> 4.32% | R126: =R127 -> 2.50 | S126: =S127+S128+S129 -> 4,860 | T126: =IF(ISERROR(S126/VLOOKUP($B$7,objectifs!$D$4:$IA$432,232,FALSE)),"nc",S126/VLOOKUP($B$7,objectifs!$D$4:$IA$432,232,FALSE)) -> 3.2 | V126: =IF(ISERROR(J126/P126),0,J126/P126) -> 16% | W126: =IF(ISERROR(M126/S126),0,M126/S126) -> 15% | X126: =IF(ISERROR(N126-(T126/12*MONTH($C$9))),"nc",N126-(T126/12*MONTH($C$9))) -> -0.0
B127: Crédit à la Consommation (marge hors accessoires) | E127: =VLOOKUP($B$7,'Indicateurs mensuels'!$D$3:$KI$450,16,FALSE) -> 2,116 | F127: =VLOOKUP($B$7,'Indicateurs mensuels'!$D$3:$KI$450,17,FALSE) -> 3.07% | G127: =VLOOKUP($B$7,'Indicateurs mensuels'!$D$3:$KI$450,18,FALSE) -> 2.42 | H127: =E127*F127*G127 -> 157 | J127: =VLOOKUP($B$7,'Indicateurs Cumulés'!$D$3:$MX$450,16,FALSE) -> 7,279 | K127: =VLOOKUP($B$7,'Indicateurs Cumulés'!$D$3:$MX$450,17,FALSE) -> 2.82% | L127: =VLOOKUP($B$7,'Indicateurs Cumulés'!$D$3:$MX$450,18,FALSE) -> 2.70 | M127: =J127*K127*L127 -> 554 | N127: =IF(ISERROR(M127/VLOOKUP($B$7,'Indicateurs Cumulés'!$D$3:$MX$450,223,FALSE)),"nc",M127/VLOOKUP($B$7,'Indicateurs Cumulés'!$D$3:$MX$450,223,FALSE)) -> 0.4 | P127: =VLOOKUP($B$7,objectifs!$D$3:$ZZ$450,7,FALSE)*'[6]Objectifs PNB'!$C$57/'[6]Objectifs PNB'!$C$52 -> 45,000 | Q127: =VLOOKUP($B$7,objectifs!$D$3:$ZZ$450,8,FALSE) -> 3.05% | R127: =VLOOKUP($B$7,objectifs!$D$3:$ZZ$450,9,FALSE) -> 2.50 | S127: =P127*Q127*R127 -> 3,431 | T127: =IF(ISERROR(S127/VLOOKUP($B$7,objectifs!$D$4:$IA$432,232,FALSE)),"nc",S127/VLOOKUP($B$7,objectifs!$D$4:$IA$432,232,FALSE)) -> 2.3 | V127: 16% | W127: 16% | X127: 0.0
B128: Frais de dossier | H128: =VLOOKUP($B$7,'Indicateurs mensuels'!$D$3:$ZZ$450,94,FALSE) -> 12 | M128: =VLOOKUP($B$7,'Indicateurs Cumulés'!$D$3:$MX$450,95,FALSE) -> 23 | N128: =IF(ISERROR(M128/VLOOKUP($B$7,'Indicateurs Cumulés'!$D$3:$MX$450,223,FALSE)),"nc",M128/VLOOKUP($B$7,'Indicateurs Cumulés'!$D$3:$MX$450,223,FALSE)) -> 0.0 | S128: =VLOOKUP($B$7,objectifs!$D$3:$ZZ$450,62,FALSE)*'[6]Objectifs PNB'!$C$57/'[6]Objectifs PNB'!$C$52 -> 270 | T128: =IF(ISERROR(S128/VLOOKUP($B$7,objectifs!$D$4:$IA$432,232,FALSE)),"nc",S128/VLOOKUP($B$7,objectifs!$D$4:$IA$432,232,FALSE)) -> 0.2 | W128: 8% | X128: -0.0
B129: Commissions ADE | E129: =VLOOKUP($B$7,'Indicateurs mensuels'!$D$3:$KI$450,90,FALSE) -> 153.7% | F129: =VLOOKUP($B$7,'Indicateurs mensuels'!$D$3:$KI$450,89,FALSE) -> 93.0% | H129: =VLOOKUP($B$7,'Indicateurs mensuels'!$D$3:$ZZ$450,91,FALSE) -> 52 | J129: =VLOOKUP($B$7,'Indicateurs Cumulés'!$D$3:$MX$450,89,FALSE) -> 140.0% | K129: =VLOOKUP($B$7,'Indicateurs Cumulés'!$D$3:$MX$450,88,FALSE) -> 94.6% | M129: =+VLOOKUP($B$7,'Indicateurs Cumulés'!$D$3:$MX$450,90,FALSE) -> 163 | N129: =IF(ISERROR(M129/VLOOKUP($B$7,'Indicateurs Cumulés'!$D$3:$MX$450,223,FALSE)),"nc",M129/VLOOKUP($B$7,'Indicateurs Cumulés'!$D$3:$MX$450,223,FALSE)) -> 0.1 | S129: =VLOOKUP($B$7,objectifs!$D$3:$ZZ$450,72,FALSE)*'[6]Objectifs PNB'!$C$57/'[6]Objectifs PNB'!$C$52 -> 1,159 | T129: =IF(ISERROR(S129/VLOOKUP($B$7,objectifs!$D$4:$IA$432,232,FALSE)),"nc",S129/VLOOKUP($B$7,objectifs!$D$4:$IA$432,232,FALSE)) -> 0.8 | W129: 14% | X129: -0.0
B131: CREDIT IMMOBILIER PRO - Eng. Nets (yc accessoires) | E131: =E132 -> 9,574 | F131: =IF(ISERROR(H131/(E131*G131)),0,H131/(E131*G131)) -> 0.11% | G131: =G132 -> 6.55 | H131: =H132+H133+H134+H135 -> 70 | J131: =J132 -> 19,929 | K131: =IF(ISERROR(M131/(J131*L131)),0,M131/(J131*L131)) -> 0.14% | L131: =L132 -> 6.94 | M131: =M132+M133+M134+M135 -> 194 | N131: =IF(ISERROR(M131/VLOOKUP($B$7,'Indicateurs Cumulés'!$D$3:$MX$450,223,FALSE)),"nc",M131/VLOOKUP($B$7,'Indicateurs Cumulés'!$D$3:$MX$450,223,FALSE)) -> 0.1 | P131: =P132 -> 120,000 | Q131: =IF(ISERROR(S131/(P131*R131)),0,S131/(P131*R131)) -> 0.49% | R131: =R132 -> 7.50 | S131: =S132+S133+S134+S135 -> 4,375 | T131: =IF(ISERROR(S131/VLOOKUP($B$7,objectifs!$D$4:$IA$432,232,FALSE)),"nc",S131/VLOOKUP($B$7,objectifs!$D$4:$IA$432,232,FALSE)) -> 2.9 | V131: =IF(ISERROR(J131/P131),0,J131/P131) -> 17% | W131: =IF(ISERROR(M131/S131),0,M131/S131) -> 4% | X131: =IF(ISERROR(N131-(T131/12*MONTH($C$9))),"nc",N131-(T131/12*MONTH($C$9))) -> -0.3
B132: Crédit Immobilier (marge hors accessoires) | E132: =VLOOKUP($B$7,'Indicateurs mensuels'!$D$3:$KI$450,19,FALSE) -> 9,574 | F132: =VLOOKUP($B$7,'Indicateurs mensuels'!$D$3:$KI$450,20,FALSE) -> -0.16% | G132: =VLOOKUP($B$7,'Indicateurs mensuels'!$D$3:$KI$450,21,FALSE) -> 6.55 | H132: =E132*F132*G132 -> -98 | J132: =VLOOKUP($B$7,'Indicateurs Cumulés'!$D$3:$MX$450,19,FALSE) -> 19,929 | K132: =VLOOKUP($B$7,'Indicateurs Cumulés'!$D$3:$MX$450,20,FALSE) -> -0.14% | L132: =VLOOKUP($B$7,'Indicateurs Cumulés'!$D$3:$MX$450,21,FALSE) -> 6.94 | M132: =J132*K132*L132 -> -193 | N132: =IF(ISERROR(M132/VLOOKUP($B$7,'Indicateurs Cumulés'!$D$3:$MX$450,223,FALSE)),"nc",M132/VLOOKUP($B$7,'Indicateurs Cumulés'!$D$3:$MX$450,223,FALSE)) -> -0.1 | P132: =VLOOKUP($B$7,objectifs!$D$3:$ZZ$450,10,FALSE)*'[6]Objectifs PNB'!$C$47/'[6]Objectifs PNB'!$C$42 -> 120,000 | Q132: =VLOOKUP($B$7,objectifs!$D$3:$ZZ$450,12,FALSE) -> 0.20% | R132: =VLOOKUP($B$7,objectifs!$D$3:$ZZ$450,13,FALSE) -> 7.50 | S132: =P132*Q132*R132 -> 1,800 | T132: =IF(ISERROR(S132/VLOOKUP($B$7,objectifs!$D$4:$IA$432,232,FALSE)),"nc",S132/VLOOKUP($B$7,objectifs!$D$4:$IA$432,232,FALSE)) -> 1.2 | V132: 17% | W132: -11% | X132: -0.3
B133: Frais de dossier | H133: =VLOOKUP($B$7,'Indicateurs mensuels'!$D$3:$ZZ$450,93,FALSE) -> 28 | M133: =+VLOOKUP($B$7,'Indicateurs Cumulés'!$D$3:$MX$450,97,FALSE) -> 57 | N133: =IF(ISERROR(M133/VLOOKUP($B$7,'Indicateurs Cumulés'!$D$3:$MX$450,223,FALSE)),"nc",M133/VLOOKUP($B$7,'Indicateurs Cumulés'!$D$3:$MX$450,223,FALSE)) -> 0.0 | S133: =VLOOKUP($B$7,objectifs!$D$3:$ZZ$450,63,FALSE)*'[6]Objectifs PNB'!$C$47/'[6]Objectifs PNB'!$C$42 -> 360 | T133: =IF(ISERROR(S133/VLOOKUP($B$7,objectifs!$D$4:$IA$432,232,FALSE)),"nc",S133/VLOOKUP($B$7,objectifs!$D$4:$IA$432,232,FALSE)) -> 0.2 | W133: 16% | X133: 0.0
B134: Commissions ADE (coefficient multiplicateur de 1,3 X) | E134: =VLOOKUP($B$7,'Indicateurs mensuels'!$D$3:$KI$450,84,FALSE) -> 127.2% | F134: =VLOOKUP($B$7,'Indicateurs mensuels'!$D$3:$KI$450,83,FALSE) -> 70.0% | H134: =VLOOKUP($B$7,'Indicateurs mensuels'!$D$3:$ZZ$450,85,FALSE) -> 128 | M134: =+VLOOKUP($B$7,'Indicateurs Cumulés'!$D$3:$MX$450,91,FALSE) -> 302 | N134: =IF(ISERROR(M134/VLOOKUP($B$7,'Indicateurs Cumulés'!$D$3:$MX$450,223,FALSE)),"nc",M134/VLOOKUP($B$7,'Indicateurs Cumulés'!$D$3:$MX$450,223,FALSE)) -> 0.2 | S134: =VLOOKUP($B$7,objectifs!$D$3:$ZZ$450,71,FALSE)*'[6]Objectifs PNB'!$C$47/'[6]Objectifs PNB'!$C$42 -> 1,956 | T134: =IF(ISERROR(S134/VLOOKUP($B$7,objectifs!$D$4:$IA$432,232,FALSE)),"nc",S134/VLOOKUP($B$7,objectifs!$D$4:$IA$432,232,FALSE)) -> 1.3 | W134: 15% | X134: -0.0
B135: Commissions SACCEF | H135: =VLOOKUP($B$7,'Indicateurs mensuels'!$D$3:$ZZ$450,98,FALSE) -> 12 | M135: =+VLOOKUP($B$7,'Indicateurs Cumulés'!$D$3:$MX$450,93,FALSE) -> 28 | N135: =IF(ISERROR(M135/VLOOKUP($B$7,'Indicateurs Cumulés'!$D$3:$MX$450,223,FALSE)),"nc",M135/VLOOKUP($B$7,'Indicateurs Cumulés'!$D$3:$MX$450,223,FALSE)) -> 0.0 | S135: =VLOOKUP($B$7,objectifs!$D$3:$ZZ$450,74,FALSE)*'[6]Objectifs PNB'!$C$47/'[6]Objectifs PNB'!$C$42 -> 258 | T135: =IF(ISERROR(S135/VLOOKUP($B$7,objectifs!$D$4:$IA$432,232,FALSE)),"nc",S135/VLOOKUP($B$7,objectifs!$D$4:$IA$432,232,FALSE)) -> 0.2 | W135: 11% | X135: -0.0
B137: CREDIT MLT PRO - Eng. Nets (yc accessoires) | E137: =E138+E139 -> 23,317 | F137: =IF(ISERROR(H137/(E137*G137)),0,H137/(E137*G137)) -> 0.52% | G137: =SUMPRODUCT(G138:G139,E138:E139)/(E138+E139) -> 4.44 | H137: =H138+H139+H140+H141 -> 540 | J137: =J138+J139 -> 51,340 | K137: =IF(ISERROR(M137/(J137*L137)),0,M137/(J137*L137)) -> 0.54% | L137: =SUMPRODUCT(L138:L139,J138:J139)/(J138+J139) -> 4.54 | M137: =M138+M139+M140+M141 -> 1,250 | N137: =IF(ISERROR(M137/VLOOKUP($B$7,'Indicateurs Cumulés'!$D$3:$MX$450,223,FALSE)),"nc",M137/VLOOKUP($B$7,'Indicateurs Cumulés'!$D$3:$MX$450,223,FALSE)) -> 0.9 | P137: =P138+P139 -> 250,000 | Q137: =IF(ISERROR(S137/(P137*R137)),0,S137/(P137*R137)) -> 0.70% | R137: =SUMPRODUCT(R138:R139,P138:P139)/(P138+P139) -> 4.39 | S137: =S138+S139+S140+S141 -> 7,646 | T137: =IF(ISERROR(S137/VLOOKUP($B$7,objectifs!$D$4:$IA$432,232,FALSE)),"nc",S137/VLOOKUP($B$7,objectifs!$D$4:$IA$432,232,FALSE)) -> 5.0 | V137: =IF(ISERROR(J137/P137),0,J137/P137) -> 21% | W137: =IF(ISERROR(M137/S137),0,M137/S137) -> 16% | X137: =IF(ISERROR(N137-(T137/12*MONTH($C$9))),"nc",N137-(T137/12*MONTH($C$9))) -> 0.0
B138: Crédit MLT (marge hors accessoires) | E138: =VLOOKUP($B$7,'Indicateurs mensuels'!$D$3:$KI$450,22,FALSE) -> 22,234 | F138: =VLOOKUP($B$7,'Indicateurs mensuels'!$D$3:$KI$450,23,FALSE) -> 0.37% | G138: =VLOOKUP($B$7,'Indicateurs mensuels'!$D$3:$KI$450,24,FALSE) -> 4.55 | H138: =E138*F138*G138 -> 374 | J138: =VLOOKUP($B$7,'Indicateurs Cumulés'!$D$3:$MX$450,22,FALSE) -> 49,378 | K138: =VLOOKUP($B$7,'Indicateurs Cumulés'!$D$3:$MX$450,23,FALSE) -> 0.39% | L138: =VLOOKUP($B$7,'Indicateurs Cumulés'!$D$3:$MX$450,24,FALSE) -> 4.63 | M138: =J138*K138*L138 -> 896 | N138: =IF(ISERROR(M138/VLOOKUP($B$7,'Indicateurs Cumulés'!$D$3:$MX$450,223,FALSE)),"nc",M138/VLOOKUP($B$7,'Indicateurs Cumulés'!$D$3:$MX$450,223,FALSE)) -> 0.6 | P138: =VLOOKUP($B$7,objectifs!$D$3:$ZZ$450,20,FALSE) -> 238,000 | Q138: =VLOOKUP($B$7,objectifs!$D$3:$ZZ$450,21,FALSE) -> 0.40% | R138: =VLOOKUP($B$7,objectifs!$D$3:$ZZ$450,22,FALSE) -> 4.50 | S138: =P138*Q138*R138 -> 4,284 | T138: =IF(ISERROR(S138/VLOOKUP($B$7,objectifs!$D$4:$IA$432,232,FALSE)),"nc",S138/VLOOKUP($B$7,objectifs!$D$4:$IA$432,232,FALSE)) -> 2.8 | V138: 21% | W138: 21% | X138: 0.2
B139: Crédit Bail Mobilier | E139: =VLOOKUP($B$7,'Indicateurs mensuels'!$D$3:$GI$450,185,FALSE) -> 1,083 | F139: =VLOOKUP($B$7,'Indicateurs mensuels'!$D$3:$GI$450,186,FALSE) -> 0.82% | G139: =VLOOKUP($B$7,'Indicateurs mensuels'!$D$3:$GI$450,187,FALSE) -> 2.24 | H139: =E139*F139*G139 -> 20 | J139: =VLOOKUP($B$7,'Indicateurs Cumulés'!$D$3:$MX$450,193,FALSE) -> 1,962 | K139: =VLOOKUP($B$7,'Indicateurs Cumulés'!$D$3:$MX$450,194,FALSE) -> 0.85% | L139: =VLOOKUP($B$7,'Indicateurs Cumulés'!$D$3:$MX$450,195,FALSE) -> 2.22 | M139: =J139*K139*L139 -> 37 | N139: =IF(ISERROR(M139/VLOOKUP($B$7,'Indicateurs Cumulés'!$D$3:$MX$450,223,FALSE)),"nc",M139/VLOOKUP($B$7,'Indicateurs Cumulés'!$D$3:$MX$450,223,FALSE)) -> 0.0 | P139: =VLOOKUP($B$7,objectifs!$D$3:$ZZ$450,14,FALSE) -> 12,000 | Q139: =VLOOKUP($B$7,objectifs!$D$3:$ZZ$450,15,FALSE) -> 0.40% | R139: =VLOOKUP($B$7,objectifs!$D$3:$ZZ$450,16,FALSE) -> 2.30 | S139: =P139*Q139*R139 -> 110 | T139: =IF(ISERROR(S139/VLOOKUP($B$7,objectifs!$D$4:$IA$432,232,FALSE)),"nc",S139/VLOOKUP($B$7,objectifs!$D$4:$IA$432,232,FALSE)) -> 0.1 | V139: 16% | W139: 33% | X139: 0.0
B140: Frais de dossier (yc CBM) | H140: =VLOOKUP($B$7,'Indicateurs mensuels'!$D$3:$KI$450,92,FALSE)+VLOOKUP($B$7,'Indicateurs mensuels'!$D$3:$KI$450,97,FALSE) -> 74 | M140: =VLOOKUP($B$7,'Indicateurs Cumulés'!$D$3:$MX$450,92,FALSE)+VLOOKUP($B$7,'Indicateurs Cumulés'!$D$3:$MX$450,94,FALSE) -> 143 | N140: =IF(ISERROR(M140/VLOOKUP($B$7,'Indicateurs Cumulés'!$D$3:$MX$450,223,FALSE)),"nc",M140/VLOOKUP($B$7,'Indicateurs Cumulés'!$D$3:$MX$450,223,FALSE)) -> 0.1 | S140: =VLOOKUP($B$7,objectifs!$D$3:$ZZ$450,66,FALSE) -> 750 | T140: =IF(ISERROR(S140/VLOOKUP($B$7,objectifs!$D$4:$IA$432,232,FALSE)),"nc",S140/VLOOKUP($B$7,objectifs!$D$4:$IA$432,232,FALSE)) -> 0.5 | W140: 19% | X140: 0.0
B141: Commissions ADE | H141: =VLOOKUP($B$7,'Indicateurs mensuels'!$D$3:$ZZ$450,220,FALSE) -> 73 | M141: =VLOOKUP($B$7,'Indicateurs Cumulés'!$D$3:$MX$450,108,FALSE) -> 174 | N141: =IF(ISERROR(M141/VLOOKUP($B$7,'Indicateurs Cumulés'!$D$3:$MX$450,223,FALSE)),"nc",M141/VLOOKUP($B$7,'Indicateurs Cumulés'!$D$3:$MX$450,223,FALSE)) -> 0.1 | S141: =VLOOKUP($B$7,objectifs!$D$3:$ZZ$450,75,FALSE) -> 2,501 | T141: =IF(ISERROR(S141/VLOOKUP($B$7,objectifs!$D$4:$IA$432,232,FALSE)),"nc",S141/VLOOKUP($B$7,objectifs!$D$4:$IA$432,232,FALSE)) -> 1.6 | W141: 7% | X141: -0.2
B143: BANCA PRO - Ventes nettes | E143: =SUM(E144:E150) -> 259 | H143: =SUM(H144:H150) -> 174 | J143: =SUM(J144:J150) -> 801 | M143: =SUM(M144:M150) -> 617 | N143: =IF(ISERROR(M143/VLOOKUP($B$7,'Indicateurs Cumulés'!$D$3:$MX$450,223,FALSE)),"nc",M143/VLOOKUP($B$7,'Indicateurs Cumulés'!$D$3:$MX$450,223,FALSE)) -> 0.4 | P143: =SUM(P144:P150) -> 4,570 | S143: =SUM(S144:S150) -> 4,913 | T143: =IF(ISERROR(S143/VLOOKUP($B$7,objectifs!$D$4:$IA$432,232,FALSE)),"nc",S143/VLOOKUP($B$7,objectifs!$D$4:$IA$432,232,FALSE)) -> 3.2 | V143: =IF(ISERROR(J143/P143),0,J143/P143) -> 18% | W143: =IF(ISERROR(M143/S143),0,M143/S143) -> 13% | X143: =IF(ISERROR(N143-(T143/12*MONTH($C$9))),"nc",N143-(T143/12*MONTH($C$9))) -> -0.1
B144: Forfaits PRO - Tarification | E144: =J144-(VLOOKUP($B$7,'Indicateurs Cumulés M-1'!$D$3:$MX$450,284,FALSE)+VLOOKUP($B$7,'Indicateurs Cumulés M-1'!$D$3:$MX$450,286,FALSE)) -> 113 | F144: =K144 -> 249 € | G144: 5.00 | H144: =E144*F144*G144/1000 -> 141 | J144: =VLOOKUP($B$7,'Indicateurs Cumulés'!$D$3:$MX$450,284,FALSE)+VLOOKUP($B$7,'Indicateurs Cumulés'!$D$3:$MX$450,286,FALSE) -> 398 | K144: =IF(ISERROR(M144/(J144*L144)*1000),0,M144/(J144*L144)*1000) -> 249 € | L144: =objectifs!$HD$3 -> 5.00 | M144: =(VLOOKUP($B$7,'Indicateurs Cumulés'!$D$3:$MX$450,290,FALSE)+VLOOKUP($B$7,'Indicateurs Cumulés'!$D$3:$MX$450,292,FALSE)) -> 495 | N144: =IF(ISERROR(M144/VLOOKUP($B$7,'Indicateurs Cumulés'!$D$3:$MX$450,223,FALSE)),"nc",M144/VLOOKUP($B$7,'Indicateurs Cumulés'!$D$3:$MX$450,223,FALSE)) -> 0.4 | P144: =VLOOKUP($B$7,objectifs!$D$3:$ZZ$450,203,FALSE)+VLOOKUP($B$7,objectifs!$D$3:$ZZ$450,205,FALSE) -> 1,500 | Q144: =IF(ISERROR(S144/(P144*R144)*1000),0,S144/(P144*R144)*1000) -> 204 € | R144: =objectifs!$HD$3 -> 5.00 | S144: =VLOOKUP($B$7,objectifs!$D$3:$ZZ$450,209,FALSE)+VLOOKUP($B$7,objectifs!$D$3:$ZZ$450,211,FALSE) -> 1,529 | T144: =IF(ISERROR(S144/VLOOKUP($B$7,objectifs!$D$4:$IA$432,232,FALSE)),"nc",S144/VLOOKUP($B$7,objectifs!$D$4:$IA$432,232,FALSE)) -> 1.0 | V144: 27% | W144: 32% | X144: 0.2
B145: Cartes PRO - Tarification | E145: =J145-(VLOOKUP($B$7,'Indicateurs Cumulés M-1'!$D$3:$MX$450,287,FALSE)+VLOOKUP($B$7,'Indicateurs Cumulés M-1'!$D$3:$MX$450,288,FALSE)+VLOOKUP($B$7,'Indicateurs Cumulés M-1'!$D$3:$MX$450,285,FALSE)) -> 66 | F145: 89 € | G145: 5.00 | H145: =E145*F145*G145/1000 -> 29 | J145: =VLOOKUP($B$7,'Indicateurs Cumulés'!$D$3:$MX$450,287,FALSE)+VLOOKUP($B$7,'Indicateurs Cumulés'!$D$3:$MX$450,288,FALSE)+VLOOKUP($B$7,'Indicateurs Cumulés'!$D$3:$MX$450,285,FALSE) -> 239 | K145: =IF(ISERROR(M145/(J145*L145)*1000),0,M145/(J145*L145)*1000) -> 89 € | L145: =objectifs!$HE$3 -> 5.00 | M145: =(VLOOKUP($B$7,'Indicateurs Cumulés'!$D$3:$MX$450,293,FALSE)+VLOOKUP($B$7,'Indicateurs Cumulés'!$D$3:$MX$450,291,FALSE)+VLOOKUP($B$7,'Indicateurs Cumulés'!$D$3:$MX$450,294,FALSE)) -> 106 | N145: =IF(ISERROR(M145/VLOOKUP($B$7,'Indicateurs Cumulés'!$D$3:$MX$450,223,FALSE)),"nc",M145/VLOOKUP($B$7,'Indicateurs Cumulés'!$D$3:$MX$450,223,FALSE)) -> 0.1 | P145: =VLOOKUP($B$7,objectifs!$D$3:$ZZ$450,204,FALSE)+VLOOKUP($B$7,objectifs!$D$3:$ZZ$450,206,FALSE)+VLOOKUP($B$7,objectifs!$D$3:$ZZ$450,207,FALSE) -> 1,000 | Q145: =IF(ISERROR(S145/(P145*R145)*1000),0,S145/(P145*R145)*1000) -> 150 € | R145: =objectifs!$HE$3 -> 5.00 | S145: =VLOOKUP($B$7,objectifs!$D$3:$ZZ$450,210,FALSE)+VLOOKUP($B$7,objectifs!$D$3:$ZZ$450,212,FALSE)+VLOOKUP($B$7,objectifs!$D$3:$ZZ$450,213,FALSE) -> 748 | T145: =IF(ISERROR(S145/VLOOKUP($B$7,objectifs!$D$4:$IA$432,232,FALSE)),"nc",S145/VLOOKUP($B$7,objectifs!$D$4:$IA$432,232,FALSE)) -> 0.5 | V145: 24% | W145: 14% | X145: -0.0
B146: AUTO PRO (ventes brutes) - Commissions | E146: =J146-VLOOKUP($B$7,'Indicateurs Cumulés M-1'!$D$3:$MX$450,74,FALSE) -> 16 | F146: 100 € | G146: 2.75 | H146: 4 | J146: =VLOOKUP($B$7,'Indicateurs Cumulés'!$D$3:$MX$450,74,FALSE) -> 29 | K146: =IF(ISERROR(M146/(J146*L146)*1000),0,M146/(J146*L146)*1000) -> 100 € | L146: =objectifs!$HX$3 -> 2.75 | M146: =VLOOKUP($B$7,'Indicateurs Cumulés'!$D$3:$MX$450,75,FALSE) -> 8 | N146: =IF(ISERROR(M146/VLOOKUP($B$7,'Indicateurs Cumulés'!$D$3:$MX$450,223,FALSE)),"nc",M146/VLOOKUP($B$7,'Indicateurs Cumulés'!$D$3:$MX$450,223,FALSE)) -> 0.0 | P146: =VLOOKUP($B$7,objectifs!$D$3:$ZZ$450,226,FALSE) -> 340 | Q146: =IF(ISERROR(S146/(P146*R146)*1000),0,S146/(P146*R146)*1000) -> 100 € | R146: =objectifs!$HX$3 -> 2.75 | S146: =VLOOKUP($B$7,objectifs!$D$3:$ZZ$450,229,FALSE) -> 94 | T146: =IF(ISERROR(S146/VLOOKUP($B$7,objectifs!$D$4:$IA$432,232,FALSE)),"nc",S146/VLOOKUP($B$7,objectifs!$D$4:$IA$432,232,FALSE)) -> 0.1 | V146: 9% | W146: 9% | X146: -0.0
B147: Multirisque PRO (ventes brutes) - Commissions | E147: =J147-VLOOKUP($B$7,'Indicateurs Cumulés M-1'!$D$3:$MX$450,76,FALSE) -> 17 | F147: 30 € | G147: 3.96 | H147: 2 | J147: =VLOOKUP($B$7,'Indicateurs Cumulés'!$D$3:$MX$450,76,FALSE) -> 48 | K147: 30 € | L147: =objectifs!$HY$3 -> 3.96 | M147: =VLOOKUP($B$7,'Indicateurs Cumulés'!$D$3:$MX$450,77,FALSE) -> 6 | N147: =IF(ISERROR(M147/VLOOKUP($B$7,'Indicateurs Cumulés'!$D$3:$MX$450,223,FALSE)),"nc",M147/VLOOKUP($B$7,'Indicateurs Cumulés'!$D$3:$MX$450,223,FALSE)) -> 0.0 | P147: =VLOOKUP($B$7,objectifs!$D$3:$ZZ$450,227,FALSE) -> 510 | Q147: 30 € | R147: =objectifs!$HY$3 -> 3.96 | S147: =VLOOKUP($B$7,objectifs!$D$3:$ZZ$450,230,FALSE) -> 61 | T147: =IF(ISERROR(S147/VLOOKUP($B$7,objectifs!$D$4:$IA$432,232,FALSE)),"nc",S147/VLOOKUP($B$7,objectifs!$D$4:$IA$432,232,FALSE)) -> 0.0 | V147: 9% | W147: 9% | X147: -0.0
B148: PAP - Commissions | E148: =J148-VLOOKUP($B$7,'Indicateurs Cumulés M-1'!$D$3:$MX$450,289,FALSE) -> 33 | F148: 18 € | G148: 5.00 | H148: 3 | J148: =VLOOKUP($B$7,'Indicateurs Cumulés'!$D$3:$MX$450,289,FALSE) -> 73 | K148: 18 € | L148: =objectifs!$HI$3 -> 5.00 | M148: =VLOOKUP($B$7,'Indicateurs Cumulés'!$D$3:$MX$450,295,FALSE) -> 6 | N148: =IF(ISERROR(M148/VLOOKUP($B$7,'Indicateurs Cumulés'!$D$3:$MX$450,223,FALSE)),"nc",M148/VLOOKUP($B$7,'Indicateurs Cumulés'!$D$3:$MX$450,223,FALSE)) -> 0.0 | P148: =VLOOKUP($B$7,objectifs!$D$3:$ZZ$450,208,FALSE) -> 480 | Q148: 18 € | R148: =objectifs!$HI$3 -> 5.00 | S148: =VLOOKUP($B$7,objectifs!$D$3:$ZZ$450,214,FALSE) -> 42 | T148: =IF(ISERROR(S148/VLOOKUP($B$7,objectifs!$D$4:$IA$432,232,FALSE)),"nc",S148/VLOOKUP($B$7,objectifs!$D$4:$IA$432,232,FALSE)) -> 0.0 | V148: 15% | W148: 15% | X148: -0.0
B149: Contrats monétiques actifs - Commissions | E149: =J149-VLOOKUP($B$7,'Indicateurs Cumulés M-1'!$D$3:$MX$450,78,FALSE) -> 14 | F149: 100 € | G149: 5.00 | H149: 7 | J149: =VLOOKUP($B$7,'Indicateurs Cumulés'!$D$3:$MX$450,78,FALSE) -> 14 | K149: =IF(ISERROR(M149/(J149*L149)*1000),0,M149/(J149*L149)*1000) -> 100 € | L149: =objectifs!$HZ$3 -> 5.00 | M149: =VLOOKUP($B$7,'Indicateurs Cumulés'!$D$3:$MX$450,79,FALSE) -> 7 | N149: =IF(ISERROR(M149/VLOOKUP($B$7,'Indicateurs Cumulés'!$D$3:$MX$450,223,FALSE)),"nc",M149/VLOOKUP($B$7,'Indicateurs Cumulés'!$D$3:$MX$450,223,FALSE)) -> 0.0 | P149: =VLOOKUP($B$7,objectifs!$D$3:$ZZ$450,228,FALSE) -> 740 | Q149: =IF(ISERROR(S149/(P149*R149)*1000),0,S149/(P149*R149)*1000) -> 100 € | R149: =objectifs!$HZ$3 -> 5.00 | S149: =VLOOKUP($B$7,objectifs!$D$3:$ZZ$450,231,FALSE) -> 370 | T149: =IF(ISERROR(S149/VLOOKUP($B$7,objectifs!$D$4:$IA$432,232,FALSE)),"nc",S149/VLOOKUP($B$7,objectifs!$D$4:$IA$432,232,FALSE)) -> 0.2 | V149: 2% | W149: 2% | X149: -0.0
B150: Commisions de mouvement | H150: =M150 -> -12 | M150: =VLOOKUP($B$7,'Indicateurs Cumulés'!$D$3:$MX$450,297,FALSE) -> -12 | N150: =IF(ISERROR(M150/VLOOKUP($B$7,'Indicateurs Cumulés'!$D$3:$MX$450,223,FALSE)),"nc",M150/VLOOKUP($B$7,'Indicateurs Cumulés'!$D$3:$MX$450,223,FALSE)) -> -0.0 | S150: =VLOOKUP($B$7,objectifs!$D$3:$ZZ$450,216,FALSE) -> 2,069 | T150: =IF(ISERROR(S150/VLOOKUP($B$7,objectifs!$D$4:$IA$432,232,FALSE)),"nc",S150/VLOOKUP($B$7,objectifs!$D$4:$IA$432,232,FALSE)) -> 1.4 | V150: 0% | W150: -1% | X150: -0.2
B152: BANCA PRO Relation privée - Ventes nettes | E152: =SUM(E153:E155) -> -29 | H152: =SUM(H153:H155) -> -62 | J152: =SUM(J153:J155) -> 6 | M152: =SUM(M153:M155) -> -133 | N152: =IF(ISERROR(M152/VLOOKUP($B$7,'Indicateurs Cumulés'!$D$3:$MX$450,223,FALSE)),"nc",M152/VLOOKUP($B$7,'Indicateurs Cumulés'!$D$3:$MX$450,223,FALSE)) -> -0.1 | P152: =SUM(P153:P155) -> 3,035 | Q152: =IF(ISERROR(S152/(P152*R152)*1000),0,S152/(P152*R152)*1000) -> 117 € | R152: =IF(ISERROR(SUMPRODUCT(R153:R155,P153:P155)/SUMPRODUCT(P153:P155)),0,SUMPRODUCT(R153:R155,P153:P155)/SUMPRODUCT(P153:P155)) -> 5.00 | S152: =SUM(S153:S155) -> 1,771 | T152: =IF(ISERROR(S152/VLOOKUP($B$7,objectifs!$D$4:$IA$432,232,FALSE)),"nc",S152/VLOOKUP($B$7,objectifs!$D$4:$IA$432,232,FALSE)) -> 1.2 | V152: =IF(ISERROR(J152/P152),0,J152/P152) -> 0% | W152: =IF(ISERROR(M152/S152),0,M152/S152) -> -8% | X152: =IF(ISERROR(N152-(T152/12*MONTH($C$9))),"nc",N152-(T152/12*MONTH($C$9))) -> -0.3
B153: Forfaits - Tarification | E153: =J153-VLOOKUP($B$7,'Indicateurs Cumulés M-1'!$D$3:$MX$450,314,FALSE) -> -4 | F153: =K153 -> 137 € | G153: 5.00 | H153: =E153*F153*G153/1000 -> -3 | J153: =VLOOKUP($B$7,'Indicateurs Cumulés'!$D$3:$MX$450,314,FALSE) -> -11 | K153: =IF(ISERROR(M153/(J153*L153)*1000),0,M153/(J153*L153)*1000) -> 137 € | L153: =objectifs!$GC$3 -> 5.00 | M153: =VLOOKUP($B$7,'Indicateurs Cumulés'!$D$3:$MX$450,315,FALSE) -> -8 | N153: =IF(ISERROR(M153/VLOOKUP($B$7,'Indicateurs Cumulés'!$D$3:$MX$450,223,FALSE)),"nc",M153/VLOOKUP($B$7,'Indicateurs Cumulés'!$D$3:$MX$450,223,FALSE)) -> -0.0 | P153: =VLOOKUP($B$7,objectifs!$D$3:$ZZ$450,181,FALSE)*5% -> 1,120 | Q153: =objectifs!$GB$3 -> 137 € | R153: =objectifs!$GC$3 -> 5.00 | S153: =P153*Q153*R153/1000 -> 769 | T153: =IF(ISERROR(S153/VLOOKUP($B$7,objectifs!$D$4:$IA$432,232,FALSE)),"nc",S153/VLOOKUP($B$7,objectifs!$D$4:$IA$432,232,FALSE)) -> 0.5 | V153: -1% | W153: -1% | X153: -0.1
B154: Cartes - Tarification | E154: =J154-VLOOKUP($B$7,'Indicateurs Cumulés M-1'!$D$3:$MX$450,316,FALSE) -> -42 | F154: 289 € | G154: 5.00 | H154: =E154*F154*G154/1000 -> -61 | J154: =VLOOKUP($B$7,'Indicateurs Cumulés'!$D$3:$MX$450,316,FALSE) -> -95 | K154: 289 € | L154: =objectifs!$GE$3 -> 5.00 | M154: =VLOOKUP($B$7,'Indicateurs Cumulés'!$D$3:$MX$450,317,FALSE) -> -137 | N154: =IF(ISERROR(M154/VLOOKUP($B$7,'Indicateurs Cumulés'!$D$3:$MX$450,223,FALSE)),"nc",M154/VLOOKUP($B$7,'Indicateurs Cumulés'!$D$3:$MX$450,223,FALSE)) -> -0.1 | P154: =VLOOKUP($B$7,objectifs!$D$3:$ZZ$450,183,FALSE)*5% -> 600 | Q154: =objectifs!$GD$3 -> 289 € | R154: =objectifs!$GE$3 -> 5.00 | S154: =P154*Q154*R154/1000 -> 868 | T154: =IF(ISERROR(S154/VLOOKUP($B$7,objectifs!$D$4:$IA$432,232,FALSE)),"nc",S154/VLOOKUP($B$7,objectifs!$D$4:$IA$432,232,FALSE)) -> 0.6 | V154: -16% | W154: -16% | X154: -0.2
B155: IARD & Prévoyance - Commissions | E155: =J155-VLOOKUP($B$7,'Indicateurs Cumulés M-1'!$D$3:$MX$450,318,FALSE) -> 17 | F155: 20 € | G155: 5.00 | H155: 2 | J155: =VLOOKUP($B$7,'Indicateurs Cumulés'!$D$3:$MX$450,318,FALSE) -> 112 | K155: 20 € | L155: =objectifs!$GG$3 -> 5.00 | M155: =VLOOKUP($B$7,'Indicateurs Cumulés'!$D$3:$MX$450,319,FALSE) -> 11 | N155: =IF(ISERROR(M155/VLOOKUP($B$7,'Indicateurs Cumulés'!$D$3:$MX$450,223,FALSE)),"nc",M155/VLOOKUP($B$7,'Indicateurs Cumulés'!$D$3:$MX$450,223,FALSE)) -> 0.0 | P155: =VLOOKUP($B$7,objectifs!$D$3:$ZZ$450,185,FALSE)*5% -> 1,315 | Q155: =objectifs!$GF$3 -> 20 € | R155: =objectifs!$GG$3 -> 5.00 | S155: =P155*Q155*R155/1000 -> 135 | T155: =IF(ISERROR(S155/VLOOKUP($B$7,objectifs!$D$4:$IA$432,232,FALSE)),"nc",S155/VLOOKUP($B$7,objectifs!$D$4:$IA$432,232,FALSE)) -> 0.1 | V155: 9% | W155: 9% | X155: -0.0
B157: AUTRES | H157: =M157 -> 0 | M157: =VLOOKUP($B$7,'Indicateurs Cumulés'!$D$3:$MX$450,73,FALSE) -> 0 | N157: =IF(ISERROR(M157/VLOOKUP($B$7,'Indicateurs Cumulés'!$D$3:$MX$450,223,FALSE)),"nc",M157/VLOOKUP($B$7,'Indicateurs Cumulés'!$D$3:$MX$450,223,FALSE)) -> 0.0 | S157: =VLOOKUP($B$7,objectifs!$D$3:$ZZ$450,172,FALSE)*'[6]Objectifs PNB'!$G$81/'[6]Objectifs PNB'!$G$78 -> -700 | T157: =IF(ISERROR(S157/VLOOKUP($B$7,objectifs!$D$4:$IA$432,232,FALSE)),"nc",S157/VLOOKUP($B$7,objectifs!$D$4:$IA$432,232,FALSE)) -> -0.5 | W157: =IF(ISERROR(M157/S157),0,M157/S157) -> 0% | X157: =IF(ISERROR(N157-(T157/12*MONTH($C$9))),"nc",N157-(T157/12*MONTH($C$9))) -> 0.1
B159: ZOOM PNB PRO* sur Activité Nouvelle | H159: =H152+H120+H126+H131+H137+H143+H157 -> 1,048 | M159: =M152+M120+M126+M131+M137+M143+M157 -> 3,033 | N159: =IF(ISERROR(M159/VLOOKUP($B$7,'Indicateurs Cumulés'!$D$3:$MX$450,223,FALSE)),"nc",M159/VLOOKUP($B$7,'Indicateurs Cumulés'!$D$3:$MX$450,223,FALSE)) -> 2.1 | S159: =S152+S120+S126+S131+S137+S143+S157 -> 24,465 | T159: =IF(ISERROR(S159/VLOOKUP($B$7,objectifs!$D$4:$IA$432,232,FALSE)),"nc",S159/VLOOKUP($B$7,objectifs!$D$4:$IA$432,232,FALSE)) -> 16.1 | W159: =IF(ISERROR(M159/S159),0,M159/S159) -> 12.4% | X159: =IF(ISERROR(N159-(T159/12*MONTH($C$9))),"nc",N159-(T159/12*MONTH($C$9))) -> -0.5
B160: * y compris relation privée du pro

Sheet Indicateurs Cumulés (hidden)
C1: 1 | D1: 2 | E1: 3 | F1: 4 | G1: 5 | H1: 6 | I1: 7 | J1: 8 | K1: 9 | L1: 10 | M1: 11 | N1: 12 | O1: 13 | P1: 14 | Q1: 15 | R1: 16 | S1: 17 | T1: 18 | U1: 19 | V1: 20 | W1: 21 | X1: 22 | Y1: 23 | Z1: 24 | AA1: 25 | AB1: 26 | AC1: 27 | AD1: 28 | AE1: 29 | AF1: 30 | AG1: 31 | AH1: 32 | AI1: 33 | AJ1: 34 | AK1: 35 | AL1: 36 | AM1: 37 | AN1: 38 | AO1: 39 | AP1: 40 | AQ1: 41 | AR1: 42 | AS1: 43 | AT1: 44 | AU1: 45 | AV1: 46 | AW1: 47 | AX1: 48 | AY1: 49 | AZ1: 50 | BA1: 51 | BB1: 52 | BC1: 53 | BD1: 54 | BE1: 55 | BF1: 56 | BG1: 57 | BH1: 58 | BI1: 59 | BJ1: 60 | BK1: 61 | BL1: 62 | BM1: 63 | BN1: 64 | BO1: 65 | BP1: 66 | BQ1: 67 | BR1: 68 | BS1: 69 | BT1: 70 | BU1: 71 | BV1: 72 | BW1: 73 | BX1: 74 | BY1: 75 | BZ1: 76 | CA1: 77 | CB1: 78 | CC1: 79 | CD1: 80 | CE1: 81 | CF1: 82 | CG1: 83 | CH1: 84 | CI1: 85 | CJ1: 86 | CK1: 87 | CL1: 88 | CM1: 89 | CN1: 90 | CO1: 91 | CP1: 92 | CQ1: 93 | CR1: 94 | CS1: 95 | CT1: 96 | CU1: 97 | CV1: 98 | CW1: 99 | CX1: 100 | CY1: 101 | CZ1: 102 | DA1: 103 | DB1: 104 | DC1: 105 | DD1: 106 | DE1: 107 | DF1: 108 | DG1: 109 | DH1: 110 | DI1: 111 | DJ1: 112 | DK1: 113 | DL1: 114 | DM1: 115 | DN1: 116 | DO1: 117 | DP1: 118 | DQ1: 119 | DR1: 120 | DS1: 121 | DT1: 122 | DU1: 123 | DV1: 124 | DW1: 125 | DX1: 126 | DY1: 127 | DZ1: 128 | EA1: 129 | EB1: 130 | EC1: 131 | ED1: 132 | EE1: 133 | EF1: 134 | EG1: 135 | EH1: 136 | EI1: 137 | EJ1: 138 | EK1: 139 | EL1: 140 | EM1: 141 | EN1: 142 | EO1: 143 | EP1: 144 | EQ1: 145 | ER1: 146 | ES1: 147 | ET1: 148 | EU1: 149 | EV1: 150 | EW1: 151 | EX1: 152 | EY1: 153 | EZ1: 154 | FA1: 155 | FB1: 156 | FC1: 157 | FD1: 158 | FE1: 159 | FF1: 160 | FG1: 161 | FH1: 162 | FI1: 163 | FJ1: 164 | FK1: 165 | FL1: 166 | FM1: 167 | FN1: 168 | FO1: 169 | FP1: 170 | FQ1: 171 | FR1: 172 | FS1: 173 | FT1: 174 | FU1: 175 | FV1: 176 | FW1: 177 | FX1: 178 | FY1: 179 | FZ1: 180 | GA1: 181 | GB1: 182 | GC1: 183 | GD1: 184 | GE1: 185 | GF1: 186 | GG1: 187 | GH1: 188 | GI1: 189 | GJ1: 190 | GK1: 191 | GL1: 192 | GM1: 193 | GN1: 194 | GO1: 195 | GP1: 196 | GQ1: 197 | GR1: 198 | GS1: 199 | GT1: 200 | GU1: 201 | GV1: 202 | GW1: 203 | GX1: 204 | GY1: 205 | GZ1: 206 | HA1: 207 | HB1: 208 | HC1: 209 | HD1: 210 | HE1: 211 | HF1: 212 | HG1: 213 | HH1: 214 | HI1: 215 | HJ1: 216 | HK1: 217 | HL1: 218 | HM1: 219 | HN1: 220 | HO1: 221 | HP1: 222 | HQ1: 223 | HR1: 224 | HS1: 225 | HT1: 226 | HU1: 227 | HV1: 228 | HW1: 229 | HX1: 230 | HY1: 231 | HZ1: 232 | IA1: 233 | IB1: 234 | IC1: 235 | ID1: 236 | IE1: 237 | IF1: 238 | IG1: 239 | IH1: 240 | II1: 241 | IJ1: 242 | IK1: 243 | IL1: 244 | IM1: 245 | IN1: 246 | IO1: 247 | IP1: 248 | IQ1: 249 | IR1: 250 | IS1: 251 | IT1: 252 | IU1: 253 | IV1: 254 | IW1: 255 | IX1: 256 | IY1: 257 | IZ1: 258 | JA1: 259 | JB1: 260 | JC1: 261 | JD1: 262 | JE1: 263 | JF1: 264 | JG1: 265 | JH1: 266 | JI1: 267 | JJ1: 268 | JK1: 269 | JL1: 270 | JM1: 271 | JN1: 272 | JO1: 273 | JP1: 274 | JQ1: 275 | JR1: 276 | JS1: 277 | JT1: 278 | JU1: 279 | JV1: 280 | JW1: 281 | JX1: 282 | JY1: 283 | JZ1: 284 | KA1: 285 | KB1: 286 | KC1: 287 | KD1: 288 | KE1: 289 | KF1: 290 | KG1: 291 | KH1: 292 | KI1: 293 | KJ1: 294 | KK1: 295 | KL1: 296 | KM1: 297 | KN1: 298 | KO1: 299 | KP1: 300 | KQ1: 301 | KR1: 302 | KS1: 303 | KT1: 304 | KU1: 305 | KV1: 306 | KW1: 307 | KX1: 308 | KY1: 309 | KZ1: 310 | LA1: 311 | LB1: 312 | LC1: 313 | LD1: 314 | LE1: 315 | LF1: 316 | LG1: 317 | LH1: 318 | LI1: 319 | LJ1: 320 | LK1: 321 | LL1: 322 | LM1: 323 | LN1: 324 | LO1: 325 | LP1: 326 | LQ1: 327 | LR1: 328 | LS1: 329 | LT1: 330 | LU1: 331 | LV1: 332 | LW1: 333 | LX1: 334 | LY1: 335 | LZ1: 336 | MA1: 337 | MB1: 338 | MC1: 339
A2: Id_UC | B2: Id_groupe | C2: Id_Agence | D2: Lib_Agence | E2: DATE Financements Revolving | F2: Fin Revolving | G2: Tx marg Revolving | H2: DVMA Revolving | I2: DATE CRED | J2: volumes conso BDD | K2: Tx marg conso BDD | L2: DVMA Conso BDD | M2: DVMA IF Conso BDD | N2: volumes immo BDD | O2: Durée initiale Immo BDD | P2: Tx marg immo BDD | Q2: DVMA Immo BDD | R2: DVMA IF Immo BDD | S2: volumes conso PRO | T2: Tx marg conso PRO | U2: DVMA Conso PRO | V2: volumes immo PRO | W2: Tx marg immo PRO | X2: DVMA Immo PRO | Y2: volumes Equip | Z2: Tx marg Equip | AA2: DVMA EQUIP | AB2: FDD Immo BDD | AC2: FDD conso BDD | AD2: FDD Equip PRO | AE2: ADE Immo BDD | AF2: ADE Conso BDD | AG2: CAUTION Immo BDD | AH2: DATE ASSVIE | AI2: Flux IT | AJ2: com IT | AK2: Tx com IT | AL2: Flux N3D | AM2: dont Flux N3D UC | AN2: % flux N3D en UC | AO2: com N3D | AP2: Tx com N3D | AQ2: Flux N+ et NP | AR2: dont Flux N+ et NP UC | AS2: %Flux N+ et NP en UC | AT2: com N+ et NP | AU2: Tx com N+ et NP | AV2: Flux Autres Ecu Vie | AW2: dont Flux Autres Ecu Vie UC | AX2: % Flux Autres Ecu Vie UC | AY2: com Autres Ecu Vie | AZ2: Tx com Autres Ecu Vie | BA2: Flux total ECUVIE | BB2: dont total ECUVIE en UC | BC2: % total ECUVIE en UC | BD2: com total ECUVIE | BE2: TX com total ECUVIE | BF2: DVMA | BG2: zoom PNB Crédit CONSO PRO | BH2: zoom PNB Crédit IMMO PRO | BI2: PNB Crédit CONSO (yc revolving) | BJ2: PNB Crédit IMMO | BK2: PNB Crédit MLT | BL2: TCA IMMO BDD | BM2: TCI IMMO BDD | BN2: Id Ecureuil Vie | BO2: Arbitrage fonds € vers UC Volume | BP2: Arbitrage fonds € vers UC PNB | BQ2: FCP structurés (versements) | BR2: FCP structurés PNB | BS2: Booster IARD Auto | BT2: Booster IARD MRH | BU2: Comm apporteurs d'affaires BDD | BV2: Remises commerciales dont Hors MAD | BW2: Remises commerciales dont MAD | BX2: Remises commerciales dont PRO | BY2: Auto PRO Volume | BZ2: Auto PRO PNB | CA2: MRH PRO Volume | CB2: MRH PRO PNB | CC2: Contrats monétiques actif PRO | CD2: Contrats monétiques actif PRO PNB | CE2: Contrats Mobilité bancaire | CF2: Bonus Mobilité bancaire | CG2: Carte Senséa | CH2: PNB cartes Senséa | CI2: Bonus Bancarisation Crédit Immo | CJ2: Bonus Bancarisation PNB Crédit Immo | CM2: taux de pénétration DES PRET CONSO PRO | CN2: QUOTITE ASSUREE CONSO PRO | CO2: PNB CNP CONSO PRO | CP2: PNB CNP IMMO PRO | CQ2: FDD EQUIP MARCHE BDD | CR2: CAUTION IMMO PRO | CS2: FDD CB Marché PRO | CT2: FDD CONSO MARCHE PRO | CU2: FDD CONSO MARCHE BDD | CV2: FDD IMMO MARCHE PRO | CW2: FDD IMMO MARCHE BDD | CX2: taux de pénétration DES PRET IMMO | CY2: QUOTITE ASSUREE IMMO | CZ2: PNB CNP IMMO BDD | DA2: taux de pénétration DES PRET CONSO BDD | DB2: QUOTITE ASSUREE CONSO BDD | DC2: PNB CNP CONSO BDD | DD2: Taux de conso de l'enveloppe dérogatoire CNP IMMO | DE2: taux de pénétration DES PRET MLT agences | DF2: QUOTITE ASSUREE MLT agences | DG2: PNB CNP MLT agences | DH2: Volumes LA BDD | DI2: Tx marg LA BDD | DJ2: DVMA LA BDD | DK2: PNB LA BDD | DL2: Volumes LB BDD | DM2: Tx marg LB BDD | DN2: DVMA LB BDD | DO2: PNB LB BDD | DP2: Volumes LGF BDD | DQ2: Tx marg LGF BDD | DR2: DVMA LGF BDD | DS2: PNB LGF BDD | DT2: Volumes LGP BDD | DU2: Tx marg LGP BDD | DV2: DVMA LGP BDD | DW2: PNB LGP BDD | DX2: Volumes LEP BDD | DY2: Tx marg LEP BDD | DZ2: DVMA LEP BDD | EA2: PNB LEP BDD | EB2: Volumes LDD BDD | EC2: Tx marg LDD BDD | ED2: DVMA LDD BDD | EE2: PNB LDD BDD | EF2: Volumes LJ (yc 10-12) BDD | EG2: Tx marg LJ (yc 10-12) BDD | EH2: DVMA LJ (yc 10-12) BDD | EI2: PNB LJ (yc 10-12) BDD | EJ2: Volumes CEL BDD | EK2: Tx marg CEL BDD | EL2: DVMA CEL BDD | EM2: PNB CEL BDD | EN2: Volumes SLR BDD | EO2: Tx marg SLR BDD | EP2: DVMA SLR BDD | EQ2: PNB SLR BDD | ER2: Volumes DAT BDD | ES2: Tx marg DAT BDD | ET2: DVMA DAT BDD | EU2: PNB DAT BDD | EV2: Volumes PEL BDD | EW2: Tx marg PEL BDD | EX2: DVMA PEL BDD | EY2: PNB PEL BDD | EZ2: Volumes PEP BDD | FA2: Tx marg PEP BDD | FB2: DVMA PEP BDD | FC2: PNB PEP BDD | FD2: Volumes Ass Vie encours BDD | FE2: Tx marg Ass Vie encours BDD | FF2: DVMA Ass Vie encours BDD | FG2: PNB Ass Vie encours BDD | FH2: Volumes Ass Vie flux BDD | FI2: Tx marg Ass Vie flux BDD | FJ2: DVMA Ass Vie flux BDD | FK2: PNB Ass Vie flux BDD | FL2: Volumes OPCVM encours BDD | FM2: Tx marg OPCVM encours BDD | FN2: DVMA OPCVM encours BDD | FO2: PNBOPCVM encours BDD | FP2: Volumes OPCVM flux BDD | FQ2: Tx marg OPCVM flux BDD | FR2: DVMA OPCVM flux BDD | FS2: PNB OPCVM flux BDD | FT2: Volumes Emprunt BDD | FU2: Tx marg Emprunt BDD | FV2: DVMA Emprunt BDD | FW2: PNB Emprunt BDD | FX2: Volumes PS BDD | FY2: Tx marg PS BDD | FZ2: DVMA PS BDD | GA2: PNB PS BDD | GB2: Volumes Epargne Bilan BDD | GC2: PNB Epargne Bilan BDD | GD2: Volumes Epargne Financière BDD | GE2: PNB Epargne Financière BDD | GF2: Volumes CDD créditeurs BDD hors plafond | GG2: Tx marg CDD créditeurs BDD | GH2: DVMA CDD créditeurs BDD | GI2: PNB CDD créditeurs BDD | GJ2: Volumes CDD créditeurs PRO hors plafond | GK2: Options complémentaires BL > 2e | GL2: PNB option | GN2: Volumes Crédit Bail BDD | GO2: Tx marg Crédit Bail BDD | GP2: DVMA Crédit Bail BDD | GQ2: PNB Crédit Bail BDD | GR2: Volumes Ass Vie BP1818 encours | GS2: Tx marg Ass Vie BP1818 encours | GT2: DVMA Ass Vie BP1818 encours | GU2: PNB Ass Vie BP1818 encours | GV2: Volumes Ass Vie BP1818 flux | GW2: Tx marg Ass Vie BP1818 flux | GX2: DVMA Ass Vie BP1818 flux | GY2: PNB Ass Vie BP1818 flux | GZ2: Volumes OPCVM BP1818 encours | HA2: Tx marg OPCVM BP1818 encours | HB2: DVMA OPCVM BP1818 encours | HC2: PNB OPCVM BP1818 encours | HD2: Volumes OPCVM BP1818 flux | HE2: Tx marg OPCVM BP1818 flux | HF2: DVMA OPCVM BP1818 flux | HG2: PNB OPCVM BP1818 flux | HH2: Volumes Autres Val MOB | HI2: Tx marg Autres Val MOB | HJ2: DVMA Autres Val MOB | HK2: PNB Autres Val MOB | HL2: Volumes Remises | HM2: Volumes Facturé | HN2: PNB TOTAL (tous produits hors banca pro) | HO2: Volumes CDD créditeurs BDD plafond (+150% et -50%) | HP2: I selection Volumes (taux pour calcul PNB) | HR2: ETP Performance | HS2: PNB ADE Autres | HT2: Marge CONSO yc access. | HU2: Marge IMMO yc access. | HV2: Marge MLT yc access. | HW2: Auto Part | HX2: MRH Part | HY2: Santé Part | HZ2: GAV Part | IA2: PJ-GU Part | IB2: ESO Part | IC2: GF Part | ID2: Bouquet liberté Autres | IE2: Futéo / SOL 16-17 / Jeune / Autonomie | IF2: Satellis Essentiel / Essentiel + | IG2: Satellis Intégral | IH2: Carte Infinite | II2: Carte Platinum (yc izicarte) | IJ2: Carte visa premier (yc izicarte) | IK2: Carte visa classique (yc izicarte) | IL2: Autres Cartes | IM2: Auto | IN2: MRH | IO2: Santé | IP2: GAV | IQ2: PJ GU | IR2: ESO | IS2: GF | IT2: Bouquet liberté Autres | IU2: Futéo / SOL 16-17 / Jeune / Autonomie | IV2: Satellis Essentiel / Essentiel + | IW2: Satellis Intégral | IX2: Carte Infinite | IY2: Carte Platinum (yc izicarte) | IZ2: Carte visa premier (yc izicarte) | JA2: Carte visa classique (yc izicarte) | JB2: Autres Cartes | JC2: PNB BANCA PART | JD2: PNB PRO Crédit | JE2: SCPI Volumes (taux pour calcul PNB) | JF2: SCPI Volumes PNB | JG2: DVMA | JH2: tarif | JI2: Assistance Vie | JJ2: Assistance Vie | JK2: Volumes DAT PRO | JL2: Tx marg DAT PRO | JM2: Volumes PS PRO | JN2: Volumes Ass Vie flux PRO | JO2: Volumes Ass Vie encours PRO | JP2: Volumes CE PRO | JQ2: Volumes Autre Epargne PRO | JR2: Volumes CDD créditeurs PRO plafond (+150% et -50%) | JS2: PNB DAT PRO | JT2: PNB PS PRO | JU2: PNB Ass Vie flux PRO | JV2: PNB Ass Vie encours PRO | JW2: PNB CE PRO | JX2: PNB Autre Epargne PRO | JY2: PNB CDD créditeurs PRO plafond (+150% et -50%) | JZ2: PNB PRO Collecte yc DAV | KA2: Ventes nettes Libre Convergence Labelis | KB2: Business Platinum | KC2: Auto entrepreneur | KD2: Business | KE2: Business Gold | KF2: PAP | KG2: PNB Libre Convergence | KH2: Business Platinum | KI2: Auto entrepreneur | KJ2: Business | KK2: Business Gold | KL2: PAP | KM2: PNB PRO Banca | KN2: com mouv | KO2: Ventes nettes PV agences | KP2: Ventes nettes PV pros | KQ2: Evol. PROS ACTIFS | KR2: DVMA IARD | KS2: Ventes nettes PRO | KT2: Volumes PEL PRO | KU2: PNB PEL PRO | KV2: CARTE dd ventes nettes | KW2: PNB CARTE débit dif bonus de 40€ x 5 ans par carte nette | KX2: CFF Volumes (taux de 1,00% pour calcul PNB) | KY2: Bouquet liberté HDG | KZ2: Bouquet liberté HDG | LA2: Prévoyance du locataire | LB2: Prévoyance du locataire | LC2: PNB TOTAL | LD2: PNB PRO | LE2: Forfaits Part PRO | LF2: PNB Forfaits Part PRO | LG2: Cartes Part PRO | LH2: PNB Cartes Part PRO | LI2: IARD Part PRO | LJ2: PNB IARD Part PRO | LK2: PNB TOTAL (Hors booster) | LL2: PNB TOTAL (Hors booster) / ETP | LM2: PNB TOTAL COLLECTE | LN2: PNB TOTAL CREDITS | LO2: PNB TOTAL AUTRES | LP2: PNB BANCA part du PRO | LQ2: PNB TOTAL / ETP | LR2: Evolution stock clients actifs BAD (1 connexion / mois sur 3 mois) | LS2: Nombre de SED finalisées (en brut) | LT2: Nombre de SAG finalisées (périmètre SAG hors OPC en brut) | LU2: Evolution stock de clients équipés E-documents | LV2: Evolution stock de clients avec Opt-in-mail et tél. | LW2: Evolution stock de clients équipés Sécurpass | LX2: Evolution stock clients actifs BAD (1 connexion / mois sur 3 mois) PNB | LY2: Nombre de SED finalisées (en brut) PNB | LZ2: Nombre de SAG finalisées (périmètre SAG hors OPC en brut) PNB | MA2: Evolution stock de clients équipés E-documents PNB | MB2: Evolution stock de clients avec Opt-in-mail et tél. PNB | MC2: Evolution stock de clients équipés Sécurpass PNB | MD2: PV Bernard L.
E3: ='[7]bench cumul'!$C$3 -> 2019-02-28 | BO3: =objectifs!DY432 -> 0.25% | BP3: =objectifs!DZ432 -> 8.00 | BQ3: ='[6]Objectifs PNB'!D$16 -> 2.80% | BR3: ='[6]Objectifs PNB'!F$16 -> 1.00 | BS3: ='[6]Objectifs PNB'!$D$97 -> 40 € | BT3: =BS3 -> 40 € | BY3: =+'[6]Objectifs PNB'!$D$139 -> 100 € | BZ3: ='[6]Objectifs PNB'!$F$139 -> 2.75 | CA3: ='[6]Objectifs PNB'!$D$140 -> 30 € | CB3: ='[6]Objectifs PNB'!$F$140 -> 3.96 | CC3: ='[6]Objectifs PNB'!$D$136 -> 100 € | CD3: ='[6]Objectifs PNB'!$F$136 -> 5.00 | CF3: 200 € | CG3: 43 € | CH3: ='[6]Objectifs PNB'!$F$136 -> 5.00 | CJ3: 1,000 € | CP3: =CZ3 -> 1.30 | CZ3: 1.30 | EX3: =objectifs!DV432 -> 8.50 | GK3: =objectifs!FJ3 -> 15 € | GL3: =objectifs!FK3 -> 5.00 | HP3: =objectifs!FU432 -> 4.00% | HW3: ='[6]Objectifs PNB'!$D$117 -> 43 € | HX3: ='[6]Objectifs PNB'!$D$118 -> 25 € | HY3: ='[6]Objectifs PNB'!$D$119 -> 65 € | HZ3: ='[6]Objectifs PNB'!$D$120 -> 15 € | IA3: =('[6]Objectifs PNB'!$D$121*'[6]Objectifs PNB'!$C$121+'[6]Objectifs PNB'!$C$124*'[6]Objectifs PNB'!$D$124)/('[6]Objectifs PNB'!$C$121+'[6]Objectifs PNB'!$C$124) -> 3 € | IB3: ='[6]Objectifs PNB'!$D$123 -> 14 € | IC3: ='[6]Objectifs PNB'!$D$125 -> 19 € | ID3: ='[6]Forfaits Cartes'!$D$49 -> 87 € | IE3: ='[6]Forfaits Cartes'!$D$50 -> 12 € | IF3: ='[6]Forfaits Cartes'!$D$51 -> 125 € | IG3: ='[6]Forfaits Cartes'!$D$52 -> 210 € | IH3: ='[6]Forfaits Cartes'!$D$62 -> 315 € | II3: ='[6]Forfaits Cartes'!$D$63 -> 200 € | IJ3: ='[6]Forfaits Cartes'!$D$64 -> 130 € | IK3: ='[6]Forfaits Cartes'!$D$66 -> 43 € | IL3: ='[6]Forfaits Cartes'!$D$68 -> 12 € | IM3: ='[6]Objectifs PNB'!$F$117 -> 2.75 | IN3: ='[6]Objectifs PNB'!$F$118 -> 3.96 | IO3: ='[6]Objectifs PNB'!$F$119 -> 3.94 | IP3: ='[6]Objectifs PNB'!$F$120 -> 5.37 | IQ3: ='[6]Objectifs PNB'!$F$121 -> 6.19 | IR3: ='[6]Objectifs PNB'!$F$123 -> 7.00 | IS3: =('[6]Objectifs PNB'!$C$124*'[6]Objectifs PNB'!$F$124+'[6]Objectifs PNB'!$C$125*'[6]Objectifs PNB'!$F$125)/('[6]Objectifs PNB'!$C$124+'[6]Objectifs PNB'!$C$125) -> 6.00 | IT3: ='[6]Forfaits Cartes'!$E$49 -> 5.00 | IU3: ='[6]Forfaits Cartes'!$E$50 -> 5.00 | IV3: ='[6]Forfaits Cartes'!$E$51 -> 5.00 | IW3: ='[6]Forfaits Cartes'!$E$52 -> 5.00 | IX3: ='[6]Forfaits Cartes'!$E$62 -> 5.00 | IY3: ='[6]Forfaits Cartes'!$E$63 -> 5.00 | IZ3: ='[6]Forfaits Cartes'!$E$64 -> 5.00 | JA3: ='[6]Forfaits Cartes'!$E$66 -> 5.00 | JB3: ='[6]Forfaits Cartes'!$E$68 -> 5.00 | JE3: =objectifs!FU432 -> 4.00% | JI3: ='[6]Objectifs PNB'!$D$122 -> 45 € | JJ3: ='[6]Objectifs PNB'!$F$122 -> 9.50 | JK3: =ES433 -> 0.20% | JM3: =FY433 -> 1.00% | JO3: =FE433 -> 0.45% | JP3: =DM433 -> 0.73% | JQ3: ='[6]Objectifs PNB'!$D$10 -> 0.60% | JS3: =$JW$3 -> 5.37 | JT3: =$JW$3 -> 5.37 | JV3: =$JW$3 -> 5.37 | JW3: =objectifs!CP432 -> 5.37 | JX3: =$JW$3 -> 5.37 | KA3: =objectifs!GX3 -> 288 € | KB3: =objectifs!GY3 -> 195 € | KC3: =objectifs!GZ3 -> 120 € | KD3: =objectifs!HA3 -> 47 € | KE3: =objectifs!HB3 -> 130 € | KF3: =objectifs!HC3 -> 18 € | KG3: =objectifs!HD3 -> 5.00 | KH3: =objectifs!HE3 -> 5.00 | KI3: =objectifs!HF3 -> 5.00 | KJ3: =objectifs!HG3 -> 5.00 | KK3: =objectifs!HH3 -> 5.00 | KL3: =objectifs!HI3 -> 5.00 | KT3: =EW433 -> 0.00% | KU3: =JS3 -> 5.37 | KW3: ='[6]Objectifs PNB'!$D$98 -> 40 € | KX3: 1.00% | KY3: ='[6]Forfaits Cartes'!$D$48 -> 140 € | KZ3: ='[6]Forfaits Cartes'!$E$48 -> 5.00 | LA3: ='[6]Objectifs PNB'!$D$126 -> 20 € | LB3: ='[6]Objectifs PNB'!$F$126 -> 4.50 | LE3: ='[6]Objectifs PNB'!$D$105 -> 137 € | LF3: ='[6]Objectifs PNB'!$F$105 -> 5.00 | LG3: ='[6]Objectifs PNB'!$D$114 -> 289 € | LH3: ='[6]Objectifs PNB'!$F$114 -> 5.00 | LI3: ='[6]Objectifs PNB'!$D$127 -> 20 € | LJ3: ='[6]Objectifs PNB'!$F$127 -> 5.00 | LR3: 5.00 | LS3: 1.00 | LT3: 1.00 | LU3: 5.00 | LV3: 3.00 | LW3: 5.00 | LX3: 15 € | LY3: 10 € | LZ3: 3 € | MA3: 10 € | MB3: 5 € | MC3: 1 €
A4: 105006 | B4: 200262 | C4: 6 | D4: STRASBOURG NEUDORF | E4: =$E$3 -> 2019-02-28 | F4: =VLOOKUP($C4,'[7]bench cumul'!$A$3:$AH$633,'[7]bench cumul'!D$1,FALSE) -> 40 | G4: =VLOOKUP($C4,'[7]bench cumul'!$A$3:$AH$633,'[7]bench cumul'!E$1,FALSE) -> 4.32% | H4: =VLOOKUP($C4,'[7]bench cumul'!$A$3:$AH$633,'[7]bench cumul'!F$1,FALSE) -> 1.57 | I4: =VLOOKUP($C4,'[7]bench cumul'!$A$3:$AH$633,'[7]bench cumul'!G$1,FALSE) -> 2019-02-28 | J4: =VLOOKUP($C4,'[7]bench cumul'!$A$3:$AH$633,'[7]bench cumul'!H$1,FALSE) -> 440 | K4: =VLOOKUP($C4,'[7]bench cumul'!$A$3:$AH$633,'[7]bench cumul'!I$1,FALSE) -> 3.35% | L4: =VLOOKUP($C4,'[7]bench cumul'!$A$3:$AH$633,'[7]bench cumul'!J$1,FALSE) -> 2.28 | M4: =VLOOKUP($C4,'[7]bench cumul'!$A$3:$AH$633,'[7]bench cumul'!K$1,FALSE) -> 3.93 | N4: =VLOOKUP($C4,'[7]bench cumul'!$A$3:$AH$633,'[7]bench cumul'!L$1,FALSE) -> 456 | O4: =VLOOKUP($C4,'[7]bench cumul'!$A$3:$AH$633,'[7]bench cumul'!M$1,FALSE) -> 0 | P4: =VLOOKUP($C4,'[7]bench cumul'!$A$3:$AH$633,'[7]bench cumul'!N$1,FALSE) -> -0.14% | Q4: =VLOOKUP($C4,'[7]bench cumul'!$A$3:$AH$633,'[7]bench cumul'!O$1,FALSE) -> 8.55 | R4: =VLOOKUP($C4,'[7]bench cumul'!$A$3:$AH$633,'[7]bench cumul'!P$1,FALSE) -> 12.73 | S4: =VLOOKUP($C4,'[7]bench cumul'!$A$3:$AH$633,'[7]bench cumul'!Q$1,FALSE) -> 15 | T4: =VLOOKUP($C4,'[7]bench cumul'!$A$3:$AH$633,'[7]bench cumul'!R$1,FALSE) -> 3.74% | U4: =VLOOKUP($C4,'[7]bench cumul'!$A$3:$AH$633,'[7]bench cumul'!S$1,FALSE) -> 3.43 | V4: =VLOOKUP($C4,'[7]bench cumul'!$A$3:$AH$633,'[7]bench cumul'!T$1,FALSE) -> -6 | W4: =VLOOKUP($C4,'[7]bench cumul'!$A$3:$AH$633,'[7]bench cumul'!U$1,FALSE) -> 0.19% | X4: =VLOOKUP($C4,'[7]bench cumul'!$A$3:$AH$633,'[7]bench cumul'!V$1,FALSE) -> 7.61 | Y4: =VLOOKUP($C4,'[7]bench cumul'!$A$3:$AH$633,'[7]bench cumul'!W$1,FALSE) -> 50 | Z4: =VLOOKUP($C4,'[7]bench cumul'!$A$3:$AH$633,'[7]bench cumul'!X$1,FALSE) -> 1.17% | AA4: =VLOOKUP($C4,'[7]bench cumul'!$A$3:$AH$633,'[7]bench cumul'!Y$1,FALSE) -> 2.38 | AB4: =VLOOKUP($C4,'[7]bench cumul'!$A$3:$AH$633,'[7]bench cumul'!Z$1,FALSE) -> 1.6 | AC4: =VLOOKUP($C4,'[7]bench cumul'!$A$3:$AH$633,'[7]bench cumul'!AA$1,FALSE) -> 3.8 | AD4: =VLOOKUP($C4,'[7]bench cumul'!$A$3:$AH$633,'[7]bench cumul'!AB$1,FALSE) -> 0.4 | AE4: =VLOOKUP($C4,'[7]bench cumul'!$A$3:$AH$633,'[7]bench cumul'!AC$1,FALSE) -> 10.8 | AF4: =VLOOKUP($C4,'[7]bench cumul'!$A$3:$AH$633,'[7]bench cumul'!AD$1,FALSE) -> 7.7 | AG4: =VLOOKUP($C4,'[7]bench cumul'!$A$3:$AH$633,'[7]bench cumul'!AE$1,FALSE) -> 0.9 | AH4: =VLOOKUP($C4,'[8]Données Cumulées'!$A$1:$Z$65649,'[8]Données Cumulées'!C$1,FALSE) -> 201902 | AI4: =VLOOKUP($C4,'[8]Données Cumulées'!$A$1:$Z$65649,'[8]Données Cumulées'!D$1,FALSE) -> 3.00 | AJ4: =VLOOKUP($C4,'[8]Données Cumulées'!$A$1:$Z$65649,'[8]Données Cumulées'!E$1,FALSE) -> 0.07 | AK4: =IF(ISERROR(AJ4/AI4),0,AJ4/AI4) -> 2.40% | AL4: =VLOOKUP($C4,'[8]Données Cumulées'!$A$1:$Z$65649,'[8]Données Cumulées'!G$1,FALSE) -> 98.39 | AM4: =VLOOKUP($C4,'[8]Données Cumulées'!$A$1:$Z$65649,'[8]Données Cumulées'!H$1,FALSE) -> 12.90 | AN4: =IF(ISERROR(AM4/AL4),0,AM4/AL4) -> 13% | AO4: =VLOOKUP($C4,'[8]Données Cumulées'!$A$1:$Z$65649,'[8]Données Cumulées'!J$1,FALSE) -> 0.98 | AP4: =IF(ISERROR(AO4/AL4),0,AO4/AL4) -> 1.00% | AQ4: =VLOOKUP($C4,'[8]Données Cumulées'!$A$1:$Z$65649,'[8]Données Cumulées'!L$1,FALSE) -> 739.48 | AR4: =VLOOKUP($C4,'[8]Données Cumulées'!$A$1:$Z$65649,'[8]Données Cumulées'!M$1,FALSE) -> 84.34 | AS4: =IF(ISERROR(AR4/AQ4),0,AR4/AQ4) -> 11.4% | AT4: =VLOOKUP($C4,'[8]Données Cumulées'!$A$1:$Z$65649,'[8]Données Cumulées'!O$1,FALSE) -> 5.37 | AU4: =IF(ISERROR(AT4/AQ4),0,AT4/AQ4) -> 0.73% | AV4: =VLOOKUP($C4,'[8]Données Cumulées'!$A$1:$Z$65649,'[8]Données Cumulées'!Q$1,FALSE) -> 31.15 | AW4: =VLOOKUP($C4,'[8]Données Cumulées'!$A$1:$Z$65649,'[8]Données Cumulées'!R$1,FALSE) -> 0.47 | AX4: =IF(ISERROR(AW4/AV4),0,AW4/AV4) -> 1.52% | AY4: =VLOOKUP($C4,'[8]Données Cumulées'!$A$1:$Z$65649,'[8]Données Cumulées'!T$1,FALSE) -> 0.28 | AZ4: =IF(ISERROR(AY4/AV4),0,AY4/AV4) -> 0.89% | BA4: =VLOOKUP($C4,'[8]Données Cumulées'!$A$1:$Z$65649,'[8]Données Cumulées'!V$1,FALSE) -> 872.02 | BB4: =VLOOKUP($C4,'[8]Données Cumulées'!$A$1:$Z$65649,'[8]Données Cumulées'!W$1,FALSE) -> 97.72 | BC4: =IF(ISERROR(BB4/BA4),0,BB4/BA4) -> 11.2% | BD4: =VLOOKUP($C4,'[8]Données Cumulées'!$A$1:$Z$65649,'[8]Données Cumulées'!Y$1,FALSE) -> 6.70 | BE4: =IF(ISERROR(BD4/BA4),0,BD4/BA4) -> 0.77% | BG4: =(S4*T4*U4)+CT4+CO4 -> 3 | BH4: =(V4*W4*X4)+CP4+CR4+CV4 -> -0 | BI4: =(F4*G4*H4)+(J4*K4*L4)+CU4+DC4 -> 46 | BJ4: =(N4*P4*Q4)+AB4+AG4+CZ4+CJ4 -> 3 | BK4: =(Y4*Z4*AA4)+CS4+DG4+GQ4+AD4 -> 2 | BL4: =IF(ISERROR(VLOOKUP($D4,'[7]bench cumul'!$B$1:$AG$65598,'[7]bench cumul'!AF$1,FALSE)),P433,VLOOKUP($D4,'[7]bench cumul'!$B$1:$AG$65598,'[7]bench cumul'!AF$1,FALSE)) -> 1.78% | BM4: =IF(ISERROR(VLOOKUP($D4,'[7]bench cumul'!$B$1:$AG$65598,'[7]bench cumul'!AG$1,FALSE)),P433,VLOOKUP($D4,'[7]bench cumul'!$B$1:$AG$65598,'[7]bench cumul'!AG$1,FALSE)) -> -0.08% | BN4: 6 | BO4: =VLOOKUP(BN4,[9]Diversification_Epargne!$A:$L,12,FALSE)/1000 -> 61 | BP4: =BO4*$BO$3*$BP$3 -> 1 | BQ4: =VLOOKUP(BN4,[9]Diversification_Epargne!$A:$L,8,FALSE)/1000 -> 71 | BR4: =BQ4*$BQ$3*$BR$3 -> 2 | BS4: =HW4*$BS$3*$IT$3/1000 -> -0 | BT4: =HX4*$BT$3*$IT$3/1000 -> -1 | BU4: =-IF(ISERROR(VLOOKUP($C4,'[10]Commissions APAFF'!$B:$C,2,FALSE)),0,VLOOKUP($C4,'[10]Commissions APAFF'!$B:$C,2,FALSE)/1000) -> 0 | BX4: =-SUMIF([11]BDD!$H:$H,$C4,[11]BDD!$Q:$Q)/1000 -> 0 | BY4: =VLOOKUP($C4,[12]VN!$B$4:$BX$500,63,FALSE) -> 0 | BZ4: =BY4*$BY$3*$BZ$3/1000 -> 0 | CA4: =VLOOKUP($C4,[12]VN!$B$4:$BX$500,64,FALSE) -> 0 | CB4: =CA4*$CA$3*$CB$3/1000 -> 0 | CC4: =VLOOKUP($C4,[12]VN!$B$4:$BX$500,27,FALSE) -> 0 | CD4: =CC4*$CC$3*$CD$3/1000 -> 0 | CE4: =SUMIF([13]Feuil1!$B:$B,C4,[13]Feuil1!$E:$E) -> 4 | CF4: =+CE4*$CF$3/1000 -> 0.8 | CG4: =VLOOKUP($C4,[12]VN!$B$4:$BZ$361,68,FALSE) -> -5 | CH4: =(CG4*$CG$3*$CH$3)/1000 -> -1 | CI4: =SUMIF([14]Feuil1!$B:$B,C4,[14]Feuil1!$C:$C) -> 0 | CJ4: =CI4*$CJ$3/1000 -> 0 | CM4: =VLOOKUP($C4,'[15]GEE CUMUL PROS'!$A$5:$O$348,6,FALSE) -> 100.00% | CN4: =VLOOKUP($C4,'[15]GEE CUMUL PROS'!$A$5:$O$348,7,FALSE) -> 200.00% | CO4: =VLOOKUP($C4,'[15]GEE CUMUL PROS'!$A$5:$O$348,15,FALSE) -> 1 | CP4: =VLOOKUP($C4,'[16]Cumul immo PRO'!$A$4:$G$755,6,FALSE)/1000*$CP$3 -> 0 | CQ4: =AD4 -> 0.4 | CR4: =VLOOKUP($C4,'[7]bench cumul'!$A$3:$AK$633,'[7]bench cumul'!AK$1,FALSE) -> 0 | CS4: =VLOOKUP(C4,'[17]pnb bdd'!$A$3:$K$481,11,FALSE) -> 0.00 | CT4: =VLOOKUP($C4,[18]Cumul!$A:$D,4,FALSE) -> 0 | CU4: =VLOOKUP(C4,[18]Cumul!$A:$E,5,FALSE) -> 1 | CV4: =VLOOKUP($C4,'[7]bench cumul'!$A$3:$AK$633,'[7]bench cumul'!AJ$1,FALSE) -> 0 | CW4: =+AB4 -> 2 | CX4: =VLOOKUP($C4,'[16]Cumul immo BDD'!$A$4:$G$755,4,FALSE) -> 100.00% | CY4: =VLOOKUP($C4,'[16]Cumul immo BDD'!$A$4:$G$755,5,FALSE) -> 100.00% | CZ4: =VLOOKUP($C4,'[16]Cumul immo BDD'!$A$4:$H$755,6,FALSE)/1000*$CZ$3 -> 5 | DA4: =VLOOKUP($C4,'[15]GEE CUMUL BDD'!$A$5:$O$348,6,FALSE) -> 100.00% | DB4: =VLOOKUP($C4,'[15]GEE CUMUL BDD'!$A$5:$O$348,7,FALSE) -> 128.84% | DC4: =VLOOKUP($C4,'[15]GEE CUMUL BDD'!$A$5:$O$348,15,FALSE) -> 9 | DE4: =VLOOKUP($C4,'[16]Cumul mlt tous M'!$A$4:$F$348,4,FALSE) -> 100.00% | DF4: =VLOOKUP($C4,'[16]Cumul mlt tous M'!$A$4:$F$348,5,FALSE) -> 100.00% | DG4: =VLOOKUP($C4,'[16]Cumul mlt tous M'!$A$4:$F$348,6,FALSE)/1000 -> 0 | DH4: =VLOOKUP($C4,[19]Import!$B$9:$BR$403,3,FALSE) -> 124 | DI4: =DI$433 -> 0.70% | DJ4: 5.33 | DK4: =DH4*DI4*DJ4 -> 5 | DL4: =VLOOKUP($C4,[19]Import!$B$9:$BR$403,5,FALSE) -> -200 | DM4: =DM$433 -> 0.73% | DN4: 5.33 | DO4: =DL4*DM4*DN4 -> -8 | DP4: =VLOOKUP($C4,[19]Import!$B$9:$BR$403,7,FALSE) -> -1 | DQ4: =DQ$433 -> 0.84% | DR4: 5.33 | DS4: =DP4*DQ4*DR4 -> -0 | DT4: =VLOOKUP($C4,[19]Import!$B$9:$BR$403,9,FALSE) -> -13 | DU4: =DU$433 -> 0.63% | DV4: 5.33 | DW4: =DT4*DU4*DV4 -> -0 | DX4: =VLOOKUP($C4,[19]Import!$B$9:$BR$403,11,FALSE) -> -38 | DY4: =DY$433 -> 0.20% | DZ4: 5.37 | EA4: =DX4*DY4*DZ4 -> -0 | EB4: =VLOOKUP($C4,[19]Import!$B$9:$BR$403,13,FALSE) -> 67 | EC4: =EC$433 -> 0.20% | ED4: 5.37 | EE4: =EB4*EC4*ED4 -> 1 | EF4: =VLOOKUP($C4,[19]Import!$B$9:$BR$403,15,FALSE) -> -39 | EG4: =EG$433 -> 0.20% | EH4: 5.37 | EI4: =EF4*EG4*EH4 -> -0 | EJ4: =VLOOKUP($C4,[19]Import!$B$9:$BR$403,17,FALSE) -> 19 | EK4: =EK$433 -> 0.44% | EL4: 5.33 | EM4: =EJ4*EK4*EL4 -> 0 | EN4: =VLOOKUP($C4,[19]Import!$B$9:$BR$403,41,FALSE) -> -2 | EO4: =EO$433 -> 0.10% | EP4: =VLOOKUP($C4,[19]Import!$B$9:$CR$403,87,FALSE) -> 4.97 | EQ4: =EN4*EO4*EP4 -> -0 | ER4: =VLOOKUP($C4,[19]Import!$B$9:$BR$403,39,FALSE) -> 17 | ES4: =ES$433 -> 0.20% | ET4: 9.00 | EU4: =ER4*ES4*ET4 -> 0 | EV4: =VLOOKUP($C4,[19]Import!$B$9:$BR$403,43,FALSE) -> -141 | EW4: =EW433 -> 0.00% | EX4: =IF(VLOOKUP($C4,[19]Import!$B$9:$ZZ$403,89,FALSE)=0,$EX$3,VLOOKUP($C4,[19]Import!$B$9:$ZZ$403,89,FALSE)) -> 8.59 | EY4: =EV4*EW4*EX4 -> 0 | EZ4: =VLOOKUP($C4,[19]Import!$B$9:$BR$403,45,FALSE) -> 0 | FA4: =FA$433 -> -0.37% | FB4: 0.08 | FC4: =EZ4*FA4*FB4 -> 0 | FD4: =VLOOKUP($C4,[19]Import!$B$9:$BR$403,47,FALSE) -> 701 | FE4: =FE$433 -> 0.45% | FF4: 8.00 | FG4: =FD4*FE4*FF4 -> 25 | FH4: =VLOOKUP($C4,[19]Import!$B$9:$BR$403,49,FALSE) -> 1,169 | FI4: =BE4 -> 0.77% | FJ4: =FJ$433 -> 1.00 | FK4: =FH4*FI4*FJ4 -> 9 | FL4: =VLOOKUP($C4,[19]Import!$B$9:$BR$403,51,FALSE) -> -15 | FM4: =FM$433 -> 0.65% | FN4: 5.00 | FO4: =FL4*FM4*FN4 -> -0 | FP4: =VLOOKUP($C4,[19]Import!$B$9:$BR$403,53,FALSE) -> 3 | FQ4: =FQ$433 -> 0.40% | FR4: 1.00 | FS4: =FP4*FQ4*FR4 -> 0 | FT4: =VLOOKUP($C4,[19]Import!$B$9:$BR$403,55,FALSE) -> -450 | FU4: =FU$433 -> 0.20% | FV4: 8.00 | FW4: =FT4*FU4*FV4 -> -7 | FX4: =VLOOKUP($C4,[19]Import!$B$9:$BR$403,57,FALSE) -> 31 | FY4: =FY$433 -> 1.00% | FZ4: 5.00 | GA4: =FX4*FY4*FZ4 -> 2 | GB4: =DH4+DL4+DP4+DT4+DX4+EB4+EF4+EJ4+ER4+EV4+EZ4+FT4+FX4+EN4+JP4 -> -580 | GC4: =DK4+DO4+DS4+DW4+EA4+EE4+EI4+EM4+EU4+EY4+FC4+FW4+GA4+EQ4+JW4 -> -7 | GD4: =FD4+FL4+GR4+GZ4+HH4 -> 679 | GE4: =FG4+FK4+FO4+FS4+GU4+GY4+HC4+HG4+HK4+BP4+BR4 -> 37 | GF4: =VLOOKUP($C4,[19]Import!$B$9:$BR$403,59,FALSE) -> 279 | GG4: =GG$433 -> 1.00% | GH4: 5.37 | GI4: =GF4*GG4*GH4 -> 15 | GJ4: =VLOOKUP($C4,[19]Import!$B$9:$ZZ$403,79,FALSE) -> 86 | GK4: =VLOOKUP(C4,[20]VN!$A:$E,5,FALSE) -> 0 | GL4: =GK4*$GK$3*$GL$3/1000 -> 0 | GN4: =VLOOKUP(C4,'[17]pnb bdd'!$A$3:$I$481,7,FALSE) -> 0 | GO4: =VLOOKUP(C4,'[17]pnb bdd'!$A$3:$I$481,9,FALSE) -> 0.00% | GP4: =VLOOKUP(C4,'[17]pnb bdd'!$A$3:$I$481,8,FALSE) -> 0 | GQ4: =GN4*GO4*GP4 -> 0 | GR4: =VLOOKUP(C4,[19]Import!$B$9:$DB$403,91,FALSE)+VLOOKUP(C4,[19]Import!$B$9:$DB$403,93,FALSE) -> 0 | GS4: =GS$433 -> 0.45% | GT4: 8.00 | GU4: =GR4*GS4*GT4 -> 0 | GV4: =VLOOKUP(C4,[19]Import!$B$9:$DB$403,99,FALSE)+VLOOKUP(C4,[19]Import!$B$9:$DB$403,101,FALSE) -> 0 | GW4: =FI4 -> 0.77% | GX4: =GX$433 -> 1.00 | GY4: =GV4*GW4*GX4 -> 0 | GZ4: =VLOOKUP(C4,[19]Import!$B$9:$DB$403,95,FALSE)+VLOOKUP(C4,[19]Import!$B$9:$DB$403,97,FALSE) -> 0 | HA4: =HA$433 -> 0.65% | HB4: 5.00 | HC4: =GZ4*HA4*HB4 -> 0 | HD4: =VLOOKUP(C4,[19]Import!$B$9:$DB$403,103,FALSE)+VLOOKUP(C4,[19]Import!$B$9:$DB$403,105,FALSE) -> 0 | HE4: =FQ4 -> 0.40% | HF4: =HF$433 -> 1.00 | HG4: =HD4*HE4*HF4 -> 0 | HH4: =VLOOKUP(C4,[19]Import!$B$9:$DD$403,107,FALSE) -> -6 | HI4: =HI$433 -> 1.00% | HJ4: 5.00 | HK4: =HH4*HI4*HJ4 -> -0 | HL4: =-SUMIF([11]BDD!$F:$F,$C4,[11]BDD!$N:$N)/1000 -> -7 | HM4: =SUMIF([11]BDD!$F:$F,$C4,[11]BDD!$H:$H)/1000 -> 122 | HO4: =IF(ISERROR(IF(VLOOKUP($C4,'Indicateurs Cumulés'!$C$3:$HN$619,186,FALSE)/(VLOOKUP($C4,objectifs!$C$3:$ZZ$618,158,FALSE))>=1.5,(VLOOKUP($C4,objectifs!$C$3:$ZZ$618,158,FALSE))*1.5,IF(VLOOKUP($C4,'Indicateurs Cumulés'!$C$3:$HN$619,186,FALSE)/(VLOOKUP($C4,objectifs!$C$3:$ZZ$618,158,FALSE))<=-0.5,(VLOOKUP($C4,objectifs!$C$3:$ZZ$618,158,FALSE))*-0.5,VLOOKUP($C4,'Indicateurs Cumulés'!$C$3:$HN$619,186,FALSE)))),VLOOKUP($C4,'Indicateurs Cumulés'!$C$3:$HN$619,186,FALSE),IF(VLOOKUP($C4,'Indicateurs Cumulés'!$C$3:$HN$619,186,FALSE)/(VLOOKUP($C4,objectifs!$C$3:$ZZ$618,158,FALSE))>=1.5,(VLOOKUP($C4,objectifs!$C$3:$ZZ$618,158,FALSE))*1.5,IF(VLOOKUP($C4,'Indicateurs Cumulés'!$C$3:$HN$619,186,FALSE)/(VLOOKUP($C4,objectifs!$C$3:$ZZ$618,158,FALSE))<=-0.5,(VLOOKUP($C4,objectifs!$C$3:$ZZ$618,158,FALSE))*-0.5,VLOOKUP($C4,'Indicateurs Cumulés'!$C$3:$HN$619,186,FALSE)))) -> 279 | HP4: =SUMIFS([21]Feuil1!$C:$C,[21]Feuil1!$A:$A,C4) -> 0 | HR4: =IF(ISERROR(VLOOKUP($C4,[22]Feuil1!$O$10:$T$350,6,FALSE)),0,VLOOKUP($C4,[22]Feuil1!$O$10:$T$350,6,FALSE)) -> 7.1 | HT4: =IF(ISERROR((J4*K4*L4+F4*G4*H4+CU4+DC4)/((F4*L4+J4*L4))),0,(J4*K4*L4+F4*G4*H4+CU4+DC4)/((F4*L4+J4*L4))) -> 4.21% | HU4: =IF(ISERROR((N4*P4*Q4+CW4+CZ4+AG4)/(N4*Q4)),0,(N4*P4*Q4+CW4+CZ4+AG4)/(N4*Q4)) -> 0.07% | HV4: =IF(ISERROR((Y4*Z4*AA4+GN4*GO4*GP4+CQ4)/((Y4*AA4+GN4*GP4))),0,(Y4*Z4*AA4+GN4*GO4*GP4+CQ4+DG4)/((Y4*AA4+GN4*GP4))) -> 1.59% | HW4: =VLOOKUP($C4,[12]VN!$B$4:$AV$500,3,FALSE) -> -2 | HX4: =VLOOKUP($C4,[12]VN!$B$4:$AV$500,16,FALSE) -> -6 | HY4: =VLOOKUP($C4,[12]VN!$B$4:$AV$500,34,FALSE) -> -1 | HZ4: =VLOOKUP($C4,[12]VN!$B$4:$AV$500,14,FALSE) -> 5 | IA4: =VLOOKUP($C4,[12]VN!$B$4:$AV$500,32,FALSE)+VLOOKUP($C4,[12]VN!$B$4:$AV$500,17,FALSE) -> -3 | IB4: =VLOOKUP($C4,[12]VN!$B$4:$AV$500,11,FALSE) -> 3 | IC4: =VLOOKUP($C4,[12]VN!$B$4:$AV$500,15,FALSE) -> 0 | ID4: =VLOOKUP($C4,[12]VN!$B$4:$AV$361,39,FALSE)-KY4 -> 2 | IE4: =VLOOKUP($C4,[12]VN!$B$4:$AV$361,40,FALSE) -> -1 | IF4: =VLOOKUP($C4,[12]VN!$B$4:$AV$361,41,FALSE) -> -20 | IG4: =VLOOKUP($C4,[12]VN!$B$4:$AV$361,42,FALSE) -> 0 | IH4: =VLOOKUP($C4,[12]VN!$B$4:$AV$361,43,FALSE) -> 0 | II4: =VLOOKUP($C4,[12]VN!$B$4:$AV$361,45,FALSE) -> -1 | IJ4: =VLOOKUP($C4,[12]VN!$B$4:$AV$361,44,FALSE) -> 2 | IK4: =VLOOKUP($C4,[12]VN!$B$4:$AV$361,46,FALSE) -> -23 | IL4: =VLOOKUP($C4,[12]VN!$B$4:$AV$361,47,FALSE) -> 0 | IM4: =HW4*IM$3*HW$3/1000 -> -0 | IN4: =HX4*IN$3*HX$3/1000 -> -1 | IO4: -0 | IP4: 0 | IQ4: -0 | IR4: =IB4*IR$3*IB$3/1000 -> 0 | IS4: 0 | IT4: 1 | IU4: -0 | IV4: -12 | IW4: 0 | IX4: 0 | IY4: -1 | IZ4: 1 | JA4: -5 | JB4: 0 | JC4: =SUM(IM4:JB4)+BS4+BT4+GL4+JJ4+KW4+KZ4+LB4+CF4+CH4 -> -17 | JD4: =Y4*Z4*AA4+AD4+CS4+HR4+DG4+GQ4 -> 9 | JE4: =(SUMIFS('[23]CE GEE'!$S:$S,'[23]CE GEE'!$G:$G,C4)+SUMIFS([24]CEGEE!$H:$H,[24]CEGEE!$B:$B,C4))/1000 -> 0 | JF4: =+JE4*$JE$3 -> 0 | JG4: =IF(ISERROR((HW4*$IM$3+HX4*$IN$3+HY4*$IO$3+HZ4*$IP$3+IA4*$IQ$3+IB4*$IR$3+IC4*$IS$3+ID4*$IT$3+IE4*$IU$3+IF4*$IV$3+IG4*$IW$3+IH4*$IX$3+II4*$IY$3+IJ4*$IZ$3+IK4*$JA$3+IL4*$JB$3+JI4*$JJ$3+GK4*$GL$3+KY4*$KZ$3+LA4*$LB$3)/JF4),0,(HW4*$IM$3+HX4*$IN$3+HY4*$IO$3+HZ4*$IP$3+IA4*$IQ$3+IB4*$IR$3+IC4*$IS$3+ID4*$IT$3+IE4*$IU$3+IF4*$IV$3+IG4*$IW$3+IH4*$IX$3+II4*$IY$3+IJ4*$IZ$3+IK4*$JA$3+IL4*$JB$3+JI4*$JJ$3+GK4*$GL$3+KY4*$KZ$3+LA4*$LB$3)/JF4) -> 0.00 | JH4: =IF(ISERROR(JC4/(JF4*JG4)*1000),0,JC4/(JF4*JG4)*1000) -> 0.00 | JI4: =VLOOKUP($C4,[12]VN!$B$4:$AW$500,48,FALSE) -> 0 | JJ4: =JI4*JI$3*JJ$3/1000 -> 0 | JK4: =VLOOKUP($C4,[19]Import!$B$9:$ZZ$403,69,FALSE) -> 0 | JL4: =$ES$433 -> 0.20% | JM4: =VLOOKUP($C4,[19]Import!$B$9:$ZZ$403,71,FALSE) -> 0 | JO4: =VLOOKUP($C4,[19]Import!$B$9:$ZZ$403,73,FALSE) -> 15 | JP4: =VLOOKUP($C4,[19]Import!$B$9:$ZZ$403,29,FALSE) -> 45 | JQ4: =VLOOKUP($C4,[19]Import!$B$9:$ZZ$403,77,FALSE) -> 134 | JR4: =IF(ISERROR(IF(VLOOKUP($C4,'Indicateurs Cumulés'!$C$3:$HN$619,190,FALSE)/(VLOOKUP($C4,objectifs!$C$3:$ZZ$618,162,FALSE))>=1.5,(VLOOKUP($C4,objectifs!$C$3:$ZZ$618,162,FALSE))*1.5,IF(VLOOKUP($C4,'Indicateurs Cumulés'!$C$3:$HN$619,190,FALSE)/(VLOOKUP($C4,objectifs!$C$3:$ZZ$618,162,FALSE))<=-0.5,(VLOOKUP($C4,objectifs!$C$3:$ZZ$618,162,FALSE))*-0.5,VLOOKUP($C4,'Indicateurs Cumulés'!$C$3:$HN$619,190,FALSE)))),VLOOKUP($C4,'Indicateurs Cumulés'!$C$3:$HN$619,190,FALSE),IF(VLOOKUP($C4,'Indicateurs Cumulés'!$C$3:$HN$619,190,FALSE)/(VLOOKUP($C4,objectifs!$C$3:$ZZ$618,162,FALSE))>=1.5,(VLOOKUP($C4,objectifs!$C$3:$ZZ$618,162,FALSE))*1.5,IF(VLOOKUP($C4,'Indicateurs Cumulés'!$C$3:$HN$619,190,FALSE)/(VLOOKUP($C4,objectifs!$C$3:$ZZ$618,162,FALSE))<=-0.5,(VLOOKUP($C4,objectifs!$C$3:$ZZ$618,162,FALSE))*-0.5,VLOOKUP($C4,'Indicateurs Cumulés'!$C$3:$HN$619,190,FALSE)))) -> 86 | JS4: =JK4*$JK$3*$JS$3 -> 0 | JT4: =JM4*$JM$3*$JT$3 -> 0 | JV4: =JO4*$JO$3*$JV$3 -> 0 | JW4: =JP4*$JP$3*$JW$3 -> 2 | JX4: =JQ4*$JQ$3*$JX$3 -> 4 | JY4: =JR4*GG4*GH4*MONTH(E4)/12 -> 1 | JZ4: =JS4+JT4+JU4+JV4+JW4+JX4+JY4+KU4 -> 7 | KA4: =VLOOKUP($C4,[12]VN!$B$4:$ZZ$500,53,FALSE) -> 2 | KB4: =VLOOKUP($C4,[12]VN!$B$4:$ZZ$500,52,FALSE) -> 0 | KC4: =VLOOKUP($C4,[12]VN!$B$4:$ZZ$500,51,FALSE) -> 0 | KD4: =VLOOKUP($C4,[12]VN!$B$4:$ZZ$500,49,FALSE) -> 2 | KE4: =VLOOKUP($C4,[12]VN!$B$4:$ZZ$500,50,FALSE) -> 0 | KF4: =VLOOKUP($C4,[12]VN!$B$4:$ZZ$500,28,FALSE) -> 0 | KG4: =KA4*KG$3*KA$3/1000 -> 3 | KH4: =KB4*KH$3*KB$3/1000 -> 0 | KI4: 0 | KJ4: 0 | KK4: 0 | KL4: 0 | KM4: =SUM(KG4:KL4)+KN4+BZ4+CB4+CD4 -> 3 | KN4: =VLOOKUP($C4,[12]VN!$B$4:$ZZ$500,54,FALSE) -> -0 | KR4: =IF(ISERROR((HW4*$IM$3+HX4*$IN$3+HY4*$IO$3+HZ4*$IP$3+IA4*$IQ$3+IB4*$IR$3+IC4*$IS$3)/(SUM(HW4:IC4))),$KR$433,(HW4*$IM$3+HX4*$IN$3+HY4*$IO$3+HZ4*$IP$3+IA4*$IQ$3+IB4*$IR$3+IC4*$IS$3)/(SUM(HW4:IC4))) -> 0.98 | KS4: =SUM(KA4:KF4) -> 4 | KT4: =VLOOKUP($C4,[19]Import!$B$9:$ZZ$403,81,FALSE) -> -44 | KU4: =KT4*$KT$3*$KU$3 -> 0 | KV4: =VLOOKUP(C4,[12]VN!$B$4:$BH$500,59,FALSE) -> 5 | KW4: =KV4*$KW$3*$IZ$3/1000 -> 1 | KX4: =IF(ISERROR(VLOOKUP(C4,'[25]CFF BDD'!$B:$C,2,FALSE)),0,VLOOKUP(C4,'[25]CFF BDD'!$B:$C,2,FALSE)) -> 0 | KY4: =IH4+II4+IJ4 -> 1 | KZ4: =KY4*$KY$3*$KZ$3/1000 -> 1 | LA4: =VLOOKUP($C4,[12]VN!$B$4:$CC$500,60,FALSE) -> 0 | LB4: =LA4*$LA$3*$LB$3/1000 -> 0 | LC4: =(F4*G4*H4+J4*K4*L4+N4*P4*Q4+Y4*Z4*AA4+AB4+AD4+AG4+CS4+CU4+CZ4+DC4+DG4+GQ4+BU4+CJ4)*1+(GC4+GE4+(HO4*GG4*GH4)*(MONTH(E4))/12)*1+(HL4+HP4*$HP$3+JE4*$JE$3+KX4*$KX$3)*1+(SUM(IM4:JB4)+JJ4+GL4+KW4+KZ4+LB4+SUM(KG4:KL4)+BS4+BT4+BZ4+CB4+CD4+CF4+KN4+LF4+LH4+LJ4+CH4)*1 -> 63 | LD4: =(S4*T4*U4+V4*W4*X4+Y4*Z4*AA4+AD4+CS4+CT4+CV4+CO4+CP4+CR4+DG4+GQ4)+(SUM(JS4:JY4)+KU4)+(SUM(KG4:KL4)+KN4+BZ4+CB4+CD4)+(LF4+LH4+LJ4)+BX4 -> 16 | LE4: =VLOOKUP($C4,[12]VN!$B$4:$ZZ$500,65,FALSE) -> 2 | LF4: =LE4*$LE$3*$LF$3/1000 -> 1 | LG4: =VLOOKUP($C4,[12]VN!$B$4:$ZZ$500,66,FALSE) -> 0 | LH4: =LG4*$LG$3*$LH$3/1000 -> 0 | LI4: =VLOOKUP($C4,[12]VN!$B$4:$ZZ$500,67,FALSE) -> -2 | LJ4: =LI4*$LI$3*$LJ$3/1000 -> -0 | LK4: =LC4-KW4-BS4-BT4-CF4-CJ4 -> 63 | LL4: =+LK4/HR4 -> 8.9 | LM4: =(GC4+GE4)+(HO4*GG4*GH4*MONTH(E4)/12) -> 32 | LN4: =BJ4+BI4+BK4 -> 50 | LO4: =(HP4*$HP$3)+(KX4*$KX$3)+(JE4*$JE$3)+HL4 -> -7 | LP4: =LF4+LH4+LJ4 -> 1 | LQ4: =+LC4/HR4 -> 8.96 | LR4: =SUMIF([26]BAD!$B:$B,$C4,[26]BAD!$E:$E) -> 14 | LS4: =SUMIF([26]SED!$B:$B,$C4,[26]SED!$E:$E) -> 52 | LT4: =SUMIF([26]SAG!$B:$B,$C4,[26]SAG!$E:$E) -> 290 | LU4: =SUMIF([26]EDOC!$B:$B,$C4,[26]EDOC!$E:$E) -> -20 | LV4: =SUMIF([26]OPTIN!$B:$B,$C4,[26]OPTIN!$E:$E) -> 32 | LW4: =SUMIF([26]SECURPASS!$B:$B,$C4,[26]SECURPASS!$E:$E) -> 15 | LX4: =IF(LR4<0,0,LR4*$LR$3*$LX$3/1000) -> 1.1 | LY4: =IF(LS4<0,0,LS4*$LS$3*$LY$3/1000) -> 0.5 | LZ4: =IF(LT4<0,0,LT4*$LT$3*$LZ$3/1000) -> 0.9 | MA4: =IF(LU4<0,0,LU4*$LU$3*$MA$3/1000) -> 0.0 | MB4: =IF(LV4<0,0,LV4*$LV$3*$MB$3/1000) -> 0.5 | MC4: =IF(LW4<0,0,LW4*$LW$3*$MC$3/1000) -> 0.1 | MD4: =+LC4+SUM(LX4:MC4) -> 66
A5: 105007 | B5: 200262 | C5: 7 | D5: ILLKIRCH CENTRE | E5: =$E$3 -> 2019-02-28 | F5: =VLOOKUP($C5,'[7]bench cumul'!$A$3:$AH$633,'[7]bench cumul'!D$1,FALSE) -> 32 | G5: =VLOOKUP($C5,'[7]bench cumul'!$A$3:$AH$633,'[7]bench cumul'!E$1,FALSE) -> 4.32% | H5: =VLOOKUP($C5,'[7]bench cumul'!$A$3:$AH$633,'[7]bench cumul'!F$1,FALSE) -> 1.57 | I5: =VLOOKUP($C5,'[7]bench cumul'!$A$3:$AH$633,'[7]bench cumul'!G$1,FALSE) -> 2019-02-28 | J5: =VLOOKUP($C5,'[7]bench cumul'!$A$3:$AH$633,'[7]bench cumul'!H$1,FALSE) -> 478 | K5: =VLOOKUP($C5,'[7]bench cumul'!$A$3:$AH$633,'[7]bench cumul'!I$1,FALSE) -> 3.43% | L5: =VLOOKUP($C5,'[7]bench cumul'!$A$3:$AH$633,'[7]bench cumul'!J$1,FALSE) -> 2.71 | M5: =VLOOKUP($C5,'[7]bench cumul'!$A$3:$AH$633,'[7]bench cumul'!K$1,FALSE) -> 4.49 | N5: =VLOOKUP($C5,'[7]bench cumul'!$A$3:$AH$633,'[7]bench cumul'!L$1,FALSE) -> 2,124 | O5: =VLOOKUP($C5,'[7]bench cumul'!$A$3:$AH$633,'[7]bench cumul'!M$1,FALSE) -> 0 | P5: =VLOOKUP($C5,'[7]bench cumul'!$A$3:$AH$633,'[7]bench cumul'!N$1,FALSE) -> -0.27% | Q5: =VLOOKUP($C5,'[7]bench cumul'!$A$3:$AH$633,'[7]bench cumul'!O$1,FALSE) -> 5.89 | R5: =VLOOKUP($C5,'[7]bench cumul'!$A$3:$AH$633,'[7]bench cumul'!P$1,FALSE) -> 8.48 | S5: =VLOOKUP($C5,'[7]bench cumul'!$A$3:$AH$633,'[7]bench cumul'!Q$1,FALSE) -> 88 | T5: =VLOOKUP($C5,'[7]bench cumul'!$A$3:$AH$633,'[7]bench cumul'!R$1,FALSE) -> 3.34% | U5: =VLOOKUP($C5,'[7]bench cumul'!$A$3:$AH$633,'[7]bench cumul'!S$1,FALSE) -> 2.46 | V5: =VLOOKUP($C5,'[7]bench cumul'!$A$3:$AH$633,'[7]bench cumul'!T$1,FALSE) -> 223 | W5: =VLOOKUP($C5,'[7]bench cumul'!$A$3:$AH$633,'[7]bench cumul'!U$1,FALSE) -> -0.28% | X5: =VLOOKUP($C5,'[7]bench cumul'!$A$3:$AH$633,'[7]bench cumul'!V$1,FALSE) -> 7.49 | Y5: =VLOOKUP($C5,'[7]bench cumul'!$A$3:$AH$633,'[7]bench cumul'!W$1,FALSE) -> 45 | Z5: =VLOOKUP($C5,'[7]bench cumul'!$A$3:$AH$633,'[7]bench cumul'!X$1,FALSE) -> 1.13% | AA5: =VLOOKUP($C5,'[7]bench cumul'!$A$3:$AH$633,'[7]bench cumul'!Y$1,FALSE) -> 2.38 | AB5: =VLOOKUP($C5,'[7]bench cumul'!$A$3:$AH$633,'[7]bench cumul'!Z$1,FALSE) -> 3.4 | AC5: =VLOOKUP($C5,'[7]bench cumul'!$A$3:$AH$633,'[7]bench cumul'!AA$1,FALSE) -> 5.9 | AD5: =VLOOKUP($C5,'[7]bench cumul'!$A$3:$AH$633,'[7]bench cumul'!AB$1,FALSE) -> 0.3 | AE5: =VLOOKUP($C5,'[7]bench cumul'!$A$3:$AH$633,'[7]bench cumul'!AC$1,FALSE) -> 43.1 | AF5: =VLOOKUP($C5,'[7]bench cumul'!$A$3:$AH$633,'[7]bench cumul'!AD$1,FALSE) -> 8.3 | AG5: =VLOOKUP($C5,'[7]bench cumul'!$A$3:$AH$633,'[7]bench cumul'!AE$1,FALSE) -> 1.8 | AH5: =VLOOKUP($C5,'[8]Données Cumulées'!$A$1:$Z$65649,'[8]Données Cumulées'!C$1,FALSE) -> 201902 | AI5: =VLOOKUP($C5,'[8]Données Cumulées'!$A$1:$Z$65649,'[8]Données Cumulées'!D$1,FALSE) -> 0 | AJ5: =VLOOKUP($C5,'[8]Données Cumulées'!$A$1:$Z$65649,'[8]Données Cumulées'!E$1,FALSE) -> 0 | AK5: =IF(ISERROR(AJ5/AI5),0,AJ5/AI5) -> 0.00% | AL5: =VLOOKUP($C5,'[8]Données Cumulées'!$A$1:$Z$65649,'[8]Données Cumulées'!G$1,FALSE) -> 210.03 | AM5: =VLOOKUP($C5,'[8]Données Cumulées'!$A$1:$Z$65649,'[8]Données Cumulées'!H$1,FALSE) -> 44.39 | AN5: 21% | AO5: =VLOOKUP($C5,'[8]Données Cumulées'!$A$1:$Z$65649,'[8]Données Cumulées'!J$1,FALSE) -> 1.64 | AP5: 0.78% | AQ5: =VLOOKUP($C5,'[8]Données Cumulées'!$A$1:$Z$65649,'[8]Données Cumulées'!L$1,FALSE) -> 901.79 | AR5: =VLOOKUP($C5,'[8]Données Cumulées'!$A$1:$Z$65649,'[8]Données Cumulées'!M$1,FALSE) -> 161.45 | AS5: 17.9% | AT5: =VLOOKUP($C5,'[8]Données Cumulées'!$A$1:$Z$65649,'[8]Données Cumulées'!O$1,FALSE) -> 2.18 | AU5: 0.24% | AV5: =VLOOKUP($C5,'[8]Données Cumulées'!$A$1:$Z$65649,'[8]Données Cumulées'!Q$1,FALSE) -> 40.90 | AW5: =VLOOKUP($C5,'[8]Données Cumulées'!$A$1:$Z$65649,'[8]Données Cumulées'!R$1,FALSE) -> 1.97 | AX5: 4.83% | AY5: =VLOOKUP($C5,'[8]Données Cumulées'!$A$1:$Z$65649,'[8]Données Cumulées'!T$1,FALSE) -> 0.84 | AZ5: 2.07% | BA5: =VLOOKUP($C5,'[8]Données Cumulées'!$A$1:$Z$65649,'[8]Données Cumulées'!V$1,FALSE) -> 1,152.72 | BB5: =VLOOKUP($C5,'[8]Données Cumulées'!$A$1:$Z$65649,'[8]Données Cumulées'!W$1,FALSE) -> 207.82 | BC5: 18.0% | BD5: =VLOOKUP($C5,'[8]Données Cumulées'!$A$1:$Z$65649,'[8]Données Cumulées'!Y$1,FALSE) -> 4.66 | BE5: 0.40% | BG5: 10 | BH5: =(V5*W5*X5)+CP5+CR5+CV5 -> -4 | BI5: 62 | BJ5: 3 | BK5: 2 | BL5: =IF(ISERROR(VLOOKUP($D5,'[7]bench cumul'!$B$1:$AG$65598,'[7]bench cumul'!AF$1,FALSE)),P434,VLOOKUP($D5,'[7]bench cumul'!$B$1:$AG$65598,'[7]bench cumul'!AF$1,FALSE)) -> 1.35% | BM5: =IF(ISERROR(VLOOKUP($D5,'[7]bench cumul'!$B$1:$AG$65598,'[7]bench cumul'!AG$1,FALSE)),P434,VLOOKUP($D5,'[7]bench cumul'!$B$1:$AG$65598,'[7]bench cumul'!AG$1,FALSE)) -> 0.00% | BN5: 7 | BO5: =VLOOKUP(BN5,[9]Diversification_Epargne!$A:$L,12,FALSE)/1000 -> 78 | BP5: =BO5*$BO$3*$BP$3 -> 2 | BQ5: =VLOOKUP(BN5,[9]Diversification_Epargne!$A:$L,8,FALSE)/1000 -> 241 | BR5: =BQ5*$BQ$3*$BR$3 -> 7 | BS5: =HW5*$BS$3*$IT$3/1000 -> 2 | BT5: =HX5*$BT$3*$IT$3/1000 -> 1 | BU5: =-IF(ISERROR(VLOOKUP($C5,'[10]Commissions APAFF'!$B:$C,2,FALSE)),0,VLOOKUP($C5,'[10]Commissions APAFF'!$B:$C,2,FALSE)/1000) -> -2 | BX5: =-SUMIF([11]BDD!$H:$H,$C5,[11]BDD!$Q:$Q)/1000 -> 0 | BY5: =VLOOKUP($C5,[12]VN!$B$4:$BX$500,63,FALSE) -> 0 | BZ5: =BY5*$BY$3*$BZ$3/1000 -> 0 | CA5: =VLOOKUP($C5,[12]VN!$B$4:$BX$500,64,FALSE) -> 0 | CB5: =CA5*$CA$3*$CB$3/1000 -> 0 | CC5: =VLOOKUP($C5,[12]VN!$B$4:$BX$500,27,FALSE) -> -1 | CD5: =CC5*$CC$3*$CD$3/1000 -> -1 | CE5: =SUMIF([13]Feuil1!$B:$B,C5,[13]Feuil1!$E:$E) -> 10 | CF5: =+CE5*$CF$3/1000 -> 2.0 | CG5: =VLOOKUP($C5,[12]VN!$B$4:$BZ$361,68,FALSE) -> -8 | CH5: =(CG5*$CG$3*$CH$3)/1000 -> -2 | CI5: =SUMIF([14]Feuil1!$B:$B,C5,[14]Feuil1!$C:$C) -> 0 | CJ5: =CI5*$CJ$3/1000 -> 0 | CM5: =VLOOKUP($C5,'[15]GEE CUMUL PROS'!$A$5:$O$348,6,FALSE) -> 100.00% | CN5: =VLOOKUP($C5,'[15]GEE CUMUL PROS'!$A$5:$O$348,7,FALSE) -> 142.90% | CO5: =VLOOKUP($C5,'[15]GEE CUMUL PROS'!$A$5:$O$348,15,FALSE) -> 2 | CP5: =VLOOKUP($C5,'[16]Cumul immo PRO'!$A$4:$G$755,6,FALSE)/1000*$CP$3 -> 0 | CQ5: 0.3 | CR5: =VLOOKUP($C5,'[7]bench cumul'!$A$3:$AK$633,'[7]bench cumul'!AK$1,FALSE) -> 0 | CS5: =VLOOKUP(C5,'[17]pnb bdd'!$A$3:$K$481,11,FALSE) -> 0.00 | CT5: =VLOOKUP($C5,[18]Cumul!$A:$D,4,FALSE) -> 0 | CU5: =VLOOKUP(C5,[18]Cumul!$A:$E,5,FALSE) -> 2 | CV5: =VLOOKUP($C5,'[7]bench cumul'!$A$3:$AK$633,'[7]bench cumul'!AJ$1,FALSE) -> 0 | CW5: =+AB5 -> 3 | CX5: =VLOOKUP($C5,'[16]Cumul immo BDD'!$A$4:$G$755,4,FALSE) -> 25.15% | CY5: =VLOOKUP($C5,'[16]Cumul immo BDD'!$A$4:$G$755,5,FALSE) -> 186.79% | CZ5: =VLOOKUP($C5,'[16]Cumul immo BDD'!$A$4:$H$755,6,FALSE)/1000*$CZ$3 -> 31 | DA5: =VLOOKUP($C5,'[15]GEE CUMUL BDD'!$A$5:$O$348,6,FALSE) -> 98.33% | DB5: =VLOOKUP($C5,'[15]GEE CUMUL BDD'!$A$5:$O$348,7,FALSE) -> 161.02% | DC5: =VLOOKUP($C5,'[15]GEE CUMUL BDD'!$A$5:$O$348,15,FALSE) -> 13 | DE5: =VLOOKUP($C5,'[16]Cumul mlt tous M'!$A$4:$F$348,4,FALSE) -> 100.00% | DF5: =VLOOKUP($C5,'[16]Cumul mlt tous M'!$A$4:$F$348,5,FALSE) -> 100.00% | DG5: =VLOOKUP($C5,'[16]Cumul mlt tous M'!$A$4:$F$348,6,FALSE)/1000 -> 0 | DH5: =VLOOKUP($C5,[19]Import!$B$9:$BR$403,3,FALSE) -> -11 | DI5: 0.70% | DJ5: 5.33 | DK5: =DH5*DI5*DJ5 -> -0 | DL5: =VLOOKUP($C5,[19]Import!$B$9:$BR$403,5,FALSE) -> 281 | DM5: 0.73% | DN5: 5.33 | DO5: =DL5*DM5*DN5 -> 11 | DP5: =VLOOKUP($C5,[19]Import!$B$9:$BR$403,7,FALSE) -> -24 | DQ5: 0.84% | DR5: 5.33 | DS5: =DP5*DQ5*DR5 -> -1 | DT5: =VLOOKUP($C5,[19]Import!$B$9:$BR$403,9,FALSE) -> 43 | DU5: 0.63% | DV5: 5.33 | DW5: =DT5*DU5*DV5 -> 1 | DX5: =VLOOKUP($C5,[19]Import!$B$9:$BR$403,11,FALSE) -> -33 | DY5: 0.20% | DZ5: 5.37 | EA5: =DX5*DY5*DZ5 -> -0 | EB5: =VLOOKUP($C5,[19]Import!$B$9:$BR$403,13,FALSE) -> 33 | EC5: 0.20% | ED5: 5.37 | EE5: =EB5*EC5*ED5 -> 0 | EF5: =VLOOKUP($C5,[19]Import!$B$9:$BR$403,15,FALSE) -> -29 | EG5: 0.20% | EH5: 5.37 | EI5: =EF5*EG5*EH5 -> -0 | EJ5: =VLOOKUP($C5,[19]Import!$B$9:$BR$403,17,FALSE) -> -69 | EK5: 0.44% | EL5: 5.33 | EM5: =EJ5*EK5*EL5 -> -2 | EN5: =VLOOKUP($C5,[19]Import!$B$9:$BR$403,41,FALSE) -> -2 | EO5: 0.10% | EP5: =VLOOKUP($C5,[19]Import!$B$9:$CR$403,87,FALSE) -> 5.86 | EQ5: =EN5*EO5*EP5 -> -0 | ER5: =VLOOKUP($C5,[19]Import!$B$9:$BR$403,39,FALSE) -> -55 | ES5: 0.20% | ET5: 9.00 | EU5: =ER5*ES5*ET5 -> -1 | EV5: =VLOOKUP($C5,[19]Import!$B$9:$BR$403,43,FALSE) -> -170 | EW5: =EW434 -> 0.00% | EX5: =IF(VLOOKUP($C5,[19]Import!$B$9:$ZZ$403,89,FALSE)=0,$EX$3,VLOOKUP($C5,[19]Import!$B$9:$ZZ$403,89,FALSE)) -> 8.59 | EY5: =EV5*EW5*EX5 -> 0 | EZ5: =VLOOKUP($C5,[19]Import!$B$9:$BR$403,45,FALSE) -> 0 | FA5: -0.37% | FB5: 0.08 | FC5: =EZ5*FA5*FB5 -> 0 | FD5: =VLOOKUP($C5,[19]Import!$B$9:$BR$403,47,FALSE) -> 791 | FE5: 0.45% | FF5: 8.00 | FG5: =FD5*FE5*FF5 -> 28 | FH5: =VLOOKUP($C5,[19]Import!$B$9:$BR$403,49,FALSE) -> 1,444 | FI5: 0.40% | FJ5: 1.00 | FK5: =FH5*FI5*FJ5 -> 6 | FL5: =VLOOKUP($C5,[19]Import!$B$9:$BR$403,51,FALSE) -> -100 | FM5: 0.65% | FN5: 5.00 | FO5: =FL5*FM5*FN5 -> -3 | FP5: =VLOOKUP($C5,[19]Import!$B$9:$BR$403,53,FALSE) -> 21 | FQ5: 0.40% | FR5: 1.00 | FS5: =FP5*FQ5*FR5 -> 0 | FT5: =VLOOKUP($C5,[19]Import!$B$9:$BR$403,55,FALSE) -> -440 | FU5: 0.20% | FV5: 8.00 | FW5: =FT5*FU5*FV5 -> -7 | FX5: =VLOOKUP($C5,[19]Import!$B$9:$BR$403,57,FALSE) -> 126 | FY5: 1.00% | FZ5: 5.00 | GA5: =FX5*FY5*FZ5 -> 6 | GB5: -455 | GC5: 3 | GD5: =FD5+FL5+GR5+GZ5+HH5 -> 1,182 | GE5: 58 | GF5: =VLOOKUP($C5,[19]Import!$B$9:$BR$403,59,FALSE) -> -693 | GG5: 1.00% | GH5: 5.37 | GI5: =GF5*GG5*GH5 -> -37 | GJ5: =VLOOKUP($C5,[19]Import!$B$9:$ZZ$403,79,FALSE) -> -288 | GK5: =VLOOKUP(C5,[20]VN!$A:$E,5,FALSE) -> 0 | GL5: =GK5*$GK$3*$GL$3/1000 -> 0 | GN5: =VLOOKUP(C5,'[17]pnb bdd'!$A$3:$I$481,7,FALSE) -> 0 | GO5: =VLOOKUP(C5,'[17]pnb bdd'!$A$3:$I$481,9,FALSE) -> 0.00% | GP5: =VLOOKUP(C5,'[17]pnb bdd'!$A$3:$I$481,8,FALSE) -> 0 | GQ5: =GN5*GO5*GP5 -> 0 | GR5: =VLOOKUP(C5,[19]Import!$B$9:$DB$403,91,FALSE)+VLOOKUP(C5,[19]Import!$B$9:$DB$403,93,FALSE) -> 600 | GS5: 0.45% | GT5: 8.00 | GU5: =GR5*GS5*GT5 -> 22 | GV5: =VLOOKUP(C5,[19]Import!$B$9:$DB$403,99,FALSE)+VLOOKUP(C5,[19]Import!$B$9:$DB$403,101,FALSE) -> 600 | GW5: =FI5 -> 0.40% | GX5: 1.00 | GY5: =GV5*GW5*GX5 -> 2 | GZ5: =VLOOKUP(C5,[19]Import!$B$9:$DB$403,95,FALSE)+VLOOKUP(C5,[19]Import!$B$9:$DB$403,97,FALSE) -> 0 | HA5: 0.65% | HB5: 5.00 | HC5: =GZ5*HA5*HB5 -> 0 | HD5: =VLOOKUP(C5,[19]Import!$B$9:$DB$403,103,FALSE)+VLOOKUP(C5,[19]Import!$B$9:$DB$403,105,FALSE) -> 0 | HE5: =FQ5 -> 0.40% | HF5: 1.00 | HG5: 0 | HH5: =VLOOKUP(C5,[19]Import!$B$9:$DD$403,107,FALSE) -> -110 | HI5: 1.00% | HJ5: 5.00 | HK5: -5 | HL5: =-SUMIF([11]BDD!$F:$F,$C5,[11]BDD!$N:$N)/1000 -> -9 | HM5: =SUMIF([11]BDD!$F:$F,$C5,[11]BDD!$H:$H)/1000 -> 106 | HO5: =IF(ISERROR(IF(VLOOKUP($C5,'Indicateurs Cumulés'!$C$3:$HN$619,186,FALSE)/(VLOOKUP($C5,objectifs!$C$3:$ZZ$618,158,FALSE))>=1.5,(VLOOKUP($C5,objectifs!$C$3:$ZZ$618,158,FALSE))*1.5,IF(VLOOKUP($C5,'Indicateurs Cumulés'!$C$3:$HN$619,186,FALSE)/(VLOOKUP($C5,objectifs!$C$3:$ZZ$618,158,FALSE))<=-0.5,(VLOOKUP($C5,objectifs!$C$3:$ZZ$618,158,FALSE))*-0.5,VLOOKUP($C5,'Indicateurs Cumulés'!$C$3:$HN$619,186,FALSE)))),VLOOKUP($C5,'Indicateurs Cumulés'!$C$3:$HN$619,186,FALSE),IF(VLOOKUP($C5,'Indicateurs Cumulés'!$C$3:$HN$619,186,FALSE)/(VLOOKUP($C5,objectifs!$C$3:$ZZ$618,158,FALSE))>=1.5,(VLOOKUP($C5,objectifs!$C$3:$ZZ$618,158,FALSE))*1.5,IF(VLOOKUP($C5,'Indicateurs Cumulés'!$C$3:$HN$619,186,FALSE)/(VLOOKUP($C5,objectifs!$C$3:$ZZ$618,158,FALSE))<=-0.5,(VLOOKUP($C5,objectifs!$C$3:$ZZ$618,158,FALSE))*-0.5,VLOOKUP($C5,'Indicateurs Cumulés'!$C$3:$HN$619,186,FALSE)))) -> -362 | HP5: =SUMIFS([21]Feuil1!$C:$C,[21]Feuil1!$A:$A,C5) -> 0 | HR5: =IF(ISERROR(VLOOKUP($C5,[22]Feuil1!$O$10:$T$350,6,FALSE)),0,VLOOKUP($C5,[22]Feuil1!$O$10:$T$350,6,FALSE)) -> 7.4 | HT5: 4.46% | HU5: 0.03% | HV5: 1.54% | HW5: =VLOOKUP($C5,[12]VN!$B$4:$AV$500,3,FALSE) -> 8 | HX5: =VLOOKUP($C5,[12]VN!$B$4:$AV$500,16,FALSE) -> 5 | HY5: =VLOOKUP($C5,[12]VN!$B$4:$AV$500,34,FALSE) -> -6 | HZ5: =VLOOKUP($C5,[12]VN!$B$4:$AV$500,14,FALSE) -> -2 | IA5: =VLOOKUP($C5,[12]VN!$B$4:$AV$500,32,FALSE)+VLOOKUP($C5,[12]VN!$B$4:$AV$500,17,FALSE) -> -9 | IB5: =VLOOKUP($C5,[12]VN!$B$4:$AV$500,11,FALSE) -> 8 | IC5: =VLOOKUP($C5,[12]VN!$B$4:$AV$500,15,FALSE) -> 1 | ID5: =VLOOKUP($C5,[12]VN!$B$4:$AV$361,39,FALSE)-KY5 -> -6 | IE5: =VLOOKUP($C5,[12]VN!$B$4:$AV$361,40,FALSE) -> 0 | IF5: =VLOOKUP($C5,[12]VN!$B$4:$AV$361,41,FALSE) -> -20 | IG5: =VLOOKUP($C5,[12]VN!$B$4:$AV$361,42,FALSE) -> -6 | IH5: =VLOOKUP($C5,[12]VN!$B$4:$AV$361,43,FALSE) -> 2 | II5: =VLOOKUP($C5,[12]VN!$B$4:$AV$361,45,FALSE) -> -1 | IJ5: =VLOOKUP($C5,[12]VN!$B$4:$AV$361,44,FALSE) -> 4 | IK5: =VLOOKUP($C5,[12]VN!$B$4:$AV$361,46,FALSE) -> -39 | IL5: =VLOOKUP($C5,[12]VN!$B$4:$AV$361,47,FALSE) -> -4 | IM5: =HW5*IM$3*HW$3/1000 -> 1 | IN5: =HX5*IN$3*HX$3/1000 -> 0 | IO5: =HY5*IO$3*HY$3/1000 -> -2 | IP5: =HZ5*IP$3*HZ$3/1000 -> -0 | IQ5: =IA5*IQ$3*IA$3/1000 -> -0 | IR5: =IB5*IR$3*IB$3/1000 -> 1 | IS5: =IC5*IS$3*IC$3/1000 -> 0 | IT5: =ID5*IT$3*ID$3/1000 -> -3 | IU5: =IE5*IU$3*IE$3/1000 -> 0 | IV5: =IF5*IV$3*IF$3/1000 -> -12 | IW5: =IG5*IW$3*IG$3/1000 -> -6 | IX5: =IH5*IX$3*IH$3/1000 -> 3 | IY5: =II5*IY$3*II$3/1000 -> -1 | IZ5: =IJ5*IZ$3*IJ$3/1000 -> 3 | JA5: =IK5*JA$3*IK$3/1000 -> -8 | JB5: =IL5*JB$3*IL$3/1000 -> -0 | JC5: -17 | JD5: =GQ5+Y5*Z5*AA5+AD5+CS5+HR5+DG5 -> 9 | JE5: =(SUMIFS('[23]CE GEE'!$S:$S,'[23]CE GEE'!$G:$G,C5)+SUMIFS([24]CEGEE!$H:$H,[24]CEGEE!$B:$B,C5))/1000 -> 0 | JF5: =SUM(HW5:IL5)+JI5+GK5+KY5+LA5 -> -60 | JG5: =IF(ISERROR((HW5*$IM$3+HX5*$IN$3+HY5*$IO$3+HZ5*$IP$3+IA5*$IQ$3+IB5*$IR$3+IC5*$IS$3+ID5*$IT$3+IE5*$IU$3+IF5*$IV$3+IG5*$IW$3+IH5*$IX$3+II5*$IY$3+IJ5*$IZ$3+IK5*$JA$3+IL5*$JB$3+JI5*$JJ$3+GK5*$GL$3+KY5*$KZ$3+LA5*$LB$3)/JF5),0,(HW5*$IM$3+HX5*$IN$3+HY5*$IO$3+HZ5*$IP$3+IA5*$IQ$3+IB5*$IR$3+IC5*$IS$3+ID5*$IT$3+IE5*$IU$3+IF5*$IV$3+IG5*$IW$3+IH5*$IX$3+II5*$IY$3+IJ5*$IZ$3+IK5*$JA$3+IL5*$JB$3+JI5*$JJ$3+GK5*$GL$3+KY5*$KZ$3+LA5*$LB$3)/JF5) -> 5.19 | JH5: =IF(ISERROR(JC5/(JF5*JG5)*1000),0,JC5/(JF5*JG5)*1000) -> 53.41 | JI5: =VLOOKUP($C5,[12]VN!$B$4:$AW$500,48,FALSE) -> 0 | JJ5: =JI5*JI$3*JJ$3/1000 -> 0 | JK5: =VLOOKUP($C5,[19]Import!$B$9:$ZZ$403,69,FALSE) -> 0 | JL5: =$ES$433 -> 0.20% | JM5: =VLOOKUP($C5,[19]Import!$B$9:$ZZ$403,71,FALSE) -> 15 | JO5: =VLOOKUP($C5,[19]Import!$B$9:$ZZ$403,73,FALSE) -> 6 | JP5: =VLOOKUP($C5,[19]Import!$B$9:$ZZ$403,29,FALSE) -> -106 | JQ5: =VLOOKUP($C5,[19]Import!$B$9:$ZZ$403,77,FALSE) -> 15 | JR5: =IF(ISERROR(IF(VLOOKUP($C5,'Indicateurs Cumulés'!$C$3:$HN$619,190,FALSE)/(VLOOKUP($C5,objectifs!$C$3:$ZZ$618,162,FALSE))>=1.5,(VLOOKUP($C5,objectifs!$C$3:$ZZ$618,162,FALSE))*1.5,IF(VLOOKUP($C5,'Indicateurs Cumulés'!$C$3:$HN$619,190,FALSE)/(VLOOKUP($C5,objectifs!$C$3:$ZZ$618,162,FALSE))<=-0.5,(VLOOKUP($C5,objectifs!$C$3:$ZZ$618,162,FALSE))*-0.5,VLOOKUP($C5,'Indicateurs Cumulés'!$C$3:$HN$619,190,FALSE)))),VLOOKUP($C5,'Indicateurs Cumulés'!$C$3:$HN$619,190,FALSE),IF(VLOOKUP($C5,'Indicateurs Cumulés'!$C$3:$HN$619,190,FALSE)/(VLOOKUP($C5,objectifs!$C$3:$ZZ$618,162,FALSE))>=1.5,(VLOOKUP($C5,objectifs!$C$3:$ZZ$618,162,FALSE))*1.5,IF(VLOOKUP($C5,'Indicateurs Cumulés'!$C$3:$HN$619,190,FALSE)/(VLOOKUP($C5,objectifs!$C$3:$ZZ$618,162,FALSE))<=-0.5,(VLOOKUP($C5,objectifs!$C$3:$ZZ$618,162,FALSE))*-0.5,VLOOKUP($C5,'Indicateurs Cumulés'!$C$3:$HN$619,190,FALSE)))) -> -52 | JS5: =JK5*$JK$3*$JS$3 -> 0 | JT5: =JM5*$JM$3*$JT$3 -> 1 | JV5: =JO5*$JO$3*$JV$3 -> 0 | JW5: =JP5*$JP$3*$JW$3 -> -4 | JX5: =JQ5*$JQ$3*$JX$3 -> 0 | JY5: -0 | JZ5: =JS5+JT5+JU5+JV5+JW5+JX5+JY5+KU5 -> -3 | KA5: =VLOOKUP($C5,[12]VN!$B$4:$ZZ$500,53,FALSE) -> 1 | KB5: =VLOOKUP($C5,[12]VN!$B$4:$ZZ$500,52,FALSE) -> -2 | KC5: =VLOOKUP($C5,[12]VN!$B$4:$ZZ$500,51,FALSE) -> 0 | KD5: =VLOOKUP($C5,[12]VN!$B$4:$ZZ$500,49,FALSE) -> 0 | KE5: =VLOOKUP($C5,[12]VN!$B$4:$ZZ$500,50,FALSE) -> 1 | KF5: =VLOOKUP($C5,[12]VN!$B$4:$ZZ$500,28,FALSE) -> 0 | KG5: =KA5*KG$3*KA$3/1000 -> 1 | KH5: =KB5*KH$3*KB$3/1000 -> -2 | KI5: =KC5*KI$3*KC$3/1000 -> 0 | KJ5: =KD5*KJ$3*KD$3/1000 -> 0 | KK5: =KE5*KK$3*KE$3/1000 -> 1 | KL5: =KF5*KL$3*KF$3/1000 -> 0 | KM5: =SUM(KG5:KL5)+KN5+BZ5+CB5+CD5 -> -0 | KN5: =VLOOKUP($C5,[12]VN!$B$4:$ZZ$500,54,FALSE) -> 0 | KR5: 2.74 | KS5: =SUM(KA5:KF5) -> 0 | KT5: =VLOOKUP($C5,[19]Import!$B$9:$ZZ$403,81,FALSE) -> 1 | KU5: =KT5*$KT$3*$KU$3 -> 0 | KV5: =VLOOKUP(C5,[12]VN!$B$4:$BH$500,59,FALSE) -> 9 | KW5: =KV5*$KW$3*$IZ$3/1000 -> 2 | KX5: =IF(ISERROR(VLOOKUP(C5,'[25]CFF BDD'!$B:$C,2,FALSE)),0,VLOOKUP(C5,'[25]CFF BDD'!$B:$C,2,FALSE)) -> 0 | KY5: =IH5+II5+IJ5 -> 5 | KZ5: =KY5*$KY$3*$KZ$3/1000 -> 3 | LA5: =VLOOKUP($C5,[12]VN!$B$4:$CC$500,60,FALSE) -> 0 | LB5: =LA5*$LA$3*$LB$3/1000 -> 0 | LC5: =(F5*G5*H5+J5*K5*L5+N5*P5*Q5+Y5*Z5*AA5+AB5+AD5+AG5+CS5+CU5+CZ5+DC5+DG5+GQ5+BU5+CJ5)*1+(GC5+GE5+(HO5*GG5*GH5)*(MONTH(E5))/12)*1+(HL5+HP5*$HP$3+JE5*$JE$3+KX5*$KX$3)*1+(SUM(IM5:JB5)+JJ5+GL5+KW5+KZ5+LB5+SUM(KG5:KL5)+BS5+BT5+BZ5+CB5+CD5+CF5+KN5+LF5+LH5+LJ5+CH5)*1 -> 106 | LD5: 13 | LE5: =VLOOKUP($C5,[12]VN!$B$4:$ZZ$500,65,FALSE) -> 3 | LF5: =LE5*$LE$3*$LF$3/1000 -> 2 | LG5: =VLOOKUP($C5,[12]VN!$B$4:$ZZ$500,66,FALSE) -> 5 | LH5: =LG5*$LG$3*$LH$3/1000 -> 7 | LI5: =VLOOKUP($C5,[12]VN!$B$4:$ZZ$500,67,FALSE) -> -2 | LJ5: =LI5*$LI$3*$LJ$3/1000 -> -0 | LK5: =LC5-KW5-BS5-BT5-CF5-CJ5 -> 99 | LL5: =+LK5/HR5 -> 13.5 | LM5: 58 | LN5: 67 | LO5: -9 | LP5: =LF5+LH5+LJ5 -> 9 | LQ5: =+LC5/HR5 -> 14.35 | LR5: =SUMIF([26]BAD!$B:$B,$C5,[26]BAD!$E:$E) -> 38 | LS5: =SUMIF([26]SED!$B:$B,$C5,[26]SED!$E:$E) -> 27 | LT5: =SUMIF([26]SAG!$B:$B,$C5,[26]SAG!$E:$E) -> 314 | LU5: =SUMIF([26]EDOC!$B:$B,$C5,[26]EDOC!$E:$E) -> 0 | LV5: =SUMIF([26]OPTIN!$B:$B,$C5,[26]OPTIN!$E:$E) -> 27 | LW5: =SUMIF([26]SECURPASS!$B:$B,$C5,[26]SECURPASS!$E:$E) -> 2 | LX5: =IF(LR5<0,0,LR5*$LR$3*$LX$3/1000) -> 2.9 | LY5: =IF(LS5<0,0,LS5*$LS$3*$LY$3/1000) -> 0.3 | LZ5: =IF(LT5<0,0,LT5*$LT$3*$LZ$3/1000) -> 0.9 | MA5: =IF(LU5<0,0,LU5*$LU$3*$MA$3/1000) -> 0.0 | MB5: =IF(LV5<0,0,LV5*$LV$3*$MB$3/1000) -> 0.4 | MC5: =IF(LW5<0,0,LW5*$LW$3*$MC$3/1000) -> 0.0 | MD5: =+LC5+SUM(LX5:MC5) -> 110
A6: 105007 | B6: 200262 | C6: 8 | D6: FEGERSHEIM | E6: 2019-02-28 | F6: =VLOOKUP($C6,'[7]bench cumul'!$A$3:$AH$633,'[7]bench cumul'!D$1,FALSE) -> 13 | G6: =VLOOKUP($C6,'[7]bench cumul'!$A$3:$AH$633,'[7]bench cumul'!E$1,FALSE) -> 4.32% | H6: =VLOOKUP($C6,'[7]bench cumul'!$A$3:$AH$633,'[7]bench cumul'!F$1,FALSE) -> 1.57 | I6: =VLOOKUP($C6,'[7]bench cumul'!$A$3:$AH$633,'[7]bench cumul'!G$1,FALSE) -> 2019-02-28 | J6: =VLOOKUP($C6,'[7]bench cumul'!$A$3:$AH$633,'[7]bench cumul'!H$1,FALSE) -> 225 | K6: =VLOOKUP($C6,'[7]bench cumul'!$A$3:$AH$633,'[7]bench cumul'!I$1,FALSE) -> 0.85% | L6: =VLOOKUP($C6,'[7]bench cumul'!$A$3:$AH$633,'[7]bench cumul'!J$1,FALSE) -> 3.40 | M6: =VLOOKUP($C6,'[7]bench cumul'!$A$3:$AH$633,'[7]bench cumul'!K$1,FALSE) -> 4.35 | N6: =VLOOKUP($C6,'[7]bench cumul'!$A$3:$AH$633,'[7]bench cumul'!L$1,FALSE) -> 735 | O6: =VLOOKUP($C6,'[7]bench cumul'!$A$3:$AH$633,'[7]bench cumul'!M$1,FALSE) -> 0 | P6: =VLOOKUP($C6,'[7]bench cumul'!$A$3:$AH$633,'[7]bench cumul'!N$1,FALSE) -> -0.20% | Q6: =VLOOKUP($C6,'[7]bench cumul'!$A$3:$AH$633,'[7]bench cumul'!O$1,FALSE) -> 8.22 | R6: =VLOOKUP($C6,'[7]bench cumul'!$A$3:$AH$633,'[7]bench cumul'!P$1,FALSE) -> 12.36 | S6: =VLOOKUP($C6,'[7]bench cumul'!$A$3:$AH$633,'[7]bench cumul'!Q$1,FALSE) -> 107 | T6: =VLOOKUP($C6,'[7]bench cumul'!$A$3:$AH$633,'[7]bench cumul'!R$1,FALSE) -> 2.32% | U6: =VLOOKUP($C6,'[7]bench cumul'!$A$3:$AH$633,'[7]bench cumul'!S$1,FALSE) -> 2.49 | V6: =VLOOKUP($C6,'[7]bench cumul'!$A$3:$AH$633,'[7]bench cumul'!T$1,FALSE) -> 91 | W6: =VLOOKUP($C6,'[7]bench cumul'!$A$3:$AH$633,'[7]bench cumul'!U$1,FALSE) -> -0.36% | X6: =VLOOKUP($C6,'[7]bench cumul'!$A$3:$AH$633,'[7]bench cumul'!V$1,FALSE) -> 7.56 | Y6: =VLOOKUP($C6,'[7]bench cumul'!$A$3:$AH$633,'[7]bench cumul'!W$1,FALSE) -> 5 | Z6: =VLOOKUP($C6,'[7]bench cumul'!$A$3:$AH$633,'[7]bench cumul'!X$1,FALSE) -> 1.27% | AA6: =VLOOKUP($C6,'[7]bench cumul'!$A$3:$AH$633,'[7]bench cumul'!Y$1,FALSE) -> 1.48 | AB6: =VLOOKUP($C6,'[7]bench cumul'!$A$3:$AH$633,'[7]bench cumul'!Z$1,FALSE) -> 3.0 | AC6: =VLOOKUP($C6,'[7]bench cumul'!$A$3:$AH$633,'[7]bench cumul'!AA$1,FALSE) -> 6.8 | AD6: =VLOOKUP($C6,'[7]bench cumul'!$A$3:$AH$633,'[7]bench cumul'!AB$1,FALSE) -> 0.2 | AE6: =VLOOKUP($C6,'[7]bench cumul'!$A$3:$AH$633,'[7]bench cumul'!AC$1,FALSE) -> 24.1 | AF6: =VLOOKUP($C6,'[7]bench cumul'!$A$3:$AH$633,'[7]bench cumul'!AD$1,FALSE) -> 18.9 | AG6: =VLOOKUP($C6,'[7]bench cumul'!$A$3:$AH$633,'[7]bench cumul'!AE$1,FALSE) -> 1.8 | AH6: =VLOOKUP($C6,'[8]Données Cumulées'!$A$1:$Z$65649,'[8]Données Cumulées'!C$1,FALSE) -> 201902 | AI6: =VLOOKUP($C6,'[8]Données Cumulées'!$A$1:$Z$65649,'[8]Données Cumulées'!D$1,FALSE) -> 0 | AJ6: =VLOOKUP($C6,'[8]Données Cumulées'!$A$1:$Z$65649,'[8]Données Cumulées'!E$1,FALSE) -> 0 | AK6: 0.00% | AL6: =VLOOKUP($C6,'[8]Données Cumulées'!$A$1:$Z$65649,'[8]Données Cumulées'!G$1,FALSE) -> 110.11 | AM6: =VLOOKUP($C6,'[8]Données Cumulées'!$A$1:$Z$65649,'[8]Données Cumulées'!H$1,FALSE) -> 24.02 | AN6: 22% | AO6: =VLOOKUP($C6,'[8]Données Cumulées'!$A$1:$Z$65649,'[8]Données Cumulées'!J$1,FALSE) -> 0.79 | AP6: 0.72% | AQ6: =VLOOKUP($C6,'[8]Données Cumulées'!$A$1:$Z$65649,'[8]Données Cumulées'!L$1,FALSE) -> 107.81 | AR6: =VLOOKUP($C6,'[8]Données Cumulées'!$A$1:$Z$65649,'[8]Données Cumulées'!M$1,FALSE) -> 18.50 | AS6: 17.2% | AT6: =VLOOKUP($C6,'[8]Données Cumulées'!$A$1:$Z$65649,'[8]Données Cumulées'!O$1,FALSE) -> 0.28 | AU6: 0.26% | AV6: =VLOOKUP($C6,'[8]Données Cumulées'!$A$1:$Z$65649,'[8]Données Cumulées'!Q$1,FALSE) -> 14.06 | AW6: =VLOOKUP($C6,'[8]Données Cumulées'!$A$1:$Z$65649,'[8]Données Cumulées'!R$1,FALSE) -> 0.79 | AX6: 5.59% | AY6: =VLOOKUP($C6,'[8]Données Cumulées'!$A$1:$Z$65649,'[8]Données Cumulées'!T$1,FALSE) -> 0.23 | AZ6: 1.64% | BA6: =VLOOKUP($C6,'[8]Données Cumulées'!$A$1:$Z$65649,'[8]Données Cumulées'!V$1,FALSE) -> 233.58 | BB6: =VLOOKUP($C6,'[8]Données Cumulées'!$A$1:$Z$65649,'[8]Données Cumulées'!W$1,FALSE) -> 43.31 | BC6: 18.5% | BD6: =VLOOKUP($C6,'[8]Données Cumulées'!$A$1:$Z$65649,'[8]Données Cumulées'!Y$1,FALSE) -> 1.34 | BE6: 0.57% | BG6: 8 | BH6: -2 | BI6: 12 | BJ6: 20 | BK6: 1 | BL6: =IF(ISERROR(VLOOKUP($D6,'[7]bench cumul'!$B$1:$AG$65598,'[7]bench cumul'!AF$1,FALSE)),P435,VLOOKUP($D6,'[7]bench cumul'!$B$1:$AG$65598,'[7]bench cumul'!AF$1,FALSE)) -> 1.70% | BM6: =IF(ISERROR(VLOOKUP($D6,'[7]bench cumul'!$B$1:$AG$65598,'[7]bench cumul'!AG$1,FALSE)),P435,VLOOKUP($D6,'[7]bench cumul'!$B$1:$AG$65598,'[7]bench cumul'!AG$1,FALSE)) -> 0.00% | BN6: 8 | BO6: =VLOOKUP(BN6,[9]Diversification_Epargne!$A:$L,12,FALSE)/1000 -> 42 | BP6: 1 | BQ6: =VLOOKUP(BN6,[9]Diversification_Epargne!$A:$L,8,FALSE)/1000 -> 77 | BR6: 2 | BS6: -0 | BT6: 1 | BU6: =-IF(ISERROR(VLOOKUP($C6,'[10]Commissions APAFF'!$B:$C,2,FALSE)),0,VLOOKUP($C6,'[10]Commissions APAFF'!$B:$C,2,FALSE)/1000) -> 0 | BX6: =-SUMIF([11]BDD!$H:$H,$C6,[11]BDD!$Q:$Q)/1000 -> 0 | BY6: =VLOOKUP($C6,[12]VN!$B$4:$BX$500,63,FALSE) -> 0 | BZ6: 0 | CA6: =VLOOKUP($C6,[12]VN!$B$4:$BX$500,64,FALSE) -> 1 | CB6: 0 | CC6: =VLOOKUP($C6,[12]VN!$B$4:$BX$500,27,FALSE) -> -3 | CD6: -2 | CE6: =SUMIF([13]Feuil1!$B:$B,C6,[13]Feuil1!$E:$E) -> 1 | CF6: 0.2 | CG6: =VLOOKUP($C6,[12]VN!$B$4:$BZ$361,68,FALSE) -> 1 | CH6: 0 | CI6: =SUMIF([14]Feuil1!$B:$B,C6,[14]Feuil1!$C:$C) -> 0 | CJ6: 0 | CM6: =VLOOKUP($C6,'[15]GEE CUMUL PROS'!$A$5:$O$348,6,FALSE) -> 100.00% | CN6: =VLOOKUP($C6,'[15]GEE CUMUL PROS'!$A$5:$O$348,7,FALSE) -> 81.31% | CO6: =VLOOKUP($C6,'[15]GEE CUMUL PROS'!$A$5:$O$348,15,FALSE) -> 1 | CP6: =VLOOKUP($C6,'[16]Cumul immo PRO'!$A$4:$G$755,6,FALSE)/1000*$CP$3 -> 0 | CQ6: 0.2 | CR6: =VLOOKUP($C6,'[7]bench cumul'!$A$3:$AK$633,'[7]bench cumul'!AK$1,FALSE) -> 0 | CS6: =VLOOKUP(C6,'[17]pnb bdd'!$A$3:$K$481,11,FALSE) -> 0.20 | CT6: =VLOOKUP($C6,[18]Cumul!$A:$D,4,FALSE) -> 1 | CU6: =VLOOKUP(C6,[18]Cumul!$A:$E,5,FALSE) -> 1 | CV6: =VLOOKUP($C6,'[7]bench cumul'!$A$3:$AK$633,'[7]bench cumul'!AJ$1,FALSE) -> 0 | CW6: 3 | CX6: =VLOOKUP($C6,'[16]Cumul immo BDD'!$A$4:$G$755,4,FALSE) -> 89.49% | CY6: =VLOOKUP($C6,'[16]Cumul immo BDD'!$A$4:$G$755,5,FALSE) -> 152.66% | CZ6: =VLOOKUP($C6,'[16]Cumul immo BDD'!$A$4:$H$755,6,FALSE)/1000*$CZ$3 -> 27 | DA6: =VLOOKUP($C6,'[15]GEE CUMUL BDD'!$A$5:$O$348,6,FALSE) -> 100.67% | DB6: =VLOOKUP($C6,'[15]GEE CUMUL BDD'!$A$5:$O$348,7,FALSE) -> 91.62% | DC6: =VLOOKUP($C6,'[15]GEE CUMUL BDD'!$A$5:$O$348,15,FALSE) -> 3 | DE6: =VLOOKUP($C6,'[16]Cumul mlt tous M'!$A$4:$F$348,4,FALSE) -> 75.00% | DF6: =VLOOKUP($C6,'[16]Cumul mlt tous M'!$A$4:$F$348,5,FALSE) -> 100.00% | DG6: =VLOOKUP($C6,'[16]Cumul mlt tous M'!$A$4:$F$348,6,FALSE)/1000 -> 0 | DH6: =VLOOKUP($C6,[19]Import!$B$9:$BR$403,3,FALSE) -> 65 | DI6: 0.70% | DJ6: 5.33 | DK6: 2 | DL6: =VLOOKUP($C6,[19]Import!$B$9:$BR$403,5,FALSE) -> -94 | DM6: 0.73% | DN6: 5.33 | DO6: -4 | DP6: =VLOOKUP($C6,[19]Import!$B$9:$BR$403,7,FALSE) -> -13 | DQ6: 0.84% | DR6: 5.33 | DS6: -1 | DT6: =VLOOKUP($C6,[19]Import!$B$9:$BR$403,9,FALSE) -> 338 | DU6: 0.63% | DV6: 5.33 | DW6: 11 | DX6: =VLOOKUP($C6,[19]Import!$B$9:$BR$403,11,FALSE) -> -30 | DY6: 0.20% | DZ6: 5.37 | EA6: -0 | EB6: =VLOOKUP($C6,[19]Import!$B$9:$BR$403,13,FALSE) -> 3 | EC6: 0.20% | ED6: 5.37 | EE6: 0 | EF6: =VLOOKUP($C6,[19]Import!$B$9:$BR$403,15,FALSE) -> -26 | EG6: 0.20% | EH6: 5.37 | EI6: -0 | EJ6: =VLOOKUP($C6,[19]Import!$B$9:$BR$403,17,FALSE) -> 15 | EK6: 0.44% | EL6: 5.33 | EM6: 0 | EN6: =VLOOKUP($C6,[19]Import!$B$9:$BR$403,41,FALSE) -> -1 | EO6: 0.10% | EP6: =VLOOKUP($C6,[19]Import!$B$9:$CR$403,87,FALSE) -> 5.33 | EQ6: -0 | ER6: =VLOOKUP($C6,[19]Import!$B$9:$BR$403,39,FALSE) -> -122 | ES6: 0.20% | ET6: 9.00 | EU6: -2 | EV6: =VLOOKUP($C6,[19]Import!$B$9:$BR$403,43,FALSE) -> 196 | EW6: 0.00% | EX6: =IF(VLOOKUP($C6,[19]Import!$B$9:$ZZ$403,89,FALSE)=0,$EX$3,VLOOKUP($C6,[19]Import!$B$9:$ZZ$403,89,FALSE)) -> 8.59 | EY6: 0 | EZ6: =VLOOKUP($C6,[19]Import!$B$9:$BR$403,45,FALSE) -> 0 | FA6: -0.37% | FB6: 0.08 | FC6: 0 | FD6: =VLOOKUP($C6,[19]Import!$B$9:$BR$403,47,FALSE) -> 57 | FE6: 0.45% | FF6: 8.00 | FG6: 2 | FH6: =VLOOKUP($C6,[19]Import!$B$9:$BR$403,49,FALSE) -> 321 | FI6: 0.57% | FJ6: 1.00 | FK6: 2 | FL6: =VLOOKUP($C6,[19]Import!$B$9:$BR$403,51,FALSE) -> -2 | FM6: 0.65% | FN6: 5.00 | FO6: -0 | FP6: =VLOOKUP($C6,[19]Import!$B$9:$BR$403,53,FALSE) -> 1 | FQ6: 0.40% | FR6: 1.00 | FS6: 0 | FT6: =VLOOKUP($C6,[19]Import!$B$9:$BR$403,55,FALSE) -> -306 | FU6: 0.20% | FV6: 8.00 | FW6: -5 | FX6: =VLOOKUP($C6,[19]Import!$B$9:$BR$403,57,FALSE) -> 147 | FY6: 1.00% | FZ6: 5.00 | GA6: 7 | GB6: 283 | GC6: 14 | GD6: 167 | GE6: 12 | GF6: =VLOOKUP($C6,[19]Import!$B$9:$BR$403,59,FALSE) -> -301 | GG6: 1.00% | GH6: 5.37 | GI6: -16 | GJ6: =VLOOKUP($C6,[19]Import!$B$9:$ZZ$403,79,FALSE) -> 51 | GK6: =VLOOKUP(C6,[20]VN!$A:$E,5,FALSE) -> 0 | GL6: 0 | GN6: =VLOOKUP(C6,'[17]pnb bdd'!$A$3:$I$481,7,FALSE) -> 14 | GO6: =VLOOKUP(C6,'[17]pnb bdd'!$A$3:$I$481,9,FALSE) -> 1.89% | GP6: =VLOOKUP(C6,'[17]pnb bdd'!$A$3:$I$481,8,FALSE) -> 2.37 | GQ6: 1 | GR6: =VLOOKUP(C6,[19]Import!$B$9:$DB$403,91,FALSE)+VLOOKUP(C6,[19]Import!$B$9:$DB$403,93,FALSE) -> 95 | GS6: 0.45% | GT6: 8.00 | GU6: 3 | GV6: =VLOOKUP(C6,[19]Import!$B$9:$DB$403,99,FALSE)+VLOOKUP(C6,[19]Import!$B$9:$DB$403,101,FALSE) -> 100 | GW6: 0.57% | GX6: 1.00 | GY6: 1 | GZ6: =VLOOKUP(C6,[19]Import!$B$9:$DB$403,95,FALSE)+VLOOKUP(C6,[19]Import!$B$9:$DB$403,97,FALSE) -> 0 | HA6: 0.65% | HB6: 5.00 | HC6: 0 | HD6: =VLOOKUP(C6,[19]Import!$B$9:$DB$403,103,FALSE)+VLOOKUP(C6,[19]Import!$B$9:$DB$403,105,FALSE) -> 0 | HE6: 0.40% | HF6: 1.00 | HG6: 0 | HH6: =VLOOKUP(C6,[19]Import!$B$9:$DD$403,107,FALSE) -> 17 | HI6: 1.00% | HJ6: 5.00 | HK6: 1 | HL6: =-SUMIF([11]BDD!$F:$F,$C6,[11]BDD!$N:$N)/1000 -> -4 | HM6: =SUMIF([11]BDD!$F:$F,$C6,[11]BDD!$H:$H)/1000 -> 54 | HO6: =IF(ISERROR(IF(VLOOKUP($C6,'Indicateurs Cumulés'!$C$3:$HN$619,186,FALSE)/(VLOOKUP($C6,objectifs!$C$3:$ZZ$618,158,FALSE))>=1.5,(VLOOKUP($C6,objectifs!$C$3:$ZZ$618,158,FALSE))*1.5,IF(VLOOKUP($C6,'Indicateurs Cumulés'!$C$3:$HN$619,186,FALSE)/(VLOOKUP($C6,objectifs!$C$3:$ZZ$618,158,FALSE))<=-0.5,(VLOOKUP($C6,objectifs!$C$3:$ZZ$618,158,FALSE))*-0.5,VLOOKUP($C6,'Indicateurs Cumulés'!$C$3:$HN$619,186,FALSE)))),VLOOKUP($C6,'Indicateurs Cumulés'!$C$3:$HN$619,186,FALSE),IF(VLOOKUP($C6,'Indicateurs Cumulés'!$C$3:$HN$619,186,FALSE)/(VLOOKUP($C6,objectifs!$C$3:$ZZ$618,158,FALSE))>=1.5,(VLOOKUP($C6,objectifs!$C$3:$ZZ$618,158,FALSE))*1.5,IF(VLOOKUP($C6,'Indicateurs Cumulés'!$C$3:$HN$619,186,FALSE)/(VLOOKUP($C6,objectifs!$C$3:$ZZ$618,158,FALSE))<=-0.5,(VLOOKUP($C6,objectifs!$C$3:$ZZ$618,158,FALSE))*-0.5,VLOOKUP($C6,'Indicateurs Cumulés'!$C$3:$HN$619,186,FALSE)))) -> -196 | HP6: =SUMIFS([21]Feuil1!$C:$C,[21]Feuil1!$A:$A,C6) -> 0 | HR6: =IF(ISERROR(VLOOKUP($C6,[22]Feuil1!$O$10:$T$350,6,FALSE)),0,VLOOKUP($C6,[22]Feuil1!$O$10:$T$350,6,FALSE)) -> 3.2 | HT6: 1.48% | HU6: 0.33% | HV6: 2.29% | HW6: =VLOOKUP($C6,[12]VN!$B$4:$AV$500,3,FALSE) -> -2 | HX6: =VLOOKUP($C6,[12]VN!$B$4:$AV$500,16,FALSE) -> 4 | HY6: =VLOOKUP($C6,[12]VN!$B$4:$AV$500,34,FALSE) -> 0 | HZ6: =VLOOKUP($C6,[12]VN!$B$4:$AV$500,14,FALSE) -> -3 | IA6: =VLOOKUP($C6,[12]VN!$B$4:$AV$500,32,FALSE)+VLOOKUP($C6,[12]VN!$B$4:$AV$500,17,FALSE) -> 0 | IB6: =VLOOKUP($C6,[12]VN!$B$4:$AV$500,11,FALSE) -> 0 | IC6: =VLOOKUP($C6,[12]VN!$B$4:$AV$500,15,FALSE) -> 8 | ID6: =VLOOKUP($C6,[12]VN!$B$4:$AV$361,39,FALSE)-KY6 -> -4 | IE6: =VLOOKUP($C6,[12]VN!$B$4:$AV$361,40,FALSE) -> -1 | IF6: =VLOOKUP($C6,[12]VN!$B$4:$AV$361,41,FALSE) -> -3 | IG6: =VLOOKUP($C6,[12]VN!$B$4:$AV$361,42,FALSE) -> 0 | IH6: =VLOOKUP($C6,[12]VN!$B$4:$AV$361,43,FALSE) -> 1 | II6: =VLOOKUP($C6,[12]VN!$B$4:$AV$361,45,FALSE) -> -1 | IJ6: =VLOOKUP($C6,[12]VN!$B$4:$AV$361,44,FALSE) -> 3 | IK6: =VLOOKUP($C6,[12]VN!$B$4:$AV$361,46,FALSE) -> -14 | IL6: =VLOOKUP($C6,[12]VN!$B$4:$AV$361,47,FALSE) -> 0 | IM6: -0 | IN6: 0 | IO6: 0 | IP6: -0 | IQ6: 0 | IR6: 0 | IS6: 1 | IT6: -2 | IU6: -0 | IV6: -2 | IW6: 0 | IX6: 2 | IY6: -1 | IZ6: 2 | JA6: -3 | JB6: 0 | JC6: -1 | JD6: 4 | JE6: =(SUMIFS('[23]CE GEE'!$S:$S,'[23]CE GEE'!$G:$G,C6)+SUMIFS([24]CEGEE!$H:$H,[24]CEGEE!$B:$B,C6))/1000 -> 0 | JF6: -9 | JG6: 4.20 | JH6: 21.62 | JI6: =VLOOKUP($C6,[12]VN!$B$4:$AW$500,48,FALSE) -> 0 | JJ6: 0 | JK6: =VLOOKUP($C6,[19]Import!$B$9:$ZZ$403,69,FALSE) -> -83 | JL6: 0.20% | JM6: =VLOOKUP($C6,[19]Import!$B$9:$ZZ$403,71,FALSE) -> 0 | JO6: =VLOOKUP($C6,[19]Import!$B$9:$ZZ$403,73,FALSE) -> 7 | JP6: =VLOOKUP($C6,[19]Import!$B$9:$ZZ$403,29,FALSE) -> 109 | JQ6: =VLOOKUP($C6,[19]Import!$B$9:$ZZ$403,77,FALSE) -> -99 | JR6: =IF(ISERROR(IF(VLOOKUP($C6,'Indicateurs Cumulés'!$C$3:$HN$619,190,FALSE)/(VLOOKUP($C6,objectifs!$C$3:$ZZ$618,162,FALSE))>=1.5,(VLOOKUP($C6,objectifs!$C$3:$ZZ$618,162,FALSE))*1.5,IF(VLOOKUP($C6,'Indicateurs Cumulés'!$C$3:$HN$619,190,FALSE)/(VLOOKUP($C6,objectifs!$C$3:$ZZ$618,162,FALSE))<=-0.5,(VLOOKUP($C6,objectifs!$C$3:$ZZ$618,162,FALSE))*-0.5,VLOOKUP($C6,'Indicateurs Cumulés'!$C$3:$HN$619,190,FALSE)))),VLOOKUP($C6,'Indicateurs Cumulés'!$C$3:$HN$619,190,FALSE),IF(VLOOKUP($C6,'Indicateurs Cumulés'!$C$3:$HN$619,190,FALSE)/(VLOOKUP($C6,objectifs!$C$3:$ZZ$618,162,FALSE))>=1.5,(VLOOKUP($C6,objectifs!$C$3:$ZZ$618,162,FALSE))*1.5,IF(VLOOKUP($C6,'Indicateurs Cumulés'!$C$3:$HN$619,190,FALSE)/(VLOOKUP($C6,objectifs!$C$3:$ZZ$618,162,FALSE))<=-0.5,(VLOOKUP($C6,objectifs!$C$3:$ZZ$618,162,FALSE))*-0.5,VLOOKUP($C6,'Indicateurs Cumulés'!$C$3:$HN$619,190,FALSE)))) -> 51 | JS6: -1 | JT6: 0 | JV6: 0 | JW6: 4 | JX6: -3 | JY6: 0 | JZ6: 1 | KA6: =VLOOKUP($C6,[12]VN!$B$4:$ZZ$500,53,FALSE) -> 0 | KB6: =VLOOKUP($C6,[12]VN!$B$4:$ZZ$500,52,FALSE) -> 0 | KC6: =VLOOKUP($C6,[12]VN!$B$4:$ZZ$500,51,FALSE) -> 0 | KD6: =VLOOKUP($C6,[12]VN!$B$4:$ZZ$500,49,FALSE) -> -1 | KE6: =VLOOKUP($C6,[12]VN!$B$4:$ZZ$500,50,FALSE) -> 0 | KF6: =VLOOKUP($C6,[12]VN!$B$4:$ZZ$500,28,FALSE) -> 0 | KG6: 0 | KH6: 0 | KI6: 0 | KJ6: -0 | KK6: 0 | KL6: 0 | KM6: -2 | KN6: =VLOOKUP($C6,[12]VN!$B$4:$ZZ$500,54,FALSE) -> -0 | KR6: 6.03 | KS6: -1 | KT6: =VLOOKUP($C6,[19]Import!$B$9:$ZZ$403,81,FALSE) -> 2 | KU6: 0 | KV6: =VLOOKUP(C6,[12]VN!$B$4:$BH$500,59,FALSE) -> -2 | KW6: -0 | KX6: =IF(ISERROR(VLOOKUP(C6,'[25]CFF BDD'!$B:$C,2,FALSE)),0,VLOOKUP(C6,'[25]CFF BDD'!$B:$C,2,FALSE)) -> 0 | KY6: 3 | KZ6: 2 | LA6: =VLOOKUP($C6,[12]VN!$B$4:$CC$500,60,FALSE) -> 0 | LB6: 0 | LC6: 48 | LD6: 4 | LE6: =VLOOKUP($C6,[12]VN!$B$4:$ZZ$500,65,FALSE) -> -1 | LF6: -1 | LG6: =VLOOKUP($C6,[12]VN!$B$4:$ZZ$500,66,FALSE) -> -1 | LH6: -1 | LI6: =VLOOKUP($C6,[12]VN!$B$4:$ZZ$500,67,FALSE) -> -6 | LJ6: -1 | LK6: 48 | LL6: 14.7 | LM6: 24 | LN6: 33 | LO6: -4 | LP6: -3 | LQ6: 14.79 | LR6: =SUMIF([26]BAD!$B:$B,$C6,[26]BAD!$E:$E) -> 35 | LS6: =SUMIF([26]SED!$B:$B,$C6,[26]SED!$E:$E) -> 4 | LT6: =SUMIF([26]SAG!$B:$B,$C6,[26]SAG!$E:$E) -> 164 | LU6: =SUMIF([26]EDOC!$B:$B,$C6,[26]EDOC!$E:$E) -> 4 | LV6: =SUMIF([26]OPTIN!$B:$B,$C6,[26]OPTIN!$E:$E) -> 13 | LW6: =SUMIF([26]SECURPASS!$B:$B,$C6,[26]SECURPASS!$E:$E) -> 1 | LX6: 2.6 | LY6: 0.0 | LZ6: 0.5 | MA6: 0.2 | MB6: 0.2 | MC6: 0.0 | MD6: 51
A7: 105006 | B7: 200262 | C7: 10 | D7: STRASBOURG MEINAU | E7: 2019-02-28 | F7: =VLOOKUP($C7,'[7]bench cumul'!$A$3:$AH$633,'[7]bench cumul'!D$1,FALSE) -> 24 | G7: =VLOOKUP($C7,'[7]bench cumul'!$A$3:$AH$633,'[7]bench cumul'!E$1,FALSE) -> 4.32% | H7: =VLOOKUP($C7,'[7]bench cumul'!$A$3:$AH$633,'[7]bench cumul'!F$1,FALSE) -> 1.57 | I7: =VLOOKUP($C7,'[7]bench cumul'!$A$3:$AH$633,'[7]bench cumul'!G$1,FALSE) -> 2019-02-28 | J7: =VLOOKUP($C7,'[7]bench cumul'!$A$3:$AH$633,'[7]bench cumul'!H$1,FALSE) -> 268 | K7: =VLOOKUP($C7,'[7]bench cumul'!$A$3:$AH$633,'[7]bench cumul'!I$1,FALSE) -> 3.31% | L7: =VLOOKUP($C7,'[7]bench cumul'!$A$3:$AH$633,'[7]bench cumul'!J$1,FALSE) -> 3.01 | M7: =VLOOKUP($C7,'[7]bench cumul'!$A$3:$AH$633,'[7]bench cumul'!K$1,FALSE) -> 4.93 | N7: =VLOOKUP($C7,'[7]bench cumul'!$A$3:$AH$633,'[7]bench cumul'!L$1,FALSE) -> 996 | O7: =VLOOKUP($C7,'[7]bench cumul'!$A$3:$AH$633,'[7]bench cumul'!M$1,FALSE) -> 0 | P7: =VLOOKUP($C7,'[7]bench cumul'!$A$3:$AH$633,'[7]bench cumul'!N$1,FALSE) -> -0.21% | Q7: =VLOOKUP($C7,'[7]bench cumul'!$A$3:$AH$633,'[7]bench cumul'!O$1,FALSE) -> 8.42 | R7: =VLOOKUP($C7,'[7]bench cumul'!$A$3:$AH$633,'[7]bench cumul'!P$1,FALSE) -> 12.79 | S7: =VLOOKUP($C7,'[7]bench cumul'!$A$3:$AH$633,'[7]bench cumul'!Q$1,FALSE) -> 0 | T7: =VLOOKUP($C7,'[7]bench cumul'!$A$3:$AH$633,'[7]bench cumul'!R$1,FALSE) -> 0.00% | U7: =VLOOKUP($C7,'[7]bench cumul'!$A$3:$AH$633,'[7]bench cumul'!S$1,FALSE) -> 0 | V7: =VLOOKUP($C7,'[7]bench cumul'!$A$3:$AH$633,'[7]bench cumul'!T$1,FALSE) -> 0 | W7: =VLOOKUP($C7,'[7]bench cumul'!$A$3:$AH$633,'[7]bench cumul'!U$1,FALSE) -> 0.00% | X7: =VLOOKUP($C7,'[7]bench cumul'!$A$3:$AH$633,'[7]bench cumul'!V$1,FALSE) -> 0 | Y7: =VLOOKUP($C7,'[7]bench cumul'!$A$3:$AH$633,'[7]bench cumul'!W$1,FALSE) -> 0 | Z7: =VLOOKUP($C7,'[7]bench cumul'!$A$3:$AH$633,'[7]bench cumul'!X$1,FALSE) -> 0.00% | AA7: =VLOOKUP($C7,'[7]bench cumul'!$A$3:$AH$633,'[7]bench cumul'!Y$1,FALSE) -> 0 | AB7: =VLOOKUP($C7,'[7]bench cumul'!$A$3:$AH$633,'[7]bench cumul'!Z$1,FALSE) -> 3.0 | AC7: =VLOOKUP($C7,'[7]bench cumul'!$A$3:$AH$633,'[7]bench cumul'!AA$1,FALSE) -> 2.1 | AD7: =VLOOKUP($C7,'[7]bench cumul'!$A$3:$AH$633,'[7]bench cumul'!AB$1,FALSE) -> 0 | AE7: =VLOOKUP($C7,'[7]bench cumul'!$A$3:$AH$633,'[7]bench cumul'!AC$1,FALSE) -> 32.7 | AF7: =VLOOKUP($C7,'[7]bench cumul'!$A$3:$AH$633,'[7]bench cumul'!AD$1,FALSE) -> 4.8 | AG7: =VLOOKUP($C7,'[7]bench cumul'!$A$3:$AH$633,'[7]bench cumul'!AE$1,FALSE) -> 1.7 | AH7: =VLOOKUP($C7,'[8]Données Cumulées'!$A$1:$Z$65649,'[8]Données Cumulées'!C$1,FALSE) -> 201902 | AI7: =VLOOKUP($C7,'[8]Données Cumulées'!$A$1:$Z$65649,'[8]Données Cumulées'!D$1,FALSE) -> 2.50 | AJ7: =VLOOKUP($C7,'[8]Données Cumulées'!$A$1:$Z$65649,'[8]Données Cumulées'!E$1,FALSE) -> 0.06 | AK7: 2.40% | AL7: =VLOOKUP($C7,'[8]Données Cumulées'!$A$1:$Z$65649,'[8]Données Cumulées'!G$1,FALSE) -> 30.90 | AM7: =VLOOKUP($C7,'[8]Données Cumulées'!$A$1:$Z$65649,'[8]Données Cumulées'!H$1,FALSE) -> 1.05 | AN7: 3% | AO7: =VLOOKUP($C7,'[8]Données Cumulées'!$A$1:$Z$65649,'[8]Données Cumulées'!J$1,FALSE) -> 0.66 | AP7: 2.13% | AQ7: =VLOOKUP($C7,'[8]Données Cumulées'!$A$1:$Z$65649,'[8]Données Cumulées'!L$1,FALSE) -> 81.63 | AR7: =VLOOKUP($C7,'[8]Données Cumulées'!$A$1:$Z$65649,'[8]Données Cumulées'!M$1,FALSE) -> 6.85 | AS7: 8.4% | AT7: =VLOOKUP($C7,'[8]Données Cumulées'!$A$1:$Z$65649,'[8]Données Cumulées'!O$1,FALSE) -> 0.29 | AU7: 0.35% | AV7: =VLOOKUP($C7,'[8]Données Cumulées'!$A$1:$Z$65649,'[8]Données Cumulées'!Q$1,FALSE) -> 10.79 | AW7: =VLOOKUP($C7,'[8]Données Cumulées'!$A$1:$Z$65649,'[8]Données Cumulées'!R$1,FALSE) -> 0.61 | AX7: 5.69% | AY7: =VLOOKUP($C7,'[8]Données Cumulées'!$A$1:$Z$65649,'[8]Données Cumulées'!T$1,FALSE) -> 0.20 | AZ7: 1.81% | BA7: =VLOOKUP($C7,'[8]Données Cumulées'!$A$1:$Z$65649,'[8]Données Cumulées'!V$1,FALSE) -> 125.82 | BB7: =VLOOKUP($C7,'[8]Données Cumulées'!$A$1:$Z$65649,'[8]Données Cumulées'!W$1,FALSE) -> 8.52 | BC7: 6.8% | BD7: =VLOOKUP($C7,'[8]Données Cumulées'!$A$1:$Z$65649,'[8]Données Cumulées'!Y$1,FALSE) -> 1.20 | BE7: 0.96% | BG7: 0 | BH7: 0 | BI7: 37 | BJ7: 4 | BK7: 0 | BL7: =IF(ISERROR(VLOOKUP($D7,'[7]bench cumul'!$B$1:$AG$65598,'[7]bench cumul'!AF$1,FALSE)),P436,VLOOKUP($D7,'[7]bench cumul'!$B$1:$AG$65598,'[7]bench cumul'!AF$1,FALSE)) -> 1.71% | BM7: =IF(ISERROR(VLOOKUP($D7,'[7]bench cumul'!$B$1:$AG$65598,'[7]bench cumul'!AG$1,FALSE)),P436,VLOOKUP($D7,'[7]bench cumul'!$B$1:$AG$65598,'[7]bench cumul'!AG$1,FALSE)) -> 0.00% | BN7: 10 | BO7: =VLOOKUP(BN7,[9]Diversification_Epargne!$A:$L,12,FALSE)/1000 -> 5 | BP7: 0 | BQ7: =VLOOKUP(BN7,[9]Diversification_Epargne!$A:$L,8,FALSE)/1000 -> 14 | BR7: 0 | BS7: -1 | BT7: -1 | BU7: =-IF(ISERROR(VLOOKUP($C7,'[10]Commissions APAFF'!$B:$C,2,FALSE)),0,VLOOKUP($C7,'[10]Commissions APAFF'!$B:$C,2,FALSE)/1000) -> -2 | BX7: =-SUMIF([11]BDD!$H:$H,$C7,[11]BDD!$Q:$Q)/1000 -> 0 | BY7: =VLOOKUP($C7,[12]VN!$B$4:$BX$500,63,FALSE) -> 0 | BZ7: 0 | CA7: =VLOOKUP($C7,[12]VN!$B$4:$BX$500,64,FALSE) -> 0 | CB7: 0 | CC7: =VLOOKUP($C7,[12]VN!$B$4:$BX$500,27,FALSE) -> 0 | CD7: 0 | CE7: =SUMIF([13]Feuil1!$B:$B,C7,[13]Feuil1!$E:$E) -> 1 | CF7: 0.2 | CG7: =VLOOKUP($C7,[12]VN!$B$4:$BZ$361,68,FALSE) -> -7 | CH7: -1 | CI7: =SUMIF([14]Feuil1!$B:$B,C7,[14]Feuil1!$C:$C) -> 0 | CJ7: 0 | CM7: =VLOOKUP($C7,'[15]GEE CUMUL PROS'!$A$5:$O$348,6,FALSE) -> 0.00% | CN7: =VLOOKUP($C7,'[15]GEE CUMUL PROS'!$A$5:$O$348,7,FALSE) -> 0.00% | CO7: =VLOOKUP($C7,'[15]GEE CUMUL PROS'!$A$5:$O$348,15,FALSE) -> 0 | CP7: =VLOOKUP($C7,'[16]Cumul immo PRO'!$A$4:$G$755,6,FALSE)/1000*$CP$3 -> 0 | CQ7: 0 | CR7: =VLOOKUP($C7,'[7]bench cumul'!$A$3:$AK$633,'[7]bench cumul'!AK$1,FALSE) -> 0 | CS7: =VLOOKUP(C7,'[17]pnb bdd'!$A$3:$K$481,11,FALSE) -> 0.00 | CT7: =VLOOKUP($C7,[18]Cumul!$A:$D,4,FALSE) -> 0 | CU7: =VLOOKUP(C7,[18]Cumul!$A:$E,5,FALSE) -> 1 | CV7: =VLOOKUP($C7,'[7]bench cumul'!$A$3:$AK$633,'[7]bench cumul'!AJ$1,FALSE) -> 0 | CW7: 3 | CX7: =VLOOKUP($C7,'[16]Cumul immo BDD'!$A$4:$G$755,4,FALSE) -> 46.36% | CY7: =VLOOKUP($C7,'[16]Cumul immo BDD'!$A$4:$G$755,5,FALSE) -> 135.63% | CZ7: =VLOOKUP($C7,'[16]Cumul immo BDD'!$A$4:$H$755,6,FALSE)/1000*$CZ$3 -> 17 | DA7: =VLOOKUP($C7,'[15]GEE CUMUL BDD'!$A$5:$O$348,6,FALSE) -> 92.53% | DB7: =VLOOKUP($C7,'[15]GEE CUMUL BDD'!$A$5:$O$348,7,FALSE) -> 171.80% | DC7: =VLOOKUP($C7,'[15]GEE CUMUL BDD'!$A$5:$O$348,15,FALSE) -> 8 | DE7: =VLOOKUP($C7,'[16]Cumul mlt tous M'!$A$4:$F$348,4,FALSE) -> 0.00% | DF7: =VLOOKUP($C7,'[16]Cumul mlt tous M'!$A$4:$F$348,5,FALSE) -> 0.00% | DG7: =VLOOKUP($C7,'[16]Cumul mlt tous M'!$A$4:$F$348,6,FALSE)/1000 -> 0 | DH7: =VLOOKUP($C7,[19]Import!$B$9:$BR$403,3,FALSE) -> 14 | DI7: 0.70% | DJ7: 5.33 | DK7: 1 | DL7: =VLOOKUP($C7,[19]Import!$B$9:$BR$403,5,FALSE) -> -13 | DM7: 0.73% | DN7: 5.33 | DO7: -0 | DP7: =VLOOKUP($C7,[19]Import!$B$9:$BR$403,7,FALSE) -> 5 | DQ7: 0.84% | DR7: 5.33 | DS7: 0 | DT7: =VLOOKUP($C7,[19]Import!$B$9:$BR$403,9,FALSE) -> 91 | DU7: 0.63% | DV7: 5.33 | DW7: 3 | DX7: =VLOOKUP($C7,[19]Import!$B$9:$BR$403,11,FALSE) -> -40 | DY7: 0.20% | DZ7: 5.37 | EA7: -0 | EB7: =VLOOKUP($C7,[19]Import!$B$9:$BR$403,13,FALSE) -> -3 | EC7: 0.20% | ED7: 5.37 | EE7: -0 | EF7: =VLOOKUP($C7,[19]Import!$B$9:$BR$403,15,FALSE) -> -25 | EG7: 0.20% | EH7: 5.37 | EI7: -0 | EJ7: =VLOOKUP($C7,[19]Import!$B$9:$BR$403,17,FALSE) -> -2 | EK7: 0.44% | EL7: 5.33 | EM7: -0 | EN7: =VLOOKUP($C7,[19]Import!$B$9:$BR$403,41,FALSE) -> 0 | EO7: 0.10% | EP7: =VLOOKUP($C7,[19]Import!$B$9:$CR$403,87,FALSE) -> 10.71 | EQ7: 0 | ER7: =VLOOKUP($C7,[19]Import!$B$9:$BR$403,39,FALSE) -> 71 | ES7: 0.20% | ET7: 9.00 | EU7: 1 | EV7: =VLOOKUP($C7,[19]Import!$B$9:$BR$403,43,FALSE) -> -53 | EW7: 0.00% | EX7: =IF(VLOOKUP($C7,[19]Import!$B$9:$ZZ$403,89,FALSE)=0,$EX$3,VLOOKUP($C7,[19]Import!$B$9:$ZZ$403,89,FALSE)) -> 8.59 | EY7: 0 | EZ7: =VLOOKUP($C7,[19]Import!$B$9:$BR$403,45,FALSE) -> 0 | FA7: -0.37% | FB7: 0.08 | FC7: 0 | FD7: =VLOOKUP($C7,[19]Import!$B$9:$BR$403,47,FALSE) -> 41 | FE7: 0.45% | FF7: 8.00 | FG7: 1 | FH7: =VLOOKUP($C7,[19]Import!$B$9:$BR$403,49,FALSE) -> 157 | FI7: 0.96% | FJ7: 1.00 | FK7: 1 | FL7: =VLOOKUP($C7,[19]Import!$B$9:$BR$403,51,FALSE) -> -12 | FM7: 0.65% | FN7: 5.00 | FO7: -0 | FP7: =VLOOKUP($C7,[19]Import!$B$9:$BR$403,53,FALSE) -> 2 | FQ7: 0.40% | FR7: 1.00 | FS7: 0 | FT7: =VLOOKUP($C7,[19]Import!$B$9:$BR$403,55,FALSE) -> -224 | FU7: 0.20% | FV7: 8.00 | FW7: -4 | FX7: =VLOOKUP($C7,[19]Import!$B$9:$BR$403,57,FALSE) -> 43 | FY7: 1.00% | FZ7: 5.00 | GA7: 2 | GB7: -104 | GC7: 4 | GD7: 26 | GE7: 3 | GF7: =VLOOKUP($C7,[19]Import!$B$9:$BR$403,59,FALSE) -> -300 | GG7: 1.00% | GH7: 5.37 | GI7: -16 | GJ7: =VLOOKUP($C7,[19]Import!$B$9:$ZZ$403,79,FALSE) -> -5 | GK7: =VLOOKUP(C7,[20]VN!$A:$E,5,FALSE) -> 0 | GL7: 0 | GN7: =VLOOKUP(C7,'[17]pnb bdd'!$A$3:$I$481,7,FALSE) -> 0 | GO7: =VLOOKUP(C7,'[17]pnb bdd'!$A$3:$I$481,9,FALSE) -> 0.00% | GP7: =VLOOKUP(C7,'[17]pnb bdd'!$A$3:$I$481,8,FALSE) -> 0 | GQ7: 0 | GR7: =VLOOKUP(C7,[19]Import!$B$9:$DB$403,91,FALSE)+VLOOKUP(C7,[19]Import!$B$9:$DB$403,93,FALSE) -> -1 | GS7: 0.45% | GT7: 8.00 | GU7: -0 | GV7: =VLOOKUP(C7,[19]Import!$B$9:$DB$403,99,FALSE)+VLOOKUP(C7,[19]Import!$B$9:$DB$403,101,FALSE) -> 0 | GW7: 0.96% | GX7: 1.00 | GY7: 0 | GZ7: =VLOOKUP(C7,[19]Import!$B$9:$DB$403,95,FALSE)+VLOOKUP(C7,[19]Import!$B$9:$DB$403,97,FALSE) -> 0 | HA7: 0.65% | HB7: 5.00 | HC7: 0 | HD7: =VLOOKUP(C7,[19]Import!$B$9:$DB$403,103,FALSE)+VLOOKUP(C7,[19]Import!$B$9:$DB$403,105,FALSE) -> 0 | HE7: 0.40% | HF7: 1.00 | HG7: 0 | HH7: =VLOOKUP(C7,[19]Import!$B$9:$DD$403,107,FALSE) -> -3 | HI7: 1.00% | HJ7: 5.00 | HK7: -0 | HL7: =-SUMIF([11]BDD!$F:$F,$C7,[11]BDD!$N:$N)/1000 -> -3 | HM7: =SUMIF([11]BDD!$F:$F,$C7,[11]BDD!$H:$H)/1000 -> 67 | HO7: =IF(ISERROR(IF(VLOOKUP($C7,'Indicateurs Cumulés'!$C$3:$HN$619,186,FALSE)/(VLOOKUP($C7,objectifs!$C$3:$ZZ$618,158,FALSE))>=1.5,(VLOOKUP($C7,objectifs!$C$3:$ZZ$618,158,FALSE))*1.5,IF(VLOOKUP($C7,'Indicateurs Cumulés'!$C$3:$HN$619,186,FALSE)/(VLOOKUP($C7,objectifs!$C$3:$ZZ$618,158,FALSE))<=-0.5,(VLOOKUP($C7,objectifs!$C$3:$ZZ$618,158,FALSE))*-0.5,VLOOKUP($C7,'Indicateurs Cumulés'!$C$3:$HN$619,186,FALSE)))),VLOOKUP($C7,'Indicateurs Cumulés'!$C$3:$HN$619,186,FALSE),IF(VLOOKUP($C7,'Indicateurs Cumulés'!$C$3:$HN$619,186,FALSE)/(VLOOKUP($C7,objectifs!$C$3:$ZZ$618,158,FALSE))>=1.5,(VLOOKUP($C7,objectifs!$C$3:$ZZ$618,158,FALSE))*1.5,IF(VLOOKUP($C7,'Indicateurs Cumulés'!$C$3:$HN$619,186,FALSE)/(VLOOKUP($C7,objectifs!$C$3:$ZZ$618,158,FALSE))<=-0.5,(VLOOKUP($C7,objectifs!$C$3:$ZZ$618,158,FALSE))*-0.5,VLOOKUP($C7,'Indicateurs Cumulés'!$C$3:$HN$619,186,FALSE)))) -> -172 | HP7: =SUMIFS([21]Feuil1!$C:$C,[21]Feuil1!$A:$A,C7) -> 0 | HR7: =IF(ISERROR(VLOOKUP($C7,[22]Feuil1!$O$10:$T$350,6,FALSE)),0,VLOOKUP($C7,[22]Feuil1!$O$10:$T$350,6,FALSE)) -> 4.0 | HT7: 4.26% | HU7: 0.05% | HV7: 0.00% | HW7: =VLOOKUP($C7,[12]VN!$B$4:$AV$500,3,FALSE) -> -4 | HX7: =VLOOKUP($C7,[12]VN!$B$4:$AV$500,16,FALSE) -> -3 | HY7: =VLOOKUP($C7,[12]VN!$B$4:$AV$500,34,FALSE) -> 1 | HZ7: =VLOOKUP($C7,[12]VN!$B$4:$AV$500,14,FALSE) -> 5 | IA7: =VLOOKUP($C7,[12]VN!$B$4:$AV$500,32,FALSE)+VLOOKUP($C7,[12]VN!$B$4:$AV$500,17,FALSE) -> 2 | IB7: =VLOOKUP($C7,[12]VN!$B$4:$AV$500,11,FALSE) -> 0 | IC7: =VLOOKUP($C7,[12]VN!$B$4:$AV$500,15,FALSE) -> 6 | ID7: =VLOOKUP($C7,[12]VN!$B$4:$AV$361,39,FALSE)-KY7 -> -10 | IE7: =VLOOKUP($C7,[12]VN!$B$4:$AV$361,40,FALSE) -> 2 | IF7: =VLOOKUP($C7,[12]VN!$B$4:$AV$361,41,FALSE) -> -3 | IG7: =VLOOKUP($C7,[12]VN!$B$4:$AV$361,42,FALSE) -> -1 | IH7: =VLOOKUP($C7,[12]VN!$B$4:$AV$361,43,FALSE) -> 0 | II7: =VLOOKUP($C7,[12]VN!$B$4:$AV$361,45,FALSE) -> 0 | IJ7: =VLOOKUP($C7,[12]VN!$B$4:$AV$361,44,FALSE) -> 7 | IK7: =VLOOKUP($C7,[12]VN!$B$4:$AV$361,46,FALSE) -> -10 | IL7: =VLOOKUP($C7,[12]VN!$B$4:$AV$361,47,FALSE) -> 0 | IM7: -0 | IN7: -0 | IO7: 0 | IP7: 0 | IQ7: 0 | IR7: 0 | IS7: 1 | IT7: -4 | IU7: 0 | IV7: -2 | IW7: -1 | IX7: 0 | IY7: 0 | IZ7: 5 | JA7: -2 | JB7: 0 | JC7: -2 | JD7: 4 | JE7: =(SUMIFS('[23]CE GEE'!$S:$S,'[23]CE GEE'!$G:$G,C7)+SUMIFS([24]CEGEE!$H:$H,[24]CEGEE!$B:$B,C7))/1000 -> 0 | JF7: 0 | JG7: 0.00 | JH7: 0.00 | JI7: =VLOOKUP($C7,[12]VN!$B$4:$AW$500,48,FALSE) -> 0 | JJ7: 0 | JK7: =VLOOKUP($C7,[19]Import!$B$9:$ZZ$403,69,FALSE) -> -0 | JL7: 0.20% | JM7: =VLOOKUP($C7,[19]Import!$B$9:$ZZ$403,71,FALSE) -> 0 | JO7: =VLOOKUP($C7,[19]Import!$B$9:$ZZ$403,73,FALSE) -> 0 | JP7: =VLOOKUP($C7,[19]Import!$B$9:$ZZ$403,29,FALSE) -> 29 | JQ7: =VLOOKUP($C7,[19]Import!$B$9:$ZZ$403,77,FALSE) -> -22 | JR7: =IF(ISERROR(IF(VLOOKUP($C7,'Indicateurs Cumulés'!$C$3:$HN$619,190,FALSE)/(VLOOKUP($C7,objectifs!$C$3:$ZZ$618,162,FALSE))>=1.5,(VLOOKUP($C7,objectifs!$C$3:$ZZ$618,162,FALSE))*1.5,IF(VLOOKUP($C7,'Indicateurs Cumulés'!$C$3:$HN$619,190,FALSE)/(VLOOKUP($C7,objectifs!$C$3:$ZZ$618,162,FALSE))<=-0.5,(VLOOKUP($C7,objectifs!$C$3:$ZZ$618,162,FALSE))*-0.5,VLOOKUP($C7,'Indicateurs Cumulés'!$C$3:$HN$619,190,FALSE)))),VLOOKUP($C7,'Indicateurs Cumulés'!$C$3:$HN$619,190,FALSE),IF(VLOOKUP($C7,'Indicateurs Cumulés'!$C$3:$HN$619,190,FALSE)/(VLOOKUP($C7,objectifs!$C$3:$ZZ$618,162,FALSE))>=1.5,(VLOOKUP($C7,objectifs!$C$3:$ZZ$618,162,FALSE))*1.5,IF(VLOOKUP($C7,'Indicateurs Cumulés'!$C$3:$HN$619,190,FALSE)/(VLOOKUP($C7,objectifs!$C$3:$ZZ$618,162,FALSE))<=-0.5,(VLOOKUP($C7,objectifs!$C$3:$ZZ$618,162,FALSE))*-0.5,VLOOKUP($C7,'Indicateurs Cumulés'!$C$3:$HN$619,190,FALSE)))) -> -5 | JS7: -0 | JT7: 0 | JV7: 0 | JW7: 1 | JX7: -1 | JY7: -0 | JZ7: 0 | KA7: =VLOOKUP($C7,[12]VN!$B$4:$ZZ$500,53,FALSE) -> -2 | KB7: =VLOOKUP($C7,[12]VN!$B$4:$ZZ$500,52,FALSE) -> 0 | KC7: =VLOOKUP($C7,[12]VN!$B$4:$ZZ$500,51,FALSE) -> 0 | KD7: =VLOOKUP($C7,[12]VN!$B$4:$ZZ$500,49,FALSE) -> -1 | KE7: =VLOOKUP($C7,[12]VN!$B$4:$ZZ$500,50,FALSE) -> 0 | KF7: =VLOOKUP($C7,[12]VN!$B$4:$ZZ$500,28,FALSE) -> 0 | KG7: -3 | KH7: 0 | KI7: 0 | KJ7: -0 | KK7: 0 | KL7: 0 | KM7: -3 | KN7: =VLOOKUP($C7,[12]VN!$B$4:$ZZ$500,54,FALSE) -> -0 | KR7: 8.04 | KS7: -3 | KT7: =VLOOKUP($C7,[19]Import!$B$9:$ZZ$403,81,FALSE) -> -3 | KU7: 0 | KV7: =VLOOKUP(C7,[12]VN!$B$4:$BH$500,59,FALSE) -> 0 | KW7: 0 | KX7: =IF(ISERROR(VLOOKUP(C7,'[25]CFF BDD'!$B:$C,2,FALSE)),0,VLOOKUP(C7,'[25]CFF BDD'!$B:$C,2,FALSE)) -> 0 | KY7: 7 | KZ7: 5 | LA7: =VLOOKUP($C7,[12]VN!$B$4:$CC$500,60,FALSE) -> 1 | LB7: 0 | LC7: 34 | LD7: -4 | LE7: =VLOOKUP($C7,[12]VN!$B$4:$ZZ$500,65,FALSE) -> 0 | LF7: 0 | LG7: =VLOOKUP($C7,[12]VN!$B$4:$ZZ$500,66,FALSE) -> -1 | LH7: -1 | LI7: =VLOOKUP($C7,[12]VN!$B$4:$ZZ$500,67,FALSE) -> 0 | LJ7: 0 | LK7: 36 | LL7: 8.9 | LM7: 5 | LN7: 41 | LO7: -3 | LP7: -1 | LQ7: 8.64 | LR7: =SUMIF([26]BAD!$B:$B,$C7,[26]BAD!$E:$E) -> 8 | LS7: =SUMIF([26]SED!$B:$B,$C7,[26]SED!$E:$E) -> 28 | LT7: =SUMIF([26]SAG!$B:$B,$C7,[26]SAG!$E:$E) -> 159 | LU7: =SUMIF([26]EDOC!$B:$B,$C7,[26]EDOC!$E:$E) -> -9 | LV7: =SUMIF([26]OPTIN!$B:$B,$C7,[26]OPTIN!$E:$E) -> 10 | LW7: =SUMIF([26]SECURPASS!$B:$B,$C7,[26]SECURPASS!$E:$E) -> 3 | LX7: 0.6 | LY7: 0.3 | LZ7: 0.5 | MA7: 0.0 | MB7: 0.2 | MC7: 0.0 | MD7: 36
A8: 105006 | B8: 200262 | C8: 12 | D8: STRASBOURG STOCKFELD | E8: 2019-02-28 | F8: =VLOOKUP($C8,'[7]bench cumul'!$A$3:$AH$633,'[7]bench cumul'!D$1,FALSE) -> 26 | G8: =VLOOKUP($C8,'[7]bench cumul'!$A$3:$AH$633,'[7]bench cumul'!E$1,FALSE) -> 4.32% | H8: =VLOOKUP($C8,'[7]bench cumul'!$A$3:$AH$633,'[7]bench cumul'!F$1,FALSE) -> 1.57 | I8: =VLOOKUP($C8,'[7]bench cumul'!$A$3:$AH$633,'[7]bench cumul'!G$1,FALSE) -> 2019-02-28 | J8: =VLOOKUP($C8,'[7]bench cumul'!$A$3:$AH$633,'[7]bench cumul'!H$1,FALSE) -> 68 | K8: =VLOOKUP($C8,'[7]bench cumul'!$A$3:$AH$633,'[7]bench cumul'!I$1,FALSE) -> 4.34% | L8: =VLOOKUP($C8,'[7]bench cumul'!$A$3:$AH$633,'[7]bench cumul'!J$1,FALSE) -> 2.00 | M8: =VLOOKUP($C8,'[7]bench cumul'!$A$3:$AH$633,'[7]bench cumul'!K$1,FALSE) -> 3.52 | N8: =VLOOKUP($C8,'[7]bench cumul'!$A$3:$AH$633,'[7]bench cumul'!L$1,FALSE) -> 205 | O8: =VLOOKUP($C8,'[7]bench cumul'!$A$3:$AH$633,'[7]bench cumul'!M$1,FALSE) -> 0 | P8: =VLOOKUP($C8,'[7]bench cumul'!$A$3:$AH$633,'[7]bench cumul'!N$1,FALSE) -> -0.08% | Q8: =VLOOKUP($C8,'[7]bench cumul'!$A$3:$AH$633,'[7]bench cumul'!O$1,FALSE) -> 8.80 | R8: =VLOOKUP($C8,'[7]bench cumul'!$A$3:$AH$633,'[7]bench cumul'!P$1,FALSE) -> 13.22 | S8: =VLOOKUP($C8,'[7]bench cumul'!$A$3:$AH$633,'[7]bench cumul'!Q$1,FALSE) -> 0 | T8: =VLOOKUP($C8,'[7]bench cumul'!$A$3:$AH$633,'[7]bench cumul'!R$1,FALSE) -> 0.00% | U8: =VLOOKUP($C8,'[7]bench cumul'!$A$3:$AH$633,'[7]bench cumul'!S$1,FALSE) -> 0 | V8: =VLOOKUP($C8,'[7]bench cumul'!$A$3:$AH$633,'[7]bench cumul'!T$1,FALSE) -> 0 | W8: =VLOOKUP($C8,'[7]bench cumul'!$A$3:$AH$633,'[7]bench cumul'!U$1,FALSE) -> 0.00% | X8: =VLOOKUP($C8,'[7]bench cumul'!$A$3:$AH$633,'[7]bench cumul'!V$1,FALSE) -> 0 | Y8: =VLOOKUP($C8,'[7]bench cumul'!$A$3:$AH$633,'[7]bench cumul'!W$1,FALSE) -> 0 | Z8: =VLOOKUP($C8,'[7]bench cumul'!$A$3:$AH$633,'[7]bench cumul'!X$1,FALSE) -> 0.00% | AA8: =VLOOKUP($C8,'[7]bench cumul'!$A$3:$AH$633,'[7]bench cumul'!Y$1,FALSE) -> 0 | AB8: =VLOOKUP($C8,'[7]bench cumul'!$A$3:$AH$633,'[7]bench cumul'!Z$1,FALSE) -> 0.5 | AC8: =VLOOKUP($C8,'[7]bench cumul'!$A$3:$AH$633,'[7]bench cumul'!AA$1,FALSE) -> 0.5 | AD8: =VLOOKUP($C8,'[7]bench cumul'!$A$3:$AH$633,'[7]bench cumul'!AB$1,FALSE) -> 0 | AE8: =VLOOKUP($C8,'[7]bench cumul'!$A$3:$AH$633,'[7]bench cumul'!AC$1,FALSE) -> 7.1 | AF8: =VLOOKUP($C8,'[7]bench cumul'!$A$3:$AH$633,'[7]bench cumul'!AD$1,FALSE) -> 0.8 | AG8: =VLOOKUP($C8,'[7]bench cumul'!$A$3:$AH$633,'[7]bench cumul'!AE$1,FALSE) -> 0.4 | AH8: =VLOOKUP($C8,'[8]Données Cumulées'!$A$1:$Z$65649,'[8]Données Cumulées'!C$1,FALSE) -> 201902 | AI8: =VLOOKUP($C8,'[8]Données Cumulées'!$A$1:$Z$65649,'[8]Données Cumulées'!D$1,FALSE) -> 0 | AJ8: =VLOOKUP($C8,'[8]Données Cumulées'!$A$1:$Z$65649,'[8]Données Cumulées'!E$1,FALSE) -> 0 | AK8: 0.00% | AL8: =VLOOKUP($C8,'[8]Données Cumulées'!$A$1:$Z$65649,'[8]Données Cumulées'!G$1,FALSE) -> 27.73 | AM8: =VLOOKUP($C8,'[8]Données Cumulées'!$A$1:$Z$65649,'[8]Données Cumulées'!H$1,FALSE) -> 14.23 | AN8: 51% | AO8: =VLOOKUP($C8,'[8]Données Cumulées'!$A$1:$Z$65649,'[8]Données Cumulées'!J$1,FALSE) -> 0.73 | AP8: 2.63% | AQ8: =VLOOKUP($C8,'[8]Données Cumulées'!$A$1:$Z$65649,'[8]Données Cumulées'!L$1,FALSE) -> 110.53 | AR8: =VLOOKUP($C8,'[8]Données Cumulées'!$A$1:$Z$65649,'[8]Données Cumulées'!M$1,FALSE) -> 0.66 | AS8: 0.6% | AT8: =VLOOKUP($C8,'[8]Données Cumulées'!$A$1:$Z$65649,'[8]Données Cumulées'!O$1,FALSE) -> 0.03 | AU8: 0.03% | AV8: =VLOOKUP($C8,'[8]Données Cumulées'!$A$1:$Z$65649,'[8]Données Cumulées'!Q$1,FALSE) -> 10.30 | AW8: =VLOOKUP($C8,'[8]Données Cumulées'!$A$1:$Z$65649,'[8]Données Cumulées'!R$1,FALSE) -> 0.31 | AX8: 3.05% | AY8: =VLOOKUP($C8,'[8]Données Cumulées'!$A$1:$Z$65649,'[8]Données Cumulées'!T$1,FALSE) -> 0.10 | AZ8: 1.00% | BA8: =VLOOKUP($C8,'[8]Données Cumulées'!$A$1:$Z$65649,'[8]Données Cumulées'!V$1,FALSE) -> 148.56 | BB8: =VLOOKUP($C8,'[8]Données Cumulées'!$A$1:$Z$65649,'[8]Données Cumulées'!W$1,FALSE) -> 15.20 | BC8: 10.2% | BD8: =VLOOKUP($C8,'[8]Données Cumulées'!$A$1:$Z$65649,'[8]Données Cumulées'!Y$1,FALSE) -> 0.86 | BE8: 0.58% | BG8: 0 | BH8: 0 | BI8: 9 | BJ8: 7 | BK8: 0 | BL8: =IF(ISERROR(VLOOKUP($D8,'[7]bench cumul'!$B$1:$AG$65598,'[7]bench cumul'!AF$1,FALSE)),P437,VLOOKUP($D8,'[7]bench cumul'!$B$1:$AG$65598,'[7]bench cumul'!AF$1,FALSE)) -> 1.82% | BM8: =IF(ISERROR(VLOOKUP($D8,'[7]bench cumul'!$B$1:$AG$65598,'[7]bench cumul'!AG$1,FALSE)),P437,VLOOKUP($D8,'[7]bench cumul'!$B$1:$AG$65598,'[7]bench cumul'!AG$1,FALSE)) -> 0.00% | BN8: 12 | BO8: =VLOOKUP(BN8,[9]Diversification_Epargne!$A:$L,12,FALSE)/1000 -> 30 | BP8: 1 | BQ8: =VLOOKUP(BN8,[9]Diversification_Epargne!$A:$L,8,FALSE)/1000 -> 33 | BR8: 1 | BS8: -1 | BT8: -0 | BU8: =-IF(ISERROR(VLOOKUP($C8,'[10]Commissions APAFF'!$B:$C,2,FALSE)),0,VLOOKUP($C8,'[10]Commissions APAFF'!$B:$C,2,FALSE)/1000) -> -2 | BX8: =-SUMIF([11]BDD!$H:$H,$C8,[11]BDD!$Q:$Q)/1000 -> 0 | BY8: =VLOOKUP($C8,[12]VN!$B$4:$BX$500,63,FALSE) -> 0 | BZ8: 0 | CA8: =VLOOKUP($C8,[12]VN!$B$4:$BX$500,64,FALSE) -> 0 | CB8: 0 | CC8: =VLOOKUP($C8,[12]VN!$B$4:$BX$500,27,FALSE) -> 0 | CD8: 0 | CE8: =SUMIF([13]Feuil1!$B:$B,C8,[13]Feuil1!$E:$E) -> 0 | CF8: 0 | CG8: =VLOOKUP($C8,[12]VN!$B$4:$BZ$361,68,FALSE) -> -3 | CH8: -1 | CI8: =SUMIF([14]Feuil1!$B:$B,C8,[14]Feuil1!$C:$C) -> 0 | CJ8: 0 | CM8: =VLOOKUP($C8,'[15]GEE CUMUL PROS'!$A$5:$O$348,6,FALSE) -> 0.00% | CN8: =VLOOKUP($C8,'[15]GEE CUMUL PROS'!$A$5:$O$348,7,FALSE) -> 0.00% | CO8: =VLOOKUP($C8,'[15]GEE CUMUL PROS'!$A$5:$O$348,15,FALSE) -> 0 | CP8: =VLOOKUP($C8,'[16]Cumul immo PRO'!$A$4:$G$755,6,FALSE)/1000*$CP$3 -> 0 | CQ8: 0 | CR8: =VLOOKUP($C8,'[7]bench cumul'!$A$3:$AK$633,'[7]bench cumul'!AK$1,FALSE) -> 0 | CS8: =VLOOKUP(C8,'[17]pnb bdd'!$A$3:$K$481,11,FALSE) -> 0.00 | CT8: =VLOOKUP($C8,[18]Cumul!$A:$D,4,FALSE) -> 0 | CU8: =VLOOKUP(C8,[18]Cumul!$A:$E,5,FALSE) -> 0 | CV8: =VLOOKUP($C8,'[7]bench cumul'!$A$3:$AK$633,'[7]bench cumul'!AJ$1,FALSE) -> 0 | CW8: 0 | CX8: =VLOOKUP($C8,'[16]Cumul immo BDD'!$A$4:$G$755,4,FALSE) -> 100.00% | CY8: =VLOOKUP($C8,'[16]Cumul immo BDD'!$A$4:$G$755,5,FALSE) -> 200.00% | CZ8: =VLOOKUP($C8,'[16]Cumul immo BDD'!$A$4:$H$755,6,FALSE)/1000*$CZ$3 -> 7 | DA8: =VLOOKUP($C8,'[15]GEE CUMUL BDD'!$A$5:$O$348,6,FALSE) -> 83.70% | DB8: =VLOOKUP($C8,'[15]GEE CUMUL BDD'!$A$5:$O$348,7,FALSE) -> 100.00% | DC8: =VLOOKUP($C8,'[15]GEE CUMUL BDD'!$A$5:$O$348,15,FALSE) -> 1 | DE8: =VLOOKUP($C8,'[16]Cumul mlt tous M'!$A$4:$F$348,4,FALSE) -> 0.00% | DF8: =VLOOKUP($C8,'[16]Cumul mlt tous M'!$A$4:$F$348,5,FALSE) -> 0.00% | DG8: =VLOOKUP($C8,'[16]Cumul mlt tous M'!$A$4:$F$348,6,FALSE)/1000 -> 0 | DH8: =VLOOKUP($C8,[19]Import!$B$9:$BR$403,3,FALSE) -> 123 | DI8: 0.70% | DJ8: 5.33 | DK8: 5 | DL8: =VLOOKUP($C8,[19]Import!$B$9:$BR$403,5,FALSE) -> 47 | DM8: 0.73% | DN8: 5.33 | DO8: 2 | DP8: =VLOOKUP($C8,[19]Import!$B$9:$BR$403,7,FALSE) -> 2 | DQ8: 0.84% | DR8: 5.33 | DS8: 0 | DT8: =VLOOKUP($C8,[19]Import!$B$9:$BR$403,9,FALSE) -> 0 | DU8: 0.63% | DV8: 5.33 | DW8: 0 | DX8: =VLOOKUP($C8,[19]Import!$B$9:$BR$403,11,FALSE) -> -13 | DY8: 0.20% | DZ8: 5.37 | EA8: -0 | EB8: =VLOOKUP($C8,[19]Import!$B$9:$BR$403,13,FALSE) -> 8 | EC8: 0.20% | ED8: 5.37 | EE8: 0 | EF8: =VLOOKUP($C8,[19]Import!$B$9:$BR$403,15,FALSE) -> -10 | EG8: 0.20% | EH8: 5.37 | EI8: -0 | EJ8: =VLOOKUP($C8,[19]Import!$B$9:$BR$403,17,FALSE) -> -1 | EK8: 0.44% | EL8: 5.33 | EM8: -0 | EN8: =VLOOKUP($C8,[19]Import!$B$9:$BR$403,41,FALSE) -> 3 | EO8: 0.10% | EP8: =VLOOKUP($C8,[19]Import!$B$9:$CR$403,87,FALSE) -> 7.12 | EQ8: 0 | ER8: =VLOOKUP($C8,[19]Import!$B$9:$BR$403,39,FALSE) -> -4 | ES8: 0.20% | ET8: 9.00 | EU8: -0 | EV8: =VLOOKUP($C8,[19]Import!$B$9:$BR$403,43,FALSE) -> -96 | EW8: 0.00% | EX8: =IF(VLOOKUP($C8,[19]Import!$B$9:$ZZ$403,89,FALSE)=0,$EX$3,VLOOKUP($C8,[19]Import!$B$9:$ZZ$403,89,FALSE)) -> 8.50 | EY8: 0 | EZ8: =VLOOKUP($C8,[19]Import!$B$9:$BR$403,45,FALSE) -> 0 | FA8: -0.37% | FB8: 0.08 | FC8: 0 | FD8: =VLOOKUP($C8,[19]Import!$B$9:$BR$403,47,FALSE) -> 46 | FE8: 0.45% | FF8: 8.00 | FG8: 2 | FH8: =VLOOKUP($C8,[19]Import!$B$9:$BR$403,49,FALSE) -> 135 | FI8: 0.58% | FJ8: 1.00 | FK8: 1 | FL8: =VLOOKUP($C8,[19]Import!$B$9:$BR$403,51,FALSE) -> 1 | FM8: 0.65% | FN8: 5.00 | FO8: 0 | FP8: =VLOOKUP($C8,[19]Import!$B$9:$BR$403,53,FALSE) -> 1 | FQ8: 0.40% | FR8: 1.00 | FS8: 0 | FT8: =VLOOKUP($C8,[19]Import!$B$9:$BR$403,55,FALSE) -> -181 | FU8: 0.20% | FV8: 8.00 | FW8: -3 | FX8: =VLOOKUP($C8,[19]Import!$B$9:$BR$403,57,FALSE) -> 10 | FY8: 1.00% | FZ8: 5.00 | GA8: 0 | GB8: -140 | GC8: 3 | GD8: 46 | GE8: 4 | GF8: =VLOOKUP($C8,[19]Import!$B$9:$BR$403,59,FALSE) -> -159 | GG8: 1.00% | GH8: 5.37 | GI8: -9 | GJ8: =VLOOKUP($C8,[19]Import!$B$9:$ZZ$403,79,FALSE) -> 8 | GK8: =VLOOKUP(C8,[20]VN!$A:$E,5,FALSE) -> 0 | GL8: 0 | GN8: =VLOOKUP(C8,'[17]pnb bdd'!$A$3:$I$481,7,FALSE) -> 0 | GO8: =VLOOKUP(C8,'[17]pnb bdd'!$A$3:$I$481,9,FALSE) -> 0.00% | GP8: =VLOOKUP(C8,'[17]pnb bdd'!$A$3:$I$481,8,FALSE) -> 0 | GQ8: 0 | GR8: =VLOOKUP(C8,[19]Import!$B$9:$DB$403,91,FALSE)+VLOOKUP(C8,[19]Import!$B$9:$DB$403,93,FALSE) -> 0 | GS8: 0.45% | GT8: 8.00 | GU8: 0 | GV8: =VLOOKUP(C8,[19]Import!$B$9:$DB$403,99,FALSE)+VLOOKUP(C8,[19]Import!$B$9:$DB$403,101,FALSE) -> 0 | GW8: 0.58% | GX8: 1.00 | GY8: 0 | GZ8: =VLOOKUP(C8,[19]Import!$B$9:$DB$403,95,FALSE)+VLOOKUP(C8,[19]Import!$B$9:$DB$403,97,FALSE) -> 0 | HA8: 0.65% | HB8: 5.00 | HC8: 0 | HD8: =VLOOKUP(C8,[19]Import!$B$9:$DB$403,103,FALSE)+VLOOKUP(C8,[19]Import!$B$9:$DB$403,105,FALSE) -> 0 | HE8: 0.40% | HF8: 1.00 | HG8: 0 | HH8: =VLOOKUP(C8,[19]Import!$B$9:$DD$403,107,FALSE) -> -1 | HI8: 1.00% | HJ8: 5.00 | HK8: -0 | HL8: =-SUMIF([11]BDD!$F:$F,$C8,[11]BDD!$N:$N)/1000 -> -3 | HM8: =SUMIF([11]BDD!$F:$F,$C8,[11]BDD!$H:$H)/1000 -> 56 | HO8: =IF(ISERROR(IF(VLOOKUP($C8,'Indicateurs Cumulés'!$C$3:$HN$619,186,FALSE)/(VLOOKUP($C8,objectifs!$C$3:$ZZ$618,158,FALSE))>=1.5,(VLOOKUP($C8,objectifs!$C$3:$ZZ$618,158,FALSE))*1.5,IF(VLOOKUP($C8,'Indicateurs Cumulés'!$C$3:$HN$619,186,FALSE)/(VLOOKUP($C8,objectifs!$C$3:$ZZ$618,158,FALSE))<=-0.5,(VLOOKUP($C8,objectifs!$C$3:$ZZ$618,158,FALSE))*-0.5,VLOOKUP($C8,'Indicateurs Cumulés'!$C$3:$HN$619,186,FALSE)))),VLOOKUP($C8,'Indicateurs Cumulés'!$C$3:$HN$619,186,FALSE),IF(VLOOKUP($C8,'Indicateurs Cumulés'!$C$3:$HN$619,186,FALSE)/(VLOOKUP($C8,objectifs!$C$3:$ZZ$618,158,FALSE))>=1.5,(VLOOKUP($C8,objectifs!$C$3:$ZZ$618,158,FALSE))*1.5,IF(VLOOKUP($C8,'Indicateurs Cumulés'!$C$3:$HN$619,186,FALSE)/(VLOOKUP($C8,objectifs!$C$3:$ZZ$618,158,FALSE))<=-0.5,(VLOOKUP($C8,objectifs!$C$3:$ZZ$618,158,FALSE))*-0.5,VLOOKUP($C8,'Indicateurs Cumulés'!$C$3:$HN$619,186,FALSE)))) -> -108 | HP8: =SUMIFS([21]Feuil1!$C:$C,[21]Feuil1!$A:$A,C8) -> 0 | HR8: =IF(ISERROR(VLOOKUP($C8,[22]Feuil1!$O$10:$T$350,6,FALSE)),0,VLOOKUP($C8,[22]Feuil1!$O$10:$T$350,6,FALSE)) -> 2.6 | HT8: 4.69% | HU8: 0.37% | HV8: 0.00% | HW8: =VLOOKUP($C8,[12]VN!$B$4:$AV$500,3,FALSE) -> -5 | HX8: =VLOOKUP($C8,[12]VN!$B$4:$AV$500,16,FALSE) -> -1 | HY8: =VLOOKUP($C8,[12]VN!$B$4:$AV$500,34,FALSE) -> -1 | HZ8: =VLOOKUP($C8,[12]VN!$B$4:$AV$500,14,FALSE) -> 0 | IA8: =VLOOKUP($C8,[12]VN!$B$4:$AV$500,32,FALSE)+VLOOKUP($C8,[12]VN!$B$4:$AV$500,17,FALSE) -> -5 | IB8: =VLOOKUP($C8,[12]VN!$B$4:$AV$500,11,FALSE) -> 0 | IC8: =VLOOKUP($C8,[12]VN!$B$4:$AV$500,15,FALSE) -> -4 | ID8: =VLOOKUP($C8,[12]VN!$B$4:$AV$361,39,FALSE)-KY8 -> -5 | IE8: =VLOOKUP($C8,[12]VN!$B$4:$AV$361,40,FALSE) -> 2 | IF8: =VLOOKUP($C8,[12]VN!$B$4:$AV$361,41,FALSE) -> -1 | IG8: =VLOOKUP($C8,[12]VN!$B$4:$AV$361,42,FALSE) -> 0 | IH8: =VLOOKUP($C8,[12]VN!$B$4:$AV$361,43,FALSE) -> 0 | II8: =VLOOKUP($C8,[12]VN!$B$4:$AV$361,45,FALSE) -> -1 | IJ8: =VLOOKUP($C8,[12]VN!$B$4:$AV$361,44,FALSE) -> 0 | IK8: =VLOOKUP($C8,[12]VN!$B$4:$AV$361,46,FALSE) -> -10 | IL8: =VLOOKUP($C8,[12]VN!$B$4:$AV$361,47,FALSE) -> -2 | IM8: -1 | IN8: -0 | IO8: -0 | IP8: 0 | IQ8: -0 | IR8: 0 | IS8: -0 | IT8: -2 | IU8: 0 | IV8: -1 | IW8: 0 | IX8: 0 | IY8: -1 | IZ8: 0 | JA8: -2 | JB8: -0 | JC8: -11 | JD8: 3 | JE8: =(SUMIFS('[23]CE GEE'!$S:$S,'[23]CE GEE'!$G:$G,C8)+SUMIFS([24]CEGEE!$H:$H,[24]CEGEE!$B:$B,C8))/1000 -> 0 | JF8: -35 | JG8: 4.89 | JH8: 63.61 | JI8: =VLOOKUP($C8,[12]VN!$B$4:$AW$500,48,FALSE) -> 0 | JJ8: 0 | JK8: =VLOOKUP($C8,[19]Import!$B$9:$ZZ$403,69,FALSE) -> 0 | JL8: 0.20% | JM8: =VLOOKUP($C8,[19]Import!$B$9:$ZZ$403,71,FALSE) -> -0 | JO8: =VLOOKUP($C8,[19]Import!$B$9:$ZZ$403,73,FALSE) -> 0 | JP8: =VLOOKUP($C8,[19]Import!$B$9:$ZZ$403,29,FALSE) -> -27 | JQ8: =VLOOKUP($C8,[19]Import!$B$9:$ZZ$403,77,FALSE) -> 7 | JR8: =IF(ISERROR(IF(VLOOKUP($C8,'Indicateurs Cumulés'!$C$3:$HN$619,190,FALSE)/(VLOOKUP($C8,objectifs!$C$3:$ZZ$618,162,FALSE))>=1.5,(VLOOKUP($C8,objectifs!$C$3:$ZZ$618,162,FALSE))*1.5,IF(VLOOKUP($C8,'Indicateurs Cumulés'!$C$3:$HN$619,190,FALSE)/(VLOOKUP($C8,objectifs!$C$3:$ZZ$618,162,FALSE))<=-0.5,(VLOOKUP($C8,objectifs!$C$3:$ZZ$618,162,FALSE))*-0.5,VLOOKUP($C8,'Indicateurs Cumulés'!$C$3:$HN$619,190,FALSE)))),VLOOKUP($C8,'Indicateurs Cumulés'!$C$3:$HN$619,190,FALSE),IF(VLOOKUP($C8,'Indicateurs Cumulés'!$C$3:$HN$619,190,FALSE)/(VLOOKUP($C8,objectifs!$C$3:$ZZ$618,162,FALSE))>=1.5,(VLOOKUP($C8,objectifs!$C$3:$ZZ$618,162,FALSE))*1.5,IF(VLOOKUP($C8,'Indicateurs Cumulés'!$C$3:$HN$619,190,FALSE)/(VLOOKUP($C8,objectifs!$C$3:$ZZ$618,162,FALSE))<=-0.5,(VLOOKUP($C8,objectifs!$C$3:$ZZ$618,162,FALSE))*-0.5,VLOOKUP($C8,'Indicateurs Cumulés'!$C$3:$HN$619,190,FALSE)))) -> 8 | JS8: 0 | JT8: -0 | JV8: 0 | JW8: -1 | JX8: 0 | JY8: 0 | JZ8: -1 | KA8: =VLOOKUP($C8,[12]VN!$B$4:$ZZ$500,53,FALSE) -> 0 | KB8: =VLOOKUP($C8,[12]VN!$B$4:$ZZ$500,52,FALSE) -> 0 | KC8: =VLOOKUP($C8,[12]VN!$B$4:$ZZ$500,51,FALSE) -> 1 | KD8: =VLOOKUP($C8,[12]VN!$B$4:$ZZ$500,49,FALSE) -> 0 | KE8: =VLOOKUP($C8,[12]VN!$B$4:$ZZ$500,50,FALSE) -> 0 | KF8: =VLOOKUP($C8,[12]VN!$B$4:$ZZ$500,28,FALSE) -> 0 | KG8: 0 | KH8: 0 | KI8: 1 | KJ8: 0 | KK8: 0 | KL8: 0 | KM8: 1 | KN8: =VLOOKUP($C8,[12]VN!$B$4:$ZZ$500,54,FALSE) -> -0 | KR8: 4.79 | KS8: 1 | KT8: =VLOOKUP($C8,[19]Import!$B$9:$ZZ$403,81,FALSE) -> 2 | KU8: 0 | KV8: =VLOOKUP(C8,[12]VN!$B$4:$BH$500,59,FALSE) -> -4 | KW8: -1 | KX8: =IF(ISERROR(VLOOKUP(C8,'[25]CFF BDD'!$B:$C,2,FALSE)),0,VLOOKUP(C8,'[25]CFF BDD'!$B:$C,2,FALSE)) -> 0 | KY8: -1 | KZ8: -1 | LA8: =VLOOKUP($C8,[12]VN!$B$4:$CC$500,60,FALSE) -> -1 | LB8: -0 | LC8: 2 | LD8: -4 | LE8: =VLOOKUP($C8,[12]VN!$B$4:$ZZ$500,65,FALSE) -> -1 | LF8: -1 | LG8: =VLOOKUP($C8,[12]VN!$B$4:$ZZ$500,66,FALSE) -> -2 | LH8: -3 | LI8: =VLOOKUP($C8,[12]VN!$B$4:$ZZ$500,67,FALSE) -> -2 | LJ8: -0 | LK8: 4 | LL8: 1.6 | LM8: 6 | LN8: 15 | LO8: -3 | LP8: -4 | LQ8: 0.87 | LR8: =SUMIF([26]BAD!$B:$B,$C8,[26]BAD!$E:$E) -> 11 | LS8: =SUMIF([26]SED!$B:$B,$C8,[26]SED!$E:$E) -> 9 | LT8: =SUMIF([26]SAG!$B:$B,$C8,[26]SAG!$E:$E) -> 106 | LU8: =SUMIF([26]EDOC!$B:$B,$C8,[26]EDOC!$E:$E) -> -14 | LV8: =SUMIF([26]OPTIN!$B:$B,$C8,[26]OPTIN!$E:$E) -> -14 | LW8: =SUMIF([26]SECURPASS!$B:$B,$C8,[26]SECURPASS!$E:$E) -> -1 | LX8: 0.8 | LY8: 0.1 | LZ8: 0.3 | MA8: 0.0 | MB8: 0.0 | MC8: 0.0 | MD8: 4
A9: 105007 | B9: 200262 | C9: 13 | D9: ILLKIRCH NORD | E9: 2019-02-28 | F9: =VLOOKUP($C9,'[7]bench cumul'!$A$3:$AH$633,'[7]bench cumul'!D$1,FALSE) -> 12 | G9: =VLOOKUP($C9,'[7]bench cumul'!$A$3:$AH$633,'[7]bench cumul'!E$1,FALSE) -> 4.32% | H9: =VLOOKUP($C9,'[7]bench cumul'!$A$3:$AH$633,'[7]bench cumul'!F$1,FALSE) -> 1.57 | I9: =VLOOKUP($C9,'[7]bench cumul'!$A$3:$AH$633,'[7]bench cumul'!G$1,FALSE) -> 2019-02-28 | J9: =VLOOKUP($C9,'[7]bench cumul'!$A$3:$AH$633,'[7]bench cumul'!H$1,FALSE) -> 96 | K9: =VLOOKUP($C9,'[7]bench cumul'!$A$3:$AH$633,'[7]bench cumul'!I$1,FALSE) -> 3.94% | L9: =VLOOKUP($C9,'[7]bench cumul'!$A$3:$AH$633,'[7]bench cumul'!J$1,FALSE) -> 1.61 | M9: =VLOOKUP($C9,'[7]bench cumul'!$A$3:$AH$633,'[7]bench cumul'!K$1,FALSE) -> 2.89 | N9: =VLOOKUP($C9,'[7]bench cumul'!$A$3:$AH$633,'[7]bench cumul'!L$1,FALSE) -> 715 | O9: =VLOOKUP($C9,'[7]bench cumul'!$A$3:$AH$633,'[7]bench cumul'!M$1,FALSE) -> 0 | P9: =VLOOKUP($C9,'[7]bench cumul'!$A$3:$AH$633,'[7]bench cumul'!N$1,FALSE) -> -0.19% | Q9: =VLOOKUP($C9,'[7]bench cumul'!$A$3:$AH$633,'[7]bench cumul'!O$1,FALSE) -> 8.25 | R9: =VLOOKUP($C9,'[7]bench cumul'!$A$3:$AH$633,'[7]bench cumul'!P$1,FALSE) -> 12.60 | S9: =VLOOKUP($C9,'[7]bench cumul'!$A$3:$AH$633,'[7]bench cumul'!Q$1,FALSE) -> 0 | T9: =VLOOKUP($C9,'[7]bench cumul'!$A$3:$AH$633,'[7]bench cumul'!R$1,FALSE) -> 0.00% | U9: =VLOOKUP($C9,'[7]bench cumul'!$A$3:$AH$633,'[7]bench cumul'!S$1,FALSE) -> 0 | V9: =VLOOKUP($C9,'[7]bench cumul'!$A$3:$AH$633,'[7]bench cumul'!T$1,FALSE) -> 0 | W9: =VLOOKUP($C9,'[7]bench cumul'!$A$3:$AH$633,'[7]bench cumul'!U$1,FALSE) -> 0.00% | X9: =VLOOKUP($C9,'[7]bench cumul'!$A$3:$AH$633,'[7]bench cumul'!V$1,FALSE) -> 0 | Y9: =VLOOKUP($C9,'[7]bench cumul'!$A$3:$AH$633,'[7]bench cumul'!W$1,FALSE) -> 0 | Z9: =VLOOKUP($C9,'[7]bench cumul'!$A$3:$AH$633,'[7]bench cumul'!X$1,FALSE) -> 0.00% | AA9: =VLOOKUP($C9,'[7]bench cumul'!$A$3:$AH$633,'[7]bench cumul'!Y$1,FALSE) -> 0 | AB9: =VLOOKUP($C9,'[7]bench cumul'!$A$3:$AH$633,'[7]bench cumul'!Z$1,FALSE) -> 2.7 | AC9: =VLOOKUP($C9,'[7]bench cumul'!$A$3:$AH$633,'[7]bench cumul'!AA$1,FALSE) -> 1.0 | AD9: =VLOOKUP($C9,'[7]bench cumul'!$A$3:$AH$633,'[7]bench cumul'!AB$1,FALSE) -> 0 | AE9: =VLOOKUP($C9,'[7]bench cumul'!$A$3:$AH$633,'[7]bench cumul'!AC$1,FALSE) -> 23.9 | AF9: =VLOOKUP($C9,'[7]bench cumul'!$A$3:$AH$633,'[7]bench cumul'!AD$1,FALSE) -> 2.6 | AG9: =VLOOKUP($C9,'[7]bench cumul'!$A$3:$AH$633,'[7]bench cumul'!AE$1,FALSE) -> 1.7 | AH9: =VLOOKUP($C9,'[8]Données Cumulées'!$A$1:$Z$65649,'[8]Données Cumulées'!C$1,FALSE) -> 201902 | AI9: =VLOOKUP($C9,'[8]Données Cumulées'!$A$1:$Z$65649,'[8]Données Cumulées'!D$1,FALSE) -> 0 | AJ9: =VLOOKUP($C9,'[8]Données Cumulées'!$A$1:$Z$65649,'[8]Données Cumulées'!E$1,FALSE) -> 0 | AK9: 0.00% | AL9: =VLOOKUP($C9,'[8]Données Cumulées'!$A$1:$Z$65649,'[8]Données Cumulées'!G$1,FALSE) -> 46.21 | AM9: =VLOOKUP($C9,'[8]Données Cumulées'!$A$1:$Z$65649,'[8]Données Cumulées'!H$1,FALSE) -> 20.20 | AN9: 44% | AO9: =VLOOKUP($C9,'[8]Données Cumulées'!$A$1:$Z$65649,'[8]Données Cumulées'!J$1,FALSE) -> 0.31 | AP9: 0.68% | AQ9: =VLOOKUP($C9,'[8]Données Cumulées'!$A$1:$Z$65649,'[8]Données Cumulées'!L$1,FALSE) -> 106.31 | AR9: =VLOOKUP($C9,'[8]Données Cumulées'!$A$1:$Z$65649,'[8]Données Cumulées'!M$1,FALSE) -> 17.64 | AS9: 16.6% | AT9: =VLOOKUP($C9,'[8]Données Cumulées'!$A$1:$Z$65649,'[8]Données Cumulées'!O$1,FALSE) -> 0.23 | AU9: 0.22% | AV9: =VLOOKUP($C9,'[8]Données Cumulées'!$A$1:$Z$65649,'[8]Données Cumulées'!Q$1,FALSE) -> 22.20 | AW9: =VLOOKUP($C9,'[8]Données Cumulées'!$A$1:$Z$65649,'[8]Données Cumulées'!R$1,FALSE) -> 2.40 | AX9: 10.81% | AY9: =VLOOKUP($C9,'[8]Données Cumulées'!$A$1:$Z$65649,'[8]Données Cumulées'!T$1,FALSE) -> 0.35 | AZ9: 1.57% | BA9: =VLOOKUP($C9,'[8]Données Cumulées'!$A$1:$Z$65649,'[8]Données Cumulées'!V$1,FALSE) -> 174.72 | BB9: =VLOOKUP($C9,'[8]Données Cumulées'!$A$1:$Z$65649,'[8]Données Cumulées'!W$1,FALSE) -> 40.24 | BC9: 23.0% | BD9: =VLOOKUP($C9,'[8]Données Cumulées'!$A$1:$Z$65649,'[8]Données Cumulées'!Y$1,FALSE) -> 0.89 | BE9: 0.51% | BG9: 0 | BH9: 0 | BI9: 9 | BJ9: 2 | BK9: 0 | BL9: =IF(ISERROR(VLOOKUP($D9,'[7]bench cumul'!$B$1:$AG$65598,'[7]bench cumul'!AF$1,FALSE)),P438,VLOOKUP($D9,'[7]bench cumul'!$B$1:$AG$65598,'[7]bench cumul'!AF$1,FALSE)) -> 1.74% | BM9: =IF(ISERROR(VLOOKUP($D9,'[7]bench cumul'!$B$1:$AG$65598,'[7]bench cumul'!AG$1,FALSE)),P438,VLOOKUP($D9,'[7]bench cumul'!$B$1:$AG$65598,'[7]bench cumul'!AG$1,FALSE)) -> 0.00% | BN9: 13 | BO9: =VLOOKUP(BN9,[9]Diversification_Epargne!$A:$L,12,FALSE)/1000 -> 4 | BP9: 0 | BQ9: =VLOOKUP(BN9,[9]Diversification_Epargne!$A:$L,8,FALSE)/1000 -> 15 | BR9: 0 | BS9: 1 | BT9: 1 | BU9: =-IF(ISERROR(VLOOKUP($C9,'[10]Commissions APAFF'!$B:$C,2,FALSE)),0,VLOOKUP($C9,'[10]Commissions APAFF'!$B:$C,2,FALSE)/1000) -> -2 | BX9: =-SUMIF([11]BDD!$H:$H,$C9,[11]BDD!$Q:$Q)/1000 -> 0 | BY9: =VLOOKUP($C9,[12]VN!$B$4:$BX$500,63,FALSE) -> 0 | BZ9: 0 | CA9: =VLOOKUP($C9,[12]VN!$B$4:$BX$500,64,FALSE) -> -1 | CB9: -0 | CC9: =VLOOKUP($C9,[12]VN!$B$4:$BX$500,27,FALSE) -> 0 | CD9: 0 | CE9: =SUMIF([13]Feuil1!$B:$B,C9,[13]Feuil1!$E:$E) -> 2 | CF9: 0.4 | CG9: =VLOOKUP($C9,[12]VN!$B$4:$BZ$361,68,FALSE) -> -4 | CH9: -1 | CI9: =SUMIF([14]Feuil1!$B:$B,C9,[14]Feuil1!$C:$C) -> 0 | CJ9: 0 | CM9: =VLOOKUP($C9,'[15]GEE CUMUL PROS'!$A$5:$O$348,6,FALSE) -> 0.00% | CN9: =VLOOKUP($C9,'[15]GEE CUMUL PROS'!$A$5:$O$348,7,FALSE) -> 0.00% | CO9: =VLOOKUP($C9,'[15]GEE CUMUL PROS'!$A$5:$O$348,15,FALSE) -> 0 | CP9: =VLOOKUP($C9,'[16]Cumul immo PRO'!$A$4:$G$755,6,FALSE)/1000*$CP$3 -> 0 | CQ9: 0 | CR9: =VLOOKUP($C9,'[7]bench cumul'!$A$3:$AK$633,'[7]bench cumul'!AK$1,FALSE) -> 0 | CS9: =VLOOKUP(C9,'[17]pnb bdd'!$A$3:$K$481,11,FALSE) -> 0.00 | CT9: =VLOOKUP($C9,[18]Cumul!$A:$D,4,FALSE) -> 0 | CU9: =VLOOKUP(C9,[18]Cumul!$A:$E,5,FALSE) -> 1 | CV9: =VLOOKUP($C9,'[7]bench cumul'!$A$3:$AK$633,'[7]bench cumul'!AJ$1,FALSE) -> 0 | CW9: 3 | CX9: =VLOOKUP($C9,'[16]Cumul immo BDD'!$A$4:$G$755,4,FALSE) -> 100.00% | CY9: =VLOOKUP($C9,'[16]Cumul immo BDD'!$A$4:$G$755,5,FALSE) -> 188.73% | CZ9: =VLOOKUP($C9,'[16]Cumul immo BDD'!$A$4:$H$755,6,FALSE)/1000*$CZ$3 -> 9 | DA9: =VLOOKUP($C9,'[15]GEE CUMUL BDD'!$A$5:$O$348,6,FALSE) -> 94.79% | DB9: =VLOOKUP($C9,'[15]GEE CUMUL BDD'!$A$5:$O$348,7,FALSE) -> 148.90% | DC9: =VLOOKUP($C9,'[15]GEE CUMUL BDD'!$A$5:$O$348,15,FALSE) -> 2 | DE9: =VLOOKUP($C9,'[16]Cumul mlt tous M'!$A$4:$F$348,4,FALSE) -> 0.00% | DF9: =VLOOKUP($C9,'[16]Cumul mlt tous M'!$A$4:$F$348,5,FALSE) -> 0.00% | DG9: =VLOOKUP($C9,'[16]Cumul mlt tous M'!$A$4:$F$348,6,FALSE)/1000 -> 0 | DH9: =VLOOKUP($C9,[19]Import!$B$9:$BR$403,3,FALSE) -> 12 | DI9: 0.70% | DJ9: 5.33 | DK9: 0 | DL9: =VLOOKUP($C9,[19]Import!$B$9:$BR$403,5,FALSE) -> -153 | DM9: 0.73% | DN9: 5.33 | DO9: -6 | DP9: =VLOOKUP($C9,[19]Import!$B$9:$BR$403,7,FALSE) -> 8 | DQ9: 0.84% | DR9: 5.33 | DS9: 0 | DT9: =VLOOKUP($C9,[19]Import!$B$9:$BR$403,9,FALSE) -> 145 | DU9: 0.63% | DV9: 5.33 | DW9: 5 | DX9: =VLOOKUP($C9,[19]Import!$B$9:$BR$403,11,FALSE) -> 17 | DY9: 0.20% | DZ9: 5.37 | EA9: 0 | EB9: =VLOOKUP($C9,[19]Import!$B$9:$BR$403,13,FALSE) -> -2 | EC9: 0.20% | ED9: 5.37 | EE9: -0 | EF9: =VLOOKUP($C9,[19]Import!$B$9:$BR$403,15,FALSE) -> -4 | EG9: 0.20% | EH9: 5.37 | EI9: -0 | EJ9: =VLOOKUP($C9,[19]Import!$B$9:$BR$403,17,FALSE) -> -41 | EK9: 0.44% | EL9: 5.33 | EM9: -1 | EN9: =VLOOKUP($C9,[19]Import!$B$9:$BR$403,41,FALSE) -> 0 | EO9: 0.10% | EP9: =VLOOKUP($C9,[19]Import!$B$9:$CR$403,87,FALSE) -> 5.33 | EQ9: 0 | ER9: =VLOOKUP($C9,[19]Import!$B$9:$BR$403,39,FALSE) -> -2 | ES9: 0.20% | ET9: 9.00 | EU9: -0 | EV9: =VLOOKUP($C9,[19]Import!$B$9:$BR$403,43,FALSE) -> 24 | EW9: 0.00% | EX9: =IF(VLOOKUP($C9,[19]Import!$B$9:$ZZ$403,89,FALSE)=0,$EX$3,VLOOKUP($C9,[19]Import!$B$9:$ZZ$403,89,FALSE)) -> 8.50 | EY9: 0 | EZ9: =VLOOKUP($C9,[19]Import!$B$9:$BR$403,45,FALSE) -> 0 | FA9: -0.37% | FB9: 0.08 | FC9: 0 | FD9: =VLOOKUP($C9,[19]Import!$B$9:$BR$403,47,FALSE) -> 33 | FE9: 0.45% | FF9: 8.00 | FG9: 1 | FH9: =VLOOKUP($C9,[19]Import!$B$9:$BR$403,49,FALSE) -> 184 | FI9: 0.51% | FJ9: 1.00 | FK9: 1 | FL9: =VLOOKUP($C9,[19]Import!$B$9:$BR$403,51,FALSE) -> 2 | FM9: 0.65% | FN9: 5.00 | FO9: 0 | FP9: =VLOOKUP($C9,[19]Import!$B$9:$BR$403,53,FALSE) -> 2 | FQ9: 0.40% | FR9: 1.00 | FS9: 0 | FT9: =VLOOKUP($C9,[19]Import!$B$9:$BR$403,55,FALSE) -> -57 | FU9: 0.20% | FV9: 8.00 | FW9: -1 | FX9: =VLOOKUP($C9,[19]Import!$B$9:$BR$403,57,FALSE) -> 68 | FY9: 1.00% | FZ9: 5.00 | GA9: 3 | GB9: 30 | GC9: 2 | GD9: 134 | GE9: 7 | GF9: =VLOOKUP($C9,[19]Import!$B$9:$BR$403,59,FALSE) -> -188 | GG9: 1.00% | GH9: 5.37 | GI9: -10 | GJ9: =VLOOKUP($C9,[19]Import!$B$9:$ZZ$403,79,FALSE) -> 8 | GK9: =VLOOKUP(C9,[20]VN!$A:$E,5,FALSE) -> 0 | GL9: 0 | GN9: =VLOOKUP(C9,'[17]pnb bdd'!$A$3:$I$481,7,FALSE) -> 0 | GO9: =VLOOKUP(C9,'[17]pnb bdd'!$A$3:$I$481,9,FALSE) -> 0.00% | GP9: =VLOOKUP(C9,'[17]pnb bdd'!$A$3:$I$481,8,FALSE) -> 0 | GQ9: 0 | GR9: =VLOOKUP(C9,[19]Import!$B$9:$DB$403,91,FALSE)+VLOOKUP(C9,[19]Import!$B$9:$DB$403,93,FALSE) -> 100 | GS9: 0.45% | GT9: 8.00 | GU9: 4 | GV9: =VLOOKUP(C9,[19]Import!$B$9:$DB$403,99,FALSE)+VLOOKUP(C9,[19]Import!$B$9:$DB$403,101,FALSE) -> 100 | GW9: 0.51% | GX9: 1.00 | GY9: 1 | GZ9: =VLOOKUP(C9,[19]Import!$B$9:$DB$403,95,FALSE)+VLOOKUP(C9,[19]Import!$B$9:$DB$403,97,FALSE) -> 0 | HA9: 0.65% | HB9: 5.00 | HC9: 0 | HD9: =VLOOKUP(C9,[19]Import!$B$9:$DB$403,103,FALSE)+VLOOKUP(C9,[19]Import!$B$9:$DB$403,105,FALSE) -> 0 | HE9: 0.40% | HF9: 1.00 | HG9: 0 | HH9: =VLOOKUP(C9,[19]Import!$B$9:$DD$403,107,FALSE) -> -0 | HI9: 1.00% | HJ9: 5.00 | HK9: -0 | HL9: =-SUMIF([11]BDD!$F:$F,$C9,[11]BDD!$N:$N)/1000 -> -2 | HM9: =SUMIF([11]BDD!$F:$F,$C9,[11]BDD!$H:$H)/1000 -> 31 | HO9: =IF(ISERROR(IF(VLOOKUP($C9,'Indicateurs Cumulés'!$C$3:$HN$619,186,FALSE)/(VLOOKUP($C9,objectifs!$C$3:$ZZ$618,158,FALSE))>=1.5,(VLOOKUP($C9,objectifs!$C$3:$ZZ$618,158,FALSE))*1.5,IF(VLOOKUP($C9,'Indicateurs Cumulés'!$C$3:$HN$619,186,FALSE)/(VLOOKUP($C9,objectifs!$C$3:$ZZ$618,158,FALSE))<=-0.5,(VLOOKUP($C9,objectifs!$C$3:$ZZ$618,158,FALSE))*-0.5,VLOOKUP($C9,'Indicateurs Cumulés'!$C$3:$HN$619,186,FALSE)))),VLOOKUP($C9,'Indicateurs Cumulés'!$C$3:$HN$619,186,FALSE),IF(VLOOKUP($C9,'Indicateurs Cumulés'!$C$3:$HN$619,186,FALSE)/(VLOOKUP($C9,objectifs!$C$3:$ZZ$618,158,FALSE))>=1.5,(VLOOKUP($C9,objectifs!$C$3:$ZZ$618,158,FALSE))*1.5,IF(VLOOKUP($C9,'Indicateurs Cumulés'!$C$3:$HN$619,186,FALSE)/(VLOOKUP($C9,objectifs!$C$3:$ZZ$618,158,FALSE))<=-0.5,(VLOOKUP($C9,objectifs!$C$3:$ZZ$618,158,FALSE))*-0.5,VLOOKUP($C9,'Indicateurs Cumulés'!$C$3:$HN$619,186,FALSE)))) -> -107 | HP9: =SUMIFS([21]Feuil1!$C:$C,[21]Feuil1!$A:$A,C9) -> 0 | HR9: =IF(ISERROR(VLOOKUP($C9,[22]Feuil1!$O$10:$T$350,6,FALSE)),0,VLOOKUP($C9,[22]Feuil1!$O$10:$T$350,6,FALSE)) -> 2.0 | HT9: 5.31% | HU9: 0.04% | HV9: 0.00% | HW9: =VLOOKUP($C9,[12]VN!$B$4:$AV$500,3,FALSE) -> 7 | HX9: =VLOOKUP($C9,[12]VN!$B$4:$AV$500,16,FALSE) -> 6 | HY9: =VLOOKUP($C9,[12]VN!$B$4:$AV$500,34,FALSE) -> 0 | HZ9: =VLOOKUP($C9,[12]VN!$B$4:$AV$500,14,FALSE) -> -1 | IA9: =VLOOKUP($C9,[12]VN!$B$4:$AV$500,32,FALSE)+VLOOKUP($C9,[12]VN!$B$4:$AV$500,17,FALSE) -> -1 | IB9: =VLOOKUP($C9,[12]VN!$B$4:$AV$500,11,FALSE) -> 0 | IC9: =VLOOKUP($C9,[12]VN!$B$4:$AV$500,15,FALSE) -> 3 | ID9: =VLOOKUP($C9,[12]VN!$B$4:$AV$361,39,FALSE)-KY9 -> 6 | IE9: =VLOOKUP($C9,[12]VN!$B$4:$AV$361,40,FALSE) -> 0 | IF9: =VLOOKUP($C9,[12]VN!$B$4:$AV$361,41,FALSE) -> -3 | IG9: =VLOOKUP($C9,[12]VN!$B$4:$AV$361,42,FALSE) -> -1 | IH9: =VLOOKUP($C9,[12]VN!$B$4:$AV$361,43,FALSE) -> 1 | II9: =VLOOKUP($C9,[12]VN!$B$4:$AV$361,45,FALSE) -> -1 | IJ9: =VLOOKUP($C9,[12]VN!$B$4:$AV$361,44,FALSE) -> -5 | IK9: =VLOOKUP($C9,[12]VN!$B$4:$AV$361,46,FALSE) -> -3 | IL9: =VLOOKUP($C9,[12]VN!$B$4:$AV$361,47,FALSE) -> 0 | IM9: 1 | IN9: 1 | IO9: 0 | IP9: -0 | IQ9: -0 | IR9: 0 | IS9: 0 | IT9: 3 | IU9: 0 | IV9: -2 | IW9: -1 | IX9: 2 | IY9: -1 | IZ9: -3 | JA9: -1 | JB9: 0 | JC9: -3 | JD9: 2 | JE9: =(SUMIFS('[23]CE GEE'!$S:$S,'[23]CE GEE'!$G:$G,C9)+SUMIFS([24]CEGEE!$H:$H,[24]CEGEE!$B:$B,C9))/1000 -> 0 | JF9: 3 | JG9: -1.85 | JH9: 595.00 | JI9: =VLOOKUP($C9,[12]VN!$B$4:$AW$500,48,FALSE) -> 0 | JJ9: 0 | JK9: =VLOOKUP($C9,[19]Import!$B$9:$ZZ$403,69,FALSE) -> 0 | JL9: 0.20% | JM9: =VLOOKUP($C9,[19]Import!$B$9:$ZZ$403,71,FALSE) -> 0 | JO9: =VLOOKUP($C9,[19]Import!$B$9:$ZZ$403,73,FALSE) -> 0 | JP9: =VLOOKUP($C9,[19]Import!$B$9:$ZZ$403,29,FALSE) -> 15 | JQ9: =VLOOKUP($C9,[19]Import!$B$9:$ZZ$403,77,FALSE) -> 30 | JR9: =IF(ISERROR(IF(VLOOKUP($C9,'Indicateurs Cumulés'!$C$3:$HN$619,190,FALSE)/(VLOOKUP($C9,objectifs!$C$3:$ZZ$618,162,FALSE))>=1.5,(VLOOKUP($C9,objectifs!$C$3:$ZZ$618,162,FALSE))*1.5,IF(VLOOKUP($C9,'Indicateurs Cumulés'!$C$3:$HN$619,190,FALSE)/(VLOOKUP($C9,objectifs!$C$3:$ZZ$618,162,FALSE))<=-0.5,(VLOOKUP($C9,objectifs!$C$3:$ZZ$618,162,FALSE))*-0.5,VLOOKUP($C9,'Indicateurs Cumulés'!$C$3:$HN$619,190,FALSE)))),VLOOKUP($C9,'Indicateurs Cumulés'!$C$3:$HN$619,190,FALSE),IF(VLOOKUP($C9,'Indicateurs Cumulés'!$C$3:$HN$619,190,FALSE)/(VLOOKUP($C9,objectifs!$C$3:$ZZ$618,162,FALSE))>=1.5,(VLOOKUP($C9,objectifs!$C$3:$ZZ$618,162,FALSE))*1.5,IF(VLOOKUP($C9,'Indicateurs Cumulés'!$C$3:$HN$619,190,FALSE)/(VLOOKUP($C9,objectifs!$C$3:$ZZ$618,162,FALSE))<=-0.5,(VLOOKUP($C9,objectifs!$C$3:$ZZ$618,162,FALSE))*-0.5,VLOOKUP($C9,'Indicateurs Cumulés'!$C$3:$HN$619,190,FALSE)))) -> 8 | JS9: 0 | JT9: 0 | JV9: 0 | JW9: 1 | JX9: 1 | JY9: 0 | JZ9: 2 | KA9: =VLOOKUP($C9,[12]VN!$B$4:$ZZ$500,53,FALSE) -> 2 | KB9: =VLOOKUP($C9,[12]VN!$B$4:$ZZ$500,52,FALSE) -> 0 | KC9: =VLOOKUP($C9,[12]VN!$B$4:$ZZ$500,51,FALSE) -> 0 | KD9: =VLOOKUP($C9,[12]VN!$B$4:$ZZ$500,49,FALSE) -> 1 | KE9: =VLOOKUP($C9,[12]VN!$B$4:$ZZ$500,50,FALSE) -> 0 | KF9: =VLOOKUP($C9,[12]VN!$B$4:$ZZ$500,28,FALSE) -> 0 | KG9: 3 | KH9: 0 | KI9: 0 | KJ9: 0 | KK9: 0 | KL9: 0 | KM9: 3 | KN9: =VLOOKUP($C9,[12]VN!$B$4:$ZZ$500,54,FALSE) -> -0 | KR9: 3.53 | KS9: 3 | KT9: =VLOOKUP($C9,[19]Import!$B$9:$ZZ$403,81,FALSE) -> 1 | KU9: 0 | KV9: =VLOOKUP(C9,[12]VN!$B$4:$BH$500,59,FALSE) -> 0 | KW9: 0 | KX9: =IF(ISERROR(VLOOKUP(C9,'[25]CFF BDD'!$B:$C,2,FALSE)),0,VLOOKUP(C9,'[25]CFF BDD'!$B:$C,2,FALSE)) -> 0 | KY9: -5 | KZ9: -3 | LA9: =VLOOKUP($C9,[12]VN!$B$4:$CC$500,60,FALSE) -> 0 | LB9: 0 | LC9: 15 | LD9: 5 | LE9: =VLOOKUP($C9,[12]VN!$B$4:$ZZ$500,65,FALSE) -> 0 | LF9: 0 | LG9: =VLOOKUP($C9,[12]VN!$B$4:$ZZ$500,66,FALSE) -> 0 | LH9: 0 | LI9: =VLOOKUP($C9,[12]VN!$B$4:$ZZ$500,67,FALSE) -> 5 | LJ9: 1 | LK9: 12 | LL9: 6.2 | LM9: 8 | LN9: 11 | LO9: -2 | LP9: 1 | LQ9: 7.76 | LR9: =SUMIF([26]BAD!$B:$B,$C9,[26]BAD!$E:$E) -> 9 | LS9: =SUMIF([26]SED!$B:$B,$C9,[26]SED!$E:$E) -> 29 | LT9: =SUMIF([26]SAG!$B:$B,$C9,[26]SAG!$E:$E) -> 91 | LU9: =SUMIF([26]EDOC!$B:$B,$C9,[26]EDOC!$E:$E) -> 6 | LV9: =SUMIF([26]OPTIN!$B:$B,$C9,[26]OPTIN!$E:$E) -> 45 | LW9: =SUMIF([26]SECURPASS!$B:$B,$C9,[26]SECURPASS!$E:$E) -> 0 | LX9: 0.7 | LY9: 0.3 | LZ9: 0.3 | MA9: 0.3 | MB9: 0.7 | MC9: 0.0 | MD9: 18
A10: 105007 | B10: 200262 | C10: 14 | D10: OSTWALD | E10: 2019-02-28 | F10: =VLOOKUP($C10,'[7]bench cumul'!$A$3:$AH$633,'[7]bench cumul'!D$1,FALSE) -> 13 | G10: =VLOOKUP($C10,'[7]bench cumul'!$A$3:$AH$633,'[7]bench cumul'!E$1,FALSE) -> 4.32% | H10: =VLOOKUP($C10,'[7]bench cumul'!$A$3:$AH$633,'[7]bench cumul'!F$1,FALSE) -> 1.57 | I10: =VLOOKUP($C10,'[7]bench cumul'!$A$3:$AH$633,'[7]bench cumul'!G$1,FALSE) -> 2019-02-28 | J10: =VLOOKUP($C10,'[7]bench cumul'!$A$3:$AH$633,'[7]bench cumul'!H$1,FALSE) -> 170 | K10: =VLOOKUP($C10,'[7]bench cumul'!$A$3:$AH$633,'[7]bench cumul'!I$1,FALSE) -> 3.10% | L10: =VLOOKUP($C10,'[7]bench cumul'!$A$3:$AH$633,'[7]bench cumul'!J$1,FALSE) -> 2.44 | M10: =VLOOKUP($C10,'[7]bench cumul'!$A$3:$AH$633,'[7]bench cumul'!K$1,FALSE) -> 4.12 | N10: =VLOOKUP($C10,'[7]bench cumul'!$A$3:$AH$633,'[7]bench cumul'!L$1,FALSE) -> 622 | O10: =VLOOKUP($C10,'[7]bench cumul'!$A$3:$AH$633,'[7]bench cumul'!M$1,FALSE) -> 0 | P10: =VLOOKUP($C10,'[7]bench cumul'!$A$3:$AH$633,'[7]bench cumul'!N$1,FALSE) -> 0.10% | Q10: =VLOOKUP($C10,'[7]bench cumul'!$A$3:$AH$633,'[7]bench cumul'!O$1,FALSE) -> 6.71 | R10: =VLOOKUP($C10,'[7]bench cumul'!$A$3:$AH$633,'[7]bench cumul'!P$1,FALSE) -> 10.07 | S10: =VLOOKUP($C10,'[7]bench cumul'!$A$3:$AH$633,'[7]bench cumul'!Q$1,FALSE) -> 10 | T10: =VLOOKUP($C10,'[7]bench cumul'!$A$3:$AH$633,'[7]bench cumul'!R$1,FALSE) -> 2.18% | U10: =VLOOKUP($C10,'[7]bench cumul'!$A$3:$AH$633,'[7]bench cumul'!S$1,FALSE) -> 0.96 | V10: =VLOOKUP($C10,'[7]bench cumul'!$A$3:$AH$633,'[7]bench cumul'!T$1,FALSE) -> 0 | W10: =VLOOKUP($C10,'[7]bench cumul'!$A$3:$AH$633,'[7]bench cumul'!U$1,FALSE) -> 0.00% | X10: =VLOOKUP($C10,'[7]bench cumul'!$A$3:$AH$633,'[7]bench cumul'!V$1,FALSE) -> 0 | Y10: =VLOOKUP($C10,'[7]bench cumul'!$A$3:$AH$633,'[7]bench cumul'!W$1,FALSE) -> 490 | Z10: =VLOOKUP($C10,'[7]bench cumul'!$A$3:$AH$633,'[7]bench cumul'!X$1,FALSE) -> -0.16% | AA10: =VLOOKUP($C10,'[7]bench cumul'!$A$3:$AH$633,'[7]bench cumul'!Y$1,FALSE) -> 4.38 | AB10: =VLOOKUP($C10,'[7]bench cumul'!$A$3:$AH$633,'[7]bench cumul'!Z$1,FALSE) -> 1.5 | AC10: =VLOOKUP($C10,'[7]bench cumul'!$A$3:$AH$633,'[7]bench cumul'!AA$1,FALSE) -> 1.2 | AD10: =VLOOKUP($C10,'[7]bench cumul'!$A$3:$AH$633,'[7]bench cumul'!AB$1,FALSE) -> 0.5 | AE10: =VLOOKUP($C10,'[7]bench cumul'!$A$3:$AH$633,'[7]bench cumul'!AC$1,FALSE) -> 18.1 | AF10: =VLOOKUP($C10,'[7]bench cumul'!$A$3:$AH$633,'[7]bench cumul'!AD$1,FALSE) -> 3.0 | AG10: =VLOOKUP($C10,'[7]bench cumul'!$A$3:$AH$633,'[7]bench cumul'!AE$1,FALSE) -> 1.2 | AH10: =VLOOKUP($C10,'[8]Données Cumulées'!$A$1:$Z$65649,'[8]Données Cumulées'!C$1,FALSE) -> 201902 | AI10: =VLOOKUP($C10,'[8]Données Cumulées'!$A$1:$Z$65649,'[8]Données Cumulées'!D$1,FALSE) -> 0 | AJ10: =VLOOKUP($C10,'[8]Données Cumulées'!$A$1:$Z$65649,'[8]Données Cumulées'!E$1,FALSE) -> 0 | AK10: 0.00% | AL10: =VLOOKUP($C10,'[8]Données Cumulées'!$A$1:$Z$65649,'[8]Données Cumulées'!G$1,FALSE) -> 82.48 | AM10: =VLOOKUP($C10,'[8]Données Cumulées'!$A$1:$Z$65649,'[8]Données Cumulées'!H$1,FALSE) -> 22.09 | AN10: 27% | AO10: =VLOOKUP($C10,'[8]Données Cumulées'!$A$1:$Z$65649,'[8]Données Cumulées'!J$1,FALSE) -> 0.40 | AP10: 0.48% | AQ10: =VLOOKUP($C10,'[8]Données Cumulées'!$A$1:$Z$65649,'[8]Données Cumulées'!L$1,FALSE) -> 130.59 | AR10: =VLOOKUP($C10,'[8]Données Cumulées'!$A$1:$Z$65649,'[8]Données Cumulées'!M$1,FALSE) -> 7.87 | AS10: 6.0% | AT10: =VLOOKUP($C10,'[8]Données Cumulées'!$A$1:$Z$65649,'[8]Données Cumulées'!O$1,FALSE) -> 0.02 | AU10: 0.01% | AV10: =VLOOKUP($C10,'[8]Données Cumulées'!$A$1:$Z$65649,'[8]Données Cumulées'!Q$1,FALSE) -> 5.69 | AW10: =VLOOKUP($C10,'[8]Données Cumulées'!$A$1:$Z$65649,'[8]Données Cumulées'!R$1,FALSE) -> 0.35 | AX10: 6.22% | AY10: =VLOOKUP($C10,'[8]Données Cumulées'!$A$1:$Z$65649,'[8]Données Cumulées'!T$1,FALSE) -> 0.13 | AZ10: 2.37% | BA10: =VLOOKUP($C10,'[8]Données Cumulées'!$A$1:$Z$65649,'[8]Données Cumulées'!V$1,FALSE) -> 218.76 | BB10: =VLOOKUP($C10,'[8]Données Cumulées'!$A$1:$Z$65649,'[8]Données Cumulées'!W$1,FALSE) -> 30.31 | BC10: 13.9% | BD10: =VLOOKUP($C10,'[8]Données Cumulées'!$A$1:$Z$65649,'[8]Données Cumulées'!Y$1,FALSE) -> 0.55 | BE10: 0.25% | BG10: 0 | BH10: 0 | BI10: 17 | BJ10: 27 | BK10: -3 | BL10: =IF(ISERROR(VLOOKUP($D10,'[7]bench cumul'!$B$1:$AG$65598,'[7]bench cumul'!AF$1,FALSE)),P439,VLOOKUP($D10,'[7]bench cumul'!$B$1:$AG$65598,'[7]bench cumul'!AF$1,FALSE)) -> 1.65% | BM10: =IF(ISERROR(VLOOKUP($D10,'[7]bench cumul'!$B$1:$AG$65598,'[7]bench cumul'!AG$1,FALSE)),P439,VLOOKUP($D10,'[7]bench cumul'!$B$1:$AG$65598,'[7]bench cumul'!AG$1,FALSE)) -> 0.00% | BN10: 14 | BO10: =VLOOKUP(BN10,[9]Diversification_Epargne!$A:$L,12,FALSE)/1000 -> 39 | BP10: 1 | BQ10: =VLOOKUP(BN10,[9]Diversification_Epargne!$A:$L,8,FALSE)/1000 -> 12 | BR10: 0 | BS10: 2 | BT10: 1 | BU10: =-IF(ISERROR(VLOOKUP($C10,'[10]Commissions APAFF'!$B:$C,2,FALSE)),0,VLOOKUP($C10,'[10]Commissions APAFF'!$B:$C,2,FALSE)/1000) -> -3 | BX10: =-SUMIF([11]BDD!$H:$H,$C10,[11]BDD!$Q:$Q)/1000 -> 0 | BY10: =VLOOKUP($C10,[12]VN!$B$4:$BX$500,63,FALSE) -> 0 | BZ10: 0 | CA10: =VLOOKUP($C10,[12]VN!$B$4:$BX$500,64,FALSE) -> 0 | CB10: 0 | CC10: =VLOOKUP($C10,[12]VN!$B$4:$BX$500,27,FALSE) -> 0 | CD10: 0 | CE10: =SUMIF([13]Feuil1!$B:$B,C10,[13]Feuil1!$E:$E) -> 4 | CF10: 0.8 | CG10: =VLOOKUP($C10,[12]VN!$B$4:$BZ$361,68,FALSE) -> -4 | CH10: -1 | CI10: =SUMIF([14]Feuil1!$B:$B,C10,[14]Feuil1!$C:$C) -> 0 | CJ10: 0 | CM10: =VLOOKUP($C10,'[15]GEE CUMUL PROS'!$A$5:$O$348,6,FALSE) -> 100.00% | CN10: =VLOOKUP($C10,'[15]GEE CUMUL PROS'!$A$5:$O$348,7,FALSE) -> 100.00% | CO10: =VLOOKUP($C10,'[15]GEE CUMUL PROS'!$A$5:$O$348,15,FALSE) -> 0 | CP10: =VLOOKUP($C10,'[16]Cumul immo PRO'!$A$4:$G$755,6,FALSE)/1000*$CP$3 -> 0 | CQ10: 0.5 | CR10: =VLOOKUP($C10,'[7]bench cumul'!$A$3:$AK$633,'[7]bench cumul'!AK$1,FALSE) -> 0 | CS10: =VLOOKUP(C10,'[17]pnb bdd'!$A$3:$K$481,11,FALSE) -> 0.00 | CT10: =VLOOKUP($C10,[18]Cumul!$A:$D,4,FALSE) -> 0 | CU10: =VLOOKUP(C10,[18]Cumul!$A:$E,5,FALSE) -> 0 | CV10: =VLOOKUP($C10,'[7]bench cumul'!$A$3:$AK$633,'[7]bench cumul'!AJ$1,FALSE) -> 0 | CW10: 1 | CX10: =VLOOKUP($C10,'[16]Cumul immo BDD'!$A$4:$G$755,4,FALSE) -> 100.00% | CY10: =VLOOKUP($C10,'[16]Cumul immo BDD'!$A$4:$G$755,5,FALSE) -> 159.34% | CZ10: =VLOOKUP($C10,'[16]Cumul immo BDD'!$A$4:$H$755,6,FALSE)/1000*$CZ$3 -> 20 | DA10: =VLOOKUP($C10,'[15]GEE CUMUL BDD'!$A$5:$O$348,6,FALSE) -> 89.06% | DB10: =VLOOKUP($C10,'[15]GEE CUMUL BDD'!$A$5:$O$348,7,FALSE) -> 134.69% | DC10: =VLOOKUP($C10,'[15]GEE CUMUL BDD'!$A$5:$O$348,15,FALSE) -> 3 | DE10: =VLOOKUP($C10,'[16]Cumul mlt tous M'!$A$4:$F$348,4,FALSE) -> 0.00% | DF10: =VLOOKUP($C10,'[16]Cumul mlt tous M'!$A$4:$F$348,5,FALSE) -> 0.00% | DG10: =VLOOKUP($C10,'[16]Cumul mlt tous M'!$A$4:$F$348,6,FALSE)/1000 -> 0 | DH10: =VLOOKUP($C10,[19]Import!$B$9:$BR$403,3,FALSE) -> 48 | DI10: 0.70% | DJ10: 5.33 | DK10: 2 | DL10: =VLOOKUP($C10,[19]Import!$B$9:$BR$403,5,FALSE) -> 77 | DM10: 0.73% | DN10: 5.33 | DO10: 3 | DP10: =VLOOKUP($C10,[19]Import!$B$9:$BR$403,7,FALSE) -> -21 | DQ10: 0.84% | DR10: 5.33 | DS10: -1 | DT10: =VLOOKUP($C10,[19]Import!$B$9:$BR$403,9,FALSE) -> 123 | DU10: 0.63% | DV10: 5.33 | DW10: 4 | DX10: =VLOOKUP($C10,[19]Import!$B$9:$BR$403,11,FALSE) -> -9 | DY10: 0.20% | DZ10: 5.37 | EA10: -0 | EB10: =VLOOKUP($C10,[19]Import!$B$9:$BR$403,13,FALSE) -> 9 | EC10: 0.20% | ED10: 5.37 | EE10: 0 | EF10: =VLOOKUP($C10,[19]Import!$B$9:$BR$403,15,FALSE) -> -8 | EG10: 0.20% | EH10: 5.37 | EI10: -0 | EJ10: =VLOOKUP($C10,[19]Import!$B$9:$BR$403,17,FALSE) -> -8 | EK10: 0.44% | EL10: 5.33 | EM10: -0 | EN10: =VLOOKUP($C10,[19]Import!$B$9:$BR$403,41,FALSE) -> 1 | EO10: 0.10% | EP10: =VLOOKUP($C10,[19]Import!$B$9:$CR$403,87,FALSE) -> 5.33 | EQ10: 0 | ER10: =VLOOKUP($C10,[19]Import!$B$9:$BR$403,39,FALSE) -> -4 | ES10: 0.20% | ET10: 9.00 | EU10: -0 | EV10: =VLOOKUP($C10,[19]Import!$B$9:$BR$403,43,FALSE) -> -21 | EW10: 0.00% | EX10: =IF(VLOOKUP($C10,[19]Import!$B$9:$ZZ$403,89,FALSE)=0,$EX$3,VLOOKUP($C10,[19]Import!$B$9:$ZZ$403,89,FALSE)) -> 8.50 | EY10: 0 | EZ10: =VLOOKUP($C10,[19]Import!$B$9:$BR$403,45,FALSE) -> 0 | FA10: -0.37% | FB10: 0.08 | FC10: 0 | FD10: =VLOOKUP($C10,[19]Import!$B$9:$BR$403,47,FALSE) -> 96 | FE10: 0.45% | FF10: 8.00 | FG10: 3 | FH10: =VLOOKUP($C10,[19]Import!$B$9:$BR$403,49,FALSE) -> 153 | FI10: 0.25% | FJ10: 1.00 | FK10: 0 | FL10: =VLOOKUP($C10,[19]Import!$B$9:$BR$403,51,FALSE) -> -9 | FM10: 0.65% | FN10: 5.00 | FO10: -0 | FP10: =VLOOKUP($C10,[19]Import!$B$9:$BR$403,53,FALSE) -> 2 | FQ10: 0.40% | FR10: 1.00 | FS10: 0 | FT10: =VLOOKUP($C10,[19]Import!$B$9:$BR$403,55,FALSE) -> -112 | FU10: 0.20% | FV10: 8.00 | FW10: -2 | FX10: =VLOOKUP($C10,[19]Import!$B$9:$BR$403,57,FALSE) -> 33 | FY10: 1.00% | FZ10: 5.00 | GA10: 2 | GB10: 61 | GC10: 6 | GD10: 85 | GE10: 5 | GF10: =VLOOKUP($C10,[19]Import!$B$9:$BR$403,59,FALSE) -> -120 | GG10: 1.00% | GH10: 5.37 | GI10: -6 | GJ10: =VLOOKUP($C10,[19]Import!$B$9:$ZZ$403,79,FALSE) -> -207 | GK10: =VLOOKUP(C10,[20]VN!$A:$E,5,FALSE) -> 0 | GL10: 0 | GN10: =VLOOKUP(C10,'[17]pnb bdd'!$A$3:$I$481,7,FALSE) -> 0 | GO10: =VLOOKUP(C10,'[17]pnb bdd'!$A$3:$I$481,9,FALSE) -> 0.00% | GP10: =VLOOKUP(C10,'[17]pnb bdd'!$A$3:$I$481,8,FALSE) -> 0 | GQ10: 0 | GR10: =VLOOKUP(C10,[19]Import!$B$9:$DB$403,91,FALSE)+VLOOKUP(C10,[19]Import!$B$9:$DB$403,93,FALSE) -> 0 | GS10: 0.45% | GT10: 8.00 | GU10: 0 | GV10: =VLOOKUP(C10,[19]Import!$B$9:$DB$403,99,FALSE)+VLOOKUP(C10,[19]Import!$B$9:$DB$403,101,FALSE) -> 0 | GW10: 0.25% | GX10: 1.00 | GY10: 0 | GZ10: =VLOOKUP(C10,[19]Import!$B$9:$DB$403,95,FALSE)+VLOOKUP(C10,[19]Import!$B$9:$DB$403,97,FALSE) -> 0 | HA10: 0.65% | HB10: 5.00 | HC10: 0 | HD10: =VLOOKUP(C10,[19]Import!$B$9:$DB$403,103,FALSE)+VLOOKUP(C10,[19]Import!$B$9:$DB$403,105,FALSE) -> 0 | HE10: 0.40% | HF10: 1.00 | HG10: 0 | HH10: =VLOOKUP(C10,[19]Import!$B$9:$DD$403,107,FALSE) -> -1 | HI10: 1.00% | HJ10: 5.00 | HK10: -0 | HL10: =-SUMIF([11]BDD!$F:$F,$C10,[11]BDD!$N:$N)/1000 -> -2 | HM10: =SUMIF([11]BDD!$F:$F,$C10,[11]BDD!$H:$H)/1000 -> 34 | HO10: =IF(ISERROR(IF(VLOOKUP($C10,'Indicateurs Cumulés'!$C$3:$HN$619,186,FALSE)/(VLOOKUP($C10,objectifs!$C$3:$ZZ$618,158,FALSE))>=1.5,(VLOOKUP($C10,objectifs!$C$3:$ZZ$618,158,FALSE))*1.5,IF(VLOOKUP($C10,'Indicateurs Cumulés'!$C$3:$HN$619,186,FALSE)/(VLOOKUP($C10,objectifs!$C$3:$ZZ$618,158,FALSE))<=-0.5,(VLOOKUP($C10,objectifs!$C$3:$ZZ$618,158,FALSE))*-0.5,VLOOKUP($C10,'Indicateurs Cumulés'!$C$3:$HN$619,186,FALSE)))),VLOOKUP($C10,'Indicateurs Cumulés'!$C$3:$HN$619,186,FALSE),IF(VLOOKUP($C10,'Indicateurs Cumulés'!$C$3:$HN$619,186,FALSE)/(VLOOKUP($C10,objectifs!$C$3:$ZZ$618,158,FALSE))>=1.5,(VLOOKUP($C10,objectifs!$C$3:$ZZ$618,158,FALSE))*1.5,IF(VLOOKUP($C10,'Indicateurs Cumulés'!$C$3:$HN$619,186,FALSE)/(VLOOKUP($C10,objectifs!$C$3:$ZZ$618,158,FALSE))<=-0.5,(VLOOKUP($C10,objectifs!$C$3:$ZZ$618,158,FALSE))*-0.5,VLOOKUP($C10,'Indicateurs Cumulés'!$C$3:$HN$619,186,FALSE)))) -> -98 | HP10: =SUMIFS([21]Feuil1!$C:$C,[21]Feuil1!$A:$A,C10) -> 0 | HR10: =IF(ISERROR(VLOOKUP($C10,[22]Feuil1!$O$10:$T$350,6,FALSE)),0,VLOOKUP($C10,[22]Feuil1!$O$10:$T$350,6,FALSE)) -> 2.0 | HT10: 3.85% | HU10: 0.65% | HV10: -0.14% | HW10: =VLOOKUP($C10,[12]VN!$B$4:$AV$500,3,FALSE) -> 9 | HX10: =VLOOKUP($C10,[12]VN!$B$4:$AV$500,16,FALSE) -> 7 | HY10: =VLOOKUP($C10,[12]VN!$B$4:$AV$500,34,FALSE) -> 0 | HZ10: =VLOOKUP($C10,[12]VN!$B$4:$AV$500,14,FALSE) -> -1 | IA10: =VLOOKUP($C10,[12]VN!$B$4:$AV$500,32,FALSE)+VLOOKUP($C10,[12]VN!$B$4:$AV$500,17,FALSE) -> -2 | IB10: =VLOOKUP($C10,[12]VN!$B$4:$AV$500,11,FALSE) -> 1 | IC10: =VLOOKUP($C10,[12]VN!$B$4:$AV$500,15,FALSE) -> 1 | ID10: =VLOOKUP($C10,[12]VN!$B$4:$AV$361,39,FALSE)-KY10 -> 5 | IE10: =VLOOKUP($C10,[12]VN!$B$4:$AV$361,40,FALSE) -> 0 | IF10: =VLOOKUP($C10,[12]VN!$B$4:$AV$361,41,FALSE) -> -4 | IG10: =VLOOKUP($C10,[12]VN!$B$4:$AV$361,42,FALSE) -> -4 | IH10: =VLOOKUP($C10,[12]VN!$B$4:$AV$361,43,FALSE) -> 0 | II10: =VLOOKUP($C10,[12]VN!$B$4:$AV$361,45,FALSE) -> 0 | IJ10: =VLOOKUP($C10,[12]VN!$B$4:$AV$361,44,FALSE) -> 2 | IK10: =VLOOKUP($C10,[12]VN!$B$4:$AV$361,46,FALSE) -> -3 | IL10: =VLOOKUP($C10,[12]VN!$B$4:$AV$361,47,FALSE) -> 1 | IM10: 1 | IN10: 1 | IO10: 0 | IP10: -0 | IQ10: -0 | IR10: 0 | IS10: 0 | IT10: 2 | IU10: 0 | IV10: -2 | IW10: -4 | IX10: 0 | IY10: 0 | IZ10: 1 | JA10: -1 | JB10: 0 | JC10: 3 | JD10: -1 | JE10: =(SUMIFS('[23]CE GEE'!$S:$S,'[23]CE GEE'!$G:$G,C10)+SUMIFS([24]CEGEE!$H:$H,[24]CEGEE!$B:$B,C10))/1000 -> 0 | JF10: 14 | JG10: 3.05 | JH10: 69.95 | JI10: =VLOOKUP($C10,[12]VN!$B$4:$AW$500,48,FALSE) -> 0 | JJ10: 0 | JK10: =VLOOKUP($C10,[19]Import!$B$9:$ZZ$403,69,FALSE) -> 0 | JL10: 0.20% | JM10: =VLOOKUP($C10,[19]Import!$B$9:$ZZ$403,71,FALSE) -> 0 | JO10: =VLOOKUP($C10,[19]Import!$B$9:$ZZ$403,73,FALSE) -> -0 | JP10: =VLOOKUP($C10,[19]Import!$B$9:$ZZ$403,29,FALSE) -> -48 | JQ10: =VLOOKUP($C10,[19]Import!$B$9:$ZZ$403,77,FALSE) -> -5 | JR10: =IF(ISERROR(IF(VLOOKUP($C10,'Indicateurs Cumulés'!$C$3:$HN$619,190,FALSE)/(VLOOKUP($C10,objectifs!$C$3:$ZZ$618,162,FALSE))>=1.5,(VLOOKUP($C10,objectifs!$C$3:$ZZ$618,162,FALSE))*1.5,IF(VLOOKUP($C10,'Indicateurs Cumulés'!$C$3:$HN$619,190,FALSE)/(VLOOKUP($C10,objectifs!$C$3:$ZZ$618,162,FALSE))<=-0.5,(VLOOKUP($C10,objectifs!$C$3:$ZZ$618,162,FALSE))*-0.5,VLOOKUP($C10,'Indicateurs Cumulés'!$C$3:$HN$619,190,FALSE)))),VLOOKUP($C10,'Indicateurs Cumulés'!$C$3:$HN$619,190,FALSE),IF(VLOOKUP($C10,'Indicateurs Cumulés'!$C$3:$HN$619,190,FALSE)/(VLOOKUP($C10,objectifs!$C$3:$ZZ$618,162,FALSE))>=1.5,(VLOOKUP($C10,objectifs!$C$3:$ZZ$618,162,FALSE))*1.5,IF(VLOOKUP($C10,'Indicateurs Cumulés'!$C$3:$HN$619,190,FALSE)/(VLOOKUP($C10,objectifs!$C$3:$ZZ$618,162,FALSE))<=-0.5,(VLOOKUP($C10,objectifs!$C$3:$ZZ$618,162,FALSE))*-0.5,VLOOKUP($C10,'Indicateurs Cumulés'!$C$3:$HN$619,190,FALSE)))) -> -17 | JS10: 0 | JT10: 0 | JV10: -0 | JW10: -2 | JX10: -0 | JY10: -0 | JZ10: -2 | KA10: =VLOOKUP($C10,[12]VN!$B$4:$ZZ$500,53,FALSE) -> -1 | KB10: =VLOOKUP($C10,[12]VN!$B$4:$ZZ$500,52,FALSE) -> 0 | KC10: =VLOOKUP($C10,[12]VN!$B$4:$ZZ$500,51,FALSE) -> 0 | KD10: =VLOOKUP($C10,[12]VN!$B$4:$ZZ$500,49,FALSE) -> 1 | KE10: =VLOOKUP($C10,[12]VN!$B$4:$ZZ$500,50,FALSE) -> 0 | KF10: =VLOOKUP($C10,[12]VN!$B$4:$ZZ$500,28,FALSE) -> 0 | KG10: -1 | KH10: 0 | KI10: 0 | KJ10: 0 | KK10: 0 | KL10: 0 | KM10: -1 | KN10: =VLOOKUP($C10,[12]VN!$B$4:$ZZ$500,54,FALSE) -> 0 | KR10: 3.18 | KS10: 0 | KT10: =VLOOKUP($C10,[19]Import!$B$9:$ZZ$403,81,FALSE) -> 9 | KU10: 0 | KV10: =VLOOKUP(C10,[12]VN!$B$4:$BH$500,59,FALSE) -> 2 | KW10: 0 | KX10: =IF(ISERROR(VLOOKUP(C10,'[25]CFF BDD'!$B:$C,2,FALSE)),0,VLOOKUP(C10,'[25]CFF BDD'!$B:$C,2,FALSE)) -> 0 | KY10: 2 | KZ10: 1 | LA10: =VLOOKUP($C10,[12]VN!$B$4:$CC$500,60,FALSE) -> 0 | LB10: 0 | LC10: 47 | LD10: -6 | LE10: =VLOOKUP($C10,[12]VN!$B$4:$ZZ$500,65,FALSE) -> 0 | LF10: 0 | LG10: =VLOOKUP($C10,[12]VN!$B$4:$ZZ$500,66,FALSE) -> 0 | LH10: 0 | LI10: =VLOOKUP($C10,[12]VN!$B$4:$ZZ$500,67,FALSE) -> 1 | LJ10: 0 | LK10: 42 | LL10: 21.7 | LM10: 9 | LN10: 41 | LO10: -2 | LP10: 0 | LQ10: 23.91 | LR10: =SUMIF([26]BAD!$B:$B,$C10,[26]BAD!$E:$E) -> 11 | LS10: =SUMIF([26]SED!$B:$B,$C10,[26]SED!$E:$E) -> 15 | LT10: =SUMIF([26]SAG!$B:$B,$C10,[26]SAG!$E:$E) -> 109 | LU10: =SUMIF([26]EDOC!$B:$B,$C10,[26]EDOC!$E:$E) -> -12 | LV10: =SUMIF([26]OPTIN!$B:$B,$C10,[26]OPTIN!$E:$E) -> 13 | LW10: =SUMIF([26]SECURPASS!$B:$B,$C10,[26]SECURPASS!$E:$E) -> 2 | LX10: 0.8 | LY10: 0.2 | LZ10: 0.3 | MA10: 0.0 | MB10: 0.2 | MC10: 0.0 | MD10: 48
A11: 105007 | B11: 200262 | C11: 15 | D11: LINGOLSHEIM | E11: 2019-02-28 | F11: =VLOOKUP($C11,'[7]bench cumul'!$A$3:$AH$633,'[7]bench cumul'!D$1,FALSE) -> 22 | G11: =VLOOKUP($C11,'[7]bench cumul'!$A$3:$AH$633,'[7]bench cumul'!E$1,FALSE) -> 4.32% | H11: =VLOOKUP($C11,'[7]bench cumul'!$A$3:$AH$633,'[7]bench cumul'!F$1,FALSE) -> 1.57 | I11: =VLOOKUP($C11,'[7]bench cumul'!$A$3:$AH$633,'[7]bench cumul'!G$1,FALSE) -> 2019-02-28 | J11: =VLOOKUP($C11,'[7]bench cumul'!$A$3:$AH$633,'[7]bench cumul'!H$1,FALSE) -> 208 | K11: =VLOOKUP($C11,'[7]bench cumul'!$A$3:$AH$633,'[7]bench cumul'!I$1,FALSE) -> 3.81% | L11: =VLOOKUP($C11,'[7]bench cumul'!$A$3:$AH$633,'[7]bench cumul'!J$1,FALSE) -> 2.58 | M11: =VLOOKUP($C11,'[7]bench cumul'!$A$3:$AH$633,'[7]bench cumul'!K$1,FALSE) -> 4.38 | N11: =VLOOKUP($C11,'[7]bench cumul'!$A$3:$AH$633,'[7]bench cumul'!L$1,FALSE) -> 105 | O11: =VLOOKUP($C11,'[7]bench cumul'!$A$3:$AH$633,'[7]bench cumul'!M$1,FALSE) -> 0 | P11: =VLOOKUP($C11,'[7]bench cumul'!$A$3:$AH$633,'[7]bench cumul'!N$1,FALSE) -> 0.03% | Q11: =VLOOKUP($C11,'[7]bench cumul'!$A$3:$AH$633,'[7]bench cumul'!O$1,FALSE) -> 6.68 | R11: =VLOOKUP($C11,'[7]bench cumul'!$A$3:$AH$633,'[7]bench cumul'!P$1,FALSE) -> 12.01 | S11: =VLOOKUP($C11,'[7]bench cumul'!$A$3:$AH$633,'[7]bench cumul'!Q$1,FALSE) -> 0 | T11: =VLOOKUP($C11,'[7]bench cumul'!$A$3:$AH$633,'[7]bench cumul'!R$1,FALSE) -> 0.00% | U11: =VLOOKUP($C11,'[7]bench cumul'!$A$3:$AH$633,'[7]bench cumul'!S$1,FALSE) -> 0 | V11: =VLOOKUP($C11,'[7]bench cumul'!$A$3:$AH$633,'[7]bench cumul'!T$1,FALSE) -> 0 | W11: =VLOOKUP($C11,'[7]bench cumul'!$A$3:$AH$633,'[7]bench cumul'!U$1,FALSE) -> 0.00% | X11: =VLOOKUP($C11,'[7]bench cumul'!$A$3:$AH$633,'[7]bench cumul'!V$1,FALSE) -> 0 | Y11: =VLOOKUP($C11,'[7]bench cumul'!$A$3:$AH$633,'[7]bench cumul'!W$1,FALSE) -> 24 | Z11: =VLOOKUP($C11,'[7]bench cumul'!$A$3:$AH$633,'[7]bench cumul'!X$1,FALSE) -> 0.93% | AA11: =VLOOKUP($C11,'[7]bench cumul'!$A$3:$AH$633,'[7]bench cumul'!Y$1,FALSE) -> 2.38 | AB11: =VLOOKUP($C11,'[7]bench cumul'!$A$3:$AH$633,'[7]bench cumul'!Z$1,FALSE) -> 0.5 | AC11: =VLOOKUP($C11,'[7]bench cumul'!$A$3:$AH$633,'[7]bench cumul'!AA$1,FALSE) -> 2.2 | AD11: =VLOOKUP($C11,'[7]bench cumul'!$A$3:$AH$633,'[7]bench cumul'!AB$1,FALSE) -> 0.2 | AE11: =VLOOKUP($C11,'[7]bench cumul'!$A$3:$AH$633,'[7]bench cumul'!AC$1,FALSE) -> 2.3 | AF11: =VLOOKUP($C11,'[7]bench cumul'!$A$3:$AH$633,'[7]bench cumul'!AD$1,FALSE) -> 3.1 | AG11: =VLOOKUP($C11,'[7]bench cumul'!$A$3:$AH$633,'[7]bench cumul'!AE$1,FALSE) -> 0.2 | AH11: =VLOOKUP($C11,'[8]Données Cumulées'!$A$1:$Z$65649,'[8]Données Cumulées'!C$1,FALSE) -> 201902 | AI11: =VLOOKUP($C11,'[8]Données Cumulées'!$A$1:$Z$65649,'[8]Données Cumulées'!D$1,FALSE) -> 0 | AJ11: =VLOOKUP($C11,'[8]Données Cumulées'!$A$1:$Z$65649,'[8]Données Cumulées'!E$1,FALSE) -> 0 | AK11: 0.00% | AL11: =VLOOKUP($C11,'[8]Données Cumulées'!$A$1:$Z$65649,'[8]Données Cumulées'!G$1,FALSE) -> 93.00 | AM11: =VLOOKUP($C11,'[8]Données Cumulées'!$A$1:$Z$65649,'[8]Données Cumulées'!H$1,FALSE) -> 24.96 | AN11: 27% | AO11: =VLOOKUP($C11,'[8]Données Cumulées'!$A$1:$Z$65649,'[8]Données Cumulées'!J$1,FALSE) -> 0.52 | AP11: 0.56% | AQ11: =VLOOKUP($C11,'[8]Données Cumulées'!$A$1:$Z$65649,'[8]Données Cumulées'!L$1,FALSE) -> 345.81 | AR11: =VLOOKUP($C11,'[8]Données Cumulées'!$A$1:$Z$65649,'[8]Données Cumulées'!M$1,FALSE) -> 24.50 | AS11: 7.1% | AT11: =VLOOKUP($C11,'[8]Données Cumulées'!$A$1:$Z$65649,'[8]Données Cumulées'!O$1,FALSE) -> 0.12 | AU11: 0.03% | AV11: =VLOOKUP($C11,'[8]Données Cumulées'!$A$1:$Z$65649,'[8]Données Cumulées'!Q$1,FALSE) -> 7.09 | AW11: =VLOOKUP($C11,'[8]Données Cumulées'!$A$1:$Z$65649,'[8]Données Cumulées'!R$1,FALSE) -> 0.25 | AX11: 3.58% | AY11: =VLOOKUP($C11,'[8]Données Cumulées'!$A$1:$Z$65649,'[8]Données Cumulées'!T$1,FALSE) -> 0.11 | AZ11: 1.53% | BA11: =VLOOKUP($C11,'[8]Données Cumulées'!$A$1:$Z$65649,'[8]Données Cumulées'!V$1,FALSE) -> 445.91 | BB11: =VLOOKUP($C11,'[8]Données Cumulées'!$A$1:$Z$65649,'[8]Données Cumulées'!W$1,FALSE) -> 49.72 | BC11: 11.2% | BD11: =VLOOKUP($C11,'[8]Données Cumulées'!$A$1:$Z$65649,'[8]Données Cumulées'!Y$1,FALSE) -> 0.75 | BE11: 0.17% | BG11: 0 | BH11: 0 | BI11: 28 | BJ11: 4 | BK11: 1 | BL11: =IF(ISERROR(VLOOKUP($D11,'[7]bench cumul'!$B$1:$AG$65598,'[7]bench cumul'!AF$1,FALSE)),P440,VLOOKUP($D11,'[7]bench cumul'!$B$1:$AG$65598,'[7]bench cumul'!AF$1,FALSE)) -> 1.53% | BM11: =IF(ISERROR(VLOOKUP($D11,'[7]bench cumul'!$B$1:$AG$65598,'[7]bench cumul'!AG$1,FALSE)),P440,VLOOKUP($D11,'[7]bench cumul'!$B$1:$AG$65598,'[7]bench cumul'!AG$1,FALSE)) -> 0.00% | BN11: 15 | BO11: =VLOOKUP(BN11,[9]Diversification_Epargne!$A:$L,12,FALSE)/1000 -> 9 | BP11: 0 | BQ11: =VLOOKUP(BN11,[9]Diversification_Epargne!$A:$L,8,FALSE)/1000 -> 51 | BR11: 1 | BS11: 1 | BT11: -0 | BU11: =-IF(ISERROR(VLOOKUP($C11,'[10]Commissions APAFF'!$B:$C,2,FALSE)),0,VLOOKUP($C11,'[10]Commissions APAFF'!$B:$C,2,FALSE)/1000) -> -1 | BX11: =-SUMIF([11]BDD!$H:$H,$C11,[11]BDD!$Q:$Q)/1000 -> 0 | BY11: =VLOOKUP($C11,[12]VN!$B$4:$BX$500,63,FALSE) -> 0 | BZ11: 0 | CA11: =VLOOKUP($C11,[12]VN!$B$4:$BX$500,64,FALSE) -> 0 | CB11: 0 | CC11: =VLOOKUP($C11,[12]VN!$B$4:$BX$500,27,FALSE) -> 0 | CD11: 0 | CE11: =SUMIF([13]Feuil1!$B:$B,C11,[13]Feuil1!$E:$E) -> 3 | CF11: 0.6 | CG11: =VLOOKUP($C11,[12]VN!$B$4:$BZ$361,68,FALSE) -> -3 | CH11: -1 | CI11: =SUMIF([14]Feuil1!$B:$B,C11,[14]Feuil1!$C:$C) -> 0 | CJ11: 0 | CM11: =VLOOKUP($C11,'[15]GEE CUMUL PROS'!$A$5:$O$348,6,FALSE) -> 0.00% | CN11: =VLOOKUP($C11,'[15]GEE CUMUL PROS'!$A$5:$O$348,7,FALSE) -> 0.00% | CO11: =VLOOKUP($C11,'[15]GEE CUMUL PROS'!$A$5:$O$348,15,FALSE) -> 0 | CP11: =VLOOKUP($C11,'[16]Cumul immo PRO'!$A$4:$G$755,6,FALSE)/1000*$CP$3 -> 0 | CQ11: 0.2 | CR11: =VLOOKUP($C11,'[7]bench cumul'!$A$3:$AK$633,'[7]bench cumul'!AK$1,FALSE) -> 0 | CS11: =VLOOKUP(C11,'[17]pnb bdd'!$A$3:$K$481,11,FALSE) -> 0.00 | CT11: =VLOOKUP($C11,[18]Cumul!$A:$D,4,FALSE) -> 0 | CU11: =VLOOKUP(C11,[18]Cumul!$A:$E,5,FALSE) -> 1 | CV11: =VLOOKUP($C11,'[7]bench cumul'!$A$3:$AK$633,'[7]bench cumul'!AJ$1,FALSE) -> 0 | CW11: 0 | CX11: =VLOOKUP($C11,'[16]Cumul immo BDD'!$A$4:$G$755,4,FALSE) -> 100.00% | CY11: =VLOOKUP($C11,'[16]Cumul immo BDD'!$A$4:$G$755,5,FALSE) -> 100.00% | CZ11: =VLOOKUP($C11,'[16]Cumul immo BDD'!$A$4:$H$755,6,FALSE)/1000*$CZ$3 -> 3 | DA11: =VLOOKUP($C11,'[15]GEE CUMUL BDD'!$A$5:$O$348,6,FALSE) -> 100.00% | DB11: =VLOOKUP($C11,'[15]GEE CUMUL BDD'!$A$5:$O$348,7,FALSE) -> 121.67% | DC11: =VLOOKUP($C11,'[15]GEE CUMUL BDD'!$A$5:$O$348,15,FALSE) -> 5 | DE11: =VLOOKUP($C11,'[16]Cumul mlt tous M'!$A$4:$F$348,4,FALSE) -> 12.62% | DF11: =VLOOKUP($C11,'[16]Cumul mlt tous M'!$A$4:$F$348,5,FALSE) -> 100.00% | DG11: =VLOOKUP($C11,'[16]Cumul mlt tous M'!$A$4:$F$348,6,FALSE)/1000 -> 0 | DH11: =VLOOKUP($C11,[19]Import!$B$9:$BR$403,3,FALSE) -> 357 | DI11: 0.70% | DJ11: 5.33 | DK11: 13 | DL11: =VLOOKUP($C11,[19]Import!$B$9:$BR$403,5,FALSE) -> -36 | DM11: 0.73% | DN11: 5.33 | DO11: -1 | DP11: =VLOOKUP($C11,[19]Import!$B$9:$BR$403,7,FALSE) -> -45 | DQ11: 0.84% | DR11: 5.33 | DS11: -2 | DT11: =VLOOKUP($C11,[19]Import!$B$9:$BR$403,9,FALSE) -> 289 | DU11: 0.63% | DV11: 5.33 | DW11: 10 | DX11: =VLOOKUP($C11,[19]Import!$B$9:$BR$403,11,FALSE) -> 4 | DY11: 0.20% | DZ11: 5.37 | EA11: 0 | EB11: =VLOOKUP($C11,[19]Import!$B$9:$BR$403,13,FALSE) -> 3 | EC11: 0.20% | ED11: 5.37 | EE11: 0 | EF11: =VLOOKUP($C11,[19]Import!$B$9:$BR$403,15,FALSE) -> -22 | EG11: 0.20% | EH11: 5.37 | EI11: -0 | EJ11: =VLOOKUP($C11,[19]Import!$B$9:$BR$403,17,FALSE) -> -11 | EK11: 0.44% | EL11: 5.33 | EM11: -0 | EN11: =VLOOKUP($C11,[19]Import!$B$9:$BR$403,41,FALSE) -> -0 | EO11: 0.10% | EP11: =VLOOKUP($C11,[19]Import!$B$9:$CR$403,87,FALSE) -> 5.33 | EQ11: -0 | ER11: =VLOOKUP($C11,[19]Import!$B$9:$BR$403,39,FALSE) -> -6 | ES11: 0.20% | ET11: 9.00 | EU11: -0 | EV11: =VLOOKUP($C11,[19]Import!$B$9:$BR$403,43,FALSE) -> -56 | EW11: 0.00% | EX11: =IF(VLOOKUP($C11,[19]Import!$B$9:$ZZ$403,89,FALSE)=0,$EX$3,VLOOKUP($C11,[19]Import!$B$9:$ZZ$403,89,FALSE)) -> 8.50 | EY11: 0 | EZ11: =VLOOKUP($C11,[19]Import!$B$9:$BR$403,45,FALSE) -> 0 | FA11: -0.37% | FB11: 0.08 | FC11: 0 | FD11: =VLOOKUP($C11,[19]Import!$B$9:$BR$403,47,FALSE) -> 400 | FE11: 0.45% | FF11: 8.00 | FG11: 14 | FH11: =VLOOKUP($C11,[19]Import!$B$9:$BR$403,49,FALSE) -> 442 | FI11: 0.17% | FJ11: 1.00 | FK11: 1 | FL11: =VLOOKUP($C11,[19]Import!$B$9:$BR$403,51,FALSE) -> 19 | FM11: 0.65% | FN11: 5.00 | FO11: 1 | FP11: =VLOOKUP($C11,[19]Import!$B$9:$BR$403,53,FALSE) -> 19 | FQ11: 0.40% | FR11: 1.00 | FS11: 0 | FT11: =VLOOKUP($C11,[19]Import!$B$9:$BR$403,55,FALSE) -> -149 | FU11: 0.20% | FV11: 8.00 | FW11: -2 | FX11: =VLOOKUP($C11,[19]Import!$B$9:$BR$403,57,FALSE) -> 38 | FY11: 1.00% | FZ11: 5.00 | GA11: 2 | GB11: 218 | GC11: 13 | GD11: 428 | GE11: 18 | GF11: =VLOOKUP($C11,[19]Import!$B$9:$BR$403,59,FALSE) -> -334 | GG11: 1.00% | GH11: 5.37 | GI11: -18 | GJ11: =VLOOKUP($C11,[19]Import!$B$9:$ZZ$403,79,FALSE) -> -85 | GK11: =VLOOKUP(C11,[20]VN!$A:$E,5,FALSE) -> 0 | GL11: 0 | GN11: =VLOOKUP(C11,'[17]pnb bdd'!$A$3:$I$481,7,FALSE) -> 0 | GO11: =VLOOKUP(C11,'[17]pnb bdd'!$A$3:$I$481,9,FALSE) -> 0.00% | GP11: =VLOOKUP(C11,'[17]pnb bdd'!$A$3:$I$481,8,FALSE) -> 0 | GQ11: 0 | GR11: =VLOOKUP(C11,[19]Import!$B$9:$DB$403,91,FALSE)+VLOOKUP(C11,[19]Import!$B$9:$DB$403,93,FALSE) -> -4 | GS11: 0.45% | GT11: 8.00 | GU11: -0 | GV11: =VLOOKUP(C11,[19]Import!$B$9:$DB$403,99,FALSE)+VLOOKUP(C11,[19]Import!$B$9:$DB$403,101,FALSE) -> 0 | GW11: 0.17% | GX11: 1.00 | GY11: 0 | GZ11: =VLOOKUP(C11,[19]Import!$B$9:$DB$403,95,FALSE)+VLOOKUP(C11,[19]Import!$B$9:$DB$403,97,FALSE) -> 0 | HA11: 0.65% | HB11: 5.00 | HC11: 0 | HD11: =VLOOKUP(C11,[19]Import!$B$9:$DB$403,103,FALSE)+VLOOKUP(C11,[19]Import!$B$9:$DB$403,105,FALSE) -> 0 | HE11: 0.40% | HF11: 1.00 | HG11: 0 | HH11: =VLOOKUP(C11,[19]Import!$B$9:$DD$403,107,FALSE) -> 13 | HI11: 1.00% | HJ11: 5.00 | HK11: 1 | HL11: =-SUMIF([11]BDD!$F:$F,$C11,[11]BDD!$N:$N)/1000 -> -3 | HM11: =SUMIF([11]BDD!$F:$F,$C11,[11]BDD!$H:$H)/1000 -> 59 | HO11: =IF(ISERROR(IF(VLOOKUP($C11,'Indicateurs Cumulés'!$C$3:$HN$619,186,FALSE)/(VLOOKUP($C11,objectifs!$C$3:$ZZ$618,158,FALSE))>=1.5,(VLOOKUP($C11,objectifs!$C$3:$ZZ$618,158,FALSE))*1.5,IF(VLOOKUP($C11,'Indicateurs Cumulés'!$C$3:$HN$619,186,FALSE)/(VLOOKUP($C11,objectifs!$C$3:$ZZ$618,158,FALSE))<=-0.5,(VLOOKUP($C11,objectifs!$C$3:$ZZ$618,158,FALSE))*-0.5,VLOOKUP($C11,'Indicateurs Cumulés'!$C$3:$HN$619,186,FALSE)))),VLOOKUP($C11,'Indicateurs Cumulés'!$C$3:$HN$619,186,FALSE),IF(VLOOKUP($C11,'Indicateurs Cumulés'!$C$3:$HN$619,186,FALSE)/(VLOOKUP($C11,objectifs!$C$3:$ZZ$618,158,FALSE))>=1.5,(VLOOKUP($C11,objectifs!$C$3:$ZZ$618,158,FALSE))*1.5,IF(VLOOKUP($C11,'Indicateurs Cumulés'!$C$3:$HN$619,186,FALSE)/(VLOOKUP($C11,objectifs!$C$3:$ZZ$618,158,FALSE))<=-0.5,(VLOOKUP($C11,objectifs!$C$3:$ZZ$618,158,FALSE))*-0.5,VLOOKUP($C11,'Indicateurs Cumulés'!$C$3:$HN$619,186,FALSE)))) -> -190 | HP11: =SUMIFS([21]Feuil1!$C:$C,[21]Feuil1!$A:$A,C11) -> 0 | HR11: =IF(ISERROR(VLOOKUP($C11,[22]Feuil1!$O$10:$T$350,6,FALSE)),0,VLOOKUP($C11,[22]Feuil1!$O$10:$T$350,6,FALSE)) -> 3.9 | HT11: 4.64% | HU11: 0.52% | HV11: 1.49% | HW11: =VLOOKUP($C11,[12]VN!$B$4:$AV$500,3,FALSE) -> 7 | HX11: =VLOOKUP($C11,[12]VN!$B$4:$AV$500,16,FALSE) -> -1 | HY11: =VLOOKUP($C11,[12]VN!$B$4:$AV$500,34,FALSE) -> 0 | HZ11: =VLOOKUP($C11,[12]VN!$B$4:$AV$500,14,FALSE) -> 2 | IA11: =VLOOKUP($C11,[12]VN!$B$4:$AV$500,32,FALSE)+VLOOKUP($C11,[12]VN!$B$4:$AV$500,17,FALSE) -> 4 | IB11: =VLOOKUP($C11,[12]VN!$B$4:$AV$500,11,FALSE) -> 1 | IC11: =VLOOKUP($C11,[12]VN!$B$4:$AV$500,15,FALSE) -> 5 | ID11: =VLOOKUP($C11,[12]VN!$B$4:$AV$361,39,FALSE)-KY11 -> 11 | IE11: =VLOOKUP($C11,[12]VN!$B$4:$AV$361,40,FALSE) -> -2 | IF11: =VLOOKUP($C11,[12]VN!$B$4:$AV$361,41,FALSE) -> -6 | IG11: =VLOOKUP($C11,[12]VN!$B$4:$AV$361,42,FALSE) -> -1 | IH11: =VLOOKUP($C11,[12]VN!$B$4:$AV$361,43,FALSE) -> 2 | II11: =VLOOKUP($C11,[12]VN!$B$4:$AV$361,45,FALSE) -> 0 | IJ11: =VLOOKUP($C11,[12]VN!$B$4:$AV$361,44,FALSE) -> -4 | IK11: =VLOOKUP($C11,[12]VN!$B$4:$AV$361,46,FALSE) -> -6 | IL11: =VLOOKUP($C11,[12]VN!$B$4:$AV$361,47,FALSE) -> -2 | IM11: 1 | IN11: -0 | IO11: 0 | IP11: 0 | IQ11: 0 | IR11: 0 | IS11: 1 | IT11: 5 | IU11: -0 | IV11: -4 | IW11: -1 | IX11: 3 | IY11: 0 | IZ11: -3 | JA11: -1 | JB11: -0 | JC11: 1 | JD11: 5 | JE11: =(SUMIFS('[23]CE GEE'!$S:$S,'[23]CE GEE'!$G:$G,C11)+SUMIFS([24]CEGEE!$H:$H,[24]CEGEE!$B:$B,C11))/1000 -> 0 | JF11: 9 | JG11: 4.70 | JH11: 26.47 | JI11: =VLOOKUP($C11,[12]VN!$B$4:$AW$500,48,FALSE) -> 0 | JJ11: 0 | JK11: =VLOOKUP($C11,[19]Import!$B$9:$ZZ$403,69,FALSE) -> -1 | JL11: 0.20% | JM11: =VLOOKUP($C11,[19]Import!$B$9:$ZZ$403,71,FALSE) -> 0 | JO11: =VLOOKUP($C11,[19]Import!$B$9:$ZZ$403,73,FALSE) -> 1 | JP11: =VLOOKUP($C11,[19]Import!$B$9:$ZZ$403,29,FALSE) -> -147 | JQ11: =VLOOKUP($C11,[19]Import!$B$9:$ZZ$403,77,FALSE) -> -5 | JR11: =IF(ISERROR(IF(VLOOKUP($C11,'Indicateurs Cumulés'!$C$3:$HN$619,190,FALSE)/(VLOOKUP($C11,objectifs!$C$3:$ZZ$618,162,FALSE))>=1.5,(VLOOKUP($C11,objectifs!$C$3:$ZZ$618,162,FALSE))*1.5,IF(VLOOKUP($C11,'Indicateurs Cumulés'!$C$3:$HN$619,190,FALSE)/(VLOOKUP($C11,objectifs!$C$3:$ZZ$618,162,FALSE))<=-0.5,(VLOOKUP($C11,objectifs!$C$3:$ZZ$618,162,FALSE))*-0.5,VLOOKUP($C11,'Indicateurs Cumulés'!$C$3:$HN$619,190,FALSE)))),VLOOKUP($C11,'Indicateurs Cumulés'!$C$3:$HN$619,190,FALSE),IF(VLOOKUP($C11,'Indicateurs Cumulés'!$C$3:$HN$619,190,FALSE)/(VLOOKUP($C11,objectifs!$C$3:$ZZ$618,162,FALSE))>=1.5,(VLOOKUP($C11,objectifs!$C$3:$ZZ$618,162,FALSE))*1.5,IF(VLOOKUP($C11,'Indicateurs Cumulés'!$C$3:$HN$619,190,FALSE)/(VLOOKUP($C11,objectifs!$C$3:$ZZ$618,162,FALSE))<=-0.5,(VLOOKUP($C11,objectifs!$C$3:$ZZ$618,162,FALSE))*-0.5,VLOOKUP($C11,'Indicateurs Cumulés'!$C$3:$HN$619,190,FALSE)))) -> -34 | JS11: -0 | JT11: 0 | JV11: 0 | JW11: -6 | JX11: -0 | JY11: -0 | JZ11: -6 | KA11: =VLOOKUP($C11,[12]VN!$B$4:$ZZ$500,53,FALSE) -> -2 | KB11: =VLOOKUP($C11,[12]VN!$B$4:$ZZ$500,52,FALSE) -> 0 | KC11: =VLOOKUP($C11,[12]VN!$B$4:$ZZ$500,51,FALSE) -> 0 | KD11: =VLOOKUP($C11,[12]VN!$B$4:$ZZ$500,49,FALSE) -> -1 | KE11: =VLOOKUP($C11,[12]VN!$B$4:$ZZ$500,50,FALSE) -> 0 | KF11: =VLOOKUP($C11,[12]VN!$B$4:$ZZ$500,28,FALSE) -> 0 | KG11: -3 | KH11: 0 | KI11: 0 | KJ11: -0 | KK11: 0 | KL11: 0 | KM11: -3 | KN11: =VLOOKUP($C11,[12]VN!$B$4:$ZZ$500,54,FALSE) -> 0 | KR11: 4.88 | KS11: -3 | KT11: =VLOOKUP($C11,[19]Import!$B$9:$ZZ$403,81,FALSE) -> 3 | KU11: 0 | KV11: =VLOOKUP(C11,[12]VN!$B$4:$BH$500,59,FALSE) -> 3 | KW11: 1 | KX11: =IF(ISERROR(VLOOKUP(C11,'[25]CFF BDD'!$B:$C,2,FALSE)),0,VLOOKUP(C11,'[25]CFF BDD'!$B:$C,2,FALSE)) -> 0 | KY11: -2 | KZ11: -1 | LA11: =VLOOKUP($C11,[12]VN!$B$4:$CC$500,60,FALSE) -> 1 | LB11: 0 | LC11: 51 | LD11: -12 | LE11: =VLOOKUP($C11,[12]VN!$B$4:$ZZ$500,65,FALSE) -> -1 | LF11: -1 | LG11: =VLOOKUP($C11,[12]VN!$B$4:$ZZ$500,66,FALSE) -> -2 | LH11: -3 | LI11: =VLOOKUP($C11,[12]VN!$B$4:$ZZ$500,67,FALSE) -> -1 | LJ11: -0 | LK11: 49 | LL11: 12.7 | LM11: 29 | LN11: 32 | LO11: -3 | LP11: -4 | LQ11: 13.28 | LR11: =SUMIF([26]BAD!$B:$B,$C11,[26]BAD!$E:$E) -> 20 | LS11: =SUMIF([26]SED!$B:$B,$C11,[26]SED!$E:$E) -> 39 | LT11: =SUMIF([26]SAG!$B:$B,$C11,[26]SAG!$E:$E) -> 175 | LU11: =SUMIF([26]EDOC!$B:$B,$C11,[26]EDOC!$E:$E) -> 2 | LV11: =SUMIF([26]OPTIN!$B:$B,$C11,[26]OPTIN!$E:$E) -> -3 | LW11: =SUMIF([26]SECURPASS!$B:$B,$C11,[26]SECURPASS!$E:$E) -> 3 | LX11: 1.5 | LY11: 0.4 | LZ11: 0.5 | MA11: 0.1 | MB11: 0.0 | MC11: 0.0 | MD11: 54
A12: 105043 | B12: 200262 | C12: 19 | D12: STRASBOURG ANVERS | E12: 2019-02-28 | F12: =VLOOKUP($C12,'[7]bench cumul'!$A$3:$AH$633,'[7]bench cumul'!D$1,FALSE) -> 20 | G12: =VLOOKUP($C12,'[7]bench cumul'!$A$3:$AH$633,'[7]bench cumul'!E$1,FALSE) -> 4.32% | H12: =VLOOKUP($C12,'[7]bench cumul'!$A$3:$AH$633,'[7]bench cumul'!F$1,FALSE) -> 1.57 | I12: =VLOOKUP($C12,'[7]bench cumul'!$A$3:$AH$633,'[7]bench cumul'!G$1,FALSE) -> 2019-02-28 | J12: =VLOOKUP($C12,'[7]bench cumul'!$A$3:$AH$633,'[7]bench cumul'!H$1,FALSE) -> -86 | K12: =VLOOKUP($C12,'[7]bench cumul'!$A$3:$AH$633,'[7]bench cumul'!I$1,FALSE) -> -10.47% | L12: =VLOOKUP($C12,'[7]bench cumul'!$A$3:$AH$633,'[7]bench cumul'!J$1,FALSE) -> 0.96 | M12: =VLOOKUP($C12,'[7]bench cumul'!$A$3:$AH$633,'[7]bench cumul'!K$1,FALSE) -> 2.36 | N12: =VLOOKUP($C12,'[7]bench cumul'!$A$3:$AH$633,'[7]bench cumul'!L$1,FALSE) -> 221 | O12: =VLOOKUP($C12,'[7]bench cumul'!$A$3:$AH$633,'[7]bench cumul'!M$1,FALSE) -> 0 | P12: =VLOOKUP($C12,'[7]bench cumul'!$A$3:$AH$633,'[7]bench cumul'!N$1,FALSE) -> -0.49% | Q12: =VLOOKUP($C12,'[7]bench cumul'!$A$3:$AH$633,'[7]bench cumul'!O$1,FALSE) -> 8.39 | R12: =VLOOKUP($C12,'[7]bench cumul'!$A$3:$AH$633,'[7]bench cumul'!P$1,FALSE) -> 12.80 | S12: =VLOOKUP($C12,'[7]bench cumul'!$A$3:$AH$633,'[7]bench cumul'!Q$1,FALSE) -> 32 | T12: =VLOOKUP($C12,'[7]bench cumul'!$A$3:$AH$633,'[7]bench cumul'!R$1,FALSE) -> 3.41% | U12: =VLOOKUP($C12,'[7]bench cumul'!$A$3:$AH$633,'[7]bench cumul'!S$1,FALSE) -> 2.08 | V12: =VLOOKUP($C12,'[7]bench cumul'!$A$3:$AH$633,'[7]bench cumul'!T$1,FALSE) -> 262 | W12: =VLOOKUP($C12,'[7]bench cumul'!$A$3:$AH$633,'[7]bench cumul'!U$1,FALSE) -> -0.37% | X12: =VLOOKUP($C12,'[7]bench cumul'!$A$3:$AH$633,'[7]bench cumul'!V$1,FALSE) -> 8.23 | Y12: =VLOOKUP($C12,'[7]bench cumul'!$A$3:$AH$633,'[7]bench cumul'!W$1,FALSE) -> 300 | Z12: =VLOOKUP($C12,'[7]bench cumul'!$A$3:$AH$633,'[7]bench cumul'!X$1,FALSE) -> 0.96% | AA12: =VLOOKUP($C12,'[7]bench cumul'!$A$3:$AH$633,'[7]bench cumul'!Y$1,FALSE) -> 2.74 | AB12: =VLOOKUP($C12,'[7]bench cumul'!$A$3:$AH$633,'[7]bench cumul'!Z$1,FALSE) -> 2.4 | AC12: =VLOOKUP($C12,'[7]bench cumul'!$A$3:$AH$633,'[7]bench cumul'!AA$1,FALSE) -> 3.7 | AD12: =VLOOKUP($C12,'[7]bench cumul'!$A$3:$AH$633,'[7]bench cumul'!AB$1,FALSE) -> 0.6 | AE12: =VLOOKUP($C12,'[7]bench cumul'!$A$3:$AH$633,'[7]bench cumul'!AC$1,FALSE) -> 8.9 | AF12: =VLOOKUP($C12,'[7]bench cumul'!$A$3:$AH$633,'[7]bench cumul'!AD$1,FALSE) -> -0.2 | AG12: =VLOOKUP($C12,'[7]bench cumul'!$A$3:$AH$633,'[7]bench cumul'!AE$1,FALSE) -> 0.3 | AH12: =VLOOKUP($C12,'[8]Données Cumulées'!$A$1:$Z$65649,'[8]Données Cumulées'!C$1,FALSE) -> 201902 | AI12: =VLOOKUP($C12,'[8]Données Cumulées'!$A$1:$Z$65649,'[8]Données Cumulées'!D$1,FALSE) -> 23.00 | AJ12: =VLOOKUP($C12,'[8]Données Cumulées'!$A$1:$Z$65649,'[8]Données Cumulées'!E$1,FALSE) -> 0.55 | AK12: 2.40% | AL12: =VLOOKUP($C12,'[8]Données Cumulées'!$A$1:$Z$65649,'[8]Données Cumulées'!G$1,FALSE) -> 103.50 | AM12: =VLOOKUP($C12,'[8]Données Cumulées'!$A$1:$Z$65649,'[8]Données Cumulées'!H$1,FALSE) -> 8.56 | AN12: 8% | AO12: =VLOOKUP($C12,'[8]Données Cumulées'!$A$1:$Z$65649,'[8]Données Cumulées'!J$1,FALSE) -> 1.01 | AP12: 0.97% | AQ12: =VLOOKUP($C12,'[8]Données Cumulées'!$A$1:$Z$65649,'[8]Données Cumulées'!L$1,FALSE) -> 211.61 | AR12: =VLOOKUP($C12,'[8]Données Cumulées'!$A$1:$Z$65649,'[8]Données Cumulées'!M$1,FALSE) -> 4.30 | AS12: 2.0% | AT12: =VLOOKUP($C12,'[8]Données Cumulées'!$A$1:$Z$65649,'[8]Données Cumulées'!O$1,FALSE) -> 0.68 | AU12: 0.32% | AV12: =VLOOKUP($C12,'[8]Données Cumulées'!$A$1:$Z$65649,'[8]Données Cumulées'!Q$1,FALSE) -> 7.81 | AW12: =VLOOKUP($C12,'[8]Données Cumulées'!$A$1:$Z$65649,'[8]Données Cumulées'!R$1,FALSE) -> 0.86 | AX12: 11.06% | AY12: =VLOOKUP($C12,'[8]Données Cumulées'!$A$1:$Z$65649,'[8]Données Cumulées'!T$1,FALSE) -> 0.12 | AZ12: 1.57% | BA12: =VLOOKUP($C12,'[8]Données Cumulées'!$A$1:$Z$65649,'[8]Données Cumulées'!V$1,FALSE) -> 345.91 | BB12: =VLOOKUP($C12,'[8]Données Cumulées'!$A$1:$Z$65649,'[8]Données Cumulées'!W$1,FALSE) -> 13.72 | BC12: 4.0% | BD12: =VLOOKUP($C12,'[8]Données Cumulées'!$A$1:$Z$65649,'[8]Données Cumulées'!Y$1,FALSE) -> 2.36 | BE12: 0.68% | BG12: 3 | BH12: -1 | BI12: 11 | BJ12: -1 | BK12: 15 | BL12: =IF(ISERROR(VLOOKUP($D12,'[7]bench cumul'!$B$1:$AG$65598,'[7]bench cumul'!AF$1,FALSE)),P441,VLOOKUP($D12,'[7]bench cumul'!$B$1:$AG$65598,'[7]bench cumul'!AF$1,FALSE)) -> 1.95% | BM12: =IF(ISERROR(VLOOKUP($D12,'[7]bench cumul'!$B$1:$AG$65598,'[7]bench cumul'!AG$1,FALSE)),P441,VLOOKUP($D12,'[7]bench cumul'!$B$1:$AG$65598,'[7]bench cumul'!AG$1,FALSE)) -> 0.00% | BN12: 19 | BO12: =VLOOKUP(BN12,[9]Diversification_Epargne!$A:$L,12,FALSE)/1000 -> 59 | BP12: 1 | BQ12: =VLOOKUP(BN12,[9]Diversification_Epargne!$A:$L,8,FALSE)/1000 -> 73 | BR12: 2 | BS12: 0 | BT12: -0 | BU12: =-IF(ISERROR(VLOOKUP($C12,'[10]Commissions APAFF'!$B:$C,2,FALSE)),0,VLOOKUP($C12,'[10]Commissions APAFF'!$B:$C,2,FALSE)/1000) -> 0 | BX12: =-SUMIF([11]BDD!$H:$H,$C12,[11]BDD!$Q:$Q)/1000 -> 0 | BY12: =VLOOKUP($C12,[12]VN!$B$4:$BX$500,63,FALSE) -> 0 | BZ12: 0 | CA12: =VLOOKUP($C12,[12]VN!$B$4:$BX$500,64,FALSE) -> -1 | CB12: -0 | CC12: =VLOOKUP($C12,[12]VN!$B$4:$BX$500,27,FALSE) -> -2 | CD12: -1 | CE12: =SUMIF([13]Feuil1!$B:$B,C12,[13]Feuil1!$E:$E) -> 5 | CF12: 1.0 | CG12: =VLOOKUP($C12,[12]VN!$B$4:$BZ$361,68,FALSE) -> 4 | CH12: 1 | CI12: =SUMIF([14]Feuil1!$B:$B,C12,[14]Feuil1!$C:$C) -> 0 | CJ12: 0 | CM12: =VLOOKUP($C12,'[15]GEE CUMUL PROS'!$A$5:$O$348,6,FALSE) -> 100.00% | CN12: =VLOOKUP($C12,'[15]GEE CUMUL PROS'!$A$5:$O$348,7,FALSE) -> 100.00% | CO12: =VLOOKUP($C12,'[15]GEE CUMUL PROS'!$A$5:$O$348,15,FALSE) -> 0 | CP12: =VLOOKUP($C12,'[16]Cumul immo PRO'!$A$4:$G$755,6,FALSE)/1000*$CP$3 -> 5 | CQ12: 0.6 | CR12: =VLOOKUP($C12,'[7]bench cumul'!$A$3:$AK$633,'[7]bench cumul'!AK$1,FALSE) -> 0 | CS12: =VLOOKUP(C12,'[17]pnb bdd'!$A$3:$K$481,11,FALSE) -> 0.00 | CT12: =VLOOKUP($C12,[18]Cumul!$A:$D,4,FALSE) -> 0 | CU12: =VLOOKUP(C12,[18]Cumul!$A:$E,5,FALSE) -> 1 | CV12: =VLOOKUP($C12,'[7]bench cumul'!$A$3:$AK$633,'[7]bench cumul'!AJ$1,FALSE) -> 2 | CW12: 2 | CX12: =VLOOKUP($C12,'[16]Cumul immo BDD'!$A$4:$G$755,4,FALSE) -> 100.00% | CY12: =VLOOKUP($C12,'[16]Cumul immo BDD'!$A$4:$G$755,5,FALSE) -> 100.00% | CZ12: =VLOOKUP($C12,'[16]Cumul immo BDD'!$A$4:$H$755,6,FALSE)/1000*$CZ$3 -> 5 | DA12: =VLOOKUP($C12,'[15]GEE CUMUL BDD'!$A$5:$O$348,6,FALSE) -> 103.49% | DB12: =VLOOKUP($C12,'[15]GEE CUMUL BDD'!$A$5:$O$348,7,FALSE) -> 75.28% | DC12: =VLOOKUP($C12,'[15]GEE CUMUL BDD'!$A$5:$O$348,15,FALSE) -> -0 | DE12: =VLOOKUP($C12,'[16]Cumul mlt tous M'!$A$4:$F$348,4,FALSE) -> 100.00% | DF12: =VLOOKUP($C12,'[16]Cumul mlt tous M'!$A$4:$F$348,5,FALSE) -> 100.00% | DG12: =VLOOKUP($C12,'[16]Cumul mlt tous M'!$A$4:$F$348,6,FALSE)/1000 -> 6 | DH12: =VLOOKUP($C12,[19]Import!$B$9:$BR$403,3,FALSE) -> -37 | DI12: 0.70% | DJ12: 5.33 | DK12: -1 | DL12: =VLOOKUP($C12,[19]Import!$B$9:$BR$403,5,FALSE) -> -271 | DM12: 0.73% | DN12: 5.33 | DO12: -11 | DP12: =VLOOKUP($C12,[19]Import!$B$9:$BR$403,7,FALSE) -> -46 | DQ12: 0.84% | DR12: 5.33 | DS12: -2 | DT12: =VLOOKUP($C12,[19]Import!$B$9:$BR$403,9,FALSE) -> 1,519 | DU12: 0.63% | DV12: 5.33 | DW12: 51 | DX12: =VLOOKUP($C12,[19]Import!$B$9:$BR$403,11,FALSE) -> -9 | DY12: 0.20% | DZ12: 5.37 | EA12: -0 | EB12: =VLOOKUP($C12,[19]Import!$B$9:$BR$403,13,FALSE) -> 7 | EC12: 0.20% | ED12: 5.37 | EE12: 0 | EF12: =VLOOKUP($C12,[19]Import!$B$9:$BR$403,15,FALSE) -> -19 | EG12: 0.20% | EH12: 5.37 | EI12: -0 | EJ12: =VLOOKUP($C12,[19]Import!$B$9:$BR$403,17,FALSE) -> -28 | EK12: 0.44% | EL12: 5.33 | EM12: -1 | EN12: =VLOOKUP($C12,[19]Import!$B$9:$BR$403,41,FALSE) -> -19 | EO12: 0.10% | EP12: =VLOOKUP($C12,[19]Import!$B$9:$CR$403,87,FALSE) -> 5.33 | EQ12: -0 | ER12: =VLOOKUP($C12,[19]Import!$B$9:$BR$403,39,FALSE) -> -147 | ES12: 0.20% | ET12: 9.00 | EU12: -3 | EV12: =VLOOKUP($C12,[19]Import!$B$9:$BR$403,43,FALSE) -> -210 | EW12: 0.00% | EX12: =IF(VLOOKUP($C12,[19]Import!$B$9:$ZZ$403,89,FALSE)=0,$EX$3,VLOOKUP($C12,[19]Import!$B$9:$ZZ$403,89,FALSE)) -> 8.59 | EY12: 0 | EZ12: =VLOOKUP($C12,[19]Import!$B$9:$BR$403,45,FALSE) -> 0 | FA12: -0.37% | FB12: 0.08 | FC12: 0 | FD12: =VLOOKUP($C12,[19]Import!$B$9:$BR$403,47,FALSE) -> -338 | FE12: 0.45% | FF12: 8.00 | FG12: -12 | FH12: =VLOOKUP($C12,[19]Import!$B$9:$BR$403,49,FALSE) -> 361 | FI12: 0.68% | FJ12: 1.00 | FK12: 2 | FL12: =VLOOKUP($C12,[19]Import!$B$9:$BR$403,51,FALSE) -> -19 | FM12: 0.65% | FN12: 5.00 | FO12: -1 | FP12: =VLOOKUP($C12,[19]Import!$B$9:$BR$403,53,FALSE) -> 52 | FQ12: 0.40% | FR12: 1.00 | FS12: 0 | FT12: =VLOOKUP($C12,[19]Import!$B$9:$BR$403,55,FALSE) -> -392 | FU12: 0.20% | FV12: 8.00 | FW12: -6 | FX12: =VLOOKUP($C12,[19]Import!$B$9:$BR$403,57,FALSE) -> 225 | FY12: 1.00% | FZ12: 5.00 | GA12: 11 | GB12: 737 | GC12: 45 | GD12: -333 | GE12: -6 | GF12: =VLOOKUP($C12,[19]Import!$B$9:$BR$403,59,FALSE) -> -932 | GG12: 1.00% | GH12: 5.37 | GI12: -50 | GJ12: =VLOOKUP($C12,[19]Import!$B$9:$ZZ$403,79,FALSE) -> -611 | GK12: =VLOOKUP(C12,[20]VN!$A:$E,5,FALSE) -> 0 | GL12: 0 | GN12: =VLOOKUP(C12,'[17]pnb bdd'!$A$3:$I$481,7,FALSE) -> 0 | GO12: =VLOOKUP(C12,'[17]pnb bdd'!$A$3:$I$481,9,FALSE) -> 0.00% | GP12: =VLOOKUP(C12,'[17]pnb bdd'!$A$3:$I$481,8,FALSE) -> 0 | GQ12: 0 | GR12: =VLOOKUP(C12,[19]Import!$B$9:$DB$403,91,FALSE)+VLOOKUP(C12,[19]Import!$B$9:$DB$403,93,FALSE) -> -8 | GS12: 0.45% | GT12: 8.00 | GU12: -0 | GV12: =VLOOKUP(C12,[19]Import!$B$9:$DB$403,99,FALSE)+VLOOKUP(C12,[19]Import!$B$9:$DB$403,101,FALSE) -> 0 | GW12: 0.68% | GX12: 1.00 | GY12: 0 | GZ12: =VLOOKUP(C12,[19]Import!$B$9:$DB$403,95,FALSE)+VLOOKUP(C12,[19]Import!$B$9:$DB$403,97,FALSE) -> 0 | HA12: 0.65% | HB12: 5.00 | HC12: 0 | HD12: =VLOOKUP(C12,[19]Import!$B$9:$DB$403,103,FALSE)+VLOOKUP(C12,[19]Import!$B$9:$DB$403,105,FALSE) -> 0 | HE12: 0.40% | HF12: 1.00 | HG12: 0 | HH12: =VLOOKUP(C12,[19]Import!$B$9:$DD$403,107,FALSE) -> 32 | HI12: 1.00% | HJ12: 5.00 | HK12: 2 | HL12: =-SUMIF([11]BDD!$F:$F,$C12,[11]BDD!$N:$N)/1000 -> -7 | HM12: =SUMIF([11]BDD!$F:$F,$C12,[11]BDD!$H:$H)/1000 -> 89 | HO12: =IF(ISERROR(IF(VLOOKUP($C12,'Indicateurs Cumulés'!$C$3:$HN$619,186,FALSE)/(VLOOKUP($C12,objectifs!$C$3:$ZZ$618,158,FALSE))>=1.5,(VLOOKUP($C12,objectifs!$C$3:$ZZ$618,158,FALSE))*1.5,IF(VLOOKUP($C12,'Indicateurs Cumulés'!$C$3:$HN$619,186,FALSE)/(VLOOKUP($C12,objectifs!$C$3:$ZZ$618,158,FALSE))<=-0.5,(VLOOKUP($C12,objectifs!$C$3:$ZZ$618,158,FALSE))*-0.5,VLOOKUP($C12,'Indicateurs Cumulés'!$C$3:$HN$619,186,FALSE)))),VLOOKUP($C12,'Indicateurs Cumulés'!$C$3:$HN$619,186,FALSE),IF(VLOOKUP($C12,'Indicateurs Cumulés'!$C$3:$HN$619,186,FALSE)/(VLOOKUP($C12,objectifs!$C$3:$ZZ$618,158,FALSE))>=1.5,(VLOOKUP($C12,objectifs!$C$3:$ZZ$618,158,FALSE))*1.5,IF(VLOOKUP($C12,'Indicateurs Cumulés'!$C$3:$HN$619,186,FALSE)/(VLOOKUP($C12,objectifs!$C$3:$ZZ$618,158,FALSE))<=-0.5,(VLOOKUP($C12,objectifs!$C$3:$ZZ$618,158,FALSE))*-0.5,VLOOKUP($C12,'Indicateurs Cumulés'!$C$3:$HN$619,186,FALSE)))) -> -307 | HP12: =SUMIFS([21]Feuil1!$C:$C,[21]Feuil1!$A:$A,C12) -> 0 | HR12: =IF(ISERROR(VLOOKUP($C12,[22]Feuil1!$O$10:$T$350,6,FALSE)),0,VLOOKUP($C12,[22]Feuil1!$O$10:$T$350,6,FALSE)) -> 3.9 | HT12: -17.72% | HU12: -0.08% | HV12: 1.81% | HW12: =VLOOKUP($C12,[12]VN!$B$4:$AV$500,3,FALSE) -> 2 | HX12: =VLOOKUP($C12,[12]VN!$B$4:$AV$500,16,FALSE) -> -2 | HY12: =VLOOKUP($C12,[12]VN!$B$4:$AV$500,34,FALSE) -> 2 | HZ12: =VLOOKUP($C12,[12]VN!$B$4:$AV$500,14,FALSE) -> 11 | IA12: =VLOOKUP($C12,[12]VN!$B$4:$AV$500,32,FALSE)+VLOOKUP($C12,[12]VN!$B$4:$AV$500,17,FALSE) -> 8 | IB12: =VLOOKUP($C12,[12]VN!$B$4:$AV$500,11,FALSE) -> 1 | IC12: =VLOOKUP($C12,[12]VN!$B$4:$AV$500,15,FALSE) -> 5 | ID12: =VLOOKUP($C12,[12]VN!$B$4:$AV$361,39,FALSE)-KY12 -> -10 | IE12: =VLOOKUP($C12,[12]VN!$B$4:$AV$361,40,FALSE) -> -2 | IF12: =VLOOKUP($C12,[12]VN!$B$4:$AV$361,41,FALSE) -> -2 | IG12: =VLOOKUP($C12,[12]VN!$B$4:$AV$361,42,FALSE) -> 0 | IH12: =VLOOKUP($C12,[12]VN!$B$4:$AV$361,43,FALSE) -> -1 | II12: =VLOOKUP($C12,[12]VN!$B$4:$AV$361,45,FALSE) -> 1 | IJ12: =VLOOKUP($C12,[12]VN!$B$4:$AV$361,44,FALSE) -> 6 | IK12: =VLOOKUP($C12,[12]VN!$B$4:$AV$361,46,FALSE) -> -18 | IL12: =VLOOKUP($C12,[12]VN!$B$4:$AV$361,47,FALSE) -> 2 | IM12: 0 | IN12: -0 | IO12: 1 | IP12: 1 | IQ12: 0 | IR12: 0 | IS12: 1 | IT12: -4 | IU12: -0 | IV12: -1 | IW12: 0 | IX12: -2 | IY12: 1 | IZ12: 4 | JA12: -4 | JB12: 0 | JC12: 2 | JD12: 19 | JE12: =(SUMIFS('[23]CE GEE'!$S:$S,'[23]CE GEE'!$G:$G,C12)+SUMIFS([24]CEGEE!$H:$H,[24]CEGEE!$B:$B,C12))/1000 -> 0 | JF12: 9 | JG12: 6.78 | JH12: 38.88 | JI12: =VLOOKUP($C12,[12]VN!$B$4:$AW$500,48,FALSE) -> 0 | JJ12: 0 | JK12: =VLOOKUP($C12,[19]Import!$B$9:$ZZ$403,69,FALSE) -> -35 | JL12: 0.20% | JM12: =VLOOKUP($C12,[19]Import!$B$9:$ZZ$403,71,FALSE) -> 1 | JO12: =VLOOKUP($C12,[19]Import!$B$9:$ZZ$403,73,FALSE) -> -3 | JP12: =VLOOKUP($C12,[19]Import!$B$9:$ZZ$403,29,FALSE) -> 165 | JQ12: =VLOOKUP($C12,[19]Import!$B$9:$ZZ$403,77,FALSE) -> 211 | JR12: =IF(ISERROR(IF(VLOOKUP($C12,'Indicateurs Cumulés'!$C$3:$HN$619,190,FALSE)/(VLOOKUP($C12,objectifs!$C$3:$ZZ$618,162,FALSE))>=1.5,(VLOOKUP($C12,objectifs!$C$3:$ZZ$618,162,FALSE))*1.5,IF(VLOOKUP($C12,'Indicateurs Cumulés'!$C$3:$HN$619,190,FALSE)/(VLOOKUP($C12,objectifs!$C$3:$ZZ$618,162,FALSE))<=-0.5,(VLOOKUP($C12,objectifs!$C$3:$ZZ$618,162,FALSE))*-0.5,VLOOKUP($C12,'Indicateurs Cumulés'!$C$3:$HN$619,190,FALSE)))),VLOOKUP($C12,'Indicateurs Cumulés'!$C$3:$HN$619,190,FALSE),IF(VLOOKUP($C12,'Indicateurs Cumulés'!$C$3:$HN$619,190,FALSE)/(VLOOKUP($C12,objectifs!$C$3:$ZZ$618,162,FALSE))>=1.5,(VLOOKUP($C12,objectifs!$C$3:$ZZ$618,162,FALSE))*1.5,IF(VLOOKUP($C12,'Indicateurs Cumulés'!$C$3:$HN$619,190,FALSE)/(VLOOKUP($C12,objectifs!$C$3:$ZZ$618,162,FALSE))<=-0.5,(VLOOKUP($C12,objectifs!$C$3:$ZZ$618,162,FALSE))*-0.5,VLOOKUP($C12,'Indicateurs Cumulés'!$C$3:$HN$619,190,FALSE)))) -> -47 | JS12: -0 | JT12: 0 | JV12: -0 | JW12: 6 | JX12: 7 | JY12: -0 | JZ12: 12 | KA12: =VLOOKUP($C12,[12]VN!$B$4:$ZZ$500,53,FALSE) -> 1 | KB12: =VLOOKUP($C12,[12]VN!$B$4:$ZZ$500,52,FALSE) -> 1 | KC12: =VLOOKUP($C12,[12]VN!$B$4:$ZZ$500,51,FALSE) -> -1 | KD12: =VLOOKUP($C12,[12]VN!$B$4:$ZZ$500,49,FALSE) -> -1 | KE12: =VLOOKUP($C12,[12]VN!$B$4:$ZZ$500,50,FALSE) -> 0 | KF12: =VLOOKUP($C12,[12]VN!$B$4:$ZZ$500,28,FALSE) -> 0 | KG12: 1 | KH12: 1 | KI12: -1 | KJ12: -0 | KK12: 0 | KL12: 0 | KM12: 0 | KN12: =VLOOKUP($C12,[12]VN!$B$4:$ZZ$500,54,FALSE) -> -0 | KR12: 5.59 | KS12: 0 | KT12: =VLOOKUP($C12,[19]Import!$B$9:$ZZ$403,81,FALSE) -> -2 | KU12: 0 | KV12: =VLOOKUP(C12,[12]VN!$B$4:$BH$500,59,FALSE) -> 1 | KW12: 0 | KX12: =IF(ISERROR(VLOOKUP(C12,'[25]CFF BDD'!$B:$C,2,FALSE)),0,VLOOKUP(C12,'[25]CFF BDD'!$B:$C,2,FALSE)) -> 0 | KY12: 6 | KZ12: 4 | LA12: =VLOOKUP($C12,[12]VN!$B$4:$CC$500,60,FALSE) -> 0 | LB12: 0 | LC12: 50 | LD12: 23 | LE12: =VLOOKUP($C12,[12]VN!$B$4:$ZZ$500,65,FALSE) -> 0 | LF12: 0 | LG12: =VLOOKUP($C12,[12]VN!$B$4:$ZZ$500,66,FALSE) -> -4 | LH12: -6 | LI12: =VLOOKUP($C12,[12]VN!$B$4:$ZZ$500,67,FALSE) -> -5 | LJ12: -1 | LK12: 49 | LL12: 12.5 | LM12: 36 | LN12: 25 | LO12: -7 | LP12: -6 | LQ12: 12.85 | LR12: =SUMIF([26]BAD!$B:$B,$C12,[26]BAD!$E:$E) -> 24 | LS12: =SUMIF([26]SED!$B:$B,$C12,[26]SED!$E:$E) -> 26 | LT12: =SUMIF([26]SAG!$B:$B,$C12,[26]SAG!$E:$E) -> 190 | LU12: =SUMIF([26]EDOC!$B:$B,$C12,[26]EDOC!$E:$E) -> -5 | LV12: =SUMIF([26]OPTIN!$B:$B,$C12,[26]OPTIN!$E:$E) -> 57 | LW12: =SUMIF([26]SECURPASS!$B:$B,$C12,[26]SECURPASS!$E:$E) -> 3 | LX12: 1.8 | LY12: 0.3 | LZ12: 0.6 | MA12: 0.0 | MB12: 0.9 | MC12: 0.0 | MD12: 54
A13: 105020 | B13: 200262 | C13: 20 | D13: STRASBOURG ROBERTSAU | E13: 2019-02-28 | F13: =VLOOKUP($C13,'[7]bench cumul'!$A$3:$AH$633,'[7]bench cumul'!D$1,FALSE) -> 20 | G13: =VLOOKUP($C13,'[7]bench cumul'!$A$3:$AH$633,'[7]bench cumul'!E$1,FALSE) -> 4.32% | H13: =VLOOKUP($C13,'[7]bench cumul'!$A$3:$AH$633,'[7]bench cumul'!F$1,FALSE) -> 1.57 | I13: =VLOOKUP($C13,'[7]bench cumul'!$A$3:$AH$633,'[7]bench cumul'!G$1,FALSE) -> 2019-02-28 | J13: =VLOOKUP($C13,'[7]bench cumul'!$A$3:$AH$633,'[7]bench cumul'!H$1,FALSE) -> 433 | K13: =VLOOKUP($C13,'[7]bench cumul'!$A$3:$AH$633,'[7]bench cumul'!I$1,FALSE) -> 3.32% | L13: =VLOOKUP($C13,'[7]bench cumul'!$A$3:$AH$633,'[7]bench cumul'!J$1,FALSE) -> 2.52 | M13: =VLOOKUP($C13,'[7]bench cumul'!$A$3:$AH$633,'[7]bench cumul'!K$1,FALSE) -> 4.24 | N13: =VLOOKUP($C13,'[7]bench cumul'!$A$3:$AH$633,'[7]bench cumul'!L$1,FALSE) -> 1,651 | O13: =VLOOKUP($C13,'[7]bench cumul'!$A$3:$AH$633,'[7]bench cumul'!M$1,FALSE) -> 0 | P13: =VLOOKUP($C13,'[7]bench cumul'!$A$3:$AH$633,'[7]bench cumul'!N$1,FALSE) -> -0.18% | Q13: =VLOOKUP($C13,'[7]bench cumul'!$A$3:$AH$633,'[7]bench cumul'!O$1,FALSE) -> 7.27 | R13: =VLOOKUP($C13,'[7]bench cumul'!$A$3:$AH$633,'[7]bench cumul'!P$1,FALSE) -> 11.53 | S13: =VLOOKUP($C13,'[7]bench cumul'!$A$3:$AH$633,'[7]bench cumul'!Q$1,FALSE) -> -9 | T13: =VLOOKUP($C13,'[7]bench cumul'!$A$3:$AH$633,'[7]bench cumul'!R$1,FALSE) -> 4.28% | U13: =VLOOKUP($C13,'[7]bench cumul'!$A$3:$AH$633,'[7]bench cumul'!S$1,FALSE) -> 1.14 | V13: =VLOOKUP($C13,'[7]bench cumul'!$A$3:$AH$633,'[7]bench cumul'!T$1,FALSE) -> 273 | W13: =VLOOKUP($C13,'[7]bench cumul'!$A$3:$AH$633,'[7]bench cumul'!U$1,FALSE) -> -0.19% | X13: =VLOOKUP($C13,'[7]bench cumul'!$A$3:$AH$633,'[7]bench cumul'!V$1,FALSE) -> 8.80 | Y13: =VLOOKUP($C13,'[7]bench cumul'!$A$3:$AH$633,'[7]bench cumul'!W$1,FALSE) -> 74 | Z13: =VLOOKUP($C13,'[7]bench cumul'!$A$3:$AH$633,'[7]bench cumul'!X$1,FALSE) -> 0.69% | AA13: =VLOOKUP($C13,'[7]bench cumul'!$A$3:$AH$633,'[7]bench cumul'!Y$1,FALSE) -> 2.38 | AB13: =VLOOKUP($C13,'[7]bench cumul'!$A$3:$AH$633,'[7]bench cumul'!Z$1,FALSE) -> 3.8 | AC13: =VLOOKUP($C13,'[7]bench cumul'!$A$3:$AH$633,'[7]bench cumul'!AA$1,FALSE) -> 5.1 | AD13: =VLOOKUP($C13,'[7]bench cumul'!$A$3:$AH$633,'[7]bench cumul'!AB$1,FALSE) -> 0.2 | AE13: =VLOOKUP($C13,'[7]bench cumul'!$A$3:$AH$633,'[7]bench cumul'!AC$1,FALSE) -> 28.8 | AF13: =VLOOKUP($C13,'[7]bench cumul'!$A$3:$AH$633,'[7]bench cumul'!AD$1,FALSE) -> 7.8 | AG13: =VLOOKUP($C13,'[7]bench cumul'!$A$3:$AH$633,'[7]bench cumul'!AE$1,FALSE) -> 2.7 | AH13: =VLOOKUP($C13,'[8]Données Cumulées'!$A$1:$Z$65649,'[8]Données Cumulées'!C$1,FALSE) -> 201902 | AI13: =VLOOKUP($C13,'[8]Données Cumulées'!$A$1:$Z$65649,'[8]Données Cumulées'!D$1,FALSE) -> 0 | AJ13: =VLOOKUP($C13,'[8]Données Cumulées'!$A$1:$Z$65649,'[8]Données Cumulées'!E$1,FALSE) -> 0 | AK13: 0.00% | AL13: =VLOOKUP($C13,'[8]Données Cumulées'!$A$1:$Z$65649,'[8]Données Cumulées'!G$1,FALSE) -> 52.50 | AM13: =VLOOKUP($C13,'[8]Données Cumulées'!$A$1:$Z$65649,'[8]Données Cumulées'!H$1,FALSE) -> 14.44 | AN13: 28% | AO13: =VLOOKUP($C13,'[8]Données Cumulées'!$A$1:$Z$65649,'[8]Données Cumulées'!J$1,FALSE) -> 0.61 | AP13: 1.16% | AQ13: =VLOOKUP($C13,'[8]Données Cumulées'!$A$1:$Z$65649,'[8]Données Cumulées'!L$1,FALSE) -> 628.74 | AR13: =VLOOKUP($C13,'[8]Données Cumulées'!$A$1:$Z$65649,'[8]Données Cumulées'!M$1,FALSE) -> 170.34 | AS13: 27.1% | AT13: =VLOOKUP($C13,'[8]Données Cumulées'!$A$1:$Z$65649,'[8]Données Cumulées'!O$1,FALSE) -> 1.09 | AU13: 0.17% | AV13: =VLOOKUP($C13,'[8]Données Cumulées'!$A$1:$Z$65649,'[8]Données Cumulées'!Q$1,FALSE) -> 13.03 | AW13: =VLOOKUP($C13,'[8]Données Cumulées'!$A$1:$Z$65649,'[8]Données Cumulées'!R$1,FALSE) -> 1.83 | AX13: 14.08% | AY13: =VLOOKUP($C13,'[8]Données Cumulées'!$A$1:$Z$65649,'[8]Données Cumulées'!T$1,FALSE) -> 0.23 | AZ13: 1.77% | BA13: =VLOOKUP($C13,'[8]Données Cumulées'!$A$1:$Z$65649,'[8]Données Cumulées'!V$1,FALSE) -> 694.27 | BB13: =VLOOKUP($C13,'[8]Données Cumulées'!$A$1:$Z$65649,'[8]Données Cumulées'!W$1,FALSE) -> 186.62 | BC13: 26.9% | BD13: =VLOOKUP($C13,'[8]Données Cumulées'!$A$1:$Z$65649,'[8]Données Cumulées'!Y$1,FALSE) -> 1.93 | BE13: 0.28% | BG13: -0 | BH13: -3 | BI13: 51 | BJ13: 17 | BK13: 2 | BL13: =IF(ISERROR(VLOOKUP($D13,'[7]bench cumul'!$B$1:$AG$65598,'[7]bench cumul'!AF$1,FALSE)),P442,VLOOKUP($D13,'[7]bench cumul'!$B$1:$AG$65598,'[7]bench cumul'!AF$1,FALSE)) -> 1.59% | BM13: =IF(ISERROR(VLOOKUP($D13,'[7]bench cumul'!$B$1:$AG$65598,'[7]bench cumul'!AG$1,FALSE)),P442,VLOOKUP($D13,'[7]bench cumul'!$B$1:$AG$65598,'[7]bench cumul'!AG$1,FALSE)) -> 0.00% | BN13: 20 | BO13: =VLOOKUP(BN13,[9]Diversification_Epargne!$A:$L,12,FALSE)/1000 -> 32 | BP13: 1 | BQ13: =VLOOKUP(BN13,[9]Diversification_Epargne!$A:$L,8,FALSE)/1000 -> 62 | BR13: 2 | BS13: 0 | BT13: -1 | BU13: =-IF(ISERROR(VLOOKUP($C13,'[10]Commissions APAFF'!$B:$C,2,FALSE)),0,VLOOKUP($C13,'[10]Commissions APAFF'!$B:$C,2,FALSE)/1000) -> -0 | BX13: =-SUMIF([11]BDD!$H:$H,$C13,[11]BDD!$Q:$Q)/1000 -> 0 | BY13: =VLOOKUP($C13,[12]VN!$B$4:$BX$500,63,FALSE) -> 0 | BZ13: 0 | CA13: =VLOOKUP($C13,[12]VN!$B$4:$BX$500,64,FALSE) -> 1 | CB13: 0 | CC13: =VLOOKUP($C13,[12]VN!$B$4:$BX$500,27,FALSE) -> 1 | CD13: 1 | CE13: =SUMIF([13]Feuil1!$B:$B,C13,[13]Feuil1!$E:$E) -> 4 | CF13: 0.8 | CG13: =VLOOKUP($C13,[12]VN!$B$4:$BZ$361,68,FALSE) -> -1 | CH13: -0 | CI13: =SUMIF([14]Feuil1!$B:$B,C13,[14]Feuil1!$C:$C) -> 0 | CJ13: 0 | CM13: =VLOOKUP($C13,'[15]GEE CUMUL PROS'!$A$5:$O$348,6,FALSE) -> 100.00% | CN13: =VLOOKUP($C13,'[15]GEE CUMUL PROS'!$A$5:$O$348,7,FALSE) -> 100.00% | CO13: =VLOOKUP($C13,'[15]GEE CUMUL PROS'!$A$5:$O$348,15,FALSE) -> 0 | CP13: =VLOOKUP($C13,'[16]Cumul immo PRO'!$A$4:$G$755,6,FALSE)/1000*$CP$3 -> 1 | CQ13: 0.2 | CR13: =VLOOKUP($C13,'[7]bench cumul'!$A$3:$AK$633,'[7]bench cumul'!AK$1,FALSE) -> 1 | CS13: =VLOOKUP(C13,'[17]pnb bdd'!$A$3:$K$481,11,FALSE) -> 0.00 | CT13: =VLOOKUP($C13,[18]Cumul!$A:$D,4,FALSE) -> 0 | CU13: =VLOOKUP(C13,[18]Cumul!$A:$E,5,FALSE) -> 1 | CV13: =VLOOKUP($C13,'[7]bench cumul'!$A$3:$AK$633,'[7]bench cumul'!AJ$1,FALSE) -> 0 | CW13: 4 | CX13: =VLOOKUP($C13,'[16]Cumul immo BDD'!$A$4:$G$755,4,FALSE) -> 53.53% | CY13: =VLOOKUP($C13,'[16]Cumul immo BDD'!$A$4:$G$755,5,FALSE) -> 161.40% | CZ13: =VLOOKUP($C13,'[16]Cumul immo BDD'!$A$4:$H$755,6,FALSE)/1000*$CZ$3 -> 31 | DA13: =VLOOKUP($C13,'[15]GEE CUMUL BDD'!$A$5:$O$348,6,FALSE) -> 98.22% | DB13: =VLOOKUP($C13,'[15]GEE CUMUL BDD'!$A$5:$O$348,7,FALSE) -> 161.19% | DC13: =VLOOKUP($C13,'[15]GEE CUMUL BDD'!$A$5:$O$348,15,FALSE) -> 12 | DE13: =VLOOKUP($C13,'[16]Cumul mlt tous M'!$A$4:$F$348,4,FALSE) -> 100.00% | DF13: =VLOOKUP($C13,'[16]Cumul mlt tous M'!$A$4:$F$348,5,FALSE) -> 100.00% | DG13: =VLOOKUP($C13,'[16]Cumul mlt tous M'!$A$4:$F$348,6,FALSE)/1000 -> 0 | DH13: =VLOOKUP($C13,[19]Import!$B$9:$BR$403,3,FALSE) -> 130 | DI13: 0.70% | DJ13: 5.33 | DK13: 5 | DL13: =VLOOKUP($C13,[19]Import!$B$9:$BR$403,5,FALSE) -> -23 | DM13: 0.73% | DN13: 5.33 | DO13: -1 | DP13: =VLOOKUP($C13,[19]Import!$B$9:$BR$403,7,FALSE) -> 13 | DQ13: 0.84% | DR13: 5.33 | DS13: 1 | DT13: =VLOOKUP($C13,[19]Import!$B$9:$BR$403,9,FALSE) -> 11 | DU13: 0.63% | DV13: 5.33 | DW13: 0 | DX13: =VLOOKUP($C13,[19]Import!$B$9:$BR$403,11,FALSE) -> 4 | DY13: 0.20% | DZ13: 5.37 | EA13: 0 | EB13: =VLOOKUP($C13,[19]Import!$B$9:$BR$403,13,FALSE) -> 79 | EC13: 0.20% | ED13: 5.37 | EE13: 1 | EF13: =VLOOKUP($C13,[19]Import!$B$9:$BR$403,15,FALSE) -> -29 | EG13: 0.20% | EH13: 5.37 | EI13: -0 | EJ13: =VLOOKUP($C13,[19]Import!$B$9:$BR$403,17,FALSE) -> -43 | EK13: 0.44% | EL13: 5.33 | EM13: -1 | EN13: =VLOOKUP($C13,[19]Import!$B$9:$BR$403,41,FALSE) -> -5 | EO13: 0.10% | EP13: =VLOOKUP($C13,[19]Import!$B$9:$CR$403,87,FALSE) -> 8.93 | EQ13: -0 | ER13: =VLOOKUP($C13,[19]Import!$B$9:$BR$403,39,FALSE) -> -88 | ES13: 0.20% | ET13: 9.00 | EU13: -2 | EV13: =VLOOKUP($C13,[19]Import!$B$9:$BR$403,43,FALSE) -> -85 | EW13: 0.00% | EX13: =IF(VLOOKUP($C13,[19]Import!$B$9:$ZZ$403,89,FALSE)=0,$EX$3,VLOOKUP($C13,[19]Import!$B$9:$ZZ$403,89,FALSE)) -> 8.50 | EY13: 0 | EZ13: =VLOOKUP($C13,[19]Import!$B$9:$BR$403,45,FALSE) -> 0 | FA13: -0.37% | FB13: 0.08 | FC13: 0 | FD13: =VLOOKUP($C13,[19]Import!$B$9:$BR$403,47,FALSE) -> 468 | FE13: 0.45% | FF13: 8.00 | FG13: 17 | FH13: =VLOOKUP($C13,[19]Import!$B$9:$BR$403,49,FALSE) -> 716 | FI13: 0.28% | FJ13: 1.00 | FK13: 2 | FL13: =VLOOKUP($C13,[19]Import!$B$9:$BR$403,51,FALSE) -> -51 | FM13: 0.65% | FN13: 5.00 | FO13: -2 | FP13: =VLOOKUP($C13,[19]Import!$B$9:$BR$403,53,FALSE) -> 4 | FQ13: 0.40% | FR13: 1.00 | FS13: 0 | FT13: =VLOOKUP($C13,[19]Import!$B$9:$BR$403,55,FALSE) -> -391 | FU13: 0.20% | FV13: 8.00 | FW13: -6 | FX13: =VLOOKUP($C13,[19]Import!$B$9:$BR$403,57,FALSE) -> 64 | FY13: 1.00% | FZ13: 5.00 | GA13: 3 | GB13: -242 | GC13: 5 | GD13: 480 | GE13: 23 | GF13: =VLOOKUP($C13,[19]Import!$B$9:$BR$403,59,FALSE) -> -239 | GG13: 1.00% | GH13: 5.37 | GI13: -13 | GJ13: =VLOOKUP($C13,[19]Import!$B$9:$ZZ$403,79,FALSE) -> -122 | GK13: =VLOOKUP(C13,[20]VN!$A:$E,5,FALSE) -> 0 | GL13: 0 | GN13: =VLOOKUP(C13,'[17]pnb bdd'!$A$3:$I$481,7,FALSE) -> 0 | GO13: =VLOOKUP(C13,'[17]pnb bdd'!$A$3:$I$481,9,FALSE) -> 0.00% | GP13: =VLOOKUP(C13,'[17]pnb bdd'!$A$3:$I$481,8,FALSE) -> 0 | GQ13: 0 | GR13: =VLOOKUP(C13,[19]Import!$B$9:$DB$403,91,FALSE)+VLOOKUP(C13,[19]Import!$B$9:$DB$403,93,FALSE) -> 0 | GS13: 0.45% | GT13: 8.00 | GU13: 0 | GV13: =VLOOKUP(C13,[19]Import!$B$9:$DB$403,99,FALSE)+VLOOKUP(C13,[19]Import!$B$9:$DB$403,101,FALSE) -> 0 | GW13: 0.28% | GX13: 1.00 | GY13: 0 | GZ13: =VLOOKUP(C13,[19]Import!$B$9:$DB$403,95,FALSE)+VLOOKUP(C13,[19]Import!$B$9:$DB$403,97,FALSE) -> 0 | HA13: 0.65% | HB13: 5.00 | HC13: 0 | HD13: =VLOOKUP(C13,[19]Import!$B$9:$DB$403,103,FALSE)+VLOOKUP(C13,[19]Import!$B$9:$DB$403,105,FALSE) -> 0 | HE13: 0.40% | HF13: 1.00 | HG13: 0 | HH13: =VLOOKUP(C13,[19]Import!$B$9:$DD$403,107,FALSE) -> 63 | HI13: 1.00% | HJ13: 5.00 | HK13: 3 | HL13: =-SUMIF([11]BDD!$F:$F,$C13,[11]BDD!$N:$N)/1000 -> -6 | HM13: =SUMIF([11]BDD!$F:$F,$C13,[11]BDD!$H:$H)/1000 -> 83 | HO13: =IF(ISERROR(IF(VLOOKUP($C13,'Indicateurs Cumulés'!$C$3:$HN$619,186,FALSE)/(VLOOKUP($C13,objectifs!$C$3:$ZZ$618,158,FALSE))>=1.5,(VLOOKUP($C13,objectifs!$C$3:$ZZ$618,158,FALSE))*1.5,IF(VLOOKUP($C13,'Indicateurs Cumulés'!$C$3:$HN$619,186,FALSE)/(VLOOKUP($C13,objectifs!$C$3:$ZZ$618,158,FALSE))<=-0.5,(VLOOKUP($C13,objectifs!$C$3:$ZZ$618,158,FALSE))*-0.5,VLOOKUP($C13,'Indicateurs Cumulés'!$C$3:$HN$619,186,FALSE)))),VLOOKUP($C13,'Indicateurs Cumulés'!$C$3:$HN$619,186,FALSE),IF(VLOOKUP($C13,'Indicateurs Cumulés'!$C$3:$HN$619,186,FALSE)/(VLOOKUP($C13,objectifs!$C$3:$ZZ$618,158,FALSE))>=1.5,(VLOOKUP($C13,objectifs!$C$3:$ZZ$618,158,FALSE))*1.5,IF(VLOOKUP($C13,'Indicateurs Cumulés'!$C$3:$HN$619,186,FALSE)/(VLOOKUP($C13,objectifs!$C$3:$ZZ$618,158,FALSE))<=-0.5,(VLOOKUP($C13,objectifs!$C$3:$ZZ$618,158,FALSE))*-0.5,VLOOKUP($C13,'Indicateurs Cumulés'!$C$3:$HN$619,186,FALSE)))) -> -239 | HP13: =SUMIFS([21]Feuil1!$C:$C,[21]Feuil1!$A:$A,C13) -> 0 | HR13: =IF(ISERROR(VLOOKUP($C13,[22]Feuil1!$O$10:$T$350,6,FALSE)),0,VLOOKUP($C13,[22]Feuil1!$O$10:$T$350,6,FALSE)) -> 6.4 | HT13: 4.45% | HU13: 0.14% | HV13: 0.90% | HW13: =VLOOKUP($C13,[12]VN!$B$4:$AV$500,3,FALSE) -> 0 | HX13: =VLOOKUP($C13,[12]VN!$B$4:$AV$500,16,FALSE) -> -6 | HY13: =VLOOKUP($C13,[12]VN!$B$4:$AV$500,34,FALSE) -> -4 | HZ13: =VLOOKUP($C13,[12]VN!$B$4:$AV$500,14,FALSE) -> -5 | IA13: =VLOOKUP($C13,[12]VN!$B$4:$AV$500,32,FALSE)+VLOOKUP($C13,[12]VN!$B$4:$AV$500,17,FALSE) -> 2 | IB13: =VLOOKUP($C13,[12]VN!$B$4:$AV$500,11,FALSE) -> 2 | IC13: =VLOOKUP($C13,[12]VN!$B$4:$AV$500,15,FALSE) -> 1 | ID13: =VLOOKUP($C13,[12]VN!$B$4:$AV$361,39,FALSE)-KY13 -> -4 | IE13: =VLOOKUP($C13,[12]VN!$B$4:$AV$361,40,FALSE) -> 0 | IF13: =VLOOKUP($C13,[12]VN!$B$4:$AV$361,41,FALSE) -> -4 | IG13: =VLOOKUP($C13,[12]VN!$B$4:$AV$361,42,FALSE) -> 0 | IH13: =VLOOKUP($C13,[12]VN!$B$4:$AV$361,43,FALSE) -> 0 | II13: =VLOOKUP($C13,[12]VN!$B$4:$AV$361,45,FALSE) -> -1 | IJ13: =VLOOKUP($C13,[12]VN!$B$4:$AV$361,44,FALSE) -> 12 | IK13: =VLOOKUP($C13,[12]VN!$B$4:$AV$361,46,FALSE) -> -11 | IL13: =VLOOKUP($C13,[12]VN!$B$4:$AV$361,47,FALSE) -> -2 | IM13: 0 | IN13: -1 | IO13: -1 | IP13: -0 | IQ13: 0 | IR13: 0 | IS13: 0 | IT13: -2 | IU13: 0 | IV13: -2 | IW13: 0 | IX13: 0 | IY13: -1 | IZ13: 8 | JA13: -2 | JB13: -0 | JC13: 6 | JD13: 8 | JE13: =(SUMIFS('[23]CE GEE'!$S:$S,'[23]CE GEE'!$G:$G,C13)+SUMIFS([24]CEGEE!$H:$H,[24]CEGEE!$B:$B,C13))/1000 -> 0 | JF13: -9 | JG13: 3.22 | JH13: -215.91 | JI13: =VLOOKUP($C13,[12]VN!$B$4:$AW$500,48,FALSE) -> 0 | JJ13: 0 | JK13: =VLOOKUP($C13,[19]Import!$B$9:$ZZ$403,69,FALSE) -> 0 | JL13: 0.20% | JM13: =VLOOKUP($C13,[19]Import!$B$9:$ZZ$403,71,FALSE) -> 0 | JO13: =VLOOKUP($C13,[19]Import!$B$9:$ZZ$403,73,FALSE) -> 165 | JP13: =VLOOKUP($C13,[19]Import!$B$9:$ZZ$403,29,FALSE) -> 119 | JQ13: =VLOOKUP($C13,[19]Import!$B$9:$ZZ$403,77,FALSE) -> 29 | JR13: =IF(ISERROR(IF(VLOOKUP($C13,'Indicateurs Cumulés'!$C$3:$HN$619,190,FALSE)/(VLOOKUP($C13,objectifs!$C$3:$ZZ$618,162,FALSE))>=1.5,(VLOOKUP($C13,objectifs!$C$3:$ZZ$618,162,FALSE))*1.5,IF(VLOOKUP($C13,'Indicateurs Cumulés'!$C$3:$HN$619,190,FALSE)/(VLOOKUP($C13,objectifs!$C$3:$ZZ$618,162,FALSE))<=-0.5,(VLOOKUP($C13,objectifs!$C$3:$ZZ$618,162,FALSE))*-0.5,VLOOKUP($C13,'Indicateurs Cumulés'!$C$3:$HN$619,190,FALSE)))),VLOOKUP($C13,'Indicateurs Cumulés'!$C$3:$HN$619,190,FALSE),IF(VLOOKUP($C13,'Indicateurs Cumulés'!$C$3:$HN$619,190,FALSE)/(VLOOKUP($C13,objectifs!$C$3:$ZZ$618,162,FALSE))>=1.5,(VLOOKUP($C13,objectifs!$C$3:$ZZ$618,162,FALSE))*1.5,IF(VLOOKUP($C13,'Indicateurs Cumulés'!$C$3:$HN$619,190,FALSE)/(VLOOKUP($C13,objectifs!$C$3:$ZZ$618,162,FALSE))<=-0.5,(VLOOKUP($C13,objectifs!$C$3:$ZZ$618,162,FALSE))*-0.5,VLOOKUP($C13,'Indicateurs Cumulés'!$C$3:$HN$619,190,FALSE)))) -> -49 | JS13: 0 | JT13: 0 | JV13: 4 | JW13: 5 | JX13: 1 | JY13: -0 | JZ13: 9 | KA13: =VLOOKUP($C13,[12]VN!$B$4:$ZZ$500,53,FALSE) -> -3 | KB13: =VLOOKUP($C13,[12]VN!$B$4:$ZZ$500,52,FALSE) -> 0 | KC13: =VLOOKUP($C13,[12]VN!$B$4:$ZZ$500,51,FALSE) -> -1 | KD13: =VLOOKUP($C13,[12]VN!$B$4:$ZZ$500,49,FALSE) -> 0 | KE13: =VLOOKUP($C13,[12]VN!$B$4:$ZZ$500,50,FALSE) -> 0 | KF13: =VLOOKUP($C13,[12]VN!$B$4:$ZZ$500,28,FALSE) -> 0 | KG13: -4 | KH13: 0 | KI13: -1 | KJ13: 0 | KK13: 0 | KL13: 0 | KM13: -5 | KN13: =VLOOKUP($C13,[12]VN!$B$4:$ZZ$500,54,FALSE) -> -0 | KR13: 3.40 | KS13: -4 | KT13: =VLOOKUP($C13,[19]Import!$B$9:$ZZ$403,81,FALSE) -> -47 | KU13: 0 | KV13: =VLOOKUP(C13,[12]VN!$B$4:$BH$500,59,FALSE) -> 4 | KW13: 1 | KX13: =IF(ISERROR(VLOOKUP(C13,'[25]CFF BDD'!$B:$C,2,FALSE)),0,VLOOKUP(C13,'[25]CFF BDD'!$B:$C,2,FALSE)) -> 0 | KY13: 11 | KZ13: 8 | LA13: =VLOOKUP($C13,[12]VN!$B$4:$CC$500,60,FALSE) -> 0 | LB13: 0 | LC13: 92 | LD13: 6 | LE13: =VLOOKUP($C13,[12]VN!$B$4:$ZZ$500,65,FALSE) -> 2 | LF13: 1 | LG13: =VLOOKUP($C13,[12]VN!$B$4:$ZZ$500,66,FALSE) -> 1 | LH13: 1 | LI13: =VLOOKUP($C13,[12]VN!$B$4:$ZZ$500,67,FALSE) -> 2 | LJ13: 0 | LK13: 92 | LL13: 14.3 | LM13: 25 | LN13: 69 | LO13: -6 | LP13: 3 | LQ13: 14.33 | LR13: =SUMIF([26]BAD!$B:$B,$C13,[26]BAD!$E:$E) -> 28 | LS13: =SUMIF([26]SED!$B:$B,$C13,[26]SED!$E:$E) -> 47 | LT13: =SUMIF([26]SAG!$B:$B,$C13,[26]SAG!$E:$E) -> 166 | LU13: =SUMIF([26]EDOC!$B:$B,$C13,[26]EDOC!$E:$E) -> 8 | LV13: =SUMIF([26]OPTIN!$B:$B,$C13,[26]OPTIN!$E:$E) -> 11 | LW13: =SUMIF([26]SECURPASS!$B:$B,$C13,[26]SECURPASS!$E:$E) -> 9 | LX13: 2.1 | LY13: 0.5 | LZ13: 0.5 | MA13: 0.4 | MB13: 0.2 | MC13: 0.0 | MD13: 96
A14: 105043 | B14: 200262 | C14: 23 | D14: STRASBOURG VOSGES | E14: 2019-02-28 | F14: =VLOOKUP($C14,'[7]bench cumul'!$A$3:$AH$633,'[7]bench cumul'!D$1,FALSE) -> 20 | G14: =VLOOKUP($C14,'[7]bench cumul'!$A$3:$AH$633,'[7]bench cumul'!E$1,FALSE) -> 4.32% | H14: =VLOOKUP($C14,'[7]bench cumul'!$A$3:$AH$633,'[7]bench cumul'!F$1,FALSE) -> 1.57 | I14: =VLOOKUP($C14,'[7]bench cumul'!$A$3:$AH$633,'[7]bench cumul'!G$1,FALSE) -> 2019-02-28 | J14: =VLOOKUP($C14,'[7]bench cumul'!$A$3:$AH$633,'[7]bench cumul'!H$1,FALSE) -> 52 | K14: =VLOOKUP($C14,'[7]bench cumul'!$A$3:$AH$633,'[7]bench cumul'!I$1,FALSE) -> 3.34% | L14: =VLOOKUP($C14,'[7]bench cumul'!$A$3:$AH$633,'[7]bench cumul'!J$1,FALSE) -> 2.25 | M14: =VLOOKUP($C14,'[7]bench cumul'!$A$3:$AH$633,'[7]bench cumul'!K$1,FALSE) -> 3.86 | N14: =VLOOKUP($C14,'[7]bench cumul'!$A$3:$AH$633,'[7]bench cumul'!L$1,FALSE) -> 523 | O14: =VLOOKUP($C14,'[7]bench cumul'!$A$3:$AH$633,'[7]bench cumul'!M$1,FALSE) -> 0 | P14: =VLOOKUP($C14,'[7]bench cumul'!$A$3:$AH$633,'[7]bench cumul'!N$1,FALSE) -> -0.09% | Q14: =VLOOKUP($C14,'[7]bench cumul'!$A$3:$AH$633,'[7]bench cumul'!O$1,FALSE) -> 7.39 | R14: =VLOOKUP($C14,'[7]bench cumul'!$A$3:$AH$633,'[7]bench cumul'!P$1,FALSE) -> 11.64 | S14: =VLOOKUP($C14,'[7]bench cumul'!$A$3:$AH$633,'[7]bench cumul'!Q$1,FALSE) -> 0 | T14: =VLOOKUP($C14,'[7]bench cumul'!$A$3:$AH$633,'[7]bench cumul'!R$1,FALSE) -> 0.00% | U14: =VLOOKUP($C14,'[7]bench cumul'!$A$3:$AH$633,'[7]bench cumul'!S$1,FALSE) -> 0 | V14: =VLOOKUP($C14,'[7]bench cumul'!$A$3:$AH$633,'[7]bench cumul'!T$1,FALSE) -> 0 | W14: =VLOOKUP($C14,'[7]bench cumul'!$A$3:$AH$633,'[7]bench cumul'!U$1,FALSE) -> 0.00% | X14: =VLOOKUP($C14,'[7]bench cumul'!$A$3:$AH$633,'[7]bench cumul'!V$1,FALSE) -> 0 | Y14: =VLOOKUP($C14,'[7]bench cumul'!$A$3:$AH$633,'[7]bench cumul'!W$1,FALSE) -> 0 | Z14: =VLOOKUP($C14,'[7]bench cumul'!$A$3:$AH$633,'[7]bench cumul'!X$1,FALSE) -> 0.00% | AA14: =VLOOKUP($C14,'[7]bench cumul'!$A$3:$AH$633,'[7]bench cumul'!Y$1,FALSE) -> 0 | AB14: =VLOOKUP($C14,'[7]bench cumul'!$A$3:$AH$633,'[7]bench cumul'!Z$1,FALSE) -> 1.5 | AC14: =VLOOKUP($C14,'[7]bench cumul'!$A$3:$AH$633,'[7]bench cumul'!AA$1,FALSE) -> 0.7 | AD14: =VLOOKUP($C14,'[7]bench cumul'!$A$3:$AH$633,'[7]bench cumul'!AB$1,FALSE) -> 0 | AE14: =VLOOKUP($C14,'[7]bench cumul'!$A$3:$AH$633,'[7]bench cumul'!AC$1,FALSE) -> 26.7 | AF14: =VLOOKUP($C14,'[7]bench cumul'!$A$3:$AH$633,'[7]bench cumul'!AD$1,FALSE) -> 0.9 | AG14: =VLOOKUP($C14,'[7]bench cumul'!$A$3:$AH$633,'[7]bench cumul'!AE$1,FALSE) -> 1.2 | AH14: =VLOOKUP($C14,'[8]Données Cumulées'!$A$1:$Z$65649,'[8]Données Cumulées'!C$1,FALSE) -> 201902 | AI14: =VLOOKUP($C14,'[8]Données Cumulées'!$A$1:$Z$65649,'[8]Données Cumulées'!D$1,FALSE) -> 3.00 | AJ14: =VLOOKUP($C14,'[8]Données Cumulées'!$A$1:$Z$65649,'[8]Données Cumulées'!E$1,FALSE) -> 0.07 | AK14: 2.40% | AL14: =VLOOKUP($C14,'[8]Données Cumulées'!$A$1:$Z$65649,'[8]Données Cumulées'!G$1,FALSE) -> 96.58 | AM14: =VLOOKUP($C14,'[8]Données Cumulées'!$A$1:$Z$65649,'[8]Données Cumulées'!H$1,FALSE) -> 14.30 | AN14: 15% | AO14: =VLOOKUP($C14,'[8]Données Cumulées'!$A$1:$Z$65649,'[8]Données Cumulées'!J$1,FALSE) -> 0.80 | AP14: 0.83% | AQ14: =VLOOKUP($C14,'[8]Données Cumulées'!$A$1:$Z$65649,'[8]Données Cumulées'!L$1,FALSE) -> 195.90 | AR14: =VLOOKUP($C14,'[8]Données Cumulées'!$A$1:$Z$65649,'[8]Données Cumulées'!M$1,FALSE) -> 57.51 | AS14: 29.4% | AT14: =VLOOKUP($C14,'[8]Données Cumulées'!$A$1:$Z$65649,'[8]Données Cumulées'!O$1,FALSE) -> 0.03 | AU14: 0.01% | AV14: =VLOOKUP($C14,'[8]Données Cumulées'!$A$1:$Z$65649,'[8]Données Cumulées'!Q$1,FALSE) -> 11.04 | AW14: =VLOOKUP($C14,'[8]Données Cumulées'!$A$1:$Z$65649,'[8]Données Cumulées'!R$1,FALSE) -> 0.41 | AX14: 3.68% | AY14: =VLOOKUP($C14,'[8]Données Cumulées'!$A$1:$Z$65649,'[8]Données Cumulées'!T$1,FALSE) -> 0.17 | AZ14: 1.58% | BA14: =VLOOKUP($C14,'[8]Données Cumulées'!$A$1:$Z$65649,'[8]Données Cumulées'!V$1,FALSE) -> 306.51 | BB14: =VLOOKUP($C14,'[8]Données Cumulées'!$A$1:$Z$65649,'[8]Données Cumulées'!W$1,FALSE) -> 72.21 | BC14: 23.6% | BD14: =VLOOKUP($C14,'[8]Données Cumulées'!$A$1:$Z$65649,'[8]Données Cumulées'!Y$1,FALSE) -> 1.07 | BE14: 0.35% | BG14: 0 | BH14: 0 | BI14: 7 | BJ14: -1 | BK14: 0 | BL14: =IF(ISERROR(VLOOKUP($D14,'[7]bench cumul'!$B$1:$AG$65598,'[7]bench cumul'!AF$1,FALSE)),P443,VLOOKUP($D14,'[7]bench cumul'!$B$1:$AG$65598,'[7]bench cumul'!AF$1,FALSE)) -> 1.66% | BM14: =IF(ISERROR(VLOOKUP($D14,'[7]bench cumul'!$B$1:$AG$65598,'[7]bench cumul'!AG$1,FALSE)),P443,VLOOKUP($D14,'[7]bench cumul'!$B$1:$AG$65598,'[7]bench cumul'!AG$1,FALSE)) -> 0.00% | BN14: 23 | BO14: =VLOOKUP(BN14,[9]Diversification_Epargne!$A:$L,12,FALSE)/1000 -> 15 | BP14: 0 | BQ14: =VLOOKUP(BN14,[9]Diversification_Epargne!$A:$L,8,FALSE)/1000 -> 73 | BR14: 2 | BS14: -0 | BT14: 0 | BU14: =-IF(ISERROR(VLOOKUP($C14,'[10]Commissions APAFF'!$B:$C,2,FALSE)),0,VLOOKUP($C14,'[10]Commissions APAFF'!$B:$C,2,FALSE)/1000) -> -5 | BX14: =-SUMIF([11]BDD!$H:$H,$C14,[11]BDD!$Q:$Q)/1000 -> 0 | BY14: =VLOOKUP($C14,[12]VN!$B$4:$BX$500,63,FALSE) -> 0 | BZ14: 0 | CA14: =VLOOKUP($C14,[12]VN!$B$4:$BX$500,64,FALSE) -> 0 | CB14: 0 | CC14: =VLOOKUP($C14,[12]VN!$B$4:$BX$500,27,FALSE) -> 0 | CD14: 0 | CE14: =SUMIF([13]Feuil1!$B:$B,C14,[13]Feuil1!$E:$E) -> 2 | CF14: 0.4 | CG14: =VLOOKUP($C14,[12]VN!$B$4:$BZ$361,68,FALSE) -> -1 | CH14: -0 | CI14: =SUMIF([14]Feuil1!$B:$B,C14,[14]Feuil1!$C:$C) -> 0 | CJ14: 0 | CM14: =VLOOKUP($C14,'[15]GEE CUMUL PROS'!$A$5:$O$348,6,FALSE) -> 0.00% | CN14: =VLOOKUP($C14,'[15]GEE CUMUL PROS'!$A$5:$O$348,7,FALSE) -> 0.00% | CO14: =VLOOKUP($C14,'[15]GEE CUMUL PROS'!$A$5:$O$348,15,FALSE) -> 0 | CP14: =VLOOKUP($C14,'[16]Cumul immo PRO'!$A$4:$G$755,6,FALSE)/1000*$CP$3 -> 0 | CQ14: 0 | CR14: =VLOOKUP($C14,'[7]bench cumul'!$A$3:$AK$633,'[7]bench cumul'!AK$1,FALSE) -> 0 | CS14: =VLOOKUP(C14,'[17]pnb bdd'!$A$3:$K$481,11,FALSE) -> 0.00 | CT14: =VLOOKUP($C14,[18]Cumul!$A:$D,4,FALSE) -> 0 | CU14: =VLOOKUP(C14,[18]Cumul!$A:$E,5,FALSE) -> 1 | CV14: =VLOOKUP($C14,'[7]bench cumul'!$A$3:$AK$633,'[7]bench cumul'!AJ$1,FALSE) -> 0 | CW14: 1 | CX14: =VLOOKUP($C14,'[16]Cumul immo BDD'!$A$4:$G$755,4,FALSE) -> 0.00% | CY14: =VLOOKUP($C14,'[16]Cumul immo BDD'!$A$4:$G$755,5,FALSE) -> 0.00% | CZ14: =VLOOKUP($C14,'[16]Cumul immo BDD'!$A$4:$H$755,6,FALSE)/1000*$CZ$3 -> 0 | DA14: =VLOOKUP($C14,'[15]GEE CUMUL BDD'!$A$5:$O$348,6,FALSE) -> 100.00% | DB14: =VLOOKUP($C14,'[15]GEE CUMUL BDD'!$A$5:$O$348,7,FALSE) -> 107.77% | DC14: =VLOOKUP($C14,'[15]GEE CUMUL BDD'!$A$5:$O$348,15,FALSE) -> 1 | DE14: =VLOOKUP($C14,'[16]Cumul mlt tous M'!$A$4:$F$348,4,FALSE) -> 0.00% | DF14: =VLOOKUP($C14,'[16]Cumul mlt tous M'!$A$4:$F$348,5,FALSE) -> 0.00% | DG14: =VLOOKUP($C14,'[16]Cumul mlt tous M'!$A$4:$F$348,6,FALSE)/1000 -> 0 | DH14: =VLOOKUP($C14,[19]Import!$B$9:$BR$403,3,FALSE) -> 306 | DI14: 0.70% | DJ14: 5.33 | DK14: 11 | DL14: =VLOOKUP($C14,[19]Import!$B$9:$BR$403,5,FALSE) -> 277 | DM14: 0.73% | DN14: 5.33 | DO14: 11 | DP14: =VLOOKUP($C14,[19]Import!$B$9:$BR$403,7,FALSE) -> -3 | DQ14: 0.84% | DR14: 5.33 | DS14: -0 | DT14: =VLOOKUP($C14,[19]Import!$B$9:$BR$403,9,FALSE) -> 1,445 | DU14: 0.63% | DV14: 5.33 | DW14: 48 | DX14: =VLOOKUP($C14,[19]Import!$B$9:$BR$403,11,FALSE) -> -24 | DY14: 0.20% | DZ14: 5.37 | EA14: -0 | EB14: =VLOOKUP($C14,[19]Import!$B$9:$BR$403,13,FALSE) -> 66 | EC14: 0.20% | ED14: 5.37 | EE14: 1 | EF14: =VLOOKUP($C14,[19]Import!$B$9:$BR$403,15,FALSE) -> -38 | EG14: 0.20% | EH14: 5.37 | EI14: -0 | EJ14: =VLOOKUP($C14,[19]Import!$B$9:$BR$403,17,FALSE) -> 13 | EK14: 0.44% | EL14: 5.33 | EM14: 0 | EN14: =VLOOKUP($C14,[19]Import!$B$9:$BR$403,41,FALSE) -> -5 | EO14: 0.10% | EP14: =VLOOKUP($C14,[19]Import!$B$9:$CR$403,87,FALSE) -> 7.11 | EQ14: -0 | ER14: =VLOOKUP($C14,[19]Import!$B$9:$BR$403,39,FALSE) -> -146 | ES14: 0.20% | ET14: 9.00 | EU14: -3 | EV14: =VLOOKUP($C14,[19]Import!$B$9:$BR$403,43,FALSE) -> -139 | EW14: 0.00% | EX14: =IF(VLOOKUP($C14,[19]Import!$B$9:$ZZ$403,89,FALSE)=0,$EX$3,VLOOKUP($C14,[19]Import!$B$9:$ZZ$403,89,FALSE)) -> 8.59 | EY14: 0 | EZ14: =VLOOKUP($C14,[19]Import!$B$9:$BR$403,45,FALSE) -> 0 | FA14: -0.37% | FB14: 0.08 | FC14: 0 | FD14: =VLOOKUP($C14,[19]Import!$B$9:$BR$403,47,FALSE) -> -118 | FE14: 0.45% | FF14: 8.00 | FG14: -4 | FH14: =VLOOKUP($C14,[19]Import!$B$9:$BR$403,49,FALSE) -> 161 | FI14: 0.35% | FJ14: 1.00 | FK14: 1 | FL14: =VLOOKUP($C14,[19]Import!$B$9:$BR$403,51,FALSE) -> -108 | FM14: 0.65% | FN14: 5.00 | FO14: -4 | FP14: =VLOOKUP($C14,[19]Import!$B$9:$BR$403,53,FALSE) -> 1 | FQ14: 0.40% | FR14: 1.00 | FS14: 0 | FT14: =VLOOKUP($C14,[19]Import!$B$9:$BR$403,55,FALSE) -> -266 | FU14: 0.20% | FV14: 8.00 | FW14: -4 | FX14: =VLOOKUP($C14,[19]Import!$B$9:$BR$403,57,FALSE) -> 26 | FY14: 1.00% | FZ14: 5.00 | GA14: 1 | GB14: 1,469 | GC14: 63 | GD14: -339 | GE14: -11 | GF14: =VLOOKUP($C14,[19]Import!$B$9:$BR$403,59,FALSE) -> -717 | GG14: 1.00% | GH14: 5.37 | GI14: -38 | GJ14: =VLOOKUP($C14,[19]Import!$B$9:$ZZ$403,79,FALSE) -> -141 | GK14: =VLOOKUP(C14,[20]VN!$A:$E,5,FALSE) -> 0 | GL14: 0 | GN14: =VLOOKUP(C14,'[17]pnb bdd'!$A$3:$I$481,7,FALSE) -> 0 | GO14: =VLOOKUP(C14,'[17]pnb bdd'!$A$3:$I$481,9,FALSE) -> 0.00% | GP14: =VLOOKUP(C14,'[17]pnb bdd'!$A$3:$I$481,8,FALSE) -> 0 | GQ14: 0 | GR14: =VLOOKUP(C14,[19]Import!$B$9:$DB$403,91,FALSE)+VLOOKUP(C14,[19]Import!$B$9:$DB$403,93,FALSE) -> 0 | GS14: 0.45% | GT14: 8.00 | GU14: 0 | GV14: =VLOOKUP(C14,[19]Import!$B$9:$DB$403,99,FALSE)+VLOOKUP(C14,[19]Import!$B$9:$DB$403,101,FALSE) -> 0 | GW14: 0.35% | GX14: 1.00 | GY14: 0 | GZ14: =VLOOKUP(C14,[19]Import!$B$9:$DB$403,95,FALSE)+VLOOKUP(C14,[19]Import!$B$9:$DB$403,97,FALSE) -> 0 | HA14: 0.65% | HB14: 5.00 | HC14: 0 | HD14: =VLOOKUP(C14,[19]Import!$B$9:$DB$403,103,FALSE)+VLOOKUP(C14,[19]Import!$B$9:$DB$403,105,FALSE) -> 0 | HE14: 0.40% | HF14: 1.00 | HG14: 0 | HH14: =VLOOKUP(C14,[19]Import!$B$9:$DD$403,107,FALSE) -> -113 | HI14: 1.00% | HJ14: 5.00 | HK14: -6 | HL14: =-SUMIF([11]BDD!$F:$F,$C14,[11]BDD!$N:$N)/1000 -> -3 | HM14: =SUMIF([11]BDD!$F:$F,$C14,[11]BDD!$H:$H)/1000 -> 56 | HO14: =IF(ISERROR(IF(VLOOKUP($C14,'Indicateurs Cumulés'!$C$3:$HN$619,186,FALSE)/(VLOOKUP($C14,objectifs!$C$3:$ZZ$618,158,FALSE))>=1.5,(VLOOKUP($C14,objectifs!$C$3:$ZZ$618,158,FALSE))*1.5,IF(VLOOKUP($C14,'Indicateurs Cumulés'!$C$3:$HN$619,186,FALSE)/(VLOOKUP($C14,objectifs!$C$3:$ZZ$618,158,FALSE))<=-0.5,(VLOOKUP($C14,objectifs!$C$3:$ZZ$618,158,FALSE))*-0.5,VLOOKUP($C14,'Indicateurs Cumulés'!$C$3:$HN$619,186,FALSE)))),VLOOKUP($C14,'Indicateurs Cumulés'!$C$3:$HN$619,186,FALSE),IF(VLOOKUP($C14,'Indicateurs Cumulés'!$C$3:$HN$619,186,FALSE)/(VLOOKUP($C14,objectifs!$C$3:$ZZ$618,158,FALSE))>=1.5,(VLOOKUP($C14,objectifs!$C$3:$ZZ$618,158,FALSE))*1.5,IF(VLOOKUP($C14,'Indicateurs Cumulés'!$C$3:$HN$619,186,FALSE)/(VLOOKUP($C14,objectifs!$C$3:$ZZ$618,158,FALSE))<=-0.5,(VLOOKUP($C14,objectifs!$C$3:$ZZ$618,158,FALSE))*-0.5,VLOOKUP($C14,'Indicateurs Cumulés'!$C$3:$HN$619,186,FALSE)))) -> -201 | HP14: =SUMIFS([21]Feuil1!$C:$C,[21]Feuil1!$A:$A,C14) -> 0 | HR14: =IF(ISERROR(VLOOKUP($C14,[22]Feuil1!$O$10:$T$350,6,FALSE)),0,VLOOKUP($C14,[22]Feuil1!$O$10:$T$350,6,FALSE)) -> 3.4 | HT14: 4.19% | HU14: -0.02% | HV14: 0.00% | HW14: =VLOOKUP($C14,[12]VN!$B$4:$AV$500,3,FALSE) -> -1 | HX14: =VLOOKUP($C14,[12]VN!$B$4:$AV$500,16,FALSE) -> 0 | HY14: =VLOOKUP($C14,[12]VN!$B$4:$AV$500,34,FALSE) -> 1 | HZ14: =VLOOKUP($C14,[12]VN!$B$4:$AV$500,14,FALSE) -> -1 | IA14: =VLOOKUP($C14,[12]VN!$B$4:$AV$500,32,FALSE)+VLOOKUP($C14,[12]VN!$B$4:$AV$500,17,FALSE) -> -5 | IB14: =VLOOKUP($C14,[12]VN!$B$4:$AV$500,11,FALSE) -> 0 | IC14: =VLOOKUP($C14,[12]VN!$B$4:$AV$500,15,FALSE) -> -1 | ID14: =VLOOKUP($C14,[12]VN!$B$4:$AV$361,39,FALSE)-KY14 -> 13 | IE14: =VLOOKUP($C14,[12]VN!$B$4:$AV$361,40,FALSE) -> 0 | IF14: =VLOOKUP($C14,[12]VN!$B$4:$AV$361,41,FALSE) -> -2 | IG14: =VLOOKUP($C14,[12]VN!$B$4:$AV$361,42,FALSE) -> 0 | IH14: =VLOOKUP($C14,[12]VN!$B$4:$AV$361,43,FALSE) -> 0 | II14: =VLOOKUP($C14,[12]VN!$B$4:$AV$361,45,FALSE) -> 0 | IJ14: =VLOOKUP($C14,[12]VN!$B$4:$AV$361,44,FALSE) -> -18 | IK14: =VLOOKUP($C14,[12]VN!$B$4:$AV$361,46,FALSE) -> 3 | IL14: =VLOOKUP($C14,[12]VN!$B$4:$AV$361,47,FALSE) -> 1 | IM14: -0 | IN14: 0 | IO14: 0 | IP14: -0 | IQ14: -0 | IR14: 0 | IS14: -0 | IT14: 6 | IU14: 0 | IV14: -1 | IW14: 0 | IX14: 0 | IY14: 0 | IZ14: -12 | JA14: 1 | JB14: 0 | JC14: -22 | JD14: 3 | JE14: =(SUMIFS('[23]CE GEE'!$S:$S,'[23]CE GEE'!$G:$G,C14)+SUMIFS([24]CEGEE!$H:$H,[24]CEGEE!$B:$B,C14))/1000 -> 0 | JF14: -28 | JG14: 5.22 | JH14: 148.55 | JI14: =VLOOKUP($C14,[12]VN!$B$4:$AW$500,48,FALSE) -> 0 | JJ14: 0 | JK14: =VLOOKUP($C14,[19]Import!$B$9:$ZZ$403,69,FALSE) -> -0 | JL14: 0.20% | JM14: =VLOOKUP($C14,[19]Import!$B$9:$ZZ$403,71,FALSE) -> 0 | JO14: =VLOOKUP($C14,[19]Import!$B$9:$ZZ$403,73,FALSE) -> 1 | JP14: =VLOOKUP($C14,[19]Import!$B$9:$ZZ$403,29,FALSE) -> -44 | JQ14: =VLOOKUP($C14,[19]Import!$B$9:$ZZ$403,77,FALSE) -> 16 | JR14: =IF(ISERROR(IF(VLOOKUP($C14,'Indicateurs Cumulés'!$C$3:$HN$619,190,FALSE)/(VLOOKUP($C14,objectifs!$C$3:$ZZ$618,162,FALSE))>=1.5,(VLOOKUP($C14,objectifs!$C$3:$ZZ$618,162,FALSE))*1.5,IF(VLOOKUP($C14,'Indicateurs Cumulés'!$C$3:$HN$619,190,FALSE)/(VLOOKUP($C14,objectifs!$C$3:$ZZ$618,162,FALSE))<=-0.5,(VLOOKUP($C14,objectifs!$C$3:$ZZ$618,162,FALSE))*-0.5,VLOOKUP($C14,'Indicateurs Cumulés'!$C$3:$HN$619,190,FALSE)))),VLOOKUP($C14,'Indicateurs Cumulés'!$C$3:$HN$619,190,FALSE),IF(VLOOKUP($C14,'Indicateurs Cumulés'!$C$3:$HN$619,190,FALSE)/(VLOOKUP($C14,objectifs!$C$3:$ZZ$618,162,FALSE))>=1.5,(VLOOKUP($C14,objectifs!$C$3:$ZZ$618,162,FALSE))*1.5,IF(VLOOKUP($C14,'Indicateurs Cumulés'!$C$3:$HN$619,190,FALSE)/(VLOOKUP($C14,objectifs!$C$3:$ZZ$618,162,FALSE))<=-0.5,(VLOOKUP($C14,objectifs!$C$3:$ZZ$618,162,FALSE))*-0.5,VLOOKUP($C14,'Indicateurs Cumulés'!$C$3:$HN$619,190,FALSE)))) -> -30 | JS14: -0 | JT14: 0 | JV14: 0 | JW14: -2 | JX14: 1 | JY14: -0 | JZ14: -1 | KA14: =VLOOKUP($C14,[12]VN!$B$4:$ZZ$500,53,FALSE) -> 2 | KB14: =VLOOKUP($C14,[12]VN!$B$4:$ZZ$500,52,FALSE) -> 0 | KC14: =VLOOKUP($C14,[12]VN!$B$4:$ZZ$500,51,FALSE) -> 0 | KD14: =VLOOKUP($C14,[12]VN!$B$4:$ZZ$500,49,FALSE) -> 3 | KE14: =VLOOKUP($C14,[12]VN!$B$4:$ZZ$500,50,FALSE) -> 0 | KF14: =VLOOKUP($C14,[12]VN!$B$4:$ZZ$500,28,FALSE) -> 0 | KG14: 3 | KH14: 0 | KI14: 0 | KJ14: 1 | KK14: 0 | KL14: 0 | KM14: 4 | KN14: =VLOOKUP($C14,[12]VN!$B$4:$ZZ$500,54,FALSE) -> -0 | KR14: 5.88 | KS14: 5 | KT14: =VLOOKUP($C14,[19]Import!$B$9:$ZZ$403,81,FALSE) -> 1 | KU14: 0 | KV14: =VLOOKUP(C14,[12]VN!$B$4:$BH$500,59,FALSE) -> -12 | KW14: -2 | KX14: =IF(ISERROR(VLOOKUP(C14,'[25]CFF BDD'!$B:$C,2,FALSE)),0,VLOOKUP(C14,'[25]CFF BDD'!$B:$C,2,FALSE)) -> 0 | KY14: -18 | KZ14: -13 | LA14: =VLOOKUP($C14,[12]VN!$B$4:$CC$500,60,FALSE) -> 0 | LB14: 0 | LC14: 28 | LD14: -1 | LE14: =VLOOKUP($C14,[12]VN!$B$4:$ZZ$500,65,FALSE) -> 0 | LF14: 0 | LG14: =VLOOKUP($C14,[12]VN!$B$4:$ZZ$500,66,FALSE) -> -2 | LH14: -3 | LI14: =VLOOKUP($C14,[12]VN!$B$4:$ZZ$500,67,FALSE) -> 0 | LJ14: 0 | LK14: 30 | LL14: 8.9 | LM14: 51 | LN14: 6 | LO14: -3 | LP14: -3 | LQ14: 8.24 | LR14: =SUMIF([26]BAD!$B:$B,$C14,[26]BAD!$E:$E) -> 6 | LS14: =SUMIF([26]SED!$B:$B,$C14,[26]SED!$E:$E) -> 15 | LT14: =SUMIF([26]SAG!$B:$B,$C14,[26]SAG!$E:$E) -> 112 | LU14: =SUMIF([26]EDOC!$B:$B,$C14,[26]EDOC!$E:$E) -> -5 | LV14: =SUMIF([26]OPTIN!$B:$B,$C14,[26]OPTIN!$E:$E) -> 14 | LW14: =SUMIF([26]SECURPASS!$B:$B,$C14,[26]SECURPASS!$E:$E) -> -1 | LX14: 0.5 | LY14: 0.2 | LZ14: 0.3 | MA14: 0.0 | MB14: 0.2 | MC14: 0.0 | MD14: 29
